Workbook

Sheet Raza
B2: Nombre: | C2: Nombre | E2: Atributos: | K2: Coste del arquetipo: | O2: Coste de atributos: | P2: 1 | Q2: -10
B3: Bonus 1: | C3: - | D3: =LOOKUP(C3,ByM!$A$2:$B$462) -> 0 | E3: CON | F3: AGI | G3: INT | H3: VOL | K3: =IF(SUM(D3:D7,E5:H5)<1,1,SUM(D3:D7,E5:H5)) -> 1 | L3: =LOOKUP(C3,ByM!$A$2:$C$462) -> - | P3: 2 | Q3: -5
B4: Bonus 2: | C4: - | D4: =LOOKUP(C4,ByM!$A$2:$B$462) -> 0 | E4: 3 | F4: 3 | G4: 3 | H4: 3 | L4: =LOOKUP(C4,ByM!$A$2:$C$462) -> - | P4: 3 | Q4: 0
B5: Bonus 3: | C5: - | D5: =LOOKUP(C5,ByM!$A$2:$B$462) -> 0 | E5: =LOOKUP(E4,$P$2:$Q$11) -> 0 | F5: =LOOKUP(F4,$P$2:$Q$11) -> 0 | G5: =LOOKUP(G4,$P$2:$Q$11) -> 0 | H5: =LOOKUP(H4,$P$2:$Q$11) -> 0 | L5: =LOOKUP(C5,ByM!$A$2:$C$462) -> - | P5: 4 | Q5: 5
B6: Bonus 4: | C6: - | D6: =LOOKUP(C6,ByM!$A$2:$B$462) -> 0 | L6: =LOOKUP(C6,ByM!$A$2:$C$462) -> - | P6: 5 | Q6: 10
B7: Bonus 5: | C7: - | D7: =LOOKUP(C7,ByM!$A$2:$B$462) -> 0 | L7: =LOOKUP(C7,ByM!$A$2:$C$462) -> - | P7: 6 | Q7: 20
B8: Descripción: | P8: 7 | Q8: 40
P9: 8 | Q9: 80
P10: 9 | Q10: 150
P11: 10 | Q11: 300
B14: Tipo | C14: Nombre | D14: Desc | E14: CON | F14: AGI | G14: INT | H14: VOL | I14: PTS | J14: . | K14: Bonus 1 | L14: Bonus 2 | M14: Bonus 3 | N14: Bonus 4 | O14: Bonus 5 | P14: Pts Atr. | Q14: Pts ByM
B15: Raza | C15: Androide curioso | E15: 4 | F15: 4 | G15: 6 | H15: 4 | I15: 58 | K15: Silencioso | L15: Maestría (mecanismos) | M15: Otra oportunidad | N15: Sentido arácnido | O15: Vulnerable | P15: =IF(C15="","",LOOKUP(E15,$P$2:$Q$11)+LOOKUP(F15,$P$2:$Q$11)+LOOKUP(G15,$P$2:$Q$11)+LOOKUP(H15,$P$2:$Q$11)) -> 35 | Q15: =IF(C15="","",LOOKUP(K15,ByM!$A$2:$B$462)+LOOKUP(L15,ByM!$A$2:$B$462)+LOOKUP(M15,ByM!$A$2:$B$462)+LOOKUP(N15,ByM!$A$2:$B$462)+LOOKUP(O15,ByM!$A$2:$B$462)) -> 23
B16: Raza | C16: Androide encubierto | E16: 6 | F16: 6 | G16: 4 | H16: 3 | I16: 81 | K16: Neuromante | L16: Maestría (mecanismos) | M16: Élite valiente | N16: Profesión bárbaro | O16: Vulnerable | P16: =IF(C16="","",LOOKUP(E16,$P$2:$Q$11)+LOOKUP(F16,$P$2:$Q$11)+LOOKUP(G16,$P$2:$Q$11)+LOOKUP(H16,$P$2:$Q$11)) -> 45 | Q16: =IF(C16="","",LOOKUP(K16,ByM!$A$2:$B$462)+LOOKUP(L16,ByM!$A$2:$B$462)+LOOKUP(M16,ByM!$A$2:$B$462)+LOOKUP(N16,ByM!$A$2:$B$462)+LOOKUP(O16,ByM!$A$2:$B$462)) -> 36
B17: Raza | C17: Androide Matón | E17: 6 | F17: 5 | G17: 4 | H17: 3 | I17: 59 | K17: Neuromante | L17: Duro | M17: Absorción de impacto | N17: Silencioso | O17: Vulnerable | P17: =IF(C17="","",LOOKUP(E17,$P$2:$Q$11)+LOOKUP(F17,$P$2:$Q$11)+LOOKUP(G17,$P$2:$Q$11)+LOOKUP(H17,$P$2:$Q$11)) -> 35 | Q17: =IF(C17="","",LOOKUP(K17,ByM!$A$2:$B$462)+LOOKUP(L17,ByM!$A$2:$B$462)+LOOKUP(M17,ByM!$A$2:$B$462)+LOOKUP(N17,ByM!$A$2:$B$462)+LOOKUP(O17,ByM!$A$2:$B$462)) -> 24
B18: Raza | C18: Androide reconstruido | E18: 6 | F18: 6 | G18: 4 | H18: 3 | I18: 61 | K18: Maestría (mecanismos) | L18: Meta visión | M18: Neuromante | N18: Piloto evasivo (un vehículo) | O18: Vulnerable | P18: =IF(C18="","",LOOKUP(E18,$P$2:$Q$11)+LOOKUP(F18,$P$2:$Q$11)+LOOKUP(G18,$P$2:$Q$11)+LOOKUP(H18,$P$2:$Q$11)) -> 45 | Q18: =IF(C18="","",LOOKUP(K18,ByM!$A$2:$B$462)+LOOKUP(L18,ByM!$A$2:$B$462)+LOOKUP(M18,ByM!$A$2:$B$462)+LOOKUP(N18,ByM!$A$2:$B$462)+LOOKUP(O18,ByM!$A$2:$B$462)) -> 16
B19: Raza | C19: Astartes | E19: 6 | F19: 6 | G19: 6 | H19: 6 | I19: 125 | K19: Élite valiente | L19: Maestría en combate (bólter) | M19: Maestro carnicero (cargando) | N19: - | O19: - | P19: =IF(C19="","",LOOKUP(E19,$P$2:$Q$11)+LOOKUP(F19,$P$2:$Q$11)+LOOKUP(G19,$P$2:$Q$11)+LOOKUP(H19,$P$2:$Q$11)) -> 80 | Q19: =IF(C19="","",LOOKUP(K19,ByM!$A$2:$B$462)+LOOKUP(L19,ByM!$A$2:$B$462)+LOOKUP(M19,ByM!$A$2:$B$462)+LOOKUP(N19,ByM!$A$2:$B$462)+LOOKUP(O19,ByM!$A$2:$B$462)) -> 45
B20: Raza | C20: Atlante | E20: 5 | F20: 5 | G20: 5 | H20: 5 | I20: 50 | K20: Veterano | L20: - | M20: - | N20: - | O20: - | P20: =IF(C20="","",LOOKUP(E20,$P$2:$Q$11)+LOOKUP(F20,$P$2:$Q$11)+LOOKUP(G20,$P$2:$Q$11)+LOOKUP(H20,$P$2:$Q$11)) -> 40 | Q20: =IF(C20="","",LOOKUP(K20,ByM!$A$2:$B$462)+LOOKUP(L20,ByM!$A$2:$B$462)+LOOKUP(M20,ByM!$A$2:$B$462)+LOOKUP(N20,ByM!$A$2:$B$462)+LOOKUP(O20,ByM!$A$2:$B$462)) -> 10
B21: Raza | C21: Atlante marino | E21: 5 | F21: 5 | G21: 5 | H21: 5 | I21: 52 | K21: Pez | L21: Tropas tras las líneas enemigas | M21: - | N21: - | O21: - | P21: =IF(C21="","",LOOKUP(E21,$P$2:$Q$11)+LOOKUP(F21,$P$2:$Q$11)+LOOKUP(G21,$P$2:$Q$11)+LOOKUP(H21,$P$2:$Q$11)) -> 40 | Q21: =IF(C21="","",LOOKUP(K21,ByM!$A$2:$B$462)+LOOKUP(L21,ByM!$A$2:$B$462)+LOOKUP(M21,ByM!$A$2:$B$462)+LOOKUP(N21,ByM!$A$2:$B$462)+LOOKUP(O21,ByM!$A$2:$B$462)) -> 12
B22: Raza | C22: Bárbara | E22: 5 | F22: 4 | G22: 3 | H22: 4 | I22: 25 | K22: Berserker | L22: - | M22: - | N22: - | O22: - | P22: =IF(C22="","",LOOKUP(E22,$P$2:$Q$11)+LOOKUP(F22,$P$2:$Q$11)+LOOKUP(G22,$P$2:$Q$11)+LOOKUP(H22,$P$2:$Q$11)) -> 20 | Q22: =IF(C22="","",LOOKUP(K22,ByM!$A$2:$B$462)+LOOKUP(L22,ByM!$A$2:$B$462)+LOOKUP(M22,ByM!$A$2:$B$462)+LOOKUP(N22,ByM!$A$2:$B$462)+LOOKUP(O22,ByM!$A$2:$B$462)) -> 5
B23: Raza | C23: Bestia del páramo | E23: 7 | F23: 3 | G23: 2 | H23: 2 | I23: 25 | K23: Animal | L23: Garras y dientes | M23: - | N23: - | O23: - | P23: =IF(C23="","",LOOKUP(E23,$P$2:$Q$11)+LOOKUP(F23,$P$2:$Q$11)+LOOKUP(G23,$P$2:$Q$11)+LOOKUP(H23,$P$2:$Q$11)) -> 30 | Q23: =IF(C23="","",LOOKUP(K23,ByM!$A$2:$B$462)+LOOKUP(L23,ByM!$A$2:$B$462)+LOOKUP(M23,ByM!$A$2:$B$462)+LOOKUP(N23,ByM!$A$2:$B$462)+LOOKUP(O23,ByM!$A$2:$B$462)) -> -5
B24: Raza | C24: Boss final | E24: 5 | F24: 5 | G24: 5 | H24: 5 | I24: 40 | K24: - | L24: - | M24: - | N24: - | O24: - | P24: =IF(C24="","",LOOKUP(E24,$P$2:$Q$11)+LOOKUP(F24,$P$2:$Q$11)+LOOKUP(G24,$P$2:$Q$11)+LOOKUP(H24,$P$2:$Q$11)) -> 40 | Q24: =IF(C24="","",LOOKUP(K24,ByM!$A$2:$B$462)+LOOKUP(L24,ByM!$A$2:$B$462)+LOOKUP(M24,ByM!$A$2:$B$462)+LOOKUP(N24,ByM!$A$2:$B$462)+LOOKUP(O24,ByM!$A$2:$B$462)) -> 0
B25: Raza | C25: Cimeria | E25: 5 | F25: 4 | G25: 4 | H25: 5 | I25: 35 | K25: Frenesí | L25: - | M25: - | N25: - | O25: - | P25: =IF(C25="","",LOOKUP(E25,$P$2:$Q$11)+LOOKUP(F25,$P$2:$Q$11)+LOOKUP(G25,$P$2:$Q$11)+LOOKUP(H25,$P$2:$Q$11)) -> 30 | Q25: =IF(C25="","",LOOKUP(K25,ByM!$A$2:$B$462)+LOOKUP(L25,ByM!$A$2:$B$462)+LOOKUP(M25,ByM!$A$2:$B$462)+LOOKUP(N25,ByM!$A$2:$B$462)+LOOKUP(O25,ByM!$A$2:$B$462)) -> 5
B26: Raza | C26: Cimeria - Conan | E26: 6 | F26: 5 | G26: 4 | H26: 5 | I26: 73 | K26: Fatality | L26: Frenesí | M26: Profesión acróbata | N26: Silencioso | O26: Todo terreno | P26: =IF(C26="","",LOOKUP(E26,$P$2:$Q$11)+LOOKUP(F26,$P$2:$Q$11)+LOOKUP(G26,$P$2:$Q$11)+LOOKUP(H26,$P$2:$Q$11)) -> 45 | Q26: =IF(C26="","",LOOKUP(K26,ByM!$A$2:$B$462)+LOOKUP(L26,ByM!$A$2:$B$462)+LOOKUP(M26,ByM!$A$2:$B$462)+LOOKUP(N26,ByM!$A$2:$B$462)+LOOKUP(O26,ByM!$A$2:$B$462)) -> 28
B27: Raza | C27: Demonio | E27: 6 | F27: 5 | G27: 5 | H27: 6 | I27: 85 | K27: Berserker | L27: Señor de Medusa | M27: - | N27: - | O27: - | P27: =IF(C27="","",LOOKUP(E27,$P$2:$Q$11)+LOOKUP(F27,$P$2:$Q$11)+LOOKUP(G27,$P$2:$Q$11)+LOOKUP(H27,$P$2:$Q$11)) -> 60 | Q27: =IF(C27="","",LOOKUP(K27,ByM!$A$2:$B$462)+LOOKUP(L27,ByM!$A$2:$B$462)+LOOKUP(M27,ByM!$A$2:$B$462)+LOOKUP(N27,ByM!$A$2:$B$462)+LOOKUP(O27,ByM!$A$2:$B$462)) -> 25
B28: Raza | C28: Demonio mayor | E28: 7 | F28: 6 | G28: 6 | H28: 5 | I28: 96 | K28: Neuromante | L28: Terror | M28: - | N28: - | O28: - | P28: =IF(C28="","",LOOKUP(E28,$P$2:$Q$11)+LOOKUP(F28,$P$2:$Q$11)+LOOKUP(G28,$P$2:$Q$11)+LOOKUP(H28,$P$2:$Q$11)) -> 90 | Q28: =IF(C28="","",LOOKUP(K28,ByM!$A$2:$B$462)+LOOKUP(L28,ByM!$A$2:$B$462)+LOOKUP(M28,ByM!$A$2:$B$462)+LOOKUP(N28,ByM!$A$2:$B$462)+LOOKUP(O28,ByM!$A$2:$B$462)) -> 6
B29: Raza | C29: Demonio menor | E29: 5 | F29: 5 | G29: 5 | H29: 5 | I29: 45 | K29: Horror | L29: - | M29: - | N29: - | O29: - | P29: =IF(C29="","",LOOKUP(E29,$P$2:$Q$11)+LOOKUP(F29,$P$2:$Q$11)+LOOKUP(G29,$P$2:$Q$11)+LOOKUP(H29,$P$2:$Q$11)) -> 40 | Q29: =IF(C29="","",LOOKUP(K29,ByM!$A$2:$B$462)+LOOKUP(L29,ByM!$A$2:$B$462)+LOOKUP(M29,ByM!$A$2:$B$462)+LOOKUP(N29,ByM!$A$2:$B$462)+LOOKUP(O29,ByM!$A$2:$B$462)) -> 5
B30: Raza | C30: Demonio volador | E30: 5 | F30: 6 | G30: 4 | H30: 4 | I30: 56 | K30: Garras y dientes | L30: Retirada ordenada | M30: Rápido | N30: Vuelo | O30: - | P30: =IF(C30="","",LOOKUP(E30,$P$2:$Q$11)+LOOKUP(F30,$P$2:$Q$11)+LOOKUP(G30,$P$2:$Q$11)+LOOKUP(H30,$P$2:$Q$11)) -> 40 | Q30: =IF(C30="","",LOOKUP(K30,ByM!$A$2:$B$462)+LOOKUP(L30,ByM!$A$2:$B$462)+LOOKUP(M30,ByM!$A$2:$B$462)+LOOKUP(N30,ByM!$A$2:$B$462)+LOOKUP(O30,ByM!$A$2:$B$462)) -> 16
B31: Raza | C31: Dotado | E31: 5 | F31: 5 | G31: 5 | H31: 5 | I31: 85 | K31: Maestría en combate (bólter) | L31: Maestro carnicero (cargando) | M31: Élite valiente | N31: - | O31: - | P31: =IF(C31="","",LOOKUP(E31,$P$2:$Q$11)+LOOKUP(F31,$P$2:$Q$11)+LOOKUP(G31,$P$2:$Q$11)+LOOKUP(H31,$P$2:$Q$11)) -> 40 | Q31: =IF(C31="","",LOOKUP(K31,ByM!$A$2:$B$462)+LOOKUP(L31,ByM!$A$2:$B$462)+LOOKUP(M31,ByM!$A$2:$B$462)+LOOKUP(N31,ByM!$A$2:$B$462)+LOOKUP(O31,ByM!$A$2:$B$462)) -> 45
B32: Raza | C32: El enjambre | E32: 4 | F32: 3 | G32: 2 | H32: 3 | I32: 1 | K32: - | L32: - | M32: - | N32: - | O32: - | P32: =IF(C32="","",LOOKUP(E32,$P$2:$Q$11)+LOOKUP(F32,$P$2:$Q$11)+LOOKUP(G32,$P$2:$Q$11)+LOOKUP(H32,$P$2:$Q$11)) -> 0 | Q32: =IF(C32="","",LOOKUP(K32,ByM!$A$2:$B$462)+LOOKUP(L32,ByM!$A$2:$B$462)+LOOKUP(M32,ByM!$A$2:$B$462)+LOOKUP(N32,ByM!$A$2:$B$462)+LOOKUP(O32,ByM!$A$2:$B$462)) -> 0
B33: Raza | C33: Engendro - División científica | E33: 7 | F33: 3 | G33: 1 | H33: 2 | I33: 27 | K33: Desafiante | L33: Garras y dientes | M33: Pusilánime (Tierdoktor) | N33: - | O33: - | P33: =IF(C33="","",LOOKUP(E33,$P$2:$Q$11)+LOOKUP(F33,$P$2:$Q$11)+LOOKUP(G33,$P$2:$Q$11)+LOOKUP(H33,$P$2:$Q$11)) -> 25 | Q33: =IF(C33="","",LOOKUP(K33,ByM!$A$2:$B$462)+LOOKUP(L33,ByM!$A$2:$B$462)+LOOKUP(M33,ByM!$A$2:$B$462)+LOOKUP(N33,ByM!$A$2:$B$462)+LOOKUP(O33,ByM!$A$2:$B$462)) -> 2
B34: Raza | C34: Escorpión de Tanakan de agua | E34: 4 | F34: 4 | G34: 2 | H34: 3 | I34: 23 | K34: Silencioso | L34: Garras y dientes | M34: Meta visión | N34: - | O34: - | P34: =IF(C34="","",LOOKUP(E34,$P$2:$Q$11)+LOOKUP(F34,$P$2:$Q$11)+LOOKUP(G34,$P$2:$Q$11)+LOOKUP(H34,$P$2:$Q$11)) -> 5 | Q34: =IF(C34="","",LOOKUP(K34,ByM!$A$2:$B$462)+LOOKUP(L34,ByM!$A$2:$B$462)+LOOKUP(M34,ByM!$A$2:$B$462)+LOOKUP(N34,ByM!$A$2:$B$462)+LOOKUP(O34,ByM!$A$2:$B$462)) -> 18
B35: Raza | C35: Escorpión de Tanakan de tierra | E35: 4 | F35: 3 | G35: 2 | H35: 3 | I35: 12 | K35: Silencioso | L35: Garras y dientes | M35: Radar | N35: - | O35: - | P35: =IF(C35="","",LOOKUP(E35,$P$2:$Q$11)+LOOKUP(F35,$P$2:$Q$11)+LOOKUP(G35,$P$2:$Q$11)+LOOKUP(H35,$P$2:$Q$11)) -> 0 | Q35: =IF(C35="","",LOOKUP(K35,ByM!$A$2:$B$462)+LOOKUP(L35,ByM!$A$2:$B$462)+LOOKUP(M35,ByM!$A$2:$B$462)+LOOKUP(N35,ByM!$A$2:$B$462)+LOOKUP(O35,ByM!$A$2:$B$462)) -> 12
B36: Raza | C36: Espíritu máquina | E36: 3 | F36: 5 | G36: 4 | H36: 5 | I36: 20 | K36: Vulnerable | L36: - | M36: - | N36: - | O36: - | P36: =IF(C36="","",LOOKUP(E36,$P$2:$Q$11)+LOOKUP(F36,$P$2:$Q$11)+LOOKUP(G36,$P$2:$Q$11)+LOOKUP(H36,$P$2:$Q$11)) -> 25 | Q36: =IF(C36="","",LOOKUP(K36,ByM!$A$2:$B$462)+LOOKUP(L36,ByM!$A$2:$B$462)+LOOKUP(M36,ByM!$A$2:$B$462)+LOOKUP(N36,ByM!$A$2:$B$462)+LOOKUP(O36,ByM!$A$2:$B$462)) -> -5
B37: Raza | C37: Esqueleto | E37: 4 | F37: 4 | G37: 3 | H37: 3 | I37: 21 | K37: Ave fénix | L37: No vivo | M37: - | N37: - | O37: - | P37: =IF(C37="","",LOOKUP(E37,$P$2:$Q$11)+LOOKUP(F37,$P$2:$Q$11)+LOOKUP(G37,$P$2:$Q$11)+LOOKUP(H37,$P$2:$Q$11)) -> 10 | Q37: =IF(C37="","",LOOKUP(K37,ByM!$A$2:$B$462)+LOOKUP(L37,ByM!$A$2:$B$462)+LOOKUP(M37,ByM!$A$2:$B$462)+LOOKUP(N37,ByM!$A$2:$B$462)+LOOKUP(O37,ByM!$A$2:$B$462)) -> 11
B38: Raza | C38: Estigia | E38: 4 | F38: 4 | G38: 5 | H38: 5 | I38: 35 | K38: Orador | L38: - | M38: - | N38: - | O38: - | P38: =IF(C38="","",LOOKUP(E38,$P$2:$Q$11)+LOOKUP(F38,$P$2:$Q$11)+LOOKUP(G38,$P$2:$Q$11)+LOOKUP(H38,$P$2:$Q$11)) -> 30 | Q38: =IF(C38="","",LOOKUP(K38,ByM!$A$2:$B$462)+LOOKUP(L38,ByM!$A$2:$B$462)+LOOKUP(M38,ByM!$A$2:$B$462)+LOOKUP(N38,ByM!$A$2:$B$462)+LOOKUP(O38,ByM!$A$2:$B$462)) -> 5
B39: Raza | C39: Fantasma | E39: 2 | F39: 4 | G39: 4 | H39: 4 | I39: 36 | K39: Hálito de miedo | L39: No vivo | M39: - | N39: - | O39: - | P39: =IF(C39="","",LOOKUP(E39,$P$2:$Q$11)+LOOKUP(F39,$P$2:$Q$11)+LOOKUP(G39,$P$2:$Q$11)+LOOKUP(H39,$P$2:$Q$11)) -> 10 | Q39: =IF(C39="","",LOOKUP(K39,ByM!$A$2:$B$462)+LOOKUP(L39,ByM!$A$2:$B$462)+LOOKUP(M39,ByM!$A$2:$B$462)+LOOKUP(N39,ByM!$A$2:$B$462)+LOOKUP(O39,ByM!$A$2:$B$462)) -> 26
B40: Raza | C40: Farsun | E40: 4 | F40: 5 | G40: 5 | H40: 4 | I40: 35 | K40: Rápido | L40: - | M40: - | N40: - | O40: - | P40: =IF(C40="","",LOOKUP(E40,$P$2:$Q$11)+LOOKUP(F40,$P$2:$Q$11)+LOOKUP(G40,$P$2:$Q$11)+LOOKUP(H40,$P$2:$Q$11)) -> 30 | Q40: =IF(C40="","",LOOKUP(K40,ByM!$A$2:$B$462)+LOOKUP(L40,ByM!$A$2:$B$462)+LOOKUP(M40,ByM!$A$2:$B$462)+LOOKUP(N40,ByM!$A$2:$B$462)+LOOKUP(O40,ByM!$A$2:$B$462)) -> 5
B41: Raza | C41: Gólem de casco rojo | E41: 4 | F41: 5 | G41: 4 | H41: 4 | I41: 25 | K41: - | L41: - | M41: - | N41: - | O41: - | P41: =IF(C41="","",LOOKUP(E41,$P$2:$Q$11)+LOOKUP(F41,$P$2:$Q$11)+LOOKUP(G41,$P$2:$Q$11)+LOOKUP(H41,$P$2:$Q$11)) -> 25 | Q41: =IF(C41="","",LOOKUP(K41,ByM!$A$2:$B$462)+LOOKUP(L41,ByM!$A$2:$B$462)+LOOKUP(M41,ByM!$A$2:$B$462)+LOOKUP(N41,ByM!$A$2:$B$462)+LOOKUP(O41,ByM!$A$2:$B$462)) -> 0
B42: Raza | C42: Gólem del páramo | E42: 6 | F42: 4 | G42: 4 | H42: 4 | I42: 35 | K42: - | L42: - | M42: - | N42: - | O42: - | P42: =IF(C42="","",LOOKUP(E42,$P$2:$Q$11)+LOOKUP(F42,$P$2:$Q$11)+LOOKUP(G42,$P$2:$Q$11)+LOOKUP(H42,$P$2:$Q$11)) -> 35 | Q42: =IF(C42="","",LOOKUP(K42,ByM!$A$2:$B$462)+LOOKUP(L42,ByM!$A$2:$B$462)+LOOKUP(M42,ByM!$A$2:$B$462)+LOOKUP(N42,ByM!$A$2:$B$462)+LOOKUP(O42,ByM!$A$2:$B$462)) -> 0
B43: Raza | C43: Gran demonio | E43: 7 | F43: 7 | G43: 7 | H43: 7 | I43: 215 | K43: Despertando del letargo | L43: Fortuna | M43: Gran demonio | N43: Horror | O43: Señor del sometimiento | P43: =IF(C43="","",LOOKUP(E43,$P$2:$Q$11)+LOOKUP(F43,$P$2:$Q$11)+LOOKUP(G43,$P$2:$Q$11)+LOOKUP(H43,$P$2:$Q$11)) -> 160 | Q43: =IF(C43="","",LOOKUP(K43,ByM!$A$2:$B$462)+LOOKUP(L43,ByM!$A$2:$B$462)+LOOKUP(M43,ByM!$A$2:$B$462)+LOOKUP(N43,ByM!$A$2:$B$462)+LOOKUP(O43,ByM!$A$2:$B$462)) -> 55
B44: Raza | C44: Gran pantera | E44: 5 | F44: 4 | G44: 2 | H44: 4 | I44: 20 | K44: Animal | L44: Garras y dientes | M44: Rápido | N44: Todo terreno | O44: - | P44: =IF(C44="","",LOOKUP(E44,$P$2:$Q$11)+LOOKUP(F44,$P$2:$Q$11)+LOOKUP(G44,$P$2:$Q$11)+LOOKUP(H44,$P$2:$Q$11)) -> 15 | Q44: =IF(C44="","",LOOKUP(K44,ByM!$A$2:$B$462)+LOOKUP(L44,ByM!$A$2:$B$462)+LOOKUP(M44,ByM!$A$2:$B$462)+LOOKUP(N44,ByM!$A$2:$B$462)+LOOKUP(O44,ByM!$A$2:$B$462)) -> 5
B45: Raza | C45: Grondariana | E45: 5 | F45: 5 | G45: 3 | H45: 4 | I45: 30 | K45: Fatality | L45: - | M45: - | N45: - | O45: - | P45: =IF(C45="","",LOOKUP(E45,$P$2:$Q$11)+LOOKUP(F45,$P$2:$Q$11)+LOOKUP(G45,$P$2:$Q$11)+LOOKUP(H45,$P$2:$Q$11)) -> 25 | Q45: =IF(C45="","",LOOKUP(K45,ByM!$A$2:$B$462)+LOOKUP(L45,ByM!$A$2:$B$462)+LOOKUP(M45,ByM!$A$2:$B$462)+LOOKUP(N45,ByM!$A$2:$B$462)+LOOKUP(O45,ByM!$A$2:$B$462)) -> 5
B46: Raza | C46: Gusano león | E46: 4 | F46: 3 | G46: 2 | H46: 3 | I46: 12 | K46: Silencioso | L46: Garras y dientes | M46: Radar | N46: - | O46: - | P46: =IF(C46="","",LOOKUP(E46,$P$2:$Q$11)+LOOKUP(F46,$P$2:$Q$11)+LOOKUP(G46,$P$2:$Q$11)+LOOKUP(H46,$P$2:$Q$11)) -> 0 | Q46: =IF(C46="","",LOOKUP(K46,ByM!$A$2:$B$462)+LOOKUP(L46,ByM!$A$2:$B$462)+LOOKUP(M46,ByM!$A$2:$B$462)+LOOKUP(N46,ByM!$A$2:$B$462)+LOOKUP(O46,ByM!$A$2:$B$462)) -> 12
B47: Raza | C47: Harvester | E47: 6 | F47: 3 | G47: 2 | H47: 3 | I47: 23 | K47: Garras y dientes | L47: Silencioso | M47: - | N47: - | O47: - | P47: =IF(C47="","",LOOKUP(E47,$P$2:$Q$11)+LOOKUP(F47,$P$2:$Q$11)+LOOKUP(G47,$P$2:$Q$11)+LOOKUP(H47,$P$2:$Q$11)) -> 15 | Q47: =IF(C47="","",LOOKUP(K47,ByM!$A$2:$B$462)+LOOKUP(L47,ByM!$A$2:$B$462)+LOOKUP(M47,ByM!$A$2:$B$462)+LOOKUP(N47,ByM!$A$2:$B$462)+LOOKUP(O47,ByM!$A$2:$B$462)) -> 8
B48: Raza | C48: Harvester joven | E48: 3 | F48: 3 | G48: 2 | H48: 3 | I48: 8 | K48: Silencioso | L48: Garras y dientes | M48: Sangre de ácido (máx 1) | N48: - | O48: - | P48: =IF(C48="","",LOOKUP(E48,$P$2:$Q$11)+LOOKUP(F48,$P$2:$Q$11)+LOOKUP(G48,$P$2:$Q$11)+LOOKUP(H48,$P$2:$Q$11)) -> -5 | Q48: =IF(C48="","",LOOKUP(K48,ByM!$A$2:$B$462)+LOOKUP(L48,ByM!$A$2:$B$462)+LOOKUP(M48,ByM!$A$2:$B$462)+LOOKUP(N48,ByM!$A$2:$B$462)+LOOKUP(O48,ByM!$A$2:$B$462)) -> 13
B49: Raza | C49: Hiena | E49: 4 | F49: 4 | G49: 3 | H49: 3 | I49: 30 | K49: Garras y dientes | L49: Rápido | M49: Retirada ordenada | N49: Saltador | O49: - | P49: =IF(C49="","",LOOKUP(E49,$P$2:$Q$11)+LOOKUP(F49,$P$2:$Q$11)+LOOKUP(G49,$P$2:$Q$11)+LOOKUP(H49,$P$2:$Q$11)) -> 10 | Q49: =IF(C49="","",LOOKUP(K49,ByM!$A$2:$B$462)+LOOKUP(L49,ByM!$A$2:$B$462)+LOOKUP(M49,ByM!$A$2:$B$462)+LOOKUP(N49,ByM!$A$2:$B$462)+LOOKUP(O49,ByM!$A$2:$B$462)) -> 20
B50: Raza | C50: Hirkana | E50: 4 | F50: 5 | G50: 4 | H50: 4 | I50: 30 | K50: Maestría (a caballo) | L50: - | M50: - | N50: - | O50: - | P50: =IF(C50="","",LOOKUP(E50,$P$2:$Q$11)+LOOKUP(F50,$P$2:$Q$11)+LOOKUP(G50,$P$2:$Q$11)+LOOKUP(H50,$P$2:$Q$11)) -> 25 | Q50: =IF(C50="","",LOOKUP(K50,ByM!$A$2:$B$462)+LOOKUP(L50,ByM!$A$2:$B$462)+LOOKUP(M50,ByM!$A$2:$B$462)+LOOKUP(N50,ByM!$A$2:$B$462)+LOOKUP(O50,ByM!$A$2:$B$462)) -> 5
B51: Raza | C51: Hombre mono | E51: 5 | F51: 5 | G51: 3 | H51: 4 | I51: 45 | K51: Gran bestia | L51: Mulo | M51: Saltador | N51: - | O51: - | P51: =IF(C51="","",LOOKUP(E51,$P$2:$Q$11)+LOOKUP(F51,$P$2:$Q$11)+LOOKUP(G51,$P$2:$Q$11)+LOOKUP(H51,$P$2:$Q$11)) -> 25 | Q51: =IF(C51="","",LOOKUP(K51,ByM!$A$2:$B$462)+LOOKUP(L51,ByM!$A$2:$B$462)+LOOKUP(M51,ByM!$A$2:$B$462)+LOOKUP(N51,ByM!$A$2:$B$462)+LOOKUP(O51,ByM!$A$2:$B$462)) -> 20
B52: Raza | C52: Hombre serpiente | E52: 4 | F52: 4 | G52: 5 | H52: 5 | I52: 32 | K52: Desafiante | L52: - | M52: - | N52: - | O52: - | P52: =IF(C52="","",LOOKUP(E52,$P$2:$Q$11)+LOOKUP(F52,$P$2:$Q$11)+LOOKUP(G52,$P$2:$Q$11)+LOOKUP(H52,$P$2:$Q$11)) -> 30 | Q52: =IF(C52="","",LOOKUP(K52,ByM!$A$2:$B$462)+LOOKUP(L52,ByM!$A$2:$B$462)+LOOKUP(M52,ByM!$A$2:$B$462)+LOOKUP(N52,ByM!$A$2:$B$462)+LOOKUP(O52,ByM!$A$2:$B$462)) -> 2
B53: Raza | C53: Humana | E53: 4 | F53: 4 | G53: 4 | H53: 4 | I53: 20 | K53: - | L53: - | M53: - | N53: - | O53: - | P53: =IF(C53="","",LOOKUP(E53,$P$2:$Q$11)+LOOKUP(F53,$P$2:$Q$11)+LOOKUP(G53,$P$2:$Q$11)+LOOKUP(H53,$P$2:$Q$11)) -> 20 | Q53: =IF(C53="","",LOOKUP(K53,ByM!$A$2:$B$462)+LOOKUP(L53,ByM!$A$2:$B$462)+LOOKUP(M53,ByM!$A$2:$B$462)+LOOKUP(N53,ByM!$A$2:$B$462)+LOOKUP(O53,ByM!$A$2:$B$462)) -> 0
B54: Raza | C54: Humana - anciano | E54: 3 | F54: 3 | G54: 3 | H54: 3 | I54: 1 | K54: - | L54: - | M54: - | N54: - | O54: - | P54: =IF(C54="","",LOOKUP(E54,$P$2:$Q$11)+LOOKUP(F54,$P$2:$Q$11)+LOOKUP(G54,$P$2:$Q$11)+LOOKUP(H54,$P$2:$Q$11)) -> 0 | Q54: =IF(C54="","",LOOKUP(K54,ByM!$A$2:$B$462)+LOOKUP(L54,ByM!$A$2:$B$462)+LOOKUP(M54,ByM!$A$2:$B$462)+LOOKUP(N54,ByM!$A$2:$B$462)+LOOKUP(O54,ByM!$A$2:$B$462)) -> 0
B55: Raza | C55: Humana - niño | E55: 3 | F55: 4 | G55: 3 | H55: 3 | I55: 5 | K55: - | L55: - | M55: - | N55: - | O55: - | P55: =IF(C55="","",LOOKUP(E55,$P$2:$Q$11)+LOOKUP(F55,$P$2:$Q$11)+LOOKUP(G55,$P$2:$Q$11)+LOOKUP(H55,$P$2:$Q$11)) -> 5 | Q55: =IF(C55="","",LOOKUP(K55,ByM!$A$2:$B$462)+LOOKUP(L55,ByM!$A$2:$B$462)+LOOKUP(M55,ByM!$A$2:$B$462)+LOOKUP(N55,ByM!$A$2:$B$462)+LOOKUP(O55,ByM!$A$2:$B$462)) -> 0
B56: Raza | C56: Humana ágil | E56: 4 | F56: 5 | G56: 4 | H56: 4 | I56: 25 | K56: - | L56: - | M56: - | N56: - | O56: - | P56: =IF(C56="","",LOOKUP(E56,$P$2:$Q$11)+LOOKUP(F56,$P$2:$Q$11)+LOOKUP(G56,$P$2:$Q$11)+LOOKUP(H56,$P$2:$Q$11)) -> 25 | Q56: =IF(C56="","",LOOKUP(K56,ByM!$A$2:$B$462)+LOOKUP(L56,ByM!$A$2:$B$462)+LOOKUP(M56,ByM!$A$2:$B$462)+LOOKUP(N56,ByM!$A$2:$B$462)+LOOKUP(O56,ByM!$A$2:$B$462)) -> 0
B57: Raza | C57: Humana cazatesoros | E57: 4 | F57: 5 | G57: 5 | H57: 5 | I57: 55 | K57: Fortuna | L57: Sentido arácnido | M57: - | N57: - | O57: - | P57: =IF(C57="","",LOOKUP(E57,$P$2:$Q$11)+LOOKUP(F57,$P$2:$Q$11)+LOOKUP(G57,$P$2:$Q$11)+LOOKUP(H57,$P$2:$Q$11)) -> 35 | Q57: =IF(C57="","",LOOKUP(K57,ByM!$A$2:$B$462)+LOOKUP(L57,ByM!$A$2:$B$462)+LOOKUP(M57,ByM!$A$2:$B$462)+LOOKUP(N57,ByM!$A$2:$B$462)+LOOKUP(O57,ByM!$A$2:$B$462)) -> 20
B58: Raza | C58: Humana jefe | E58: 4 | F58: 4 | G58: 4 | H58: 5 | I58: 50 | K58: Anulador de voluntad | L58: Órdenes | M58: - | N58: - | O58: - | P58: =IF(C58="","",LOOKUP(E58,$P$2:$Q$11)+LOOKUP(F58,$P$2:$Q$11)+LOOKUP(G58,$P$2:$Q$11)+LOOKUP(H58,$P$2:$Q$11)) -> 25 | Q58: =IF(C58="","",LOOKUP(K58,ByM!$A$2:$B$462)+LOOKUP(L58,ByM!$A$2:$B$462)+LOOKUP(M58,ByM!$A$2:$B$462)+LOOKUP(N58,ByM!$A$2:$B$462)+LOOKUP(O58,ByM!$A$2:$B$462)) -> 25
B59: Raza | C59: Humana maga | E59: 4 | F59: 4 | G59: 5 | H59: 5 | I59: 41 | K59: Neuromante | L59: Profesión mago | M59: - | N59: - | O59: - | P59: =IF(C59="","",LOOKUP(E59,$P$2:$Q$11)+LOOKUP(F59,$P$2:$Q$11)+LOOKUP(G59,$P$2:$Q$11)+LOOKUP(H59,$P$2:$Q$11)) -> 30 | Q59: =IF(C59="","",LOOKUP(K59,ByM!$A$2:$B$462)+LOOKUP(L59,ByM!$A$2:$B$462)+LOOKUP(M59,ByM!$A$2:$B$462)+LOOKUP(N59,ByM!$A$2:$B$462)+LOOKUP(O59,ByM!$A$2:$B$462)) -> 11
B60: Raza | C60: Humana modificada - Fuerte Thule | E60: 6 | F60: 4 | G60: 3 | H60: 3 | I60: 25 | K60: - | L60: - | M60: - | N60: - | O60: - | P60: =IF(C60="","",LOOKUP(E60,$P$2:$Q$11)+LOOKUP(F60,$P$2:$Q$11)+LOOKUP(G60,$P$2:$Q$11)+LOOKUP(H60,$P$2:$Q$11)) -> 25 | Q60: =IF(C60="","",LOOKUP(K60,ByM!$A$2:$B$462)+LOOKUP(L60,ByM!$A$2:$B$462)+LOOKUP(M60,ByM!$A$2:$B$462)+LOOKUP(N60,ByM!$A$2:$B$462)+LOOKUP(O60,ByM!$A$2:$B$462)) -> 0
B61: Raza | C61: Humana oficial | E61: 5 | F61: 5 | G61: 4 | H61: 5 | I61: 38 | K61: Líder | L61: - | M61: - | N61: - | O61: - | P61: =IF(C61="","",LOOKUP(E61,$P$2:$Q$11)+LOOKUP(F61,$P$2:$Q$11)+LOOKUP(G61,$P$2:$Q$11)+LOOKUP(H61,$P$2:$Q$11)) -> 35 | Q61: =IF(C61="","",LOOKUP(K61,ByM!$A$2:$B$462)+LOOKUP(L61,ByM!$A$2:$B$462)+LOOKUP(M61,ByM!$A$2:$B$462)+LOOKUP(N61,ByM!$A$2:$B$462)+LOOKUP(O61,ByM!$A$2:$B$462)) -> 3
B62: Raza | C62: Humana pandillera | E62: 4 | F62: 5 | G62: 4 | H62: 4 | I62: 25 | K62: - | L62: - | M62: - | N62: - | O62: - | P62: =IF(C62="","",LOOKUP(E62,$P$2:$Q$11)+LOOKUP(F62,$P$2:$Q$11)+LOOKUP(G62,$P$2:$Q$11)+LOOKUP(H62,$P$2:$Q$11)) -> 25 | Q62: =IF(C62="","",LOOKUP(K62,ByM!$A$2:$B$462)+LOOKUP(L62,ByM!$A$2:$B$462)+LOOKUP(M62,ByM!$A$2:$B$462)+LOOKUP(N62,ByM!$A$2:$B$462)+LOOKUP(O62,ByM!$A$2:$B$462)) -> 0
B63: Raza | C63: Humana soldado | E63: 5 | F63: 5 | G63: 4 | H63: 4 | I63: 30 | K63: - | L63: - | M63: - | N63: - | O63: - | P63: =IF(C63="","",LOOKUP(E63,$P$2:$Q$11)+LOOKUP(F63,$P$2:$Q$11)+LOOKUP(G63,$P$2:$Q$11)+LOOKUP(H63,$P$2:$Q$11)) -> 30 | Q63: =IF(C63="","",LOOKUP(K63,ByM!$A$2:$B$462)+LOOKUP(L63,ByM!$A$2:$B$462)+LOOKUP(M63,ByM!$A$2:$B$462)+LOOKUP(N63,ByM!$A$2:$B$462)+LOOKUP(O63,ByM!$A$2:$B$462)) -> 0
B64: Raza | C64: Humana superviviente | E64: 4 | F64: 5 | G64: 5 | H64: 4 | I64: 30 | K64: - | L64: - | M64: - | N64: - | O64: - | P64: =IF(C64="","",LOOKUP(E64,$P$2:$Q$11)+LOOKUP(F64,$P$2:$Q$11)+LOOKUP(G64,$P$2:$Q$11)+LOOKUP(H64,$P$2:$Q$11)) -> 30 | Q64: =IF(C64="","",LOOKUP(K64,ByM!$A$2:$B$462)+LOOKUP(L64,ByM!$A$2:$B$462)+LOOKUP(M64,ByM!$A$2:$B$462)+LOOKUP(N64,ByM!$A$2:$B$462)+LOOKUP(O64,ByM!$A$2:$B$462)) -> 0
B65: Raza | C65: IA A.P.O.L.L.O | E65: 2 | F65: 2 | G65: 4 | H65: 3 | I65: 10 | K65: Maestría (mecanismos) | L65: Piloto evasivo (un vehículo) | M65: Sentido arácnido | N65: - | O65: - | P65: =IF(C65="","",LOOKUP(E65,$P$2:$Q$11)+LOOKUP(F65,$P$2:$Q$11)+LOOKUP(G65,$P$2:$Q$11)+LOOKUP(H65,$P$2:$Q$11)) -> -5 | Q65: =IF(C65="","",LOOKUP(K65,ByM!$A$2:$B$462)+LOOKUP(L65,ByM!$A$2:$B$462)+LOOKUP(M65,ByM!$A$2:$B$462)+LOOKUP(N65,ByM!$A$2:$B$462)+LOOKUP(O65,ByM!$A$2:$B$462)) -> 15
B66: Raza | C66: IA MU/TH/UR 6000 | E66: 2 | F66: 2 | G66: 4 | H66: 4 | I66: 15 | K66: Maestría (mecanismos) | L66: Piloto evasivo (un vehículo) | M66: Sentido arácnido | N66: - | O66: - | P66: =IF(C66="","",LOOKUP(E66,$P$2:$Q$11)+LOOKUP(F66,$P$2:$Q$11)+LOOKUP(G66,$P$2:$Q$11)+LOOKUP(H66,$P$2:$Q$11)) -> 0 | Q66: =IF(C66="","",LOOKUP(K66,ByM!$A$2:$B$462)+LOOKUP(L66,ByM!$A$2:$B$462)+LOOKUP(M66,ByM!$A$2:$B$462)+LOOKUP(N66,ByM!$A$2:$B$462)+LOOKUP(O66,ByM!$A$2:$B$462)) -> 15
B67: Raza | C67: IA MU/TH/UR 6500 | E67: 2 | F67: 2 | G67: 5 | H67: 5 | I67: 20 | K67: Neuromante | L67: Piloto evasivo (un vehículo) | M67: Radar | N67: - | O67: - | P67: =IF(C67="","",LOOKUP(E67,$P$2:$Q$11)+LOOKUP(F67,$P$2:$Q$11)+LOOKUP(G67,$P$2:$Q$11)+LOOKUP(H67,$P$2:$Q$11)) -> 10 | Q67: =IF(C67="","",LOOKUP(K67,ByM!$A$2:$B$462)+LOOKUP(L67,ByM!$A$2:$B$462)+LOOKUP(M67,ByM!$A$2:$B$462)+LOOKUP(N67,ByM!$A$2:$B$462)+LOOKUP(O67,ByM!$A$2:$B$462)) -> 10
B68: Raza | C68: IA MU/TH/UR 7000 | E68: 2 | F68: 2 | G68: 5 | H68: 6 | I68: 30 | K68: Neuromante | L68: Piloto evasivo | M68: Radar | N68: - | O68: - | P68: =IF(C68="","",LOOKUP(E68,$P$2:$Q$11)+LOOKUP(F68,$P$2:$Q$11)+LOOKUP(G68,$P$2:$Q$11)+LOOKUP(H68,$P$2:$Q$11)) -> 20 | Q68: =IF(C68="","",LOOKUP(K68,ByM!$A$2:$B$462)+LOOKUP(L68,ByM!$A$2:$B$462)+LOOKUP(M68,ByM!$A$2:$B$462)+LOOKUP(N68,ByM!$A$2:$B$462)+LOOKUP(O68,ByM!$A$2:$B$462)) -> 10
B69: Raza | C69: IA MU/TH/UR 9000 | E69: 2 | F69: 2 | G69: 6 | H69: 7 | I69: 66 | K69: Meta visión | L69: Neuromante | M69: Piloto evasivo | N69: - | O69: - | P69: =IF(C69="","",LOOKUP(E69,$P$2:$Q$11)+LOOKUP(F69,$P$2:$Q$11)+LOOKUP(G69,$P$2:$Q$11)+LOOKUP(H69,$P$2:$Q$11)) -> 50 | Q69: =IF(C69="","",LOOKUP(K69,ByM!$A$2:$B$462)+LOOKUP(L69,ByM!$A$2:$B$462)+LOOKUP(M69,ByM!$A$2:$B$462)+LOOKUP(N69,ByM!$A$2:$B$462)+LOOKUP(O69,ByM!$A$2:$B$462)) -> 16
B70: Raza | C70: Irradiada | E70: 4 | F70: 4 | G70: 4 | H70: 4 | I70: 38 | K70: Área permanente | L70: Bomba viviente ( radiactiva ) | M70: Invulnerable ( radiación ) | N70: - | O70: - | P70: =IF(C70="","",LOOKUP(E70,$P$2:$Q$11)+LOOKUP(F70,$P$2:$Q$11)+LOOKUP(G70,$P$2:$Q$11)+LOOKUP(H70,$P$2:$Q$11)) -> 20 | Q70: =IF(C70="","",LOOKUP(K70,ByM!$A$2:$B$462)+LOOKUP(L70,ByM!$A$2:$B$462)+LOOKUP(M70,ByM!$A$2:$B$462)+LOOKUP(N70,ByM!$A$2:$B$462)+LOOKUP(O70,ByM!$A$2:$B$462)) -> 18
B71: Raza | C71: Lemuria | E71: 4 | F71: 5 | G71: 4 | H71: 3 | I71: 22 | K71: Explorador | L71: - | M71: - | N71: - | O71: - | P71: =IF(C71="","",LOOKUP(E71,$P$2:$Q$11)+LOOKUP(F71,$P$2:$Q$11)+LOOKUP(G71,$P$2:$Q$11)+LOOKUP(H71,$P$2:$Q$11)) -> 20 | Q71: =IF(C71="","",LOOKUP(K71,ByM!$A$2:$B$462)+LOOKUP(L71,ByM!$A$2:$B$462)+LOOKUP(M71,ByM!$A$2:$B$462)+LOOKUP(N71,ByM!$A$2:$B$462)+LOOKUP(O71,ByM!$A$2:$B$462)) -> 2
B72: Raza | C72: Mangalor | E72: 5 | F72: 4 | G72: 3 | H72: 3 | I72: 15 | K72: - | L72: - | M72: - | N72: - | O72: - | P72: =IF(C72="","",LOOKUP(E72,$P$2:$Q$11)+LOOKUP(F72,$P$2:$Q$11)+LOOKUP(G72,$P$2:$Q$11)+LOOKUP(H72,$P$2:$Q$11)) -> 15 | Q72: =IF(C72="","",LOOKUP(K72,ByM!$A$2:$B$462)+LOOKUP(L72,ByM!$A$2:$B$462)+LOOKUP(M72,ByM!$A$2:$B$462)+LOOKUP(N72,ByM!$A$2:$B$462)+LOOKUP(O72,ByM!$A$2:$B$462)) -> 0
B73: Raza | C73: Marciana | E73: 4 | F73: 5 | G73: 4 | H73: 4 | I73: 25 | K73: - | L73: - | M73: - | N73: - | O73: - | P73: =IF(C73="","",LOOKUP(E73,$P$2:$Q$11)+LOOKUP(F73,$P$2:$Q$11)+LOOKUP(G73,$P$2:$Q$11)+LOOKUP(H73,$P$2:$Q$11)) -> 25 | Q73: =IF(C73="","",LOOKUP(K73,ByM!$A$2:$B$462)+LOOKUP(L73,ByM!$A$2:$B$462)+LOOKUP(M73,ByM!$A$2:$B$462)+LOOKUP(N73,ByM!$A$2:$B$462)+LOOKUP(O73,ByM!$A$2:$B$462)) -> 0
B74: Raza | C74: Marciana superior | E74: 4 | F74: 5 | G74: 5 | H74: 4 | I74: 45 | K74: Fortuna | L74: - | M74: - | N74: - | O74: - | P74: =IF(C74="","",LOOKUP(E74,$P$2:$Q$11)+LOOKUP(F74,$P$2:$Q$11)+LOOKUP(G74,$P$2:$Q$11)+LOOKUP(H74,$P$2:$Q$11)) -> 30 | Q74: =IF(C74="","",LOOKUP(K74,ByM!$A$2:$B$462)+LOOKUP(L74,ByM!$A$2:$B$462)+LOOKUP(M74,ByM!$A$2:$B$462)+LOOKUP(N74,ByM!$A$2:$B$462)+LOOKUP(O74,ByM!$A$2:$B$462)) -> 15
B75: Raza | C75: Mascota del páramo | E75: 4 | F75: 3 | G75: 1 | H75: 1 | I75: 1 | K75: - | L75: - | M75: - | N75: - | O75: - | P75: =IF(C75="","",LOOKUP(E75,$P$2:$Q$11)+LOOKUP(F75,$P$2:$Q$11)+LOOKUP(G75,$P$2:$Q$11)+LOOKUP(H75,$P$2:$Q$11)) -> -15 | Q75: =IF(C75="","",LOOKUP(K75,ByM!$A$2:$B$462)+LOOKUP(L75,ByM!$A$2:$B$462)+LOOKUP(M75,ByM!$A$2:$B$462)+LOOKUP(N75,ByM!$A$2:$B$462)+LOOKUP(O75,ByM!$A$2:$B$462)) -> 0
B76: Raza | C76: Mente colectiva | E76: 4 | F76: 4 | G76: 4 | H76: 4 | I76: 21 | K76: Neuromante | L76: - | M76: - | N76: - | O76: - | P76: =IF(C76="","",LOOKUP(E76,$P$2:$Q$11)+LOOKUP(F76,$P$2:$Q$11)+LOOKUP(G76,$P$2:$Q$11)+LOOKUP(H76,$P$2:$Q$11)) -> 20 | Q76: =IF(C76="","",LOOKUP(K76,ByM!$A$2:$B$462)+LOOKUP(L76,ByM!$A$2:$B$462)+LOOKUP(M76,ByM!$A$2:$B$462)+LOOKUP(N76,ByM!$A$2:$B$462)+LOOKUP(O76,ByM!$A$2:$B$462)) -> 1
B77: Raza | C77: Mondoshawan | E77: 6 | F77: 4 | G77: 5 | H77: 6 | I77: 55 | K77: - | L77: - | M77: - | N77: - | O77: - | P77: =IF(C77="","",LOOKUP(E77,$P$2:$Q$11)+LOOKUP(F77,$P$2:$Q$11)+LOOKUP(G77,$P$2:$Q$11)+LOOKUP(H77,$P$2:$Q$11)) -> 55 | Q77: =IF(C77="","",LOOKUP(K77,ByM!$A$2:$B$462)+LOOKUP(L77,ByM!$A$2:$B$462)+LOOKUP(M77,ByM!$A$2:$B$462)+LOOKUP(N77,ByM!$A$2:$B$462)+LOOKUP(O77,ByM!$A$2:$B$462)) -> 0
B78: Raza | C78: Mutante | E78: 4 | F78: 4 | G78: 4 | H78: 4 | I78: 28 | K78: Invulnerable ( contaminación ) | L78: - | M78: - | N78: - | O78: - | P78: =IF(C78="","",LOOKUP(E78,$P$2:$Q$11)+LOOKUP(F78,$P$2:$Q$11)+LOOKUP(G78,$P$2:$Q$11)+LOOKUP(H78,$P$2:$Q$11)) -> 20 | Q78: =IF(C78="","",LOOKUP(K78,ByM!$A$2:$B$462)+LOOKUP(L78,ByM!$A$2:$B$462)+LOOKUP(M78,ByM!$A$2:$B$462)+LOOKUP(N78,ByM!$A$2:$B$462)+LOOKUP(O78,ByM!$A$2:$B$462)) -> 8
B79: Raza | C79: Mutante cabezón | E79: 3 | F79: 4 | G79: 5 | H79: 4 | I79: 29 | K79: Invulnerable ( contaminación ) | L79: Neuromante | M79: - | N79: - | O79: - | P79: =IF(C79="","",LOOKUP(E79,$P$2:$Q$11)+LOOKUP(F79,$P$2:$Q$11)+LOOKUP(G79,$P$2:$Q$11)+LOOKUP(H79,$P$2:$Q$11)) -> 20 | Q79: =IF(C79="","",LOOKUP(K79,ByM!$A$2:$B$462)+LOOKUP(L79,ByM!$A$2:$B$462)+LOOKUP(M79,ByM!$A$2:$B$462)+LOOKUP(N79,ByM!$A$2:$B$462)+LOOKUP(O79,ByM!$A$2:$B$462)) -> 9
B80: Raza | C80: Mutante de pozo | E80: 5 | F80: 4 | G80: 3 | H80: 4 | I80: 28 | K80: Invulnerable ( contaminación ) | L80: - | M80: - | N80: - | O80: - | P80: =IF(C80="","",LOOKUP(E80,$P$2:$Q$11)+LOOKUP(F80,$P$2:$Q$11)+LOOKUP(G80,$P$2:$Q$11)+LOOKUP(H80,$P$2:$Q$11)) -> 20 | Q80: =IF(C80="","",LOOKUP(K80,ByM!$A$2:$B$462)+LOOKUP(L80,ByM!$A$2:$B$462)+LOOKUP(M80,ByM!$A$2:$B$462)+LOOKUP(N80,ByM!$A$2:$B$462)+LOOKUP(O80,ByM!$A$2:$B$462)) -> 8
B81: Raza | C81: Neomorfo adulto | E81: 4 | F81: 3 | G81: 2 | H81: 3 | I81: 8 | K81: Silencioso | L81: Garras y dientes | M81: - | N81: - | O81: - | P81: =IF(C81="","",LOOKUP(E81,$P$2:$Q$11)+LOOKUP(F81,$P$2:$Q$11)+LOOKUP(G81,$P$2:$Q$11)+LOOKUP(H81,$P$2:$Q$11)) -> 0 | Q81: =IF(C81="","",LOOKUP(K81,ByM!$A$2:$B$462)+LOOKUP(L81,ByM!$A$2:$B$462)+LOOKUP(M81,ByM!$A$2:$B$462)+LOOKUP(N81,ByM!$A$2:$B$462)+LOOKUP(O81,ByM!$A$2:$B$462)) -> 8
B82: Raza | C82: Neomorfo neófito | E82: 3 | F82: 4 | G82: 2 | H82: 3 | I82: 8 | K82: Silencioso | L82: Garras y dientes | M82: - | N82: - | O82: - | P82: =IF(C82="","",LOOKUP(E82,$P$2:$Q$11)+LOOKUP(F82,$P$2:$Q$11)+LOOKUP(G82,$P$2:$Q$11)+LOOKUP(H82,$P$2:$Q$11)) -> 0 | Q82: =IF(C82="","",LOOKUP(K82,ByM!$A$2:$B$462)+LOOKUP(L82,ByM!$A$2:$B$462)+LOOKUP(M82,ByM!$A$2:$B$462)+LOOKUP(N82,ByM!$A$2:$B$462)+LOOKUP(O82,ByM!$A$2:$B$462)) -> 8
B83: Raza | C83: Nordheimer | E83: 5 | F83: 4 | G83: 4 | H83: 4 | I83: 30 | K83: Sed de sangre | L83: - | M83: - | N83: - | O83: - | P83: =IF(C83="","",LOOKUP(E83,$P$2:$Q$11)+LOOKUP(F83,$P$2:$Q$11)+LOOKUP(G83,$P$2:$Q$11)+LOOKUP(H83,$P$2:$Q$11)) -> 25 | Q83: =IF(C83="","",LOOKUP(K83,ByM!$A$2:$B$462)+LOOKUP(L83,ByM!$A$2:$B$462)+LOOKUP(M83,ByM!$A$2:$B$462)+LOOKUP(N83,ByM!$A$2:$B$462)+LOOKUP(O83,ByM!$A$2:$B$462)) -> 5
B84: Raza | C84: Perro demoníaco | E84: 4 | F84: 6 | G84: 3 | H84: 3 | I84: 31 | K84: Garras y dientes | L84: No vivo | M84: - | N84: - | O84: - | P84: =IF(C84="","",LOOKUP(E84,$P$2:$Q$11)+LOOKUP(F84,$P$2:$Q$11)+LOOKUP(G84,$P$2:$Q$11)+LOOKUP(H84,$P$2:$Q$11)) -> 25 | Q84: =IF(C84="","",LOOKUP(K84,ByM!$A$2:$B$462)+LOOKUP(L84,ByM!$A$2:$B$462)+LOOKUP(M84,ByM!$A$2:$B$462)+LOOKUP(N84,ByM!$A$2:$B$462)+LOOKUP(O84,ByM!$A$2:$B$462)) -> 6
B85: Raza | C85: Perromórfida | E85: 3 | F85: 4 | G85: 1 | H85: 2 | I85: 1 | K85: Animal | L85: Rápido | M85: - | N85: - | O85: - | P85: =IF(C85="","",LOOKUP(E85,$P$2:$Q$11)+LOOKUP(F85,$P$2:$Q$11)+LOOKUP(G85,$P$2:$Q$11)+LOOKUP(H85,$P$2:$Q$11)) -> -10 | Q85: =IF(C85="","",LOOKUP(K85,ByM!$A$2:$B$462)+LOOKUP(L85,ByM!$A$2:$B$462)+LOOKUP(M85,ByM!$A$2:$B$462)+LOOKUP(N85,ByM!$A$2:$B$462)+LOOKUP(O85,ByM!$A$2:$B$462)) -> -5
B86: Raza | C86: Picta | E86: 5 | F86: 5 | G86: 3 | H86: 4 | I86: 40 | K86: Profesión bárbaro | L86: Saltador | M86: - | N86: - | O86: - | P86: =IF(C86="","",LOOKUP(E86,$P$2:$Q$11)+LOOKUP(F86,$P$2:$Q$11)+LOOKUP(G86,$P$2:$Q$11)+LOOKUP(H86,$P$2:$Q$11)) -> 25 | Q86: =IF(C86="","",LOOKUP(K86,ByM!$A$2:$B$462)+LOOKUP(L86,ByM!$A$2:$B$462)+LOOKUP(M86,ByM!$A$2:$B$462)+LOOKUP(N86,ByM!$A$2:$B$462)+LOOKUP(O86,ByM!$A$2:$B$462)) -> 15
B87: Raza | C87: Picta maga | E87: 4 | F87: 5 | G87: 4 | H87: 6 | I87: 46 | K87: Neuromante | L87: Saltador | M87: - | N87: - | O87: - | P87: =IF(C87="","",LOOKUP(E87,$P$2:$Q$11)+LOOKUP(F87,$P$2:$Q$11)+LOOKUP(G87,$P$2:$Q$11)+LOOKUP(H87,$P$2:$Q$11)) -> 40 | Q87: =IF(C87="","",LOOKUP(K87,ByM!$A$2:$B$462)+LOOKUP(L87,ByM!$A$2:$B$462)+LOOKUP(M87,ByM!$A$2:$B$462)+LOOKUP(N87,ByM!$A$2:$B$462)+LOOKUP(O87,ByM!$A$2:$B$462)) -> 6
B88: Raza | C88: Pocha | E88: 3 | F88: 2 | G88: 1 | H88: 1 | I88: 1 | K88: Lento | L88: Silencioso | M88: - | N88: - | O88: - | P88: =IF(C88="","",LOOKUP(E88,$P$2:$Q$11)+LOOKUP(F88,$P$2:$Q$11)+LOOKUP(G88,$P$2:$Q$11)+LOOKUP(H88,$P$2:$Q$11)) -> -25 | Q88: =IF(C88="","",LOOKUP(K88,ByM!$A$2:$B$462)+LOOKUP(L88,ByM!$A$2:$B$462)+LOOKUP(M88,ByM!$A$2:$B$462)+LOOKUP(N88,ByM!$A$2:$B$462)+LOOKUP(O88,ByM!$A$2:$B$462)) -> -7
B89: Raza | C89: Primarca | E89: 8 | F89: 8 | G89: 8 | H89: 8 | I89: 338 | K89: Fortuna | L89: Líder | M89: - | N89: - | O89: - | P89: =IF(C89="","",LOOKUP(E89,$P$2:$Q$11)+LOOKUP(F89,$P$2:$Q$11)+LOOKUP(G89,$P$2:$Q$11)+LOOKUP(H89,$P$2:$Q$11)) -> 320 | Q89: =IF(C89="","",LOOKUP(K89,ByM!$A$2:$B$462)+LOOKUP(L89,ByM!$A$2:$B$462)+LOOKUP(M89,ByM!$A$2:$B$462)+LOOKUP(N89,ByM!$A$2:$B$462)+LOOKUP(O89,ByM!$A$2:$B$462)) -> 18
B90: Raza | C90: Primaris | E90: 7 | F90: 7 | G90: 7 | H90: 7 | I90: 208 | K90: Élite valiente | L90: Líder | M90: Maestría en combate (bólter) | N90: Maestro carnicero (cargando) | O90: - | P90: =IF(C90="","",LOOKUP(E90,$P$2:$Q$11)+LOOKUP(F90,$P$2:$Q$11)+LOOKUP(G90,$P$2:$Q$11)+LOOKUP(H90,$P$2:$Q$11)) -> 160 | Q90: =IF(C90="","",LOOKUP(K90,ByM!$A$2:$B$462)+LOOKUP(L90,ByM!$A$2:$B$462)+LOOKUP(M90,ByM!$A$2:$B$462)+LOOKUP(N90,ByM!$A$2:$B$462)+LOOKUP(O90,ByM!$A$2:$B$462)) -> 48
B91: Raza | C91: Quimeria | E91: 4 | F91: 4 | G91: 5 | H91: 4 | I91: 33 | K91: Devora almas | L91: - | M91: - | N91: - | O91: - | P91: =IF(C91="","",LOOKUP(E91,$P$2:$Q$11)+LOOKUP(F91,$P$2:$Q$11)+LOOKUP(G91,$P$2:$Q$11)+LOOKUP(H91,$P$2:$Q$11)) -> 25 | Q91: =IF(C91="","",LOOKUP(K91,ByM!$A$2:$B$462)+LOOKUP(L91,ByM!$A$2:$B$462)+LOOKUP(M91,ByM!$A$2:$B$462)+LOOKUP(N91,ByM!$A$2:$B$462)+LOOKUP(O91,ByM!$A$2:$B$462)) -> 8
B92: Raza | C92: Ser de luz | E92: 4 | F92: 8 | G92: 8 | H92: 8 | I92: 260 | K92: Ave fénix | L92: Rápido | M92: - | N92: - | O92: - | P92: =IF(C92="","",LOOKUP(E92,$P$2:$Q$11)+LOOKUP(F92,$P$2:$Q$11)+LOOKUP(G92,$P$2:$Q$11)+LOOKUP(H92,$P$2:$Q$11)) -> 245 | Q92: =IF(C92="","",LOOKUP(K92,ByM!$A$2:$B$462)+LOOKUP(L92,ByM!$A$2:$B$462)+LOOKUP(M92,ByM!$A$2:$B$462)+LOOKUP(N92,ByM!$A$2:$B$462)+LOOKUP(O92,ByM!$A$2:$B$462)) -> 15
B93: Raza | C93: Serpiente gigante | E93: 8 | F93: 6 | G93: 5 | H93: 5 | I93: 140 | K93: Berserker | L93: Garras y dientes | M93: Revientamuros | N93: - | O93: - | P93: =IF(C93="","",LOOKUP(E93,$P$2:$Q$11)+LOOKUP(F93,$P$2:$Q$11)+LOOKUP(G93,$P$2:$Q$11)+LOOKUP(H93,$P$2:$Q$11)) -> 120 | Q93: =IF(C93="","",LOOKUP(K93,ByM!$A$2:$B$462)+LOOKUP(L93,ByM!$A$2:$B$462)+LOOKUP(M93,ByM!$A$2:$B$462)+LOOKUP(N93,ByM!$A$2:$B$462)+LOOKUP(O93,ByM!$A$2:$B$462)) -> 20
B94: Raza | C94: Servidor | E94: 4 | F94: 3 | G94: 4 | H94: 4 | I94: 10 | K94: Vulnerable | L94: - | M94: - | N94: - | O94: - | P94: =IF(C94="","",LOOKUP(E94,$P$2:$Q$11)+LOOKUP(F94,$P$2:$Q$11)+LOOKUP(G94,$P$2:$Q$11)+LOOKUP(H94,$P$2:$Q$11)) -> 15 | Q94: =IF(C94="","",LOOKUP(K94,ByM!$A$2:$B$462)+LOOKUP(L94,ByM!$A$2:$B$462)+LOOKUP(M94,ByM!$A$2:$B$462)+LOOKUP(N94,ByM!$A$2:$B$462)+LOOKUP(O94,ByM!$A$2:$B$462)) -> -5
B95: Raza | C95: Subhumana | E95: 3 | F95: 3 | G95: 1 | H95: 1 | I95: 1 | K95: Desafiante | L95: Garras y dientes | M95: Venganza | N95: - | O95: - | P95: =IF(C95="","",LOOKUP(E95,$P$2:$Q$11)+LOOKUP(F95,$P$2:$Q$11)+LOOKUP(G95,$P$2:$Q$11)+LOOKUP(H95,$P$2:$Q$11)) -> -20 | Q95: =IF(C95="","",LOOKUP(K95,ByM!$A$2:$B$462)+LOOKUP(L95,ByM!$A$2:$B$462)+LOOKUP(M95,ByM!$A$2:$B$462)+LOOKUP(N95,ByM!$A$2:$B$462)+LOOKUP(O95,ByM!$A$2:$B$462)) -> 12
B96: Raza | C96: T-800 | E96: 7 | F96: 4 | G96: 7 | H96: 7 | I96: 142 | K96: Ave fénix | L96: Vulnerable | M96: Invulnerable (fuego) | N96: No vivo | O96: Súper vista | P96: =IF(C96="","",LOOKUP(E96,$P$2:$Q$11)+LOOKUP(F96,$P$2:$Q$11)+LOOKUP(G96,$P$2:$Q$11)+LOOKUP(H96,$P$2:$Q$11)) -> 125 | Q96: =IF(C96="","",LOOKUP(K96,ByM!$A$2:$B$462)+LOOKUP(L96,ByM!$A$2:$B$462)+LOOKUP(M96,ByM!$A$2:$B$462)+LOOKUP(N96,ByM!$A$2:$B$462)+LOOKUP(O96,ByM!$A$2:$B$462)) -> 17
B97: Raza | C97: Troceada | E97: 4 | F97: 4 | G97: 3 | H97: 3 | I97: 5 | K97: Yonki | L97: - | M97: - | N97: - | O97: - | P97: =IF(C97="","",LOOKUP(E97,$P$2:$Q$11)+LOOKUP(F97,$P$2:$Q$11)+LOOKUP(G97,$P$2:$Q$11)+LOOKUP(H97,$P$2:$Q$11)) -> 10 | Q97: =IF(C97="","",LOOKUP(K97,ByM!$A$2:$B$462)+LOOKUP(L97,ByM!$A$2:$B$462)+LOOKUP(M97,ByM!$A$2:$B$462)+LOOKUP(N97,ByM!$A$2:$B$462)+LOOKUP(O97,ByM!$A$2:$B$462)) -> -5
B98: Raza | C98: Vendhiana | E98: 4 | F98: 5 | G98: 4 | H98: 4 | I98: 35 | K98: Ave fénix | L98: - | M98: - | N98: - | O98: - | P98: =IF(C98="","",LOOKUP(E98,$P$2:$Q$11)+LOOKUP(F98,$P$2:$Q$11)+LOOKUP(G98,$P$2:$Q$11)+LOOKUP(H98,$P$2:$Q$11)) -> 25 | Q98: =IF(C98="","",LOOKUP(K98,ByM!$A$2:$B$462)+LOOKUP(L98,ByM!$A$2:$B$462)+LOOKUP(M98,ByM!$A$2:$B$462)+LOOKUP(N98,ByM!$A$2:$B$462)+LOOKUP(O98,ByM!$A$2:$B$462)) -> 10
B99: Raza | C99: Xenomorfo abrazacaras | E99: 3 | F99: 3 | G99: 2 | H99: 3 | I99: 8 | K99: Sangre de ácido | L99: Pequeño | M99: Silencioso | N99: - | O99: - | P99: =IF(C99="","",LOOKUP(E99,$P$2:$Q$11)+LOOKUP(F99,$P$2:$Q$11)+LOOKUP(G99,$P$2:$Q$11)+LOOKUP(H99,$P$2:$Q$11)) -> -5 | Q99: =IF(C99="","",LOOKUP(K99,ByM!$A$2:$B$462)+LOOKUP(L99,ByM!$A$2:$B$462)+LOOKUP(M99,ByM!$A$2:$B$462)+LOOKUP(N99,ByM!$A$2:$B$462)+LOOKUP(O99,ByM!$A$2:$B$462)) -> 13
B100: Raza | C100: Xenomorfo acosador | E100: 4 | F100: 4 | G100: 4 | H100: 3 | I100: 25 | K100: Sangre de ácido | L100: Araña | M100: Pez | N100: Silencioso | O100: Ansia de sangre | P100: =IF(C100="","",LOOKUP(E100,$P$2:$Q$11)+LOOKUP(F100,$P$2:$Q$11)+LOOKUP(G100,$P$2:$Q$11)+LOOKUP(H100,$P$2:$Q$11)) -> 15 | Q100: =IF(C100="","",LOOKUP(K100,ByM!$A$2:$B$462)+LOOKUP(L100,ByM!$A$2:$B$462)+LOOKUP(M100,ByM!$A$2:$B$462)+LOOKUP(N100,ByM!$A$2:$B$462)+LOOKUP(O100,ByM!$A$2:$B$462)) -> 10
B101: Raza | C101: Xenomorfo explorador | E101: 4 | F101: 5 | G101: 4 | H101: 4 | I101: 45 | K101: Sangre de ácido | L101: Araña | M101: Pez | N101: Silencioso | O101: Sentido arácnido | P101: =IF(C101="","",LOOKUP(E101,$P$2:$Q$11)+LOOKUP(F101,$P$2:$Q$11)+LOOKUP(G101,$P$2:$Q$11)+LOOKUP(H101,$P$2:$Q$11)) -> 25 | Q101: =IF(C101="","",LOOKUP(K101,ByM!$A$2:$B$462)+LOOKUP(L101,ByM!$A$2:$B$462)+LOOKUP(M101,ByM!$A$2:$B$462)+LOOKUP(N101,ByM!$A$2:$B$462)+LOOKUP(O101,ByM!$A$2:$B$462)) -> 20
B102: Raza | C102: Xenomorfo joven | E102: 4 | F102: 4 | G102: 3 | H102: 3 | I102: 25 | K102: Sangre de ácido | L102: Araña | M102: Pez | N102: Silencioso | O102: - | P102: =IF(C102="","",LOOKUP(E102,$P$2:$Q$11)+LOOKUP(F102,$P$2:$Q$11)+LOOKUP(G102,$P$2:$Q$11)+LOOKUP(H102,$P$2:$Q$11)) -> 10 | Q102: =IF(C102="","",LOOKUP(K102,ByM!$A$2:$B$462)+LOOKUP(L102,ByM!$A$2:$B$462)+LOOKUP(M102,ByM!$A$2:$B$462)+LOOKUP(N102,ByM!$A$2:$B$462)+LOOKUP(O102,ByM!$A$2:$B$462)) -> 15
B103: Raza | C103: Xenomorfo pretoriano | E103: 6 | F103: 5 | G103: 4 | H103: 5 | I103: 64 | K103: Sangre de ácido | L103: Araña | M103: Pez | N103: Guardaespaldas | O103: Frenesí | P103: =IF(C103="","",LOOKUP(E103,$P$2:$Q$11)+LOOKUP(F103,$P$2:$Q$11)+LOOKUP(G103,$P$2:$Q$11)+LOOKUP(H103,$P$2:$Q$11)) -> 45 | Q103: =IF(C103="","",LOOKUP(K103,ByM!$A$2:$B$462)+LOOKUP(L103,ByM!$A$2:$B$462)+LOOKUP(M103,ByM!$A$2:$B$462)+LOOKUP(N103,ByM!$A$2:$B$462)+LOOKUP(O103,ByM!$A$2:$B$462)) -> 19
B104: Raza | C104: Xenomorfo reina | E104: 6 | F104: 3 | G104: 6 | H104: 7 | I104: 118 | K104: Sangre de ácido | L104: Escudo coriáceo N05 | M104: Líder | N104: Terror | O104: - | P104: =IF(C104="","",LOOKUP(E104,$P$2:$Q$11)+LOOKUP(F104,$P$2:$Q$11)+LOOKUP(G104,$P$2:$Q$11)+LOOKUP(H104,$P$2:$Q$11)) -> 80 | Q104: =IF(C104="","",LOOKUP(K104,ByM!$A$2:$B$462)+LOOKUP(L104,ByM!$A$2:$B$462)+LOOKUP(M104,ByM!$A$2:$B$462)+LOOKUP(N104,ByM!$A$2:$B$462)+LOOKUP(O104,ByM!$A$2:$B$462)) -> 38
B105: Raza | C105: Xenomorfo revientapechos | E105: 3 | F105: 3 | G105: 2 | H105: 3 | I105: 8 | K105: Sangre de ácido | L105: Rápido | M105: Silencioso | N105: - | O105: - | P105: =IF(C105="","",LOOKUP(E105,$P$2:$Q$11)+LOOKUP(F105,$P$2:$Q$11)+LOOKUP(G105,$P$2:$Q$11)+LOOKUP(H105,$P$2:$Q$11)) -> -5 | Q105: =IF(C105="","",LOOKUP(K105,ByM!$A$2:$B$462)+LOOKUP(L105,ByM!$A$2:$B$462)+LOOKUP(M105,ByM!$A$2:$B$462)+LOOKUP(N105,ByM!$A$2:$B$462)+LOOKUP(O105,ByM!$A$2:$B$462)) -> 13
B106: Raza | C106: Xenomorfo soldado | E106: 5 | F106: 6 | G106: 5 | H106: 5 | I106: 70 | K106: Sangre de ácido | L106: Araña | M106: Pez | N106: Rápido | O106: Silencioso | P106: =IF(C106="","",LOOKUP(E106,$P$2:$Q$11)+LOOKUP(F106,$P$2:$Q$11)+LOOKUP(G106,$P$2:$Q$11)+LOOKUP(H106,$P$2:$Q$11)) -> 50 | Q106: =IF(C106="","",LOOKUP(K106,ByM!$A$2:$B$462)+LOOKUP(L106,ByM!$A$2:$B$462)+LOOKUP(M106,ByM!$A$2:$B$462)+LOOKUP(N106,ByM!$A$2:$B$462)+LOOKUP(O106,ByM!$A$2:$B$462)) -> 20
B107: Raza | C107: Xenomorfo trabajador | E107: 3 | F107: 3 | G107: 2 | H107: 3 | I107: 10 | K107: Sangre de ácido | L107: Araña | M107: Pez | N107: Silencioso | O107: - | P107: =IF(C107="","",LOOKUP(E107,$P$2:$Q$11)+LOOKUP(F107,$P$2:$Q$11)+LOOKUP(G107,$P$2:$Q$11)+LOOKUP(H107,$P$2:$Q$11)) -> -5 | Q107: =IF(C107="","",LOOKUP(K107,ByM!$A$2:$B$462)+LOOKUP(L107,ByM!$A$2:$B$462)+LOOKUP(M107,ByM!$A$2:$B$462)+LOOKUP(N107,ByM!$A$2:$B$462)+LOOKUP(O107,ByM!$A$2:$B$462)) -> 15
B108: Raza | C108: Zamoria | E108: 4 | F108: 4 | G108: 4 | H108: 4 | I108: 25 | K108: Retirada ordenada | L108: - | M108: - | N108: - | O108: - | P108: =IF(C108="","",LOOKUP(E108,$P$2:$Q$11)+LOOKUP(F108,$P$2:$Q$11)+LOOKUP(G108,$P$2:$Q$11)+LOOKUP(H108,$P$2:$Q$11)) -> 20 | Q108: =IF(C108="","",LOOKUP(K108,ByM!$A$2:$B$462)+LOOKUP(L108,ByM!$A$2:$B$462)+LOOKUP(M108,ByM!$A$2:$B$462)+LOOKUP(N108,ByM!$A$2:$B$462)+LOOKUP(O108,ByM!$A$2:$B$462)) -> 5
C109: * | P109: =IF(C109="","",LOOKUP(E109,$P$2:$Q$11)+LOOKUP(F109,$P$2:$Q$11)+LOOKUP(G109,$P$2:$Q$11)+LOOKUP(#REF!,$P$2:$Q$11)+LOOKUP(H109,$P$2:$Q$11)) ->  | Q109: =IF(C109="","",LOOKUP(K109,ByM!$A$2:$B$462)+LOOKUP(L109,ByM!$A$2:$B$462)+LOOKUP(M109,ByM!$A$2:$B$462)+LOOKUP(N109,ByM!$A$2:$B$462)+LOOKUP(O109,ByM!$A$2:$B$462)) -> 
P110: =IF(C110="","",LOOKUP(E110,$P$2:$Q$11)+LOOKUP(F110,$P$2:$Q$11)+LOOKUP(G110,$P$2:$Q$11)+LOOKUP(#REF!,$P$2:$Q$11)+LOOKUP(H110,$P$2:$Q$11)) ->  | Q110: =IF(C110="","",LOOKUP(K110,ByM!$A$2:$B$462)+LOOKUP(L110,ByM!$A$2:$B$462)+LOOKUP(M110,ByM!$A$2:$B$462)+LOOKUP(N110,ByM!$A$2:$B$462)+LOOKUP(O110,ByM!$A$2:$B$462)) -> 
P111: =IF(C111="","",LOOKUP(E111,$P$2:$Q$11)+LOOKUP(F111,$P$2:$Q$11)+LOOKUP(G111,$P$2:$Q$11)+LOOKUP(#REF!,$P$2:$Q$11)+LOOKUP(H111,$P$2:$Q$11)) ->  | Q111: =IF(C111="","",LOOKUP(K111,ByM!$A$2:$B$462)+LOOKUP(L111,ByM!$A$2:$B$462)+LOOKUP(M111,ByM!$A$2:$B$462)+LOOKUP(N111,ByM!$A$2:$B$462)+LOOKUP(O111,ByM!$A$2:$B$462)) -> 
P112: =IF(C112="","",LOOKUP(E112,$P$2:$Q$11)+LOOKUP(F112,$P$2:$Q$11)+LOOKUP(G112,$P$2:$Q$11)+LOOKUP(#REF!,$P$2:$Q$11)+LOOKUP(H112,$P$2:$Q$11)) ->  | Q112: =IF(C112="","",LOOKUP(K112,ByM!$A$2:$B$462)+LOOKUP(L112,ByM!$A$2:$B$462)+LOOKUP(M112,ByM!$A$2:$B$462)+LOOKUP(N112,ByM!$A$2:$B$462)+LOOKUP(O112,ByM!$A$2:$B$462)) -> 
P113: =IF(C113="","",LOOKUP(E113,$P$2:$Q$11)+LOOKUP(F113,$P$2:$Q$11)+LOOKUP(G113,$P$2:$Q$11)+LOOKUP(#REF!,$P$2:$Q$11)+LOOKUP(H113,$P$2:$Q$11)) ->  | Q113: =IF(C113="","",LOOKUP(K113,ByM!$A$2:$B$462)+LOOKUP(L113,ByM!$A$2:$B$462)+LOOKUP(M113,ByM!$A$2:$B$462)+LOOKUP(N113,ByM!$A$2:$B$462)+LOOKUP(O113,ByM!$A$2:$B$462)) -> 
P114: =IF(C114="","",LOOKUP(E114,$P$2:$Q$11)+LOOKUP(F114,$P$2:$Q$11)+LOOKUP(G114,$P$2:$Q$11)+LOOKUP(#REF!,$P$2:$Q$11)+LOOKUP(H114,$P$2:$Q$11)) ->  | Q114: =IF(C114="","",LOOKUP(K114,ByM!$A$2:$B$462)+LOOKUP(L114,ByM!$A$2:$B$462)+LOOKUP(M114,ByM!$A$2:$B$462)+LOOKUP(N114,ByM!$A$2:$B$462)+LOOKUP(O114,ByM!$A$2:$B$462)) -> 
P115: =IF(C115="","",LOOKUP(E115,$P$2:$Q$11)+LOOKUP(F115,$P$2:$Q$11)+LOOKUP(G115,$P$2:$Q$11)+LOOKUP(#REF!,$P$2:$Q$11)+LOOKUP(H115,$P$2:$Q$11)) ->  | Q115: =IF(C115="","",LOOKUP(K115,ByM!$A$2:$B$462)+LOOKUP(L115,ByM!$A$2:$B$462)+LOOKUP(M115,ByM!$A$2:$B$462)+LOOKUP(N115,ByM!$A$2:$B$462)+LOOKUP(O115,ByM!$A$2:$B$462)) -> 
P116: =IF(C116="","",LOOKUP(E116,$P$2:$Q$11)+LOOKUP(F116,$P$2:$Q$11)+LOOKUP(G116,$P$2:$Q$11)+LOOKUP(#REF!,$P$2:$Q$11)+LOOKUP(H116,$P$2:$Q$11)) ->  | Q116: =IF(C116="","",LOOKUP(K116,ByM!$A$2:$B$462)+LOOKUP(L116,ByM!$A$2:$B$462)+LOOKUP(M116,ByM!$A$2:$B$462)+LOOKUP(N116,ByM!$A$2:$B$462)+LOOKUP(O116,ByM!$A$2:$B$462)) -> 
P117: =IF(C117="","",LOOKUP(E117,$P$2:$Q$11)+LOOKUP(F117,$P$2:$Q$11)+LOOKUP(G117,$P$2:$Q$11)+LOOKUP(#REF!,$P$2:$Q$11)+LOOKUP(H117,$P$2:$Q$11)) ->  | Q117: =IF(C117="","",LOOKUP(K117,ByM!$A$2:$B$462)+LOOKUP(L117,ByM!$A$2:$B$462)+LOOKUP(M117,ByM!$A$2:$B$462)+LOOKUP(N117,ByM!$A$2:$B$462)+LOOKUP(O117,ByM!$A$2:$B$462)) -> 
P118: =IF(C118="","",LOOKUP(E118,$P$2:$Q$11)+LOOKUP(F118,$P$2:$Q$11)+LOOKUP(G118,$P$2:$Q$11)+LOOKUP(#REF!,$P$2:$Q$11)+LOOKUP(H118,$P$2:$Q$11)) ->  | Q118: =IF(C118="","",LOOKUP(K118,ByM!$A$2:$B$462)+LOOKUP(L118,ByM!$A$2:$B$462)+LOOKUP(M118,ByM!$A$2:$B$462)+LOOKUP(N118,ByM!$A$2:$B$462)+LOOKUP(O118,ByM!$A$2:$B$462)) -> 
P119: =IF(C119="","",LOOKUP(E119,$P$2:$Q$11)+LOOKUP(F119,$P$2:$Q$11)+LOOKUP(G119,$P$2:$Q$11)+LOOKUP(#REF!,$P$2:$Q$11)+LOOKUP(H119,$P$2:$Q$11)) ->  | Q119: =IF(C119="","",LOOKUP(K119,ByM!$A$2:$B$462)+LOOKUP(L119,ByM!$A$2:$B$462)+LOOKUP(M119,ByM!$A$2:$B$462)+LOOKUP(N119,ByM!$A$2:$B$462)+LOOKUP(O119,ByM!$A$2:$B$462)) -> 
P120: =IF(C120="","",LOOKUP(E120,$P$2:$Q$11)+LOOKUP(F120,$P$2:$Q$11)+LOOKUP(G120,$P$2:$Q$11)+LOOKUP(#REF!,$P$2:$Q$11)+LOOKUP(H120,$P$2:$Q$11)) ->  | Q120: =IF(C120="","",LOOKUP(K120,ByM!$A$2:$B$462)+LOOKUP(L120,ByM!$A$2:$B$462)+LOOKUP(M120,ByM!$A$2:$B$462)+LOOKUP(N120,ByM!$A$2:$B$462)+LOOKUP(O120,ByM!$A$2:$B$462)) -> 
P121: =IF(C121="","",LOOKUP(E121,$P$2:$Q$11)+LOOKUP(F121,$P$2:$Q$11)+LOOKUP(G121,$P$2:$Q$11)+LOOKUP(#REF!,$P$2:$Q$11)+LOOKUP(H121,$P$2:$Q$11)) ->  | Q121: =IF(C121="","",LOOKUP(K121,ByM!$A$2:$B$462)+LOOKUP(L121,ByM!$A$2:$B$462)+LOOKUP(M121,ByM!$A$2:$B$462)+LOOKUP(N121,ByM!$A$2:$B$462)+LOOKUP(O121,ByM!$A$2:$B$462)) -> 
P122: =IF(C122="","",LOOKUP(E122,$P$2:$Q$11)+LOOKUP(F122,$P$2:$Q$11)+LOOKUP(G122,$P$2:$Q$11)+LOOKUP(#REF!,$P$2:$Q$11)+LOOKUP(H122,$P$2:$Q$11)) ->  | Q122: =IF(C122="","",LOOKUP(K122,ByM!$A$2:$B$462)+LOOKUP(L122,ByM!$A$2:$B$462)+LOOKUP(M122,ByM!$A$2:$B$462)+LOOKUP(N122,ByM!$A$2:$B$462)+LOOKUP(O122,ByM!$A$2:$B$462)) -> 
P123: =IF(C123="","",LOOKUP(E123,$P$2:$Q$11)+LOOKUP(F123,$P$2:$Q$11)+LOOKUP(G123,$P$2:$Q$11)+LOOKUP(#REF!,$P$2:$Q$11)+LOOKUP(H123,$P$2:$Q$11)) ->  | Q123: =IF(C123="","",LOOKUP(K123,ByM!$A$2:$B$462)+LOOKUP(L123,ByM!$A$2:$B$462)+LOOKUP(M123,ByM!$A$2:$B$462)+LOOKUP(N123,ByM!$A$2:$B$462)+LOOKUP(O123,ByM!$A$2:$B$462)) -> 
P124: =IF(C124="","",LOOKUP(E124,$P$2:$Q$11)+LOOKUP(F124,$P$2:$Q$11)+LOOKUP(G124,$P$2:$Q$11)+LOOKUP(#REF!,$P$2:$Q$11)+LOOKUP(H124,$P$2:$Q$11)) ->  | Q124: =IF(C124="","",LOOKUP(K124,ByM!$A$2:$B$462)+LOOKUP(L124,ByM!$A$2:$B$462)+LOOKUP(M124,ByM!$A$2:$B$462)+LOOKUP(N124,ByM!$A$2:$B$462)+LOOKUP(O124,ByM!$A$2:$B$462)) -> 
P125: =IF(C125="","",LOOKUP(E125,$P$2:$Q$11)+LOOKUP(F125,$P$2:$Q$11)+LOOKUP(G125,$P$2:$Q$11)+LOOKUP(#REF!,$P$2:$Q$11)+LOOKUP(H125,$P$2:$Q$11)) ->  | Q125: =IF(C125="","",LOOKUP(K125,ByM!$A$2:$B$462)+LOOKUP(L125,ByM!$A$2:$B$462)+LOOKUP(M125,ByM!$A$2:$B$462)+LOOKUP(N125,ByM!$A$2:$B$462)+LOOKUP(O125,ByM!$A$2:$B$462)) -> 
P126: =IF(C126="","",LOOKUP(E126,$P$2:$Q$11)+LOOKUP(F126,$P$2:$Q$11)+LOOKUP(G126,$P$2:$Q$11)+LOOKUP(#REF!,$P$2:$Q$11)+LOOKUP(H126,$P$2:$Q$11)) ->  | Q126: =IF(C126="","",LOOKUP(K126,ByM!$A$2:$B$462)+LOOKUP(L126,ByM!$A$2:$B$462)+LOOKUP(M126,ByM!$A$2:$B$462)+LOOKUP(N126,ByM!$A$2:$B$462)+LOOKUP(O126,ByM!$A$2:$B$462)) -> 
P127: =IF(C127="","",LOOKUP(E127,$P$2:$Q$11)+LOOKUP(F127,$P$2:$Q$11)+LOOKUP(G127,$P$2:$Q$11)+LOOKUP(#REF!,$P$2:$Q$11)+LOOKUP(H127,$P$2:$Q$11)) ->  | Q127: =IF(C127="","",LOOKUP(K127,ByM!$A$2:$B$462)+LOOKUP(L127,ByM!$A$2:$B$462)+LOOKUP(M127,ByM!$A$2:$B$462)+LOOKUP(N127,ByM!$A$2:$B$462)+LOOKUP(O127,ByM!$A$2:$B$462)) -> 
P128: =IF(C128="","",LOOKUP(E128,$P$2:$Q$11)+LOOKUP(F128,$P$2:$Q$11)+LOOKUP(G128,$P$2:$Q$11)+LOOKUP(#REF!,$P$2:$Q$11)+LOOKUP(H128,$P$2:$Q$11)) ->  | Q128: =IF(C128="","",LOOKUP(K128,ByM!$A$2:$B$462)+LOOKUP(L128,ByM!$A$2:$B$462)+LOOKUP(M128,ByM!$A$2:$B$462)+LOOKUP(N128,ByM!$A$2:$B$462)+LOOKUP(O128,ByM!$A$2:$B$462)) -> 
P129: =IF(C129="","",LOOKUP(E129,$P$2:$Q$11)+LOOKUP(F129,$P$2:$Q$11)+LOOKUP(G129,$P$2:$Q$11)+LOOKUP(#REF!,$P$2:$Q$11)+LOOKUP(H129,$P$2:$Q$11)) ->  | Q129: =IF(C129="","",LOOKUP(K129,ByM!$A$2:$B$462)+LOOKUP(L129,ByM!$A$2:$B$462)+LOOKUP(M129,ByM!$A$2:$B$462)+LOOKUP(N129,ByM!$A$2:$B$462)+LOOKUP(O129,ByM!$A$2:$B$462)) -> 
P130: =IF(C130="","",LOOKUP(E130,$P$2:$Q$11)+LOOKUP(F130,$P$2:$Q$11)+LOOKUP(G130,$P$2:$Q$11)+LOOKUP(#REF!,$P$2:$Q$11)+LOOKUP(H130,$P$2:$Q$11)) ->  | Q130: =IF(C130="","",LOOKUP(K130,ByM!$A$2:$B$462)+LOOKUP(L130,ByM!$A$2:$B$462)+LOOKUP(M130,ByM!$A$2:$B$462)+LOOKUP(N130,ByM!$A$2:$B$462)+LOOKUP(O130,ByM!$A$2:$B$462)) -> 
P131: =IF(C131="","",LOOKUP(E131,$P$2:$Q$11)+LOOKUP(F131,$P$2:$Q$11)+LOOKUP(G131,$P$2:$Q$11)+LOOKUP(#REF!,$P$2:$Q$11)+LOOKUP(H131,$P$2:$Q$11)) ->  | Q131: =IF(C131="","",LOOKUP(K131,ByM!$A$2:$B$462)+LOOKUP(L131,ByM!$A$2:$B$462)+LOOKUP(M131,ByM!$A$2:$B$462)+LOOKUP(N131,ByM!$A$2:$B$462)+LOOKUP(O131,ByM!$A$2:$B$462)) -> 
P132: =IF(C132="","",LOOKUP(E132,$P$2:$Q$11)+LOOKUP(F132,$P$2:$Q$11)+LOOKUP(G132,$P$2:$Q$11)+LOOKUP(#REF!,$P$2:$Q$11)+LOOKUP(H132,$P$2:$Q$11)) ->  | Q132: =IF(C132="","",LOOKUP(K132,ByM!$A$2:$B$462)+LOOKUP(L132,ByM!$A$2:$B$462)+LOOKUP(M132,ByM!$A$2:$B$462)+LOOKUP(N132,ByM!$A$2:$B$462)+LOOKUP(O132,ByM!$A$2:$B$462)) -> 
P133: =IF(C133="","",LOOKUP(E133,$P$2:$Q$11)+LOOKUP(F133,$P$2:$Q$11)+LOOKUP(G133,$P$2:$Q$11)+LOOKUP(#REF!,$P$2:$Q$11)+LOOKUP(H133,$P$2:$Q$11)) ->  | Q133: =IF(C133="","",LOOKUP(K133,ByM!$A$2:$B$462)+LOOKUP(L133,ByM!$A$2:$B$462)+LOOKUP(M133,ByM!$A$2:$B$462)+LOOKUP(N133,ByM!$A$2:$B$462)+LOOKUP(O133,ByM!$A$2:$B$462)) -> 
P134: =IF(C134="","",LOOKUP(E134,$P$2:$Q$11)+LOOKUP(F134,$P$2:$Q$11)+LOOKUP(G134,$P$2:$Q$11)+LOOKUP(#REF!,$P$2:$Q$11)+LOOKUP(H134,$P$2:$Q$11)) ->  | Q134: =IF(C134="","",LOOKUP(K134,ByM!$A$2:$B$462)+LOOKUP(L134,ByM!$A$2:$B$462)+LOOKUP(M134,ByM!$A$2:$B$462)+LOOKUP(N134,ByM!$A$2:$B$462)+LOOKUP(O134,ByM!$A$2:$B$462)) -> 
P135: =IF(C135="","",LOOKUP(E135,$P$2:$Q$11)+LOOKUP(F135,$P$2:$Q$11)+LOOKUP(G135,$P$2:$Q$11)+LOOKUP(#REF!,$P$2:$Q$11)+LOOKUP(H135,$P$2:$Q$11)) ->  | Q135: =IF(C135="","",LOOKUP(K135,ByM!$A$2:$B$462)+LOOKUP(L135,ByM!$A$2:$B$462)+LOOKUP(M135,ByM!$A$2:$B$462)+LOOKUP(N135,ByM!$A$2:$B$462)+LOOKUP(O135,ByM!$A$2:$B$462)) -> 
P136: =IF(C136="","",LOOKUP(E136,$P$2:$Q$11)+LOOKUP(F136,$P$2:$Q$11)+LOOKUP(G136,$P$2:$Q$11)+LOOKUP(#REF!,$P$2:$Q$11)+LOOKUP(H136,$P$2:$Q$11)) ->  | Q136: =IF(C136="","",LOOKUP(K136,ByM!$A$2:$B$462)+LOOKUP(L136,ByM!$A$2:$B$462)+LOOKUP(M136,ByM!$A$2:$B$462)+LOOKUP(N136,ByM!$A$2:$B$462)+LOOKUP(O136,ByM!$A$2:$B$462)) -> 
P137: =IF(C137="","",LOOKUP(E137,$P$2:$Q$11)+LOOKUP(F137,$P$2:$Q$11)+LOOKUP(G137,$P$2:$Q$11)+LOOKUP(#REF!,$P$2:$Q$11)+LOOKUP(H137,$P$2:$Q$11)) ->  | Q137: =IF(C137="","",LOOKUP(K137,ByM!$A$2:$B$462)+LOOKUP(L137,ByM!$A$2:$B$462)+LOOKUP(M137,ByM!$A$2:$B$462)+LOOKUP(N137,ByM!$A$2:$B$462)+LOOKUP(O137,ByM!$A$2:$B$462)) -> 
P138: =IF(C138="","",LOOKUP(E138,$P$2:$Q$11)+LOOKUP(F138,$P$2:$Q$11)+LOOKUP(G138,$P$2:$Q$11)+LOOKUP(#REF!,$P$2:$Q$11)+LOOKUP(H138,$P$2:$Q$11)) ->  | Q138: =IF(C138="","",LOOKUP(K138,ByM!$A$2:$B$462)+LOOKUP(L138,ByM!$A$2:$B$462)+LOOKUP(M138,ByM!$A$2:$B$462)+LOOKUP(N138,ByM!$A$2:$B$462)+LOOKUP(O138,ByM!$A$2:$B$462)) -> 
P139: =IF(C139="","",LOOKUP(E139,$P$2:$Q$11)+LOOKUP(F139,$P$2:$Q$11)+LOOKUP(G139,$P$2:$Q$11)+LOOKUP(#REF!,$P$2:$Q$11)+LOOKUP(H139,$P$2:$Q$11)) ->  | Q139: =IF(C139="","",LOOKUP(K139,ByM!$A$2:$B$462)+LOOKUP(L139,ByM!$A$2:$B$462)+LOOKUP(M139,ByM!$A$2:$B$462)+LOOKUP(N139,ByM!$A$2:$B$462)+LOOKUP(O139,ByM!$A$2:$B$462)) -> 
P140: =IF(C140="","",LOOKUP(E140,$P$2:$Q$11)+LOOKUP(F140,$P$2:$Q$11)+LOOKUP(G140,$P$2:$Q$11)+LOOKUP(#REF!,$P$2:$Q$11)+LOOKUP(H140,$P$2:$Q$11)) ->  | Q140: =IF(C140="","",LOOKUP(K140,ByM!$A$2:$B$462)+LOOKUP(L140,ByM!$A$2:$B$462)+LOOKUP(M140,ByM!$A$2:$B$462)+LOOKUP(N140,ByM!$A$2:$B$462)+LOOKUP(O140,ByM!$A$2:$B$462)) -> 
P141: =IF(C141="","",LOOKUP(E141,$P$2:$Q$11)+LOOKUP(F141,$P$2:$Q$11)+LOOKUP(G141,$P$2:$Q$11)+LOOKUP(#REF!,$P$2:$Q$11)+LOOKUP(H141,$P$2:$Q$11)) ->  | Q141: =IF(C141="","",LOOKUP(K141,ByM!$A$2:$B$462)+LOOKUP(L141,ByM!$A$2:$B$462)+LOOKUP(M141,ByM!$A$2:$B$462)+LOOKUP(N141,ByM!$A$2:$B$462)+LOOKUP(O141,ByM!$A$2:$B$462)) -> 
P142: =IF(C142="","",LOOKUP(E142,$P$2:$Q$11)+LOOKUP(F142,$P$2:$Q$11)+LOOKUP(G142,$P$2:$Q$11)+LOOKUP(#REF!,$P$2:$Q$11)+LOOKUP(H142,$P$2:$Q$11)) ->  | Q142: =IF(C142="","",LOOKUP(K142,ByM!$A$2:$B$462)+LOOKUP(L142,ByM!$A$2:$B$462)+LOOKUP(M142,ByM!$A$2:$B$462)+LOOKUP(N142,ByM!$A$2:$B$462)+LOOKUP(O142,ByM!$A$2:$B$462)) -> 
P143: =IF(C143="","",LOOKUP(E143,$P$2:$Q$11)+LOOKUP(F143,$P$2:$Q$11)+LOOKUP(G143,$P$2:$Q$11)+LOOKUP(#REF!,$P$2:$Q$11)+LOOKUP(H143,$P$2:$Q$11)) ->  | Q143: =IF(C143="","",LOOKUP(K143,ByM!$A$2:$B$462)+LOOKUP(L143,ByM!$A$2:$B$462)+LOOKUP(M143,ByM!$A$2:$B$462)+LOOKUP(N143,ByM!$A$2:$B$462)+LOOKUP(O143,ByM!$A$2:$B$462)) -> 
P144: =IF(C144="","",LOOKUP(E144,$P$2:$Q$11)+LOOKUP(F144,$P$2:$Q$11)+LOOKUP(G144,$P$2:$Q$11)+LOOKUP(#REF!,$P$2:$Q$11)+LOOKUP(H144,$P$2:$Q$11)) ->  | Q144: =IF(C144="","",LOOKUP(K144,ByM!$A$2:$B$462)+LOOKUP(L144,ByM!$A$2:$B$462)+LOOKUP(M144,ByM!$A$2:$B$462)+LOOKUP(N144,ByM!$A$2:$B$462)+LOOKUP(O144,ByM!$A$2:$B$462)) -> 
P145: =IF(C145="","",LOOKUP(E145,$P$2:$Q$11)+LOOKUP(F145,$P$2:$Q$11)+LOOKUP(G145,$P$2:$Q$11)+LOOKUP(#REF!,$P$2:$Q$11)+LOOKUP(H145,$P$2:$Q$11)) ->  | Q145: =IF(C145="","",LOOKUP(K145,ByM!$A$2:$B$462)+LOOKUP(L145,ByM!$A$2:$B$462)+LOOKUP(M145,ByM!$A$2:$B$462)+LOOKUP(N145,ByM!$A$2:$B$462)+LOOKUP(O145,ByM!$A$2:$B$462)) -> 
P146: =IF(C146="","",LOOKUP(E146,$P$2:$Q$11)+LOOKUP(F146,$P$2:$Q$11)+LOOKUP(G146,$P$2:$Q$11)+LOOKUP(#REF!,$P$2:$Q$11)+LOOKUP(H146,$P$2:$Q$11)) ->  | Q146: =IF(C146="","",LOOKUP(K146,ByM!$A$2:$B$462)+LOOKUP(L146,ByM!$A$2:$B$462)+LOOKUP(M146,ByM!$A$2:$B$462)+LOOKUP(N146,ByM!$A$2:$B$462)+LOOKUP(O146,ByM!$A$2:$B$462)) -> 
P147: =IF(C147="","",LOOKUP(E147,$P$2:$Q$11)+LOOKUP(F147,$P$2:$Q$11)+LOOKUP(G147,$P$2:$Q$11)+LOOKUP(#REF!,$P$2:$Q$11)+LOOKUP(H147,$P$2:$Q$11)) ->  | Q147: =IF(C147="","",LOOKUP(K147,ByM!$A$2:$B$462)+LOOKUP(L147,ByM!$A$2:$B$462)+LOOKUP(M147,ByM!$A$2:$B$462)+LOOKUP(N147,ByM!$A$2:$B$462)+LOOKUP(O147,ByM!$A$2:$B$462)) -> 
P148: =IF(C148="","",LOOKUP(E148,$P$2:$Q$11)+LOOKUP(F148,$P$2:$Q$11)+LOOKUP(G148,$P$2:$Q$11)+LOOKUP(#REF!,$P$2:$Q$11)+LOOKUP(H148,$P$2:$Q$11)) ->  | Q148: =IF(C148="","",LOOKUP(K148,ByM!$A$2:$B$462)+LOOKUP(L148,ByM!$A$2:$B$462)+LOOKUP(M148,ByM!$A$2:$B$462)+LOOKUP(N148,ByM!$A$2:$B$462)+LOOKUP(O148,ByM!$A$2:$B$462)) -> 
P149: =IF(C149="","",LOOKUP(E149,$P$2:$Q$11)+LOOKUP(F149,$P$2:$Q$11)+LOOKUP(G149,$P$2:$Q$11)+LOOKUP(#REF!,$P$2:$Q$11)+LOOKUP(H149,$P$2:$Q$11)) ->  | Q149: =IF(C149="","",LOOKUP(K149,ByM!$A$2:$B$462)+LOOKUP(L149,ByM!$A$2:$B$462)+LOOKUP(M149,ByM!$A$2:$B$462)+LOOKUP(N149,ByM!$A$2:$B$462)+LOOKUP(O149,ByM!$A$2:$B$462)) -> 
P150: =IF(C150="","",LOOKUP(E150,$P$2:$Q$11)+LOOKUP(F150,$P$2:$Q$11)+LOOKUP(G150,$P$2:$Q$11)+LOOKUP(#REF!,$P$2:$Q$11)+LOOKUP(H150,$P$2:$Q$11)) ->  | Q150: =IF(C150="","",LOOKUP(K150,ByM!$A$2:$B$462)+LOOKUP(L150,ByM!$A$2:$B$462)+LOOKUP(M150,ByM!$A$2:$B$462)+LOOKUP(N150,ByM!$A$2:$B$462)+LOOKUP(O150,ByM!$A$2:$B$462)) -> 
P151: =IF(C151="","",LOOKUP(E151,$P$2:$Q$11)+LOOKUP(F151,$P$2:$Q$11)+LOOKUP(G151,$P$2:$Q$11)+LOOKUP(#REF!,$P$2:$Q$11)+LOOKUP(H151,$P$2:$Q$11)) ->  | Q151: =IF(C151="","",LOOKUP(K151,ByM!$A$2:$B$462)+LOOKUP(L151,ByM!$A$2:$B$462)+LOOKUP(M151,ByM!$A$2:$B$462)+LOOKUP(N151,ByM!$A$2:$B$462)+LOOKUP(O151,ByM!$A$2:$B$462)) -> 
P152: =IF(C152="","",LOOKUP(E152,$P$2:$Q$11)+LOOKUP(F152,$P$2:$Q$11)+LOOKUP(G152,$P$2:$Q$11)+LOOKUP(#REF!,$P$2:$Q$11)+LOOKUP(H152,$P$2:$Q$11)) ->  | Q152: =IF(C152="","",LOOKUP(K152,ByM!$A$2:$B$462)+LOOKUP(L152,ByM!$A$2:$B$462)+LOOKUP(M152,ByM!$A$2:$B$462)+LOOKUP(N152,ByM!$A$2:$B$462)+LOOKUP(O152,ByM!$A$2:$B$462)) -> 
P153: =IF(C153="","",LOOKUP(E153,$P$2:$Q$11)+LOOKUP(F153,$P$2:$Q$11)+LOOKUP(G153,$P$2:$Q$11)+LOOKUP(#REF!,$P$2:$Q$11)+LOOKUP(H153,$P$2:$Q$11)) ->  | Q153: =IF(C153="","",LOOKUP(K153,ByM!$A$2:$B$462)+LOOKUP(L153,ByM!$A$2:$B$462)+LOOKUP(M153,ByM!$A$2:$B$462)+LOOKUP(N153,ByM!$A$2:$B$462)+LOOKUP(O153,ByM!$A$2:$B$462)) -> 
P154: =IF(C154="","",LOOKUP(E154,$P$2:$Q$11)+LOOKUP(F154,$P$2:$Q$11)+LOOKUP(G154,$P$2:$Q$11)+LOOKUP(#REF!,$P$2:$Q$11)+LOOKUP(H154,$P$2:$Q$11)) ->  | Q154: =IF(C154="","",LOOKUP(K154,ByM!$A$2:$B$462)+LOOKUP(L154,ByM!$A$2:$B$462)+LOOKUP(M154,ByM!$A$2:$B$462)+LOOKUP(N154,ByM!$A$2:$B$462)+LOOKUP(O154,ByM!$A$2:$B$462)) -> 
P155: =IF(C155="","",LOOKUP(E155,$P$2:$Q$11)+LOOKUP(F155,$P$2:$Q$11)+LOOKUP(G155,$P$2:$Q$11)+LOOKUP(#REF!,$P$2:$Q$11)+LOOKUP(H155,$P$2:$Q$11)) ->  | Q155: =IF(C155="","",LOOKUP(K155,ByM!$A$2:$B$462)+LOOKUP(L155,ByM!$A$2:$B$462)+LOOKUP(M155,ByM!$A$2:$B$462)+LOOKUP(N155,ByM!$A$2:$B$462)+LOOKUP(O155,ByM!$A$2:$B$462)) -> 
P156: =IF(C156="","",LOOKUP(E156,$P$2:$Q$11)+LOOKUP(F156,$P$2:$Q$11)+LOOKUP(G156,$P$2:$Q$11)+LOOKUP(#REF!,$P$2:$Q$11)+LOOKUP(H156,$P$2:$Q$11)) ->  | Q156: =IF(C156="","",LOOKUP(K156,ByM!$A$2:$B$462)+LOOKUP(L156,ByM!$A$2:$B$462)+LOOKUP(M156,ByM!$A$2:$B$462)+LOOKUP(N156,ByM!$A$2:$B$462)+LOOKUP(O156,ByM!$A$2:$B$462)) -> 
P157: =IF(C157="","",LOOKUP(E157,$P$2:$Q$11)+LOOKUP(F157,$P$2:$Q$11)+LOOKUP(G157,$P$2:$Q$11)+LOOKUP(#REF!,$P$2:$Q$11)+LOOKUP(H157,$P$2:$Q$11)) ->  | Q157: =IF(C157="","",LOOKUP(K157,ByM!$A$2:$B$462)+LOOKUP(L157,ByM!$A$2:$B$462)+LOOKUP(M157,ByM!$A$2:$B$462)+LOOKUP(N157,ByM!$A$2:$B$462)+LOOKUP(O157,ByM!$A$2:$B$462)) -> 
P158: =IF(C158="","",LOOKUP(E158,$P$2:$Q$11)+LOOKUP(F158,$P$2:$Q$11)+LOOKUP(G158,$P$2:$Q$11)+LOOKUP(#REF!,$P$2:$Q$11)+LOOKUP(H158,$P$2:$Q$11)) ->  | Q158: =IF(C158="","",LOOKUP(K158,ByM!$A$2:$B$462)+LOOKUP(L158,ByM!$A$2:$B$462)+LOOKUP(M158,ByM!$A$2:$B$462)+LOOKUP(N158,ByM!$A$2:$B$462)+LOOKUP(O158,ByM!$A$2:$B$462)) -> 
P159: =IF(C159="","",LOOKUP(E159,$P$2:$Q$11)+LOOKUP(F159,$P$2:$Q$11)+LOOKUP(G159,$P$2:$Q$11)+LOOKUP(#REF!,$P$2:$Q$11)+LOOKUP(H159,$P$2:$Q$11)) ->  | Q159: =IF(C159="","",LOOKUP(K159,ByM!$A$2:$B$462)+LOOKUP(L159,ByM!$A$2:$B$462)+LOOKUP(M159,ByM!$A$2:$B$462)+LOOKUP(N159,ByM!$A$2:$B$462)+LOOKUP(O159,ByM!$A$2:$B$462)) -> 
P160: =IF(C160="","",LOOKUP(E160,$P$2:$Q$11)+LOOKUP(F160,$P$2:$Q$11)+LOOKUP(G160,$P$2:$Q$11)+LOOKUP(#REF!,$P$2:$Q$11)+LOOKUP(H160,$P$2:$Q$11)) ->  | Q160: =IF(C160="","",LOOKUP(K160,ByM!$A$2:$B$462)+LOOKUP(L160,ByM!$A$2:$B$462)+LOOKUP(M160,ByM!$A$2:$B$462)+LOOKUP(N160,ByM!$A$2:$B$462)+LOOKUP(O160,ByM!$A$2:$B$462)) -> 
P161: =IF(C161="","",LOOKUP(E161,$P$2:$Q$11)+LOOKUP(F161,$P$2:$Q$11)+LOOKUP(G161,$P$2:$Q$11)+LOOKUP(#REF!,$P$2:$Q$11)+LOOKUP(H161,$P$2:$Q$11)) ->  | Q161: =IF(C161="","",LOOKUP(K161,ByM!$A$2:$B$462)+LOOKUP(L161,ByM!$A$2:$B$462)+LOOKUP(M161,ByM!$A$2:$B$462)+LOOKUP(N161,ByM!$A$2:$B$462)+LOOKUP(O161,ByM!$A$2:$B$462)) -> 
P162: =IF(C162="","",LOOKUP(E162,$P$2:$Q$11)+LOOKUP(F162,$P$2:$Q$11)+LOOKUP(G162,$P$2:$Q$11)+LOOKUP(#REF!,$P$2:$Q$11)+LOOKUP(H162,$P$2:$Q$11)) ->  | Q162: =IF(C162="","",LOOKUP(K162,ByM!$A$2:$B$462)+LOOKUP(L162,ByM!$A$2:$B$462)+LOOKUP(M162,ByM!$A$2:$B$462)+LOOKUP(N162,ByM!$A$2:$B$462)+LOOKUP(O162,ByM!$A$2:$B$462)) -> 
P163: =IF(C163="","",LOOKUP(E163,$P$2:$Q$11)+LOOKUP(F163,$P$2:$Q$11)+LOOKUP(G163,$P$2:$Q$11)+LOOKUP(#REF!,$P$2:$Q$11)+LOOKUP(H163,$P$2:$Q$11)) ->  | Q163: =IF(C163="","",LOOKUP(K163,ByM!$A$2:$B$462)+LOOKUP(L163,ByM!$A$2:$B$462)+LOOKUP(M163,ByM!$A$2:$B$462)+LOOKUP(N163,ByM!$A$2:$B$462)+LOOKUP(O163,ByM!$A$2:$B$462)) -> 
P164: =IF(C164="","",LOOKUP(E164,$P$2:$Q$11)+LOOKUP(F164,$P$2:$Q$11)+LOOKUP(G164,$P$2:$Q$11)+LOOKUP(#REF!,$P$2:$Q$11)+LOOKUP(H164,$P$2:$Q$11)) ->  | Q164: =IF(C164="","",LOOKUP(K164,ByM!$A$2:$B$462)+LOOKUP(L164,ByM!$A$2:$B$462)+LOOKUP(M164,ByM!$A$2:$B$462)+LOOKUP(N164,ByM!$A$2:$B$462)+LOOKUP(O164,ByM!$A$2:$B$462)) -> 
P165: =IF(C165="","",LOOKUP(E165,$P$2:$Q$11)+LOOKUP(F165,$P$2:$Q$11)+LOOKUP(G165,$P$2:$Q$11)+LOOKUP(#REF!,$P$2:$Q$11)+LOOKUP(H165,$P$2:$Q$11)) ->  | Q165: =IF(C165="","",LOOKUP(K165,ByM!$A$2:$B$462)+LOOKUP(L165,ByM!$A$2:$B$462)+LOOKUP(M165,ByM!$A$2:$B$462)+LOOKUP(N165,ByM!$A$2:$B$462)+LOOKUP(O165,ByM!$A$2:$B$462)) -> 
P166: =IF(C166="","",LOOKUP(E166,$P$2:$Q$11)+LOOKUP(F166,$P$2:$Q$11)+LOOKUP(G166,$P$2:$Q$11)+LOOKUP(#REF!,$P$2:$Q$11)+LOOKUP(H166,$P$2:$Q$11)) ->  | Q166: =IF(C166="","",LOOKUP(K166,ByM!$A$2:$B$462)+LOOKUP(L166,ByM!$A$2:$B$462)+LOOKUP(M166,ByM!$A$2:$B$462)+LOOKUP(N166,ByM!$A$2:$B$462)+LOOKUP(O166,ByM!$A$2:$B$462)) -> 
P167: =IF(C167="","",LOOKUP(E167,$P$2:$Q$11)+LOOKUP(F167,$P$2:$Q$11)+LOOKUP(G167,$P$2:$Q$11)+LOOKUP(#REF!,$P$2:$Q$11)+LOOKUP(H167,$P$2:$Q$11)) ->  | Q167: =IF(C167="","",LOOKUP(K167,ByM!$A$2:$B$462)+LOOKUP(L167,ByM!$A$2:$B$462)+LOOKUP(M167,ByM!$A$2:$B$462)+LOOKUP(N167,ByM!$A$2:$B$462)+LOOKUP(O167,ByM!$A$2:$B$462)) -> 
P168: =IF(C168="","",LOOKUP(E168,$P$2:$Q$11)+LOOKUP(F168,$P$2:$Q$11)+LOOKUP(G168,$P$2:$Q$11)+LOOKUP(#REF!,$P$2:$Q$11)+LOOKUP(H168,$P$2:$Q$11)) ->  | Q168: =IF(C168="","",LOOKUP(K168,ByM!$A$2:$B$462)+LOOKUP(L168,ByM!$A$2:$B$462)+LOOKUP(M168,ByM!$A$2:$B$462)+LOOKUP(N168,ByM!$A$2:$B$462)+LOOKUP(O168,ByM!$A$2:$B$462)) -> 
P169: =IF(C169="","",LOOKUP(E169,$P$2:$Q$11)+LOOKUP(F169,$P$2:$Q$11)+LOOKUP(G169,$P$2:$Q$11)+LOOKUP(#REF!,$P$2:$Q$11)+LOOKUP(H169,$P$2:$Q$11)) ->  | Q169: =IF(C169="","",LOOKUP(K169,ByM!$A$2:$B$462)+LOOKUP(L169,ByM!$A$2:$B$462)+LOOKUP(M169,ByM!$A$2:$B$462)+LOOKUP(N169,ByM!$A$2:$B$462)+LOOKUP(O169,ByM!$A$2:$B$462)) -> 
P170: =IF(C170="","",LOOKUP(E170,$P$2:$Q$11)+LOOKUP(F170,$P$2:$Q$11)+LOOKUP(G170,$P$2:$Q$11)+LOOKUP(#REF!,$P$2:$Q$11)+LOOKUP(H170,$P$2:$Q$11)) ->  | Q170: =IF(C170="","",LOOKUP(K170,ByM!$A$2:$B$462)+LOOKUP(L170,ByM!$A$2:$B$462)+LOOKUP(M170,ByM!$A$2:$B$462)+LOOKUP(N170,ByM!$A$2:$B$462)+LOOKUP(O170,ByM!$A$2:$B$462)) -> 
P171: =IF(C171="","",LOOKUP(E171,$P$2:$Q$11)+LOOKUP(F171,$P$2:$Q$11)+LOOKUP(G171,$P$2:$Q$11)+LOOKUP(#REF!,$P$2:$Q$11)+LOOKUP(H171,$P$2:$Q$11)) ->  | Q171: =IF(C171="","",LOOKUP(K171,ByM!$A$2:$B$462)+LOOKUP(L171,ByM!$A$2:$B$462)+LOOKUP(M171,ByM!$A$2:$B$462)+LOOKUP(N171,ByM!$A$2:$B$462)+LOOKUP(O171,ByM!$A$2:$B$462)) -> 
P172: =IF(C172="","",LOOKUP(E172,$P$2:$Q$11)+LOOKUP(F172,$P$2:$Q$11)+LOOKUP(G172,$P$2:$Q$11)+LOOKUP(#REF!,$P$2:$Q$11)+LOOKUP(H172,$P$2:$Q$11)) ->  | Q172: =IF(C172="","",LOOKUP(K172,ByM!$A$2:$B$462)+LOOKUP(L172,ByM!$A$2:$B$462)+LOOKUP(M172,ByM!$A$2:$B$462)+LOOKUP(N172,ByM!$A$2:$B$462)+LOOKUP(O172,ByM!$A$2:$B$462)) -> 
P173: =IF(C173="","",LOOKUP(E173,$P$2:$Q$11)+LOOKUP(F173,$P$2:$Q$11)+LOOKUP(G173,$P$2:$Q$11)+LOOKUP(#REF!,$P$2:$Q$11)+LOOKUP(H173,$P$2:$Q$11)) ->  | Q173: =IF(C173="","",LOOKUP(K173,ByM!$A$2:$B$462)+LOOKUP(L173,ByM!$A$2:$B$462)+LOOKUP(M173,ByM!$A$2:$B$462)+LOOKUP(N173,ByM!$A$2:$B$462)+LOOKUP(O173,ByM!$A$2:$B$462)) -> 
P174: =IF(C174="","",LOOKUP(E174,$P$2:$Q$11)+LOOKUP(F174,$P$2:$Q$11)+LOOKUP(G174,$P$2:$Q$11)+LOOKUP(#REF!,$P$2:$Q$11)+LOOKUP(H174,$P$2:$Q$11)) ->  | Q174: =IF(C174="","",LOOKUP(K174,ByM!$A$2:$B$462)+LOOKUP(L174,ByM!$A$2:$B$462)+LOOKUP(M174,ByM!$A$2:$B$462)+LOOKUP(N174,ByM!$A$2:$B$462)+LOOKUP(O174,ByM!$A$2:$B$462)) -> 
P175: =IF(C175="","",LOOKUP(E175,$P$2:$Q$11)+LOOKUP(F175,$P$2:$Q$11)+LOOKUP(G175,$P$2:$Q$11)+LOOKUP(#REF!,$P$2:$Q$11)+LOOKUP(H175,$P$2:$Q$11)) ->  | Q175: =IF(C175="","",LOOKUP(K175,ByM!$A$2:$B$462)+LOOKUP(L175,ByM!$A$2:$B$462)+LOOKUP(M175,ByM!$A$2:$B$462)+LOOKUP(N175,ByM!$A$2:$B$462)+LOOKUP(O175,ByM!$A$2:$B$462)) -> 
P176: =IF(C176="","",LOOKUP(E176,$P$2:$Q$11)+LOOKUP(F176,$P$2:$Q$11)+LOOKUP(G176,$P$2:$Q$11)+LOOKUP(#REF!,$P$2:$Q$11)+LOOKUP(H176,$P$2:$Q$11)) ->  | Q176: =IF(C176="","",LOOKUP(K176,ByM!$A$2:$B$462)+LOOKUP(L176,ByM!$A$2:$B$462)+LOOKUP(M176,ByM!$A$2:$B$462)+LOOKUP(N176,ByM!$A$2:$B$462)+LOOKUP(O176,ByM!$A$2:$B$462)) -> 
P177: =IF(C177="","",LOOKUP(E177,$P$2:$Q$11)+LOOKUP(F177,$P$2:$Q$11)+LOOKUP(G177,$P$2:$Q$11)+LOOKUP(#REF!,$P$2:$Q$11)+LOOKUP(H177,$P$2:$Q$11)) ->  | Q177: =IF(C177="","",LOOKUP(K177,ByM!$A$2:$B$462)+LOOKUP(L177,ByM!$A$2:$B$462)+LOOKUP(M177,ByM!$A$2:$B$462)+LOOKUP(N177,ByM!$A$2:$B$462)+LOOKUP(O177,ByM!$A$2:$B$462)) -> 
P178: =IF(C178="","",LOOKUP(E178,$P$2:$Q$11)+LOOKUP(F178,$P$2:$Q$11)+LOOKUP(G178,$P$2:$Q$11)+LOOKUP(#REF!,$P$2:$Q$11)+LOOKUP(H178,$P$2:$Q$11)) ->  | Q178: =IF(C178="","",LOOKUP(K178,ByM!$A$2:$B$462)+LOOKUP(L178,ByM!$A$2:$B$462)+LOOKUP(M178,ByM!$A$2:$B$462)+LOOKUP(N178,ByM!$A$2:$B$462)+LOOKUP(O178,ByM!$A$2:$B$462)) -> 
P179: =IF(C179="","",LOOKUP(E179,$P$2:$Q$11)+LOOKUP(F179,$P$2:$Q$11)+LOOKUP(G179,$P$2:$Q$11)+LOOKUP(#REF!,$P$2:$Q$11)+LOOKUP(H179,$P$2:$Q$11)) ->  | Q179: =IF(C179="","",LOOKUP(K179,ByM!$A$2:$B$462)+LOOKUP(L179,ByM!$A$2:$B$462)+LOOKUP(M179,ByM!$A$2:$B$462)+LOOKUP(N179,ByM!$A$2:$B$462)+LOOKUP(O179,ByM!$A$2:$B$462)) -> 
P180: =IF(C180="","",LOOKUP(E180,$P$2:$Q$11)+LOOKUP(F180,$P$2:$Q$11)+LOOKUP(G180,$P$2:$Q$11)+LOOKUP(#REF!,$P$2:$Q$11)+LOOKUP(H180,$P$2:$Q$11)) ->  | Q180: =IF(C180="","",LOOKUP(K180,ByM!$A$2:$B$462)+LOOKUP(L180,ByM!$A$2:$B$462)+LOOKUP(M180,ByM!$A$2:$B$462)+LOOKUP(N180,ByM!$A$2:$B$462)+LOOKUP(O180,ByM!$A$2:$B$462)) -> 
P181: =IF(C181="","",LOOKUP(E181,$P$2:$Q$11)+LOOKUP(F181,$P$2:$Q$11)+LOOKUP(G181,$P$2:$Q$11)+LOOKUP(#REF!,$P$2:$Q$11)+LOOKUP(H181,$P$2:$Q$11)) ->  | Q181: =IF(C181="","",LOOKUP(K181,ByM!$A$2:$B$462)+LOOKUP(L181,ByM!$A$2:$B$462)+LOOKUP(M181,ByM!$A$2:$B$462)+LOOKUP(N181,ByM!$A$2:$B$462)+LOOKUP(O181,ByM!$A$2:$B$462)) -> 
P182: =IF(C182="","",LOOKUP(E182,$P$2:$Q$11)+LOOKUP(F182,$P$2:$Q$11)+LOOKUP(G182,$P$2:$Q$11)+LOOKUP(#REF!,$P$2:$Q$11)+LOOKUP(H182,$P$2:$Q$11)) ->  | Q182: =IF(C182="","",LOOKUP(K182,ByM!$A$2:$B$462)+LOOKUP(L182,ByM!$A$2:$B$462)+LOOKUP(M182,ByM!$A$2:$B$462)+LOOKUP(N182,ByM!$A$2:$B$462)+LOOKUP(O182,ByM!$A$2:$B$462)) -> 
P183: =IF(C183="","",LOOKUP(E183,$P$2:$Q$11)+LOOKUP(F183,$P$2:$Q$11)+LOOKUP(G183,$P$2:$Q$11)+LOOKUP(#REF!,$P$2:$Q$11)+LOOKUP(H183,$P$2:$Q$11)) ->  | Q183: =IF(C183="","",LOOKUP(K183,ByM!$A$2:$B$462)+LOOKUP(L183,ByM!$A$2:$B$462)+LOOKUP(M183,ByM!$A$2:$B$462)+LOOKUP(N183,ByM!$A$2:$B$462)+LOOKUP(O183,ByM!$A$2:$B$462)) -> 
P184: =IF(C184="","",LOOKUP(E184,$P$2:$Q$11)+LOOKUP(F184,$P$2:$Q$11)+LOOKUP(G184,$P$2:$Q$11)+LOOKUP(#REF!,$P$2:$Q$11)+LOOKUP(H184,$P$2:$Q$11)) ->  | Q184: =IF(C184="","",LOOKUP(K184,ByM!$A$2:$B$462)+LOOKUP(L184,ByM!$A$2:$B$462)+LOOKUP(M184,ByM!$A$2:$B$462)+LOOKUP(N184,ByM!$A$2:$B$462)+LOOKUP(O184,ByM!$A$2:$B$462)) -> 
P185: =IF(C185="","",LOOKUP(E185,$P$2:$Q$11)+LOOKUP(F185,$P$2:$Q$11)+LOOKUP(G185,$P$2:$Q$11)+LOOKUP(#REF!,$P$2:$Q$11)+LOOKUP(H185,$P$2:$Q$11)) ->  | Q185: =IF(C185="","",LOOKUP(K185,ByM!$A$2:$B$462)+LOOKUP(L185,ByM!$A$2:$B$462)+LOOKUP(M185,ByM!$A$2:$B$462)+LOOKUP(N185,ByM!$A$2:$B$462)+LOOKUP(O185,ByM!$A$2:$B$462)) -> 
P186: =IF(C186="","",LOOKUP(E186,$P$2:$Q$11)+LOOKUP(F186,$P$2:$Q$11)+LOOKUP(G186,$P$2:$Q$11)+LOOKUP(#REF!,$P$2:$Q$11)+LOOKUP(H186,$P$2:$Q$11)) ->  | Q186: =IF(C186="","",LOOKUP(K186,ByM!$A$2:$B$462)+LOOKUP(L186,ByM!$A$2:$B$462)+LOOKUP(M186,ByM!$A$2:$B$462)+LOOKUP(N186,ByM!$A$2:$B$462)+LOOKUP(O186,ByM!$A$2:$B$462)) -> 
P187: =IF(C187="","",LOOKUP(E187,$P$2:$Q$11)+LOOKUP(F187,$P$2:$Q$11)+LOOKUP(G187,$P$2:$Q$11)+LOOKUP(#REF!,$P$2:$Q$11)+LOOKUP(H187,$P$2:$Q$11)) ->  | Q187: =IF(C187="","",LOOKUP(K187,ByM!$A$2:$B$462)+LOOKUP(L187,ByM!$A$2:$B$462)+LOOKUP(M187,ByM!$A$2:$B$462)+LOOKUP(N187,ByM!$A$2:$B$462)+LOOKUP(O187,ByM!$A$2:$B$462)) -> 
P188: =IF(C188="","",LOOKUP(E188,$P$2:$Q$11)+LOOKUP(F188,$P$2:$Q$11)+LOOKUP(G188,$P$2:$Q$11)+LOOKUP(#REF!,$P$2:$Q$11)+LOOKUP(H188,$P$2:$Q$11)) ->  | Q188: =IF(C188="","",LOOKUP(K188,ByM!$A$2:$B$462)+LOOKUP(L188,ByM!$A$2:$B$462)+LOOKUP(M188,ByM!$A$2:$B$462)+LOOKUP(N188,ByM!$A$2:$B$462)+LOOKUP(O188,ByM!$A$2:$B$462)) -> 
P189: =IF(C189="","",LOOKUP(E189,$P$2:$Q$11)+LOOKUP(F189,$P$2:$Q$11)+LOOKUP(G189,$P$2:$Q$11)+LOOKUP(#REF!,$P$2:$Q$11)+LOOKUP(H189,$P$2:$Q$11)) ->  | Q189: =IF(C189="","",LOOKUP(K189,ByM!$A$2:$B$462)+LOOKUP(L189,ByM!$A$2:$B$462)+LOOKUP(M189,ByM!$A$2:$B$462)+LOOKUP(N189,ByM!$A$2:$B$462)+LOOKUP(O189,ByM!$A$2:$B$462)) -> 
P190: =IF(C190="","",LOOKUP(E190,$P$2:$Q$11)+LOOKUP(F190,$P$2:$Q$11)+LOOKUP(G190,$P$2:$Q$11)+LOOKUP(#REF!,$P$2:$Q$11)+LOOKUP(H190,$P$2:$Q$11)) ->  | Q190: =IF(C190="","",LOOKUP(K190,ByM!$A$2:$B$462)+LOOKUP(L190,ByM!$A$2:$B$462)+LOOKUP(M190,ByM!$A$2:$B$462)+LOOKUP(N190,ByM!$A$2:$B$462)+LOOKUP(O190,ByM!$A$2:$B$462)) -> 
P191: =IF(C191="","",LOOKUP(E191,$P$2:$Q$11)+LOOKUP(F191,$P$2:$Q$11)+LOOKUP(G191,$P$2:$Q$11)+LOOKUP(#REF!,$P$2:$Q$11)+LOOKUP(H191,$P$2:$Q$11)) ->  | Q191: =IF(C191="","",LOOKUP(K191,ByM!$A$2:$B$462)+LOOKUP(L191,ByM!$A$2:$B$462)+LOOKUP(M191,ByM!$A$2:$B$462)+LOOKUP(N191,ByM!$A$2:$B$462)+LOOKUP(O191,ByM!$A$2:$B$462)) -> 
P192: =IF(C192="","",LOOKUP(E192,$P$2:$Q$11)+LOOKUP(F192,$P$2:$Q$11)+LOOKUP(G192,$P$2:$Q$11)+LOOKUP(#REF!,$P$2:$Q$11)+LOOKUP(H192,$P$2:$Q$11)) ->  | Q192: =IF(C192="","",LOOKUP(K192,ByM!$A$2:$B$462)+LOOKUP(L192,ByM!$A$2:$B$462)+LOOKUP(M192,ByM!$A$2:$B$462)+LOOKUP(N192,ByM!$A$2:$B$462)+LOOKUP(O192,ByM!$A$2:$B$462)) -> 
P193: =IF(C193="","",LOOKUP(E193,$P$2:$Q$11)+LOOKUP(F193,$P$2:$Q$11)+LOOKUP(G193,$P$2:$Q$11)+LOOKUP(#REF!,$P$2:$Q$11)+LOOKUP(H193,$P$2:$Q$11)) ->  | Q193: =IF(C193="","",LOOKUP(K193,ByM!$A$2:$B$462)+LOOKUP(L193,ByM!$A$2:$B$462)+LOOKUP(M193,ByM!$A$2:$B$462)+LOOKUP(N193,ByM!$A$2:$B$462)+LOOKUP(O193,ByM!$A$2:$B$462)) -> 
P194: =IF(C194="","",LOOKUP(E194,$P$2:$Q$11)+LOOKUP(F194,$P$2:$Q$11)+LOOKUP(G194,$P$2:$Q$11)+LOOKUP(#REF!,$P$2:$Q$11)+LOOKUP(H194,$P$2:$Q$11)) ->  | Q194: =IF(C194="","",LOOKUP(K194,ByM!$A$2:$B$462)+LOOKUP(L194,ByM!$A$2:$B$462)+LOOKUP(M194,ByM!$A$2:$B$462)+LOOKUP(N194,ByM!$A$2:$B$462)+LOOKUP(O194,ByM!$A$2:$B$462)) -> 
P195: =IF(C195="","",LOOKUP(E195,$P$2:$Q$11)+LOOKUP(F195,$P$2:$Q$11)+LOOKUP(G195,$P$2:$Q$11)+LOOKUP(#REF!,$P$2:$Q$11)+LOOKUP(H195,$P$2:$Q$11)) ->  | Q195: =IF(C195="","",LOOKUP(K195,ByM!$A$2:$B$462)+LOOKUP(L195,ByM!$A$2:$B$462)+LOOKUP(M195,ByM!$A$2:$B$462)+LOOKUP(N195,ByM!$A$2:$B$462)+LOOKUP(O195,ByM!$A$2:$B$462)) -> 
P196: =IF(C196="","",LOOKUP(E196,$P$2:$Q$11)+LOOKUP(F196,$P$2:$Q$11)+LOOKUP(G196,$P$2:$Q$11)+LOOKUP(#REF!,$P$2:$Q$11)+LOOKUP(H196,$P$2:$Q$11)) ->  | Q196: =IF(C196="","",LOOKUP(K196,ByM!$A$2:$B$462)+LOOKUP(L196,ByM!$A$2:$B$462)+LOOKUP(M196,ByM!$A$2:$B$462)+LOOKUP(N196,ByM!$A$2:$B$462)+LOOKUP(O196,ByM!$A$2:$B$462)) -> 
P197: =IF(C197="","",LOOKUP(E197,$P$2:$Q$11)+LOOKUP(F197,$P$2:$Q$11)+LOOKUP(G197,$P$2:$Q$11)+LOOKUP(#REF!,$P$2:$Q$11)+LOOKUP(H197,$P$2:$Q$11)) ->  | Q197: =IF(C197="","",LOOKUP(K197,ByM!$A$2:$B$462)+LOOKUP(L197,ByM!$A$2:$B$462)+LOOKUP(M197,ByM!$A$2:$B$462)+LOOKUP(N197,ByM!$A$2:$B$462)+LOOKUP(O197,ByM!$A$2:$B$462)) -> 
P198: =IF(C198="","",LOOKUP(E198,$P$2:$Q$11)+LOOKUP(F198,$P$2:$Q$11)+LOOKUP(G198,$P$2:$Q$11)+LOOKUP(#REF!,$P$2:$Q$11)+LOOKUP(H198,$P$2:$Q$11)) ->  | Q198: =IF(C198="","",LOOKUP(K198,ByM!$A$2:$B$462)+LOOKUP(L198,ByM!$A$2:$B$462)+LOOKUP(M198,ByM!$A$2:$B$462)+LOOKUP(N198,ByM!$A$2:$B$462)+LOOKUP(O198,ByM!$A$2:$B$462)) -> 
P199: =IF(C199="","",LOOKUP(E199,$P$2:$Q$11)+LOOKUP(F199,$P$2:$Q$11)+LOOKUP(G199,$P$2:$Q$11)+LOOKUP(#REF!,$P$2:$Q$11)+LOOKUP(H199,$P$2:$Q$11)) ->  | Q199: =IF(C199="","",LOOKUP(K199,ByM!$A$2:$B$462)+LOOKUP(L199,ByM!$A$2:$B$462)+LOOKUP(M199,ByM!$A$2:$B$462)+LOOKUP(N199,ByM!$A$2:$B$462)+LOOKUP(O199,ByM!$A$2:$B$462)) -> 
P200: =IF(C200="","",LOOKUP(E200,$P$2:$Q$11)+LOOKUP(F200,$P$2:$Q$11)+LOOKUP(G200,$P$2:$Q$11)+LOOKUP(#REF!,$P$2:$Q$11)+LOOKUP(H200,$P$2:$Q$11)) ->  | Q200: =IF(C200="","",LOOKUP(K200,ByM!$A$2:$B$462)+LOOKUP(L200,ByM!$A$2:$B$462)+LOOKUP(M200,ByM!$A$2:$B$462)+LOOKUP(N200,ByM!$A$2:$B$462)+LOOKUP(O200,ByM!$A$2:$B$462)) -> 
P201: =IF(C201="","",LOOKUP(E201,$P$2:$Q$11)+LOOKUP(F201,$P$2:$Q$11)+LOOKUP(G201,$P$2:$Q$11)+LOOKUP(#REF!,$P$2:$Q$11)+LOOKUP(H201,$P$2:$Q$11)) ->  | Q201: =IF(C201="","",LOOKUP(K201,ByM!$A$2:$B$462)+LOOKUP(L201,ByM!$A$2:$B$462)+LOOKUP(M201,ByM!$A$2:$B$462)+LOOKUP(N201,ByM!$A$2:$B$462)+LOOKUP(O201,ByM!$A$2:$B$462)) -> 
P202: =IF(C202="","",LOOKUP(E202,$P$2:$Q$11)+LOOKUP(F202,$P$2:$Q$11)+LOOKUP(G202,$P$2:$Q$11)+LOOKUP(#REF!,$P$2:$Q$11)+LOOKUP(H202,$P$2:$Q$11)) ->  | Q202: =IF(C202="","",LOOKUP(K202,ByM!$A$2:$B$462)+LOOKUP(L202,ByM!$A$2:$B$462)+LOOKUP(M202,ByM!$A$2:$B$462)+LOOKUP(N202,ByM!$A$2:$B$462)+LOOKUP(O202,ByM!$A$2:$B$462)) -> 
P203: =IF(C203="","",LOOKUP(E203,$P$2:$Q$11)+LOOKUP(F203,$P$2:$Q$11)+LOOKUP(G203,$P$2:$Q$11)+LOOKUP(#REF!,$P$2:$Q$11)+LOOKUP(H203,$P$2:$Q$11)) ->  | Q203: =IF(C203="","",LOOKUP(K203,ByM!$A$2:$B$462)+LOOKUP(L203,ByM!$A$2:$B$462)+LOOKUP(M203,ByM!$A$2:$B$462)+LOOKUP(N203,ByM!$A$2:$B$462)+LOOKUP(O203,ByM!$A$2:$B$462)) -> 
... 76 more rows

Sheet Arma
B2: Nombre: | C2: Nombre | E2: Atributos: | K2: Coste del arquetipo: | O2: Capacidad de herir | P2: DAÑ: | Q2: 1 | R2: 2 | S2: 3 | T2: 4 | U2: 5 | V2: 6 | W2: 7 | X2: 8 | Y2: 9 | Z2: 10
B3: Bonus 1: | C3: - | D3: =LOOKUP(C3,ByM!$A$2:$B$462) -> 0 | E3: ENE | F3: DAÑ | G3: ALC | H3: CAL | I3: ARE | K3: =IF(SUM(D3:D7,E5:I5)<1,1,SUM(D3:D7,E5:I5)) -> 9 | L3: =LOOKUP(C3,ByM!$A$2:$C$462) -> - | O3: . | P3: 1 | Q3: 8 | R3: 21 | S3: 52 | T3: 125 | U3: 302 | V3: 729 | W3: x | X3: x | Y3: x | Z3: x
B4: Bonus 2: | C4: - | D4: =LOOKUP(C4,ByM!$A$2:$B$462) -> 0 | E4: 1 | F4: 1 | G4: 0 | H4: 1 | I4: - | L4: =LOOKUP(C4,ByM!$A$2:$C$462) -> - | O4: . | P4: 2 | Q4: -5 | R4: 11 | S4: 26 | T4: 63 | U4: 151 | V4: 365 | W4: 880 | X4: x | Y4: x | Z4: x
B5: Bonus 3: | C5: - | D5: =LOOKUP(C5,ByM!$A$2:$B$462) -> 0 | F5: =INDEX(Q3:Z12,E4,F4) -> 8 | G5: =IF(G4>F4*5,"Error",G4) -> 0 | H5: =H4 -> 1 | I5: =LOOKUP(I4,Area!$A$2:$B$71) -> 0 | L5: =LOOKUP(C5,ByM!$A$2:$C$462) -> - | O5: . | P5: 3 | Q5: -15 | R5: 1 | S5: 13 | T5: 31 | U5: 76 | V5: 182 | W5: 440 | X5: 1062 | Y5: x | Z5: x
B6: Bonus 4: | C6: - | D6: =LOOKUP(C6,ByM!$A$2:$B$462) -> 0 | L6: =LOOKUP(C6,ByM!$A$2:$C$462) -> - | O6: . | P6: 4 | Q6: -35 | R6: -20 | S6: 1 | T6: 16 | U6: 38 | V6: 91 | W6: 220 | X6: 531 | Y6: 1282 | Z6: x
B7: Bonus 5: | C7: - | D7: =LOOKUP(C7,ByM!$A$2:$B$462) -> 0 | L7: =LOOKUP(C7,ByM!$A$2:$C$462) -> - | O7: ENE: | P7: 5 | Q7: -75 | R7: -60 | S7: -25 | T7: 1 | U7: 19 | V7: 46 | W7: 110 | X7: 266 | Y7: 641 | Z7: 1548
B8: Descripción: | P8: 6 | Q8: -155 | R8: -140 | S8: -75 | T8: -29 | U8: 0 | V8: 23 | W8: 55 | X8: 133 | Y8: 321 | Z8: 774
P9: 7 | Q9: -315 | R9: -300 | S9: -175 | T9: -89 | U9: -38 | V9: 1 | W9: 28 | X9: 66 | Y9: 160 | Z9: 387
P10: 8 | Q10: x | R10: -620 | S10: -375 | T10: -209 | U10: -114 | V10: -43 | W10: 2 | X10: 33 | Y10: 80 | Z10: 193
P11: 9 | Q11: x | R11: x | S11: -775 | T11: -449 | U11: -266 | V11: -131 | W11: -51 | X11: 1 | Y11: 40 | Z11: 97
P12: 10 | Q12: x | R12: x | S12: x | T12: -929 | U12: -570 | V12: -307 | W12: -155 | X12: -63 | Y12: 2 | Z12: 48
B14: Tipo | C14: Nombre | D14: Desc | E14: ENE | F14: DAÑ | G14: ALC | H14: CAL | I14: PTS | J14: ARE | K14: Bonus 1 | L14: Bonus 2 | M14: Bonus 3 | N14: Bonus 4 | O14: Bonus 5 | P14: Pts Atr. | Q14: Pts ByM
B15: Arma | C15: Abrecartas | E15: 1 | F15: 1 | G15: 0 | H15: 1 | I15: 9 | J15: - | K15: - | L15: - | M15: - | N15: - | O15: - | P15: =IF(C15="","",INDEX($Q$3:$Z$12,E15,F15)+G15+H15) -> 9 | Q15: =IF(C15="","",LOOKUP(J15,Area!$A$2:$B$71)+LOOKUP(K15,ByM!$A$2:$B$462)+LOOKUP(L15,ByM!$A$2:$B$462)+LOOKUP(M15,ByM!$A$2:$B$462)+LOOKUP(N15,ByM!$A$2:$B$462)+LOOKUP(O15,ByM!$A$2:$B$462)) -> 0
B16: Arma | C16: Absolución | E16: 4 | F16: 5 | G16: 12 | H16: 3 | I16: 51 | J16: - | K16: Reliquia | L16: Daño extra | M16: Munición perforante | N16: - | O16: - | P16: =IF(C16="","",INDEX($Q$3:$Z$12,E16,F16)+G16+H16) -> 53 | Q16: =IF(C16="","",LOOKUP(J16,Area!$A$2:$B$71)+LOOKUP(K16,ByM!$A$2:$B$462)+LOOKUP(L16,ByM!$A$2:$B$462)+LOOKUP(M16,ByM!$A$2:$B$462)+LOOKUP(N16,ByM!$A$2:$B$462)+LOOKUP(O16,ByM!$A$2:$B$462)) -> -2
B17: Arma | C17: Alabarda | E17: 4 | F17: 4 | G17: 0 | H17: 4 | I17: 7 | J17: - | K17: A 2 manos | L17: Arma complicada | M17: - | N17: - | O17: - | P17: =IF(C17="","",INDEX($Q$3:$Z$12,E17,F17)+G17+H17) -> 20 | Q17: =IF(C17="","",LOOKUP(J17,Area!$A$2:$B$71)+LOOKUP(K17,ByM!$A$2:$B$462)+LOOKUP(L17,ByM!$A$2:$B$462)+LOOKUP(M17,ByM!$A$2:$B$462)+LOOKUP(N17,ByM!$A$2:$B$462)+LOOKUP(O17,ByM!$A$2:$B$462)) -> -13
B18: Arma | C18: Alegradías | E18: 5 | F18: 5 | G18: 5 | H18: 3 | I18: 32 | J18: - | K18: Arma corta | L18: Cargadores (6) | M18: Visor N03 | N18: - | O18: - | P18: =IF(C18="","",INDEX($Q$3:$Z$12,E18,F18)+G18+H18) -> 27 | Q18: =IF(C18="","",LOOKUP(J18,Area!$A$2:$B$71)+LOOKUP(K18,ByM!$A$2:$B$462)+LOOKUP(L18,ByM!$A$2:$B$462)+LOOKUP(M18,ByM!$A$2:$B$462)+LOOKUP(N18,ByM!$A$2:$B$462)+LOOKUP(O18,ByM!$A$2:$B$462)) -> 5
B19: Arma | C19: Alfanje | E19: 3 | F19: 3 | G19: 0 | H19: 4 | I19: 17 | J19: - | K19: - | L19: - | M19: - | N19: - | O19: - | P19: =IF(C19="","",INDEX($Q$3:$Z$12,E19,F19)+G19+H19) -> 17 | Q19: =IF(C19="","",LOOKUP(J19,Area!$A$2:$B$71)+LOOKUP(K19,ByM!$A$2:$B$462)+LOOKUP(L19,ByM!$A$2:$B$462)+LOOKUP(M19,ByM!$A$2:$B$462)+LOOKUP(N19,ByM!$A$2:$B$462)+LOOKUP(O19,ByM!$A$2:$B$462)) -> 0
B20: Arma | C20: Ametralladora | E20: 1 | F20: 2 | G20: 10 | H20: 2 | I20: 28 | J20: - | K20: Equipo pesado | L20: - | M20: - | N20: - | O20: - | P20: =IF(C20="","",INDEX($Q$3:$Z$12,E20,F20)+G20+H20) -> 33 | Q20: =IF(C20="","",LOOKUP(J20,Area!$A$2:$B$71)+LOOKUP(K20,ByM!$A$2:$B$462)+LOOKUP(L20,ByM!$A$2:$B$462)+LOOKUP(M20,ByM!$A$2:$B$462)+LOOKUP(N20,ByM!$A$2:$B$462)+LOOKUP(O20,ByM!$A$2:$B$462)) -> -5
B21: Arma | C21: Ametralladora 20 mm | E21: 5 | F21: 6 | G21: 20 | H21: 7 | I21: 78 | J21: - | K21: Fuego automático | L21: - | M21: - | N21: - | O21: - | P21: =IF(C21="","",INDEX($Q$3:$Z$12,E21,F21)+G21+H21) -> 73 | Q21: =IF(C21="","",LOOKUP(J21,Area!$A$2:$B$71)+LOOKUP(K21,ByM!$A$2:$B$462)+LOOKUP(L21,ByM!$A$2:$B$462)+LOOKUP(M21,ByM!$A$2:$B$462)+LOOKUP(N21,ByM!$A$2:$B$462)+LOOKUP(O21,ByM!$A$2:$B$462)) -> 5
B22: Arma | C22: Ametralladora 25 mm | E22: 6 | F22: 7 | G22: 35 | H22: 7 | I22: 102 | J22: - | K22: Fuego automático | L22: - | M22: - | N22: - | O22: - | P22: =IF(C22="","",INDEX($Q$3:$Z$12,E22,F22)+G22+H22) -> 97 | Q22: =IF(C22="","",LOOKUP(J22,Area!$A$2:$B$71)+LOOKUP(K22,ByM!$A$2:$B$462)+LOOKUP(L22,ByM!$A$2:$B$462)+LOOKUP(M22,ByM!$A$2:$B$462)+LOOKUP(N22,ByM!$A$2:$B$462)+LOOKUP(O22,ByM!$A$2:$B$462)) -> 5
B23: Arma | C23: Ametralladora con trípode | E23: 2 | F23: 3 | G23: 15 | H23: 3 | I23: 39 | J23: - | K23: Equipo pesado | L23: - | M23: - | N23: - | O23: - | P23: =IF(C23="","",INDEX($Q$3:$Z$12,E23,F23)+G23+H23) -> 44 | Q23: =IF(C23="","",LOOKUP(J23,Area!$A$2:$B$71)+LOOKUP(K23,ByM!$A$2:$B$462)+LOOKUP(L23,ByM!$A$2:$B$462)+LOOKUP(M23,ByM!$A$2:$B$462)+LOOKUP(N23,ByM!$A$2:$B$462)+LOOKUP(O23,ByM!$A$2:$B$462)) -> -5
B24: Arma | C24: Ametralladora pesada granif. Ícaro acop. | E24: 3 | F24: 4 | G24: 20 | H24: 3 | I24: 68 | J24: - | K24: Arma ATA | L24: Munición trazadora | M24: Enorme | N24: Mucho más alcance | O24: - | P24: =IF(C24="","",INDEX($Q$3:$Z$12,E24,F24)+G24+H24) -> 54 | Q24: =IF(C24="","",LOOKUP(J24,Area!$A$2:$B$71)+LOOKUP(K24,ByM!$A$2:$B$462)+LOOKUP(L24,ByM!$A$2:$B$462)+LOOKUP(M24,ByM!$A$2:$B$462)+LOOKUP(N24,ByM!$A$2:$B$462)+LOOKUP(O24,ByM!$A$2:$B$462)) -> 14
B25: Arma | C25: Ametralladora pesada graniferro | E25: 6 | F25: 4 | G25: 30 | H25: 3 | I25: 1 | J25: - | K25: Enorme | L25: - | M25: - | N25: - | O25: - | P25: =IF(C25="","",INDEX($Q$3:$Z$12,E25,F25)+G25+H25) -> 4 | Q25: =IF(C25="","",LOOKUP(J25,Area!$A$2:$B$71)+LOOKUP(K25,ByM!$A$2:$B$462)+LOOKUP(L25,ByM!$A$2:$B$462)+LOOKUP(M25,ByM!$A$2:$B$462)+LOOKUP(N25,ByM!$A$2:$B$462)+LOOKUP(O25,ByM!$A$2:$B$462)) -> -5
B26: Arma | C26: Ametralladora pesada graniferro acop. | E26: 3 | F26: 4 | G26: 30 | H26: 3 | I26: 59 | J26: - | K26: Enorme | L26: - | M26: - | N26: - | O26: - | P26: =IF(C26="","",INDEX($Q$3:$Z$12,E26,F26)+G26+H26) -> 64 | Q26: =IF(C26="","",LOOKUP(J26,Area!$A$2:$B$71)+LOOKUP(K26,ByM!$A$2:$B$462)+LOOKUP(L26,ByM!$A$2:$B$462)+LOOKUP(M26,ByM!$A$2:$B$462)+LOOKUP(N26,ByM!$A$2:$B$462)+LOOKUP(O26,ByM!$A$2:$B$462)) -> -5
B27: Arma | C27: Ametralladora pesada graniferro Ícaro | E27: 6 | F27: 4 | G27: 20 | H27: 3 | I27: 8 | J27: - | K27: Arma ATA | L27: Munición trazadora | M27: Enorme | N27: Mucho más alcance | O27: - | P27: =IF(C27="","",INDEX($Q$3:$Z$12,E27,F27)+G27+H27) -> -6 | Q27: =IF(C27="","",LOOKUP(J27,Area!$A$2:$B$71)+LOOKUP(K27,ByM!$A$2:$B$462)+LOOKUP(L27,ByM!$A$2:$B$462)+LOOKUP(M27,ByM!$A$2:$B$462)+LOOKUP(N27,ByM!$A$2:$B$462)+LOOKUP(O27,ByM!$A$2:$B$462)) -> 14
B28: Arma | C28: Antorcha | E28: 3 | F28: 1 | G28: 0 | H28: 1 | I28: 1 | J28: - | K28: Munición incendiaria | L28: Luz | M28: - | N28: - | O28: - | P28: =IF(C28="","",INDEX($Q$3:$Z$12,E28,F28)+G28+H28) -> -14 | Q28: =IF(C28="","",LOOKUP(J28,Area!$A$2:$B$71)+LOOKUP(K28,ByM!$A$2:$B$462)+LOOKUP(L28,ByM!$A$2:$B$462)+LOOKUP(M28,ByM!$A$2:$B$462)+LOOKUP(N28,ByM!$A$2:$B$462)+LOOKUP(O28,ByM!$A$2:$B$462)) -> 7
B29: Arma | C29: Apoyo - ataque de artillería | E29: 6 | F29: 5 | G29: 30 | H29: 1 | I29: 39 | J29: R2 | K29: Golpe de los dioses | L29: Dispersión | M29: - | N29: - | O29: - | P29: =IF(C29="","",INDEX($Q$3:$Z$12,E29,F29)+G29+H29) -> 31 | Q29: =IF(C29="","",LOOKUP(J29,Area!$A$2:$B$71)+LOOKUP(K29,ByM!$A$2:$B$462)+LOOKUP(L29,ByM!$A$2:$B$462)+LOOKUP(M29,ByM!$A$2:$B$462)+LOOKUP(N29,ByM!$A$2:$B$462)+LOOKUP(O29,ByM!$A$2:$B$462)) -> 8
B30: Arma | C30: Apoyo - barrido | E30: 6 | F30: 4 | G30: 30 | H30: 1 | I30: 36 | J30: G7/2 | K30: Golpe de los dioses | L30: - | M30: - | N30: - | O30: - | P30: =IF(C30="","",INDEX($Q$3:$Z$12,E30,F30)+G30+H30) -> 2 | Q30: =IF(C30="","",LOOKUP(J30,Area!$A$2:$B$71)+LOOKUP(K30,ByM!$A$2:$B$462)+LOOKUP(L30,ByM!$A$2:$B$462)+LOOKUP(M30,ByM!$A$2:$B$462)+LOOKUP(N30,ByM!$A$2:$B$462)+LOOKUP(O30,ByM!$A$2:$B$462)) -> 34
B31: Arma | C31: Apoyo - hostigamiento | E31: 6 | F31: 2 | G31: 30 | H31: 1 | I31: 1 | J31: R3 | K31: Golpe de los dioses | L31: Dispersión | M31: Acobardamiento | N31: - | O31: - | P31: =IF(C31="","",INDEX($Q$3:$Z$12,E31,F31)+G31+H31) -> -109 | Q31: =IF(C31="","",LOOKUP(J31,Area!$A$2:$B$71)+LOOKUP(K31,ByM!$A$2:$B$462)+LOOKUP(L31,ByM!$A$2:$B$462)+LOOKUP(M31,ByM!$A$2:$B$462)+LOOKUP(N31,ByM!$A$2:$B$462)+LOOKUP(O31,ByM!$A$2:$B$462)) -> 14
B32: Arma | C32: Apoyo - Rayo congelante | E32: 6 | F32: 3 | G32: 30 | H32: 1 | I32: 1 | J32: R3 | K32: Golpe de los dioses | L32: Corrector de puntería | M32: - | N32: - | O32: - | P32: =IF(C32="","",INDEX($Q$3:$Z$12,E32,F32)+G32+H32) -> -44 | Q32: =IF(C32="","",LOOKUP(J32,Area!$A$2:$B$71)+LOOKUP(K32,ByM!$A$2:$B$462)+LOOKUP(L32,ByM!$A$2:$B$462)+LOOKUP(M32,ByM!$A$2:$B$462)+LOOKUP(N32,ByM!$A$2:$B$462)+LOOKUP(O32,ByM!$A$2:$B$462)) -> 32
B33: Arma | C33: Apoyo - Rayo de calor | E33: 6 | F33: 5 | G33: 30 | H33: 1 | I33: 59 | J33: R2 | K33: Golpe de los dioses | L33: Corrector de puntería | M33: - | N33: - | O33: - | P33: =IF(C33="","",INDEX($Q$3:$Z$12,E33,F33)+G33+H33) -> 31 | Q33: =IF(C33="","",LOOKUP(J33,Area!$A$2:$B$71)+LOOKUP(K33,ByM!$A$2:$B$462)+LOOKUP(L33,ByM!$A$2:$B$462)+LOOKUP(M33,ByM!$A$2:$B$462)+LOOKUP(N33,ByM!$A$2:$B$462)+LOOKUP(O33,ByM!$A$2:$B$462)) -> 28
B34: Arma | C34: Arbalesta | E34: 3 | F34: 4 | G34: 10 | H34: 3 | I34: 54 | J34: - | K34: A 2 manos | L34: Daño extra | M34: Munición reforzada | N34: - | O34: - | P34: =IF(C34="","",INDEX($Q$3:$Z$12,E34,F34)+G34+H34) -> 44 | Q34: =IF(C34="","",LOOKUP(J34,Area!$A$2:$B$71)+LOOKUP(K34,ByM!$A$2:$B$462)+LOOKUP(L34,ByM!$A$2:$B$462)+LOOKUP(M34,ByM!$A$2:$B$462)+LOOKUP(N34,ByM!$A$2:$B$462)+LOOKUP(O34,ByM!$A$2:$B$462)) -> 10
B35: Arma | C35: Arco | E35: 3 | F35: 2 | G35: 10 | H35: 3 | I35: 1 | J35: - | K35: A 2 manos | L35: Arma complicada | M35: - | N35: - | O35: - | P35: =IF(C35="","",INDEX($Q$3:$Z$12,E35,F35)+G35+H35) -> 14 | Q35: =IF(C35="","",LOOKUP(J35,Area!$A$2:$B$71)+LOOKUP(K35,ByM!$A$2:$B$462)+LOOKUP(L35,ByM!$A$2:$B$462)+LOOKUP(M35,ByM!$A$2:$B$462)+LOOKUP(N35,ByM!$A$2:$B$462)+LOOKUP(O35,ByM!$A$2:$B$462)) -> -13
B36: Arma | C36: Arco bosoniano | E36: 3 | F36: 3 | G36: 10 | H36: 3 | I36: 23 | J36: - | K36: A 2 manos | L36: - | M36: - | N36: - | O36: - | P36: =IF(C36="","",INDEX($Q$3:$Z$12,E36,F36)+G36+H36) -> 26 | Q36: =IF(C36="","",LOOKUP(J36,Area!$A$2:$B$71)+LOOKUP(K36,ByM!$A$2:$B$462)+LOOKUP(L36,ByM!$A$2:$B$462)+LOOKUP(M36,ByM!$A$2:$B$462)+LOOKUP(N36,ByM!$A$2:$B$462)+LOOKUP(O36,ByM!$A$2:$B$462)) -> -3
B37: Arma | C37: Arco corto | E37: 2 | F37: 2 | G37: 7 | H37: 3 | I37: 18 | J37: - | K37: A 2 manos | L37: - | M37: - | N37: - | O37: - | P37: =IF(C37="","",INDEX($Q$3:$Z$12,E37,F37)+G37+H37) -> 21 | Q37: =IF(C37="","",LOOKUP(J37,Area!$A$2:$B$71)+LOOKUP(K37,ByM!$A$2:$B$462)+LOOKUP(L37,ByM!$A$2:$B$462)+LOOKUP(M37,ByM!$A$2:$B$462)+LOOKUP(N37,ByM!$A$2:$B$462)+LOOKUP(O37,ByM!$A$2:$B$462)) -> -3
B38: Arma | C38: Arco corto estigio | E38: 3 | F38: 2 | G38: 5 | H38: 3 | I38: 11 | J38: - | K38: A 2 manos | L38: Fuego automático | M38: - | N38: - | O38: - | P38: =IF(C38="","",INDEX($Q$3:$Z$12,E38,F38)+G38+H38) -> 9 | Q38: =IF(C38="","",LOOKUP(J38,Area!$A$2:$B$71)+LOOKUP(K38,ByM!$A$2:$B$462)+LOOKUP(L38,ByM!$A$2:$B$462)+LOOKUP(M38,ByM!$A$2:$B$462)+LOOKUP(N38,ByM!$A$2:$B$462)+LOOKUP(O38,ByM!$A$2:$B$462)) -> 2
B39: Arma | C39: Arco de caza | E39: 3 | F39: 2 | G39: 6 | H39: 3 | I39: 12 | J39: - | K39: A 2 manos | L39: Fuego automático | M39: - | N39: - | O39: - | P39: =IF(C39="","",INDEX($Q$3:$Z$12,E39,F39)+G39+H39) -> 10 | Q39: =IF(C39="","",LOOKUP(J39,Area!$A$2:$B$71)+LOOKUP(K39,ByM!$A$2:$B$462)+LOOKUP(L39,ByM!$A$2:$B$462)+LOOKUP(M39,ByM!$A$2:$B$462)+LOOKUP(N39,ByM!$A$2:$B$462)+LOOKUP(O39,ByM!$A$2:$B$462)) -> 2
B40: Arma | C40: Arco de monta hirkano | E40: 3 | F40: 2 | G40: 7 | H40: 3 | I40: 13 | J40: - | K40: A 2 manos | L40: Fuego automático | M40: - | N40: - | O40: - | P40: =IF(C40="","",INDEX($Q$3:$Z$12,E40,F40)+G40+H40) -> 11 | Q40: =IF(C40="","",LOOKUP(J40,Area!$A$2:$B$71)+LOOKUP(K40,ByM!$A$2:$B$462)+LOOKUP(L40,ByM!$A$2:$B$462)+LOOKUP(M40,ByM!$A$2:$B$462)+LOOKUP(N40,ByM!$A$2:$B$462)+LOOKUP(O40,ByM!$A$2:$B$462)) -> 2
B41: Arma | C41: Arco largo | E41: 3 | F41: 3 | G41: 13 | H41: 3 | I41: 26 | J41: - | K41: A 2 manos | L41: - | M41: - | N41: - | O41: - | P41: =IF(C41="","",INDEX($Q$3:$Z$12,E41,F41)+G41+H41) -> 29 | Q41: =IF(C41="","",LOOKUP(J41,Area!$A$2:$B$71)+LOOKUP(K41,ByM!$A$2:$B$462)+LOOKUP(L41,ByM!$A$2:$B$462)+LOOKUP(M41,ByM!$A$2:$B$462)+LOOKUP(N41,ByM!$A$2:$B$462)+LOOKUP(O41,ByM!$A$2:$B$462)) -> -3
B42: Arma | C42: Arco largo bosonio | E42: 3 | F42: 4 | G42: 10 | H42: 3 | I42: 61 | J42: - | K42: A 2 manos | L42: Fuego automático | M42: Munición perforante | N42: - | O42: - | P42: =IF(C42="","",INDEX($Q$3:$Z$12,E42,F42)+G42+H42) -> 44 | Q42: =IF(C42="","",LOOKUP(J42,Area!$A$2:$B$71)+LOOKUP(K42,ByM!$A$2:$B$462)+LOOKUP(L42,ByM!$A$2:$B$462)+LOOKUP(M42,ByM!$A$2:$B$462)+LOOKUP(N42,ByM!$A$2:$B$462)+LOOKUP(O42,ByM!$A$2:$B$462)) -> 17
B43: Arma | C43: Arco ninja o Yumi | E43: 3 | F43: 2 | G43: 10 | H43: 3 | I43: 11 | J43: - | K43: A 2 manos | L43: - | M43: - | N43: - | O43: - | P43: =IF(C43="","",INDEX($Q$3:$Z$12,E43,F43)+G43+H43) -> 14 | Q43: =IF(C43="","",LOOKUP(J43,Area!$A$2:$B$71)+LOOKUP(K43,ByM!$A$2:$B$462)+LOOKUP(L43,ByM!$A$2:$B$462)+LOOKUP(M43,ByM!$A$2:$B$462)+LOOKUP(N43,ByM!$A$2:$B$462)+LOOKUP(O43,ByM!$A$2:$B$462)) -> -3
B44: Arma | C44: Arco shemita | E44: 3 | F44: 2 | G44: 12 | H44: 3 | I44: 33 | J44: - | K44: A 2 manos | L44: Fuego automático | M44: Munición perforante | N44: - | O44: - | P44: =IF(C44="","",INDEX($Q$3:$Z$12,E44,F44)+G44+H44) -> 16 | Q44: =IF(C44="","",LOOKUP(J44,Area!$A$2:$B$71)+LOOKUP(K44,ByM!$A$2:$B$462)+LOOKUP(L44,ByM!$A$2:$B$462)+LOOKUP(M44,ByM!$A$2:$B$462)+LOOKUP(N44,ByM!$A$2:$B$462)+LOOKUP(O44,ByM!$A$2:$B$462)) -> 17
B45: Arma | C45: Arma de asta | E45: 3 | F45: 3 | G45: 0 | H45: 3 | I45: 21 | J45: - | K45: A 2 manos | L45: Daño extra | M45: Munición de parada | N45: - | O45: - | P45: =IF(C45="","",INDEX($Q$3:$Z$12,E45,F45)+G45+H45) -> 16 | Q45: =IF(C45="","",LOOKUP(J45,Area!$A$2:$B$71)+LOOKUP(K45,ByM!$A$2:$B$462)+LOOKUP(L45,ByM!$A$2:$B$462)+LOOKUP(M45,ByM!$A$2:$B$462)+LOOKUP(N45,ByM!$A$2:$B$462)+LOOKUP(O45,ByM!$A$2:$B$462)) -> 5
B46: Arma | C46: Arma de combate de Dreadnought | E46: 4 | F46: 5 | G46: 0 | H46: 3 | I46: 44 | J46: - | K46: Daño extra | L46: - | M46: - | N46: - | O46: - | P46: =IF(C46="","",INDEX($Q$3:$Z$12,E46,F46)+G46+H46) -> 41 | Q46: =IF(C46="","",LOOKUP(J46,Area!$A$2:$B$71)+LOOKUP(K46,ByM!$A$2:$B$462)+LOOKUP(L46,ByM!$A$2:$B$462)+LOOKUP(M46,ByM!$A$2:$B$462)+LOOKUP(N46,ByM!$A$2:$B$462)+LOOKUP(O46,ByM!$A$2:$B$462)) -> 3
B47: Arma | C47: Arma de combate modelo Hierro | E47: 3 | F47: 4 | G47: 0 | H47: 3 | I47: 37 | J47: - | K47: Daño extra | L47: - | M47: - | N47: - | O47: - | P47: =IF(C47="","",INDEX($Q$3:$Z$12,E47,F47)+G47+H47) -> 34 | Q47: =IF(C47="","",LOOKUP(J47,Area!$A$2:$B$71)+LOOKUP(K47,ByM!$A$2:$B$462)+LOOKUP(L47,ByM!$A$2:$B$462)+LOOKUP(M47,ByM!$A$2:$B$462)+LOOKUP(N47,ByM!$A$2:$B$462)+LOOKUP(O47,ByM!$A$2:$B$462)) -> 3
B48: Arma | C48: Arma inteligente M56A2 | E48: 7 | F48: 7 | G48: 20 | H48: 7 | I48: 55 | J48: - | K48: Fuego automático | L48: Vulnerable | M48: - | N48: - | O48: - | P48: =IF(C48="","",INDEX($Q$3:$Z$12,E48,F48)+G48+H48) -> 55 | Q48: =IF(C48="","",LOOKUP(J48,Area!$A$2:$B$71)+LOOKUP(K48,ByM!$A$2:$B$462)+LOOKUP(L48,ByM!$A$2:$B$462)+LOOKUP(M48,ByM!$A$2:$B$462)+LOOKUP(N48,ByM!$A$2:$B$462)+LOOKUP(O48,ByM!$A$2:$B$462)) -> 0
B49: Arma | C49: Arnés de granadas | E49: 3 | F49: 4 | G49: 10 | H49: 3 | I49: 46 | J49: R3 | K49: Dispersión | L49: - | M49: - | N49: - | O49: - | P49: =IF(C49="","",INDEX($Q$3:$Z$12,E49,F49)+G49+H49) -> 44 | Q49: =IF(C49="","",LOOKUP(J49,Area!$A$2:$B$71)+LOOKUP(K49,ByM!$A$2:$B$462)+LOOKUP(L49,ByM!$A$2:$B$462)+LOOKUP(M49,ByM!$A$2:$B$462)+LOOKUP(N49,ByM!$A$2:$B$462)+LOOKUP(O49,ByM!$A$2:$B$462)) -> 2
B50: Arma | C50: Arpón | E50: 4 | F50: 4 | G50: 5 | H50: 3 | I50: 34 | J50: - | K50: Arma arrojadiza | L50: - | M50: - | N50: - | O50: - | P50: =IF(C50="","",INDEX($Q$3:$Z$12,E50,F50)+G50+H50) -> 24 | Q50: =IF(C50="","",LOOKUP(J50,Area!$A$2:$B$71)+LOOKUP(K50,ByM!$A$2:$B$462)+LOOKUP(L50,ByM!$A$2:$B$462)+LOOKUP(M50,ByM!$A$2:$B$462)+LOOKUP(N50,ByM!$A$2:$B$462)+LOOKUP(O50,ByM!$A$2:$B$462)) -> 10
B51: Arma | C51: Arpón SpaceSub ASSO-400 | E51: 3 | F51: 1 | G51: 5 | H51: 3 | I51: 1 | J51: - | K51: Cargadores (1) | L51: - | M51: - | N51: - | O51: - | P51: =IF(C51="","",INDEX($Q$3:$Z$12,E51,F51)+G51+H51) -> -7 | Q51: =IF(C51="","",LOOKUP(J51,Area!$A$2:$B$71)+LOOKUP(K51,ByM!$A$2:$B$462)+LOOKUP(L51,ByM!$A$2:$B$462)+LOOKUP(M51,ByM!$A$2:$B$462)+LOOKUP(N51,ByM!$A$2:$B$462)+LOOKUP(O51,ByM!$A$2:$B$462)) -> -5
B52: Arma | C52: Asalto mental | E52: 5 | F52: 1 | G52: 5 | H52: 3 | I52: 1 | J52: - | K52: Invocación | L52: Más alcance | M52: Munición reforzada | N52: - | O52: - | P52: =IF(C52="","",INDEX($Q$3:$Z$12,E52,F52)+G52+H52) -> -67 | Q52: =IF(C52="","",LOOKUP(J52,Area!$A$2:$B$71)+LOOKUP(K52,ByM!$A$2:$B$462)+LOOKUP(L52,ByM!$A$2:$B$462)+LOOKUP(M52,ByM!$A$2:$B$462)+LOOKUP(N52,ByM!$A$2:$B$462)+LOOKUP(O52,ByM!$A$2:$B$462)) -> 22
B53: Arma | C53: Azuzador | E53: 3 | F53: 1 | G53: 0 | H53: 3 | I53: 6 | J53: - | K53: Drogas de combate | L53: Munición aturdidora | M53: Munición de pulso | N53: - | O53: - | P53: =IF(C53="","",INDEX($Q$3:$Z$12,E53,F53)+G53+H53) -> -12 | Q53: =IF(C53="","",LOOKUP(J53,Area!$A$2:$B$71)+LOOKUP(K53,ByM!$A$2:$B$462)+LOOKUP(L53,ByM!$A$2:$B$462)+LOOKUP(M53,ByM!$A$2:$B$462)+LOOKUP(N53,ByM!$A$2:$B$462)+LOOKUP(O53,ByM!$A$2:$B$462)) -> 18
B54: Arma | C54: Ballesta | E54: 4 | F54: 4 | G54: 10 | H54: 4 | I54: 37 | J54: - | K54: A 2 manos | L54: Cargadores (X) (1) | M54: Munición perforante | N54: - | O54: - | P54: =IF(C54="","",INDEX($Q$3:$Z$12,E54,F54)+G54+H54) -> 30 | Q54: =IF(C54="","",LOOKUP(J54,Area!$A$2:$B$71)+LOOKUP(K54,ByM!$A$2:$B$462)+LOOKUP(L54,ByM!$A$2:$B$462)+LOOKUP(M54,ByM!$A$2:$B$462)+LOOKUP(N54,ByM!$A$2:$B$462)+LOOKUP(O54,ByM!$A$2:$B$462)) -> 7
B55: Arma | C55: Ballesta de mano | E55: 3 | F55: 2 | G55: 5 | H55: 2 | I55: 23 | J55: - | K55: Munición perforante | L55: - | M55: - | N55: - | O55: - | P55: =IF(C55="","",INDEX($Q$3:$Z$12,E55,F55)+G55+H55) -> 8 | Q55: =IF(C55="","",LOOKUP(J55,Area!$A$2:$B$71)+LOOKUP(K55,ByM!$A$2:$B$462)+LOOKUP(L55,ByM!$A$2:$B$462)+LOOKUP(M55,ByM!$A$2:$B$462)+LOOKUP(N55,ByM!$A$2:$B$462)+LOOKUP(O55,ByM!$A$2:$B$462)) -> 15
B56: Arma | C56: Ballesta ligera | E56: 4 | F56: 3 | G56: 8 | H56: 2 | I56: 26 | J56: - | K56: Munición perforante | L56: - | M56: - | N56: - | O56: - | P56: =IF(C56="","",INDEX($Q$3:$Z$12,E56,F56)+G56+H56) -> 11 | Q56: =IF(C56="","",LOOKUP(J56,Area!$A$2:$B$71)+LOOKUP(K56,ByM!$A$2:$B$462)+LOOKUP(L56,ByM!$A$2:$B$462)+LOOKUP(M56,ByM!$A$2:$B$462)+LOOKUP(N56,ByM!$A$2:$B$462)+LOOKUP(O56,ByM!$A$2:$B$462)) -> 15
B57: Arma | C57: Ballesta pesada | E57: 5 | F57: 5 | G57: 10 | H57: 4 | I57: 48 | J57: - | K57: Munición perforante | L57: - | M57: - | N57: - | O57: - | P57: =IF(C57="","",INDEX($Q$3:$Z$12,E57,F57)+G57+H57) -> 33 | Q57: =IF(C57="","",LOOKUP(J57,Area!$A$2:$B$71)+LOOKUP(K57,ByM!$A$2:$B$462)+LOOKUP(L57,ByM!$A$2:$B$462)+LOOKUP(M57,ByM!$A$2:$B$462)+LOOKUP(N57,ByM!$A$2:$B$462)+LOOKUP(O57,ByM!$A$2:$B$462)) -> 15
B58: Arma | C58: Barra de acero | E58: 5 | F58: 3 | G58: 0 | H58: 7 | I58: 1 | J58: - | K58: A 2 manos | L58: aplasta | M58: - | N58: - | O58: - | P58: =IF(C58="","",INDEX($Q$3:$Z$12,E58,F58)+G58+H58) -> -18 | Q58: =IF(C58="","",LOOKUP(J58,Area!$A$2:$B$71)+LOOKUP(K58,ByM!$A$2:$B$462)+LOOKUP(L58,ByM!$A$2:$B$462)+LOOKUP(M58,ByM!$A$2:$B$462)+LOOKUP(N58,ByM!$A$2:$B$462)+LOOKUP(O58,ByM!$A$2:$B$462)) -> -1
B59: Arma | C59: Bastón | E59: 3 | F59: 2 | G59: 0 | H59: 2 | I59: 5 | J59: - | K59: A 2 manos | L59: Munición de parada | M59: - | N59: - | O59: - | P59: =IF(C59="","",INDEX($Q$3:$Z$12,E59,F59)+G59+H59) -> 3 | Q59: =IF(C59="","",LOOKUP(J59,Area!$A$2:$B$71)+LOOKUP(K59,ByM!$A$2:$B$462)+LOOKUP(L59,ByM!$A$2:$B$462)+LOOKUP(M59,ByM!$A$2:$B$462)+LOOKUP(N59,ByM!$A$2:$B$462)+LOOKUP(O59,ByM!$A$2:$B$462)) -> 2
B60: Arma | C60: Bastón bedecido | E60: 3 | F60: 2 | G60: 0 | H60: 3 | I60: 14 | J60: - | K60: Munición bendecida | L60: - | M60: - | N60: - | O60: - | P60: =IF(C60="","",INDEX($Q$3:$Z$12,E60,F60)+G60+H60) -> 4 | Q60: =IF(C60="","",LOOKUP(J60,Area!$A$2:$B$71)+LOOKUP(K60,ByM!$A$2:$B$462)+LOOKUP(L60,ByM!$A$2:$B$462)+LOOKUP(M60,ByM!$A$2:$B$462)+LOOKUP(N60,ByM!$A$2:$B$462)+LOOKUP(O60,ByM!$A$2:$B$462)) -> 10
B61: Arma | C61: Bastón de mago | E61: 2 | F61: 2 | G61: 0 | H61: 5 | I61: 21 | J61: - | K61: Maná N1 | L61: - | M61: - | N61: - | O61: - | P61: =IF(C61="","",INDEX($Q$3:$Z$12,E61,F61)+G61+H61) -> 16 | Q61: =IF(C61="","",LOOKUP(J61,Area!$A$2:$B$71)+LOOKUP(K61,ByM!$A$2:$B$462)+LOOKUP(L61,ByM!$A$2:$B$462)+LOOKUP(M61,ByM!$A$2:$B$462)+LOOKUP(N61,ByM!$A$2:$B$462)+LOOKUP(O61,ByM!$A$2:$B$462)) -> 5
B62: Arma | C62: Bastón psíquico | E62: 3 | F62: 2 | G62: 0 | H62: 3 | I62: 14 | J62: - | K62: Munición bendecida | L62: - | M62: - | N62: - | O62: - | P62: =IF(C62="","",INDEX($Q$3:$Z$12,E62,F62)+G62+H62) -> 4 | Q62: =IF(C62="","",LOOKUP(J62,Area!$A$2:$B$71)+LOOKUP(K62,ByM!$A$2:$B$462)+LOOKUP(L62,ByM!$A$2:$B$462)+LOOKUP(M62,ByM!$A$2:$B$462)+LOOKUP(N62,ByM!$A$2:$B$462)+LOOKUP(O62,ByM!$A$2:$B$462)) -> 10
B63: Arma | C63: Bate con pinchos | E63: 3 | F63: 2 | G63: 0 | H63: 2 | I63: 3 | J63: - | K63: a 2 manos | L63: Daño extra | M63: - | N63: - | O63: - | P63: =IF(C63="","",INDEX($Q$3:$Z$12,E63,F63)+G63+H63) -> 3 | Q63: =IF(C63="","",LOOKUP(J63,Area!$A$2:$B$71)+LOOKUP(K63,ByM!$A$2:$B$462)+LOOKUP(L63,ByM!$A$2:$B$462)+LOOKUP(M63,ByM!$A$2:$B$462)+LOOKUP(N63,ByM!$A$2:$B$462)+LOOKUP(O63,ByM!$A$2:$B$462)) -> 0
B64: Arma | C64: Bate de béisbol | E64: 2 | F64: 2 | G64: 0 | H64: 4 | I64: 14 | J64: - | K64: A 2 manos | L64: aplasta | M64: - | N64: - | O64: - | P64: =IF(C64="","",INDEX($Q$3:$Z$12,E64,F64)+G64+H64) -> 15 | Q64: =IF(C64="","",LOOKUP(J64,Area!$A$2:$B$71)+LOOKUP(K64,ByM!$A$2:$B$462)+LOOKUP(L64,ByM!$A$2:$B$462)+LOOKUP(M64,ByM!$A$2:$B$462)+LOOKUP(N64,ByM!$A$2:$B$462)+LOOKUP(O64,ByM!$A$2:$B$462)) -> -1
B65: Arma | C65: Batería de cohetes Ícaro | E65: 7 | F65: 7 | G65: 20 | H65: 4 | I65: 64 | J65: R4 | K65: Arma ATA | L65: Munición trazadora | M65: Enorme | N65: Dispersión | O65: - | P65: =IF(C65="","",INDEX($Q$3:$Z$12,E65,F65)+G65+H65) -> 52 | Q65: =IF(C65="","",LOOKUP(J65,Area!$A$2:$B$71)+LOOKUP(K65,ByM!$A$2:$B$462)+LOOKUP(L65,ByM!$A$2:$B$462)+LOOKUP(M65,ByM!$A$2:$B$462)+LOOKUP(N65,ByM!$A$2:$B$462)+LOOKUP(O65,ByM!$A$2:$B$462)) -> 12
B66: Arma | C66: Batería de cohetes Ícaro acoplada | E66: 8 | F66: 7 | G66: 35 | H66: 4 | I66: 53 | J66: R4 | K66: Arma ATA | L66: Munición trazadora | M66: Enorme | N66: Dispersión | O66: - | P66: =IF(C66="","",INDEX($Q$3:$Z$12,E66,F66)+G66+H66) -> 41 | Q66: =IF(C66="","",LOOKUP(J66,Area!$A$2:$B$71)+LOOKUP(K66,ByM!$A$2:$B$462)+LOOKUP(L66,ByM!$A$2:$B$462)+LOOKUP(M66,ByM!$A$2:$B$462)+LOOKUP(N66,ByM!$A$2:$B$462)+LOOKUP(O66,ByM!$A$2:$B$462)) -> 12
B67: Arma | C67: Batería de misiles Bellicatus | E67: 7 | F67: 7 | G67: 35 | H67: 4 | I67: 79 | J67: R4 | K67: Arma ATA | L67: Munición trazadora | M67: Enorme | N67: Dispersión | O67: - | P67: =IF(C67="","",INDEX($Q$3:$Z$12,E67,F67)+G67+H67) -> 67 | Q67: =IF(C67="","",LOOKUP(J67,Area!$A$2:$B$71)+LOOKUP(K67,ByM!$A$2:$B$462)+LOOKUP(L67,ByM!$A$2:$B$462)+LOOKUP(M67,ByM!$A$2:$B$462)+LOOKUP(N67,ByM!$A$2:$B$462)+LOOKUP(O67,ByM!$A$2:$B$462)) -> 12
B68: Arma | C68: Batería de misiles frag Bellicatus | E68: 6 | F68: 4 | G68: 40 | H68: 3 | I68: 17 | J68: R4 | K68: Dispersión | L68: Enorme | M68: - | N68: - | O68: - | P68: =IF(C68="","",INDEX($Q$3:$Z$12,E68,F68)+G68+H68) -> 14 | Q68: =IF(C68="","",LOOKUP(J68,Area!$A$2:$B$71)+LOOKUP(K68,ByM!$A$2:$B$462)+LOOKUP(L68,ByM!$A$2:$B$462)+LOOKUP(M68,ByM!$A$2:$B$462)+LOOKUP(N68,ByM!$A$2:$B$462)+LOOKUP(O68,ByM!$A$2:$B$462)) -> 3
B69: Arma | C69: Batería de misiles perforantes Bellicatus | E69: 8 | F69: 8 | G69: 40 | H69: 3 | I69: 76 | J69: - | K69: - | L69: - | M69: - | N69: - | O69: - | P69: =IF(C69="","",INDEX($Q$3:$Z$12,E69,F69)+G69+H69) -> 76 | Q69: =IF(C69="","",LOOKUP(J69,Area!$A$2:$B$71)+LOOKUP(K69,ByM!$A$2:$B$462)+LOOKUP(L69,ByM!$A$2:$B$462)+LOOKUP(M69,ByM!$A$2:$B$462)+LOOKUP(N69,ByM!$A$2:$B$462)+LOOKUP(O69,ByM!$A$2:$B$462)) -> 0
B70: Arma | C70: Bayoneta | E70: 2 | F70: 1 | G70: 0 | H70: 3 | I70: 3 | J70: - | K70: Arma de carga | L70: - | M70: - | N70: - | O70: - | P70: =IF(C70="","",INDEX($Q$3:$Z$12,E70,F70)+G70+H70) -> -2 | Q70: =IF(C70="","",LOOKUP(J70,Area!$A$2:$B$71)+LOOKUP(K70,ByM!$A$2:$B$462)+LOOKUP(L70,ByM!$A$2:$B$462)+LOOKUP(M70,ByM!$A$2:$B$462)+LOOKUP(N70,ByM!$A$2:$B$462)+LOOKUP(O70,ByM!$A$2:$B$462)) -> 5
B71: Arma | C71: Bendición de furia | E71: 3 | F71: 5 | G71: 0 | H71: 3 | I71: 66 | J71: - | K71: Invocación | L71: Daño extra | M71: Reliquia | N71: Requiere (Capellán) | O71: - | P71: =IF(C71="","",INDEX($Q$3:$Z$12,E71,F71)+G71+H71) -> 79 | Q71: =IF(C71="","",LOOKUP(J71,Area!$A$2:$B$71)+LOOKUP(K71,ByM!$A$2:$B$462)+LOOKUP(L71,ByM!$A$2:$B$462)+LOOKUP(M71,ByM!$A$2:$B$462)+LOOKUP(N71,ByM!$A$2:$B$462)+LOOKUP(O71,ByM!$A$2:$B$462)) -> -13
B72: Arma | C72: Bengala Watatsumi DV-303 | E72: 4 | F72: 3 | G72: 20 | H72: 4 | I72: 25 | J72: - | K72: Munición incendiaria | L72: Cargadores (1) | M72: - | N72: - | O72: - | P72: =IF(C72="","",INDEX($Q$3:$Z$12,E72,F72)+G72+H72) -> 25 | Q72: =IF(C72="","",LOOKUP(J72,Area!$A$2:$B$71)+LOOKUP(K72,ByM!$A$2:$B$462)+LOOKUP(L72,ByM!$A$2:$B$462)+LOOKUP(M72,ByM!$A$2:$B$462)+LOOKUP(N72,ByM!$A$2:$B$462)+LOOKUP(O72,ByM!$A$2:$B$462)) -> 0
B73: Arma | C73: Beso de muerte | E73: 5 | F73: 5 | G73: 0 | H73: 3 | I73: 32 | J73: R2 | K73: Invocación | L73: - | M73: - | N73: - | O73: - | P73: =IF(C73="","",INDEX($Q$3:$Z$12,E73,F73)+G73+H73) -> 22 | Q73: =IF(C73="","",LOOKUP(J73,Area!$A$2:$B$71)+LOOKUP(K73,ByM!$A$2:$B$462)+LOOKUP(L73,ByM!$A$2:$B$462)+LOOKUP(M73,ByM!$A$2:$B$462)+LOOKUP(N73,ByM!$A$2:$B$462)+LOOKUP(O73,ByM!$A$2:$B$462)) -> 10
B74: Arma | C74: Bláster de plasma | E74: 6 | F74: 6 | G74: 15 | H74: 4 | I74: 45 | J74: - | K74: Daño extra | L74: Munición ígnea | M74: Fuego pesado | N74: Peligro | O74: Inflamable | P74: =IF(C74="","",INDEX($Q$3:$Z$12,E74,F74)+G74+H74) -> 42 | Q74: =IF(C74="","",LOOKUP(J74,Area!$A$2:$B$71)+LOOKUP(K74,ByM!$A$2:$B$462)+LOOKUP(L74,ByM!$A$2:$B$462)+LOOKUP(M74,ByM!$A$2:$B$462)+LOOKUP(N74,ByM!$A$2:$B$462)+LOOKUP(O74,ByM!$A$2:$B$462)) -> 3
B75: Arma | C75: Bola de dragón (puede lanzar bombas) | E75: 4 | F75: 3 | G75: 10 | H75: 3 | I75: 31 | J75: L10 | K75: A 2 manos | L75: Arma complicada | M75: Inflamable | N75: Munición ígnea | O75: - | P75: =IF(C75="","",INDEX($Q$3:$Z$12,E75,F75)+G75+H75) -> 14 | Q75: =IF(C75="","",LOOKUP(J75,Area!$A$2:$B$71)+LOOKUP(K75,ByM!$A$2:$B$462)+LOOKUP(L75,ByM!$A$2:$B$462)+LOOKUP(M75,ByM!$A$2:$B$462)+LOOKUP(N75,ByM!$A$2:$B$462)+LOOKUP(O75,ByM!$A$2:$B$462)) -> 17
B76: Arma | C76: Bola de fuego | E76: 3 | F76: 3 | G76: 10 | H76: 3 | I76: 33 | J76: - | K76: Invocación | L76: - | M76: - | N76: - | O76: - | P76: =IF(C76="","",INDEX($Q$3:$Z$12,E76,F76)+G76+H76) -> 26 | Q76: =IF(C76="","",LOOKUP(J76,Area!$A$2:$B$71)+LOOKUP(K76,ByM!$A$2:$B$462)+LOOKUP(L76,ByM!$A$2:$B$462)+LOOKUP(M76,ByM!$A$2:$B$462)+LOOKUP(N76,ByM!$A$2:$B$462)+LOOKUP(O76,ByM!$A$2:$B$462)) -> 7
B77: Arma | C77: Bólter | E77: 5 | F77: 4 | G77: 20 | H77: 3 | I77: 24 | J77: - | K77: - | L77: - | M77: - | N77: - | O77: - | P77: =IF(C77="","",INDEX($Q$3:$Z$12,E77,F77)+G77+H77) -> 24 | Q77: =IF(C77="","",LOOKUP(J77,Area!$A$2:$B$71)+LOOKUP(K77,ByM!$A$2:$B$462)+LOOKUP(L77,ByM!$A$2:$B$462)+LOOKUP(M77,ByM!$A$2:$B$462)+LOOKUP(N77,ByM!$A$2:$B$462)+LOOKUP(O77,ByM!$A$2:$B$462)) -> 0
B78: Arma | C78: Bólter acoplado | E78: 4 | F78: 4 | G78: 20 | H78: 3 | I78: 39 | J78: - | K78: - | L78: - | M78: - | N78: - | O78: - | P78: =IF(C78="","",INDEX($Q$3:$Z$12,E78,F78)+G78+H78) -> 39 | Q78: =IF(C78="","",LOOKUP(J78,Area!$A$2:$B$71)+LOOKUP(K78,ByM!$A$2:$B$462)+LOOKUP(L78,ByM!$A$2:$B$462)+LOOKUP(M78,ByM!$A$2:$B$462)+LOOKUP(N78,ByM!$A$2:$B$462)+LOOKUP(O78,ByM!$A$2:$B$462)) -> 0
B79: Arma | C79: Bólter artesanal | E79: 5 | F79: 4 | G79: 20 | H79: 3 | I79: 39 | J79: - | K79: De precisión | L79: - | M79: - | N79: - | O79: - | P79: =IF(C79="","",INDEX($Q$3:$Z$12,E79,F79)+G79+H79) -> 24 | Q79: =IF(C79="","",LOOKUP(J79,Area!$A$2:$B$71)+LOOKUP(K79,ByM!$A$2:$B$462)+LOOKUP(L79,ByM!$A$2:$B$462)+LOOKUP(M79,ByM!$A$2:$B$462)+LOOKUP(N79,ByM!$A$2:$B$462)+LOOKUP(O79,ByM!$A$2:$B$462)) -> 15
B80: Arma | C80: Bólter de asalto | E80: 3 | F80: 4 | G80: 15 | H80: 3 | I80: 49 | J80: - | K80: - | L80: - | M80: - | N80: - | O80: - | P80: =IF(C80="","",INDEX($Q$3:$Z$12,E80,F80)+G80+H80) -> 49 | Q80: =IF(C80="","",LOOKUP(J80,Area!$A$2:$B$71)+LOOKUP(K80,ByM!$A$2:$B$462)+LOOKUP(L80,ByM!$A$2:$B$462)+LOOKUP(M80,ByM!$A$2:$B$462)+LOOKUP(N80,ByM!$A$2:$B$462)+LOOKUP(O80,ByM!$A$2:$B$462)) -> 0
B81: Arma | C81: Bólter de forja | E81: 3 | F81: 5 | G81: 20 | H81: 3 | I81: 99 | J81: - | K81: - | L81: - | M81: - | N81: - | O81: - | P81: =IF(C81="","",INDEX($Q$3:$Z$12,E81,F81)+G81+H81) -> 99 | Q81: =IF(C81="","",LOOKUP(J81,Area!$A$2:$B$71)+LOOKUP(K81,ByM!$A$2:$B$462)+LOOKUP(L81,ByM!$A$2:$B$462)+LOOKUP(M81,ByM!$A$2:$B$462)+LOOKUP(N81,ByM!$A$2:$B$462)+LOOKUP(O81,ByM!$A$2:$B$462)) -> 0
B82: Arma | C82: Bólter especial | E82: 5 | F82: 4 | G82: 20 | H82: 3 | I82: 32 | J82: - | K82: Daño extra | L82: Más alcance | M82: - | N82: - | O82: - | P82: =IF(C82="","",INDEX($Q$3:$Z$12,E82,F82)+G82+H82) -> 24 | Q82: =IF(C82="","",LOOKUP(J82,Area!$A$2:$B$71)+LOOKUP(K82,ByM!$A$2:$B$462)+LOOKUP(L82,ByM!$A$2:$B$462)+LOOKUP(M82,ByM!$A$2:$B$462)+LOOKUP(N82,ByM!$A$2:$B$462)+LOOKUP(O82,ByM!$A$2:$B$462)) -> 8
B83: Arma | C83: Bólter Huracán | E83: 2 | F83: 4 | G83: 20 | H83: 3 | I83: 86 | J83: - | K83: - | L83: - | M83: - | N83: - | O83: - | P83: =IF(C83="","",INDEX($Q$3:$Z$12,E83,F83)+G83+H83) -> 86 | Q83: =IF(C83="","",LOOKUP(J83,Area!$A$2:$B$71)+LOOKUP(K83,ByM!$A$2:$B$462)+LOOKUP(L83,ByM!$A$2:$B$462)+LOOKUP(M83,ByM!$A$2:$B$462)+LOOKUP(N83,ByM!$A$2:$B$462)+LOOKUP(O83,ByM!$A$2:$B$462)) -> 0
B84: Arma | C84: Bólter pesado | E84: 5 | F84: 5 | G84: 25 | H84: 3 | I84: 47 | J84: - | K84: - | L84: - | M84: - | N84: - | O84: - | P84: =IF(C84="","",INDEX($Q$3:$Z$12,E84,F84)+G84+H84) -> 47 | Q84: =IF(C84="","",LOOKUP(J84,Area!$A$2:$B$71)+LOOKUP(K84,ByM!$A$2:$B$462)+LOOKUP(L84,ByM!$A$2:$B$462)+LOOKUP(M84,ByM!$A$2:$B$462)+LOOKUP(N84,ByM!$A$2:$B$462)+LOOKUP(O84,ByM!$A$2:$B$462)) -> 0
B85: Arma | C85: Bólter pesado acoplado | E85: 4 | F85: 5 | G85: 25 | H85: 3 | I85: 66 | J85: - | K85: - | L85: - | M85: - | N85: - | O85: - | P85: =IF(C85="","",INDEX($Q$3:$Z$12,E85,F85)+G85+H85) -> 66 | Q85: =IF(C85="","",LOOKUP(J85,Area!$A$2:$B$71)+LOOKUP(K85,ByM!$A$2:$B$462)+LOOKUP(L85,ByM!$A$2:$B$462)+LOOKUP(M85,ByM!$A$2:$B$462)+LOOKUP(N85,ByM!$A$2:$B$462)+LOOKUP(O85,ByM!$A$2:$B$462)) -> 0
B86: Arma | C86: Bólter pesado ejecutor | E86: 5 | F86: 5 | G86: 25 | H86: 3 | I86: 57 | J86: - | K86: Mucho más alcance | L86: - | M86: - | N86: - | O86: - | P86: =IF(C86="","",INDEX($Q$3:$Z$12,E86,F86)+G86+H86) -> 47 | Q86: =IF(C86="","",LOOKUP(J86,Area!$A$2:$B$71)+LOOKUP(K86,ByM!$A$2:$B$462)+LOOKUP(L86,ByM!$A$2:$B$462)+LOOKUP(M86,ByM!$A$2:$B$462)+LOOKUP(N86,ByM!$A$2:$B$462)+LOOKUP(O86,ByM!$A$2:$B$462)) -> 10
B87: Arma | C87: Bólter pesado torm. inf. - lanzallamas | E87: 6 | F87: 5 | G87: 10 | H87: 3 | I87: 47 | J87: G7/2 | K87: Munición incendiaria | L87: Munición teledirigida | M87: Dispersión | N87: - | O87: - | P87: =IF(C87="","",INDEX($Q$3:$Z$12,E87,F87)+G87+H87) -> 13 | Q87: =IF(C87="","",LOOKUP(J87,Area!$A$2:$B$71)+LOOKUP(K87,ByM!$A$2:$B$462)+LOOKUP(L87,ByM!$A$2:$B$462)+LOOKUP(M87,ByM!$A$2:$B$462)+LOOKUP(N87,ByM!$A$2:$B$462)+LOOKUP(O87,ByM!$A$2:$B$462)) -> 34
B88: Arma | C88: Bólter pesado tormenta infernal | E88: 6 | F88: 5 | G88: 25 | H88: 3 | I88: 33 | J88: - | K88: Más alcance | L88: - | M88: - | N88: - | O88: - | P88: =IF(C88="","",INDEX($Q$3:$Z$12,E88,F88)+G88+H88) -> 28 | Q88: =IF(C88="","",LOOKUP(J88,Area!$A$2:$B$71)+LOOKUP(K88,ByM!$A$2:$B$462)+LOOKUP(L88,ByM!$A$2:$B$462)+LOOKUP(M88,ByM!$A$2:$B$462)+LOOKUP(N88,ByM!$A$2:$B$462)+LOOKUP(O88,ByM!$A$2:$B$462)) -> 5
B89: Arma | C89: Bólter tempestad | E89: 3 | F89: 4 | G89: 20 | H89: 3 | I89: 54 | J89: - | K89: - | L89: - | M89: - | N89: - | O89: - | P89: =IF(C89="","",INDEX($Q$3:$Z$12,E89,F89)+G89+H89) -> 54 | Q89: =IF(C89="","",LOOKUP(J89,Area!$A$2:$B$71)+LOOKUP(K89,ByM!$A$2:$B$462)+LOOKUP(L89,ByM!$A$2:$B$462)+LOOKUP(M89,ByM!$A$2:$B$462)+LOOKUP(N89,ByM!$A$2:$B$462)+LOOKUP(O89,ByM!$A$2:$B$462)) -> 0
B90: Arma | C90: Bólter tormenta | E90: 4 | F90: 4 | G90: 20 | H90: 3 | I90: 39 | J90: - | K90: - | L90: - | M90: - | N90: - | O90: - | P90: =IF(C90="","",INDEX($Q$3:$Z$12,E90,F90)+G90+H90) -> 39 | Q90: =IF(C90="","",LOOKUP(J90,Area!$A$2:$B$71)+LOOKUP(K90,ByM!$A$2:$B$462)+LOOKUP(L90,ByM!$A$2:$B$462)+LOOKUP(M90,ByM!$A$2:$B$462)+LOOKUP(N90,ByM!$A$2:$B$462)+LOOKUP(O90,ByM!$A$2:$B$462)) -> 0
B91: Arma | C91: Bomba de estática | E91: 3 | F91: 5 | G91: 0 | H91: 3 | I91: 80 | J91: R2 | K91: Un uso por actuación | L91: control remoto | M91: munición desestabilizadora | N91: enorme | O91: - | P91: =IF(C91="","",INDEX($Q$3:$Z$12,E91,F91)+G91+H91) -> 79 | Q91: =IF(C91="","",LOOKUP(J91,Area!$A$2:$B$71)+LOOKUP(K91,ByM!$A$2:$B$462)+LOOKUP(L91,ByM!$A$2:$B$462)+LOOKUP(M91,ByM!$A$2:$B$462)+LOOKUP(N91,ByM!$A$2:$B$462)+LOOKUP(O91,ByM!$A$2:$B$462)) -> 1
B92: Arma | C92: Bomba de fuego | E92: 3 | F92: 1 | G92: 0 | H92: 3 | I92: 1 | J92: - | K92: Munición incendiaria | L92: Un uso por aventura | M92: - | N92: - | O92: - | P92: =IF(C92="","",INDEX($Q$3:$Z$12,E92,F92)+G92+H92) -> -12 | Q92: =IF(C92="","",LOOKUP(J92,Area!$A$2:$B$71)+LOOKUP(K92,ByM!$A$2:$B$462)+LOOKUP(L92,ByM!$A$2:$B$462)+LOOKUP(M92,ByM!$A$2:$B$462)+LOOKUP(N92,ByM!$A$2:$B$462)+LOOKUP(O92,ByM!$A$2:$B$462)) -> -5
B93: Arma | C93: Bomba de fusión | E93: 7 | F93: 7 | G93: 0 | H93: 5 | I93: 53 | J93: - | K93: Munición experimental | L93: Revientamuros | M93: Un uso por aventura | N93: - | O93: - | P93: =IF(C93="","",INDEX($Q$3:$Z$12,E93,F93)+G93+H93) -> 33 | Q93: =IF(C93="","",LOOKUP(J93,Area!$A$2:$B$71)+LOOKUP(K93,ByM!$A$2:$B$462)+LOOKUP(L93,ByM!$A$2:$B$462)+LOOKUP(M93,ByM!$A$2:$B$462)+LOOKUP(N93,ByM!$A$2:$B$462)+LOOKUP(O93,ByM!$A$2:$B$462)) -> 20
B94: Arma | C94: Bomba de gas | E94: 3 | F94: 1 | G94: 0 | H94: 3 | I94: 1 | J94: - | K94: Munición corrosiva | L94: Un uso por aventura | M94: - | N94: - | O94: - | P94: =IF(C94="","",INDEX($Q$3:$Z$12,E94,F94)+G94+H94) -> -12 | Q94: =IF(C94="","",LOOKUP(J94,Area!$A$2:$B$71)+LOOKUP(K94,ByM!$A$2:$B$462)+LOOKUP(L94,ByM!$A$2:$B$462)+LOOKUP(M94,ByM!$A$2:$B$462)+LOOKUP(N94,ByM!$A$2:$B$462)+LOOKUP(O94,ByM!$A$2:$B$462)) -> 0
B95: Arma | C95: Bomba de humo | E95: 3 | F95: 1 | G95: 0 | H95: 3 | I95: 1 | J95: - | K95: Humo | L95: Un uso por aventura | M95: - | N95: - | O95: - | P95: =IF(C95="","",INDEX($Q$3:$Z$12,E95,F95)+G95+H95) -> -12 | Q95: =IF(C95="","",LOOKUP(J95,Area!$A$2:$B$71)+LOOKUP(K95,ByM!$A$2:$B$462)+LOOKUP(L95,ByM!$A$2:$B$462)+LOOKUP(M95,ByM!$A$2:$B$462)+LOOKUP(N95,ByM!$A$2:$B$462)+LOOKUP(O95,ByM!$A$2:$B$462)) -> -7
B96: Arma | C96: Bomba sucia | E96: 3 | F96: 3 | G96: 0 | H96: 2 | I96: 18 | J96: R2 | K96: Un uso por actuación | L96: área de activación | M96: - | N96: - | O96: - | P96: =IF(C96="","",INDEX($Q$3:$Z$12,E96,F96)+G96+H96) -> 15 | Q96: =IF(C96="","",LOOKUP(J96,Area!$A$2:$B$71)+LOOKUP(K96,ByM!$A$2:$B$462)+LOOKUP(L96,ByM!$A$2:$B$462)+LOOKUP(M96,ByM!$A$2:$B$462)+LOOKUP(N96,ByM!$A$2:$B$462)+LOOKUP(O96,ByM!$A$2:$B$462)) -> 3
B97: Arma | C97: Bombeadora | E97: 3 | F97: 1 | G97: 7 | H97: 3 | I97: 1 | J97: - | K97: A 2 manos | L97: Fuego pesado | M97: - | N97: - | O97: - | P97: =IF(C97="","",INDEX($Q$3:$Z$12,E97,F97)+G97+H97) -> -5 | Q97: =IF(C97="","",LOOKUP(J97,Area!$A$2:$B$71)+LOOKUP(K97,ByM!$A$2:$B$462)+LOOKUP(L97,ByM!$A$2:$B$462)+LOOKUP(M97,ByM!$A$2:$B$462)+LOOKUP(N97,ByM!$A$2:$B$462)+LOOKUP(O97,ByM!$A$2:$B$462)) -> 2
B98: Arma | C98: Botafumeiro tóxico | E98: 3 | F98: 3 | G98: 0 | H98: 3 | I98: 31 | J98: R4 | K98: A 2 manos | L98: Área permanente | M98: Arma complicada | N98: Munición radiactiva | O98: - | P98: =IF(C98="","",INDEX($Q$3:$Z$12,E98,F98)+G98+H98) -> 16 | Q98: =IF(C98="","",LOOKUP(J98,Area!$A$2:$B$71)+LOOKUP(K98,ByM!$A$2:$B$462)+LOOKUP(L98,ByM!$A$2:$B$462)+LOOKUP(M98,ByM!$A$2:$B$462)+LOOKUP(N98,ByM!$A$2:$B$462)+LOOKUP(O98,ByM!$A$2:$B$462)) -> 15
B99: Arma | C99: Cachiporra | E99: 3 | F99: 2 | G99: 0 | H99: 2 | I99: 18 | J99: - | K99: Munición aturdidora | L99: Munición reforzada | M99: - | N99: - | O99: - | P99: =IF(C99="","",INDEX($Q$3:$Z$12,E99,F99)+G99+H99) -> 3 | Q99: =IF(C99="","",LOOKUP(J99,Area!$A$2:$B$71)+LOOKUP(K99,ByM!$A$2:$B$462)+LOOKUP(L99,ByM!$A$2:$B$462)+LOOKUP(M99,ByM!$A$2:$B$462)+LOOKUP(N99,ByM!$A$2:$B$462)+LOOKUP(O99,ByM!$A$2:$B$462)) -> 15
B100: Arma | C100: Cadena | E100: 4 | F100: 2 | G100: 0 | H100: 4 | I100: 1 | J100: - | K100: Arma complicada | L100: Daño extra | M100: Munición de parada | N100: Munición paralizante | O100: - | P100: =IF(C100="","",INDEX($Q$3:$Z$12,E100,F100)+G100+H100) -> -16 | Q100: =IF(C100="","",LOOKUP(J100,Area!$A$2:$B$71)+LOOKUP(K100,ByM!$A$2:$B$462)+LOOKUP(L100,ByM!$A$2:$B$462)+LOOKUP(M100,ByM!$A$2:$B$462)+LOOKUP(N100,ByM!$A$2:$B$462)+LOOKUP(O100,ByM!$A$2:$B$462)) -> 8
B101: Arma | C101: Cañón automático acelerador | E101: 6 | F101: 7 | G101: 35 | H101: 4 | I101: 94 | J101: - | K101: - | L101: - | M101: - | N101: - | O101: - | P101: =IF(C101="","",INDEX($Q$3:$Z$12,E101,F101)+G101+H101) -> 94 | Q101: =IF(C101="","",LOOKUP(J101,Area!$A$2:$B$71)+LOOKUP(K101,ByM!$A$2:$B$462)+LOOKUP(L101,ByM!$A$2:$B$462)+LOOKUP(M101,ByM!$A$2:$B$462)+LOOKUP(N101,ByM!$A$2:$B$462)+LOOKUP(O101,ByM!$A$2:$B$462)) -> 0
B102: Arma | C102: Cañón automático acelerador acoplado | E102: 5 | F102: 7 | G102: 35 | H102: 4 | I102: 149 | J102: - | K102: - | L102: - | M102: - | N102: - | O102: - | P102: =IF(C102="","",INDEX($Q$3:$Z$12,E102,F102)+G102+H102) -> 149 | Q102: =IF(C102="","",LOOKUP(J102,Area!$A$2:$B$71)+LOOKUP(K102,ByM!$A$2:$B$462)+LOOKUP(L102,ByM!$A$2:$B$462)+LOOKUP(M102,ByM!$A$2:$B$462)+LOOKUP(N102,ByM!$A$2:$B$462)+LOOKUP(O102,ByM!$A$2:$B$462)) -> 0
B103: Arma | C103: Cañón automático graniferro acoplado | E103: 5 | F103: 7 | G103: 35 | H103: 4 | I103: 144 | J103: - | K103: Enorme | L103: - | M103: - | N103: - | O103: - | P103: =IF(C103="","",INDEX($Q$3:$Z$12,E103,F103)+G103+H103) -> 149 | Q103: =IF(C103="","",LOOKUP(J103,Area!$A$2:$B$71)+LOOKUP(K103,ByM!$A$2:$B$462)+LOOKUP(L103,ByM!$A$2:$B$462)+LOOKUP(M103,ByM!$A$2:$B$462)+LOOKUP(N103,ByM!$A$2:$B$462)+LOOKUP(O103,ByM!$A$2:$B$462)) -> -5
B104: Arma | C104: Cañón automático Predator | E104: 6 | F104: 7 | G104: 35 | H104: 4 | I104: 94 | J104: - | K104: - | L104: - | M104: - | N104: - | O104: - | P104: =IF(C104="","",INDEX($Q$3:$Z$12,E104,F104)+G104+H104) -> 94 | Q104: =IF(C104="","",LOOKUP(J104,Area!$A$2:$B$71)+LOOKUP(K104,ByM!$A$2:$B$462)+LOOKUP(L104,ByM!$A$2:$B$462)+LOOKUP(M104,ByM!$A$2:$B$462)+LOOKUP(N104,ByM!$A$2:$B$462)+LOOKUP(O104,ByM!$A$2:$B$462)) -> 0
B105: Arma | C105: Cañón automático Segador | E105: 6 | F105: 7 | G105: 30 | H105: 4 | I105: 89 | J105: - | K105: - | L105: - | M105: - | N105: - | O105: - | P105: =IF(C105="","",INDEX($Q$3:$Z$12,E105,F105)+G105+H105) -> 89 | Q105: =IF(C105="","",LOOKUP(J105,Area!$A$2:$B$71)+LOOKUP(K105,ByM!$A$2:$B$462)+LOOKUP(L105,ByM!$A$2:$B$462)+LOOKUP(M105,ByM!$A$2:$B$462)+LOOKUP(N105,ByM!$A$2:$B$462)+LOOKUP(O105,ByM!$A$2:$B$462)) -> 0
B106: Arma | C106: Cañón congelante | E106: 7 | F106: 5 | G106: 25 | H106: 3 | I106: 8 | J106: R4 | K106: Dispersión | L106: Enorme | M106: Arco concentrado | N106: - | O106: - | P106: =IF(C106="","",INDEX($Q$3:$Z$12,E106,F106)+G106+H106) -> -10 | Q106: =IF(C106="","",LOOKUP(J106,Area!$A$2:$B$71)+LOOKUP(K106,ByM!$A$2:$B$462)+LOOKUP(L106,ByM!$A$2:$B$462)+LOOKUP(M106,ByM!$A$2:$B$462)+LOOKUP(N106,ByM!$A$2:$B$462)+LOOKUP(O106,ByM!$A$2:$B$462)) -> 18
B107: Arma | C107: Cañón de asalto | E107: 5 | F107: 6 | G107: 20 | H107: 3 | I107: 69 | J107: - | K107: - | L107: - | M107: - | N107: - | O107: - | P107: =IF(C107="","",INDEX($Q$3:$Z$12,E107,F107)+G107+H107) -> 69 | Q107: =IF(C107="","",LOOKUP(J107,Area!$A$2:$B$71)+LOOKUP(K107,ByM!$A$2:$B$462)+LOOKUP(L107,ByM!$A$2:$B$462)+LOOKUP(M107,ByM!$A$2:$B$462)+LOOKUP(N107,ByM!$A$2:$B$462)+LOOKUP(O107,ByM!$A$2:$B$462)) -> 0
B108: Arma | C108: Cañón de asalto acoplado | E108: 4 | F108: 6 | G108: 20 | H108: 3 | I108: 114 | J108: - | K108: - | L108: - | M108: - | N108: - | O108: - | P108: =IF(C108="","",INDEX($Q$3:$Z$12,E108,F108)+G108+H108) -> 114 | Q108: =IF(C108="","",LOOKUP(J108,Area!$A$2:$B$71)+LOOKUP(K108,ByM!$A$2:$B$462)+LOOKUP(L108,ByM!$A$2:$B$462)+LOOKUP(M108,ByM!$A$2:$B$462)+LOOKUP(N108,ByM!$A$2:$B$462)+LOOKUP(O108,ByM!$A$2:$B$462)) -> 0
B109: Arma | C109: Cañón de asalto modelo Kheres | E109: 5 | F109: 6 | G109: 20 | H109: 4 | I109: 70 | J109: - | K109: - | L109: - | M109: - | N109: - | O109: - | P109: =IF(C109="","",INDEX($Q$3:$Z$12,E109,F109)+G109+H109) -> 70 | Q109: =IF(C109="","",LOOKUP(J109,Area!$A$2:$B$71)+LOOKUP(K109,ByM!$A$2:$B$462)+LOOKUP(L109,ByM!$A$2:$B$462)+LOOKUP(M109,ByM!$A$2:$B$462)+LOOKUP(N109,ByM!$A$2:$B$462)+LOOKUP(O109,ByM!$A$2:$B$462)) -> 0
B110: Arma | C110: Cañón de asalto T-800 | E110: 4 | F110: 8 | G110: 20 | H110: 5 | I110: 556 | J110: - | K110: - | L110: - | M110: - | N110: - | O110: - | P110: =IF(C110="","",INDEX($Q$3:$Z$12,E110,F110)+G110+H110) -> 556 | Q110: =IF(C110="","",LOOKUP(J110,Area!$A$2:$B$71)+LOOKUP(K110,ByM!$A$2:$B$462)+LOOKUP(L110,ByM!$A$2:$B$462)+LOOKUP(M110,ByM!$A$2:$B$462)+LOOKUP(N110,ByM!$A$2:$B$462)+LOOKUP(O110,ByM!$A$2:$B$462)) -> 0
B111: Arma | C111: Cañón de barco | E111: 10 | F111: 6 | G111: 20 | H111: 7 | I111: 1 | J111: R1 | K111: Cargadores (1) | L111: enorme | M111: - | N111: - | O111: - | P111: =IF(C111="","",INDEX($Q$3:$Z$12,E111,F111)+G111+H111) -> -280 | Q111: =IF(C111="","",LOOKUP(J111,Area!$A$2:$B$71)+LOOKUP(K111,ByM!$A$2:$B$462)+LOOKUP(L111,ByM!$A$2:$B$462)+LOOKUP(M111,ByM!$A$2:$B$462)+LOOKUP(N111,ByM!$A$2:$B$462)+LOOKUP(O111,ByM!$A$2:$B$462)) -> -9
B112: Arma | C112: Cañón de confeti | E112: 4 | F112: 4 | G112: 10 | H112: 3 | I112: 29 | J112: - | K112: Cargadores (X) (1) | L112: Arma complicada | M112: Munición paralizante | N112: Munición psíquica | O112: - | P112: =IF(C112="","",INDEX($Q$3:$Z$12,E112,F112)+G112+H112) -> 29 | Q112: =IF(C112="","",LOOKUP(J112,Area!$A$2:$B$71)+LOOKUP(K112,ByM!$A$2:$B$462)+LOOKUP(L112,ByM!$A$2:$B$462)+LOOKUP(M112,ByM!$A$2:$B$462)+LOOKUP(N112,ByM!$A$2:$B$462)+LOOKUP(O112,ByM!$A$2:$B$462)) -> 0
B113: Arma | C113: Cañón de fusión | E113: 7 | F113: 7 | G113: 20 | H113: 5 | I113: 73 | J113: - | K113: Munición experimental | L113: - | M113: - | N113: - | O113: - | P113: =IF(C113="","",INDEX($Q$3:$Z$12,E113,F113)+G113+H113) -> 53 | Q113: =IF(C113="","",LOOKUP(J113,Area!$A$2:$B$71)+LOOKUP(K113,ByM!$A$2:$B$462)+LOOKUP(L113,ByM!$A$2:$B$462)+LOOKUP(M113,ByM!$A$2:$B$462)+LOOKUP(N113,ByM!$A$2:$B$462)+LOOKUP(O113,ByM!$A$2:$B$462)) -> 20
B114: Arma | C114: Cañón de fusión acoplado | E114: 6 | F114: 7 | G114: 20 | H114: 5 | I114: 95 | J114: - | K114: Munición experimental | L114: Enorme | M114: - | N114: - | O114: - | P114: =IF(C114="","",INDEX($Q$3:$Z$12,E114,F114)+G114+H114) -> 80 | Q114: =IF(C114="","",LOOKUP(J114,Area!$A$2:$B$71)+LOOKUP(K114,ByM!$A$2:$B$462)+LOOKUP(L114,ByM!$A$2:$B$462)+LOOKUP(M114,ByM!$A$2:$B$462)+LOOKUP(N114,ByM!$A$2:$B$462)+LOOKUP(O114,ByM!$A$2:$B$462)) -> 15
B115: Arma | C115: Cañón de partículas | E115: 6 | F115: 7 | G115: 30 | H115: 3 | I115: 91 | J115: - | K115: Daño extra | L115: - | M115: - | N115: - | O115: - | P115: =IF(C115="","",INDEX($Q$3:$Z$12,E115,F115)+G115+H115) -> 88 | Q115: =IF(C115="","",LOOKUP(J115,Area!$A$2:$B$71)+LOOKUP(K115,ByM!$A$2:$B$462)+LOOKUP(L115,ByM!$A$2:$B$462)+LOOKUP(M115,ByM!$A$2:$B$462)+LOOKUP(N115,ByM!$A$2:$B$462)+LOOKUP(O115,ByM!$A$2:$B$462)) -> 3
B116: Arma | C116: Cañón de plasma | E116: 6 | F116: 6 | G116: 30 | H116: 4 | I116: 73 | J116: R4 | K116: Daño extra | L116: Munición ígnea | M116: Fuego pesado | N116: Peligro | O116: Dispersión | P116: =IF(C116="","",INDEX($Q$3:$Z$12,E116,F116)+G116+H116) -> 57 | Q116: =IF(C116="","",LOOKUP(J116,Area!$A$2:$B$71)+LOOKUP(K116,ByM!$A$2:$B$462)+LOOKUP(L116,ByM!$A$2:$B$462)+LOOKUP(M116,ByM!$A$2:$B$462)+LOOKUP(N116,ByM!$A$2:$B$462)+LOOKUP(O116,ByM!$A$2:$B$462)) -> 16
B117: Arma | C117: Cañón de plasma pesado | E117: 6 | F117: 7 | G117: 30 | H117: 4 | I117: 105 | J117: R4 | K117: Daño extra | L117: Munición ígnea | M117: Fuego pesado | N117: Peligro | O117: Dispersión | P117: =IF(C117="","",INDEX($Q$3:$Z$12,E117,F117)+G117+H117) -> 89 | Q117: =IF(C117="","",LOOKUP(J117,Area!$A$2:$B$71)+LOOKUP(K117,ByM!$A$2:$B$462)+LOOKUP(L117,ByM!$A$2:$B$462)+LOOKUP(M117,ByM!$A$2:$B$462)+LOOKUP(N117,ByM!$A$2:$B$462)+LOOKUP(O117,ByM!$A$2:$B$462)) -> 16
B118: Arma | C118: Cañón de plasma pesado acoplado | E118: 5 | F118: 7 | G118: 30 | H118: 4 | I118: 160 | J118: R4 | K118: Daño extra | L118: Munición ígnea | M118: Fuego pesado | N118: Peligro | O118: Dispersión | P118: =IF(C118="","",INDEX($Q$3:$Z$12,E118,F118)+G118+H118) -> 144 | Q118: =IF(C118="","",LOOKUP(J118,Area!$A$2:$B$71)+LOOKUP(K118,ByM!$A$2:$B$462)+LOOKUP(L118,ByM!$A$2:$B$462)+LOOKUP(M118,ByM!$A$2:$B$462)+LOOKUP(N118,ByM!$A$2:$B$462)+LOOKUP(O118,ByM!$A$2:$B$462)) -> 16
B119: Arma | C119: Cañón de pulsos | E119: 2 | F119: 4 | G119: 20 | H119: 5 | I119: 83 | J119: - | K119: Enorme | L119: - | M119: - | N119: - | O119: - | P119: =IF(C119="","",INDEX($Q$3:$Z$12,E119,F119)+G119+H119) -> 88 | Q119: =IF(C119="","",LOOKUP(J119,Area!$A$2:$B$71)+LOOKUP(K119,ByM!$A$2:$B$462)+LOOKUP(L119,ByM!$A$2:$B$462)+LOOKUP(M119,ByM!$A$2:$B$462)+LOOKUP(N119,ByM!$A$2:$B$462)+LOOKUP(O119,ByM!$A$2:$B$462)) -> -5
B120: Arma | C120: Cañón de Xerum | E120: 4 | F120: 4 | G120: 17 | H120: 3 | I120: 48 | J120: - | K120: A 2 manos | L120: Munición experimental | M120: Peligro | N120: - | O120: - | P120: =IF(C120="","",INDEX($Q$3:$Z$12,E120,F120)+G120+H120) -> 36 | Q120: =IF(C120="","",LOOKUP(J120,Area!$A$2:$B$71)+LOOKUP(K120,ByM!$A$2:$B$462)+LOOKUP(L120,ByM!$A$2:$B$462)+LOOKUP(M120,ByM!$A$2:$B$462)+LOOKUP(N120,ByM!$A$2:$B$462)+LOOKUP(O120,ByM!$A$2:$B$462)) -> 12
B121: Arma | C121: Cañón Demolisher | E121: 9 | F121: 10 | G121: 20 | H121: 8 | I121: 131 | J121: R4 | K121: Daño extra | L121: Enorme | M121: Dispersión | N121: - | O121: - | P121: =IF(C121="","",INDEX($Q$3:$Z$12,E121,F121)+G121+H121) -> 125 | Q121: =IF(C121="","",LOOKUP(J121,Area!$A$2:$B$71)+LOOKUP(K121,ByM!$A$2:$B$462)+LOOKUP(L121,ByM!$A$2:$B$462)+LOOKUP(M121,ByM!$A$2:$B$462)+LOOKUP(N121,ByM!$A$2:$B$462)+LOOKUP(O121,ByM!$A$2:$B$462)) -> 6
B122: Arma | C122: Cañón gatlin de campaña | E122: 3 | F122: 5 | G122: 20 | H122: 3 | I122: 99 | J122: - | K122: - | L122: - | M122: - | N122: - | O122: - | P122: =IF(C122="","",INDEX($Q$3:$Z$12,E122,F122)+G122+H122) -> 99 | Q122: =IF(C122="","",LOOKUP(J122,Area!$A$2:$B$71)+LOOKUP(K122,ByM!$A$2:$B$462)+LOOKUP(L122,ByM!$A$2:$B$462)+LOOKUP(M122,ByM!$A$2:$B$462)+LOOKUP(N122,ByM!$A$2:$B$462)+LOOKUP(O122,ByM!$A$2:$B$462)) -> 0
B123: Arma | C123: Cañón gatlin de campaña pesado | E123: 4 | F123: 6 | G123: 25 | H123: 3 | I123: 114 | J123: - | K123: Enorme | L123: - | M123: - | N123: - | O123: - | P123: =IF(C123="","",INDEX($Q$3:$Z$12,E123,F123)+G123+H123) -> 119 | Q123: =IF(C123="","",LOOKUP(J123,Area!$A$2:$B$71)+LOOKUP(K123,ByM!$A$2:$B$462)+LOOKUP(L123,ByM!$A$2:$B$462)+LOOKUP(M123,ByM!$A$2:$B$462)+LOOKUP(N123,ByM!$A$2:$B$462)+LOOKUP(O123,ByM!$A$2:$B$462)) -> -5
B124: Arma | C124: Cañón gatlin de campaña pesado acop. | E124: 4 | F124: 6 | G124: 25 | H124: 3 | I124: 119 | J124: - | K124: - | L124: - | M124: - | N124: - | O124: - | P124: =IF(C124="","",INDEX($Q$3:$Z$12,E124,F124)+G124+H124) -> 119 | Q124: =IF(C124="","",LOOKUP(J124,Area!$A$2:$B$71)+LOOKUP(K124,ByM!$A$2:$B$462)+LOOKUP(L124,ByM!$A$2:$B$462)+LOOKUP(M124,ByM!$A$2:$B$462)+LOOKUP(N124,ByM!$A$2:$B$462)+LOOKUP(O124,ByM!$A$2:$B$462)) -> 0
B125: Arma | C125: Cañón grav | E125: 6 | F125: 5 | G125: 25 | H125: 3 | I125: 41 | J125: - | K125: Daño extra | L125: Munición reforzada ( contra DEF > 5) | M125: - | N125: - | O125: - | P125: =IF(C125="","",INDEX($Q$3:$Z$12,E125,F125)+G125+H125) -> 28 | Q125: =IF(C125="","",LOOKUP(J125,Area!$A$2:$B$71)+LOOKUP(K125,ByM!$A$2:$B$462)+LOOKUP(L125,ByM!$A$2:$B$462)+LOOKUP(M125,ByM!$A$2:$B$462)+LOOKUP(N125,ByM!$A$2:$B$462)+LOOKUP(O125,ByM!$A$2:$B$462)) -> 13
B126: Arma | C126: Cañón incendium | E126: 4 | F126: 5 | G126: 10 | H126: 3 | I126: 66 | J126: - | K126: Munición incendiaria | L126: Munición teledirigida | M126: - | N126: - | O126: - | P126: =IF(C126="","",INDEX($Q$3:$Z$12,E126,F126)+G126+H126) -> 51 | Q126: =IF(C126="","",LOOKUP(J126,Area!$A$2:$B$71)+LOOKUP(K126,ByM!$A$2:$B$462)+LOOKUP(L126,ByM!$A$2:$B$462)+LOOKUP(M126,ByM!$A$2:$B$462)+LOOKUP(N126,ByM!$A$2:$B$462)+LOOKUP(O126,ByM!$A$2:$B$462)) -> 15
B127: Arma | C127: Cañón laser | E127: 10 | F127: 9 | G127: 40 | H127: 6 | I127: 51 | J127: - | K127: Daño extra | L127: - | M127: - | N127: - | O127: - | P127: =IF(C127="","",INDEX($Q$3:$Z$12,E127,F127)+G127+H127) -> 48 | Q127: =IF(C127="","",LOOKUP(J127,Area!$A$2:$B$71)+LOOKUP(K127,ByM!$A$2:$B$462)+LOOKUP(L127,ByM!$A$2:$B$462)+LOOKUP(M127,ByM!$A$2:$B$462)+LOOKUP(N127,ByM!$A$2:$B$462)+LOOKUP(O127,ByM!$A$2:$B$462)) -> 3
B128: Arma | C128: Cañón laser acoplado | E128: 8 | F128: 9 | G128: 40 | H128: 6 | I128: 129 | J128: - | K128: Daño extra | L128: - | M128: - | N128: - | O128: - | P128: =IF(C128="","",INDEX($Q$3:$Z$12,E128,F128)+G128+H128) -> 126 | Q128: =IF(C128="","",LOOKUP(J128,Area!$A$2:$B$71)+LOOKUP(K128,ByM!$A$2:$B$462)+LOOKUP(L128,ByM!$A$2:$B$462)+LOOKUP(M128,ByM!$A$2:$B$462)+LOOKUP(N128,ByM!$A$2:$B$462)+LOOKUP(O128,ByM!$A$2:$B$462)) -> 3
B129: Arma | C129: Cañón tormenta | E129: 4 | F129: 4 | G129: 20 | H129: 3 | I129: 62 | J129: R4 | K129: Golpe de los dioses | L129: Munición autopropulsada | M129: Artillero requerido | N129: Enorme | O129: - | P129: =IF(C129="","",INDEX($Q$3:$Z$12,E129,F129)+G129+H129) -> 39 | Q129: =IF(C129="","",LOOKUP(J129,Area!$A$2:$B$71)+LOOKUP(K129,ByM!$A$2:$B$462)+LOOKUP(L129,ByM!$A$2:$B$462)+LOOKUP(M129,ByM!$A$2:$B$462)+LOOKUP(N129,ByM!$A$2:$B$462)+LOOKUP(O129,ByM!$A$2:$B$462)) -> 23
B130: Arma | C130: Cañón tormenta de llamas | E130: 6 | F130: 6 | G130: 0 | H130: 3 | I130: 55 | J130: G7/2 | K130: Munición incendiaria | L130: - | M130: - | N130: - | O130: - | P130: =IF(C130="","",INDEX($Q$3:$Z$12,E130,F130)+G130+H130) -> 26 | Q130: =IF(C130="","",LOOKUP(J130,Area!$A$2:$B$71)+LOOKUP(K130,ByM!$A$2:$B$462)+LOOKUP(L130,ByM!$A$2:$B$462)+LOOKUP(M130,ByM!$A$2:$B$462)+LOOKUP(N130,ByM!$A$2:$B$462)+LOOKUP(O130,ByM!$A$2:$B$462)) -> 29
B131: Arma | C131: Cañón tormenta Ícaro | E131: 8 | F131: 7 | G131: 35 | H131: 4 | I131: 57 | J131: - | K131: Arma ATA | L131: Enorme | M131: Munición explosiva | N131: - | O131: - | P131: =IF(C131="","",INDEX($Q$3:$Z$12,E131,F131)+G131+H131) -> 41 | Q131: =IF(C131="","",LOOKUP(J131,Area!$A$2:$B$71)+LOOKUP(K131,ByM!$A$2:$B$462)+LOOKUP(L131,ByM!$A$2:$B$462)+LOOKUP(M131,ByM!$A$2:$B$462)+LOOKUP(N131,ByM!$A$2:$B$462)+LOOKUP(O131,ByM!$A$2:$B$462)) -> 16
B132: Arma | C132: Cañón torreta de pulso de fase-plasma | E132: 6 | F132: 8 | G132: 40 | H132: 7 | I132: 200 | J132: - | K132: Fuego automático | L132: Munición perforante | M132: - | N132: - | O132: - | P132: =IF(C132="","",INDEX($Q$3:$Z$12,E132,F132)+G132+H132) -> 180 | Q132: =IF(C132="","",LOOKUP(J132,Area!$A$2:$B$71)+LOOKUP(K132,ByM!$A$2:$B$462)+LOOKUP(L132,ByM!$A$2:$B$462)+LOOKUP(M132,ByM!$A$2:$B$462)+LOOKUP(N132,ByM!$A$2:$B$462)+LOOKUP(O132,ByM!$A$2:$B$462)) -> 20
B133: Arma | C133: Carabina | E133: 4 | F133: 4 | G133: 15 | H133: 3 | I133: 34 | J133: - | K133: - | L133: - | M133: - | N133: - | O133: - | P133: =IF(C133="","",INDEX($Q$3:$Z$12,E133,F133)+G133+H133) -> 34 | Q133: =IF(C133="","",LOOKUP(J133,Area!$A$2:$B$71)+LOOKUP(K133,ByM!$A$2:$B$462)+LOOKUP(L133,ByM!$A$2:$B$462)+LOOKUP(M133,ByM!$A$2:$B$462)+LOOKUP(N133,ByM!$A$2:$B$462)+LOOKUP(O133,ByM!$A$2:$B$462)) -> 0
B134: Arma | C134: Carabina bólter | E134: 4 | F134: 4 | G134: 20 | H134: 3 | I134: 39 | J134: - | K134: - | L134: - | M134: - | N134: - | O134: - | P134: =IF(C134="","",INDEX($Q$3:$Z$12,E134,F134)+G134+H134) -> 39 | Q134: =IF(C134="","",LOOKUP(J134,Area!$A$2:$B$71)+LOOKUP(K134,ByM!$A$2:$B$462)+LOOKUP(L134,ByM!$A$2:$B$462)+LOOKUP(M134,ByM!$A$2:$B$462)+LOOKUP(N134,ByM!$A$2:$B$462)+LOOKUP(O134,ByM!$A$2:$B$462)) -> 0
B135: Arma | C135: Carabina bólter de tirador | E135: 5 | F135: 4 | G135: 20 | H135: 3 | I135: 39 | J135: - | K135: Fuego automático | L135: Munición ultraperforante | M135: - | N135: - | O135: - | P135: =IF(C135="","",INDEX($Q$3:$Z$12,E135,F135)+G135+H135) -> 24 | Q135: =IF(C135="","",LOOKUP(J135,Area!$A$2:$B$71)+LOOKUP(K135,ByM!$A$2:$B$462)+LOOKUP(L135,ByM!$A$2:$B$462)+LOOKUP(M135,ByM!$A$2:$B$462)+LOOKUP(N135,ByM!$A$2:$B$462)+LOOKUP(O135,ByM!$A$2:$B$462)) -> 15
B136: Arma | C136: Carabina bólter especial | E136: 4 | F136: 4 | G136: 20 | H136: 3 | I136: 42 | J136: - | K136: Daño extra | L136: - | M136: - | N136: - | O136: - | P136: =IF(C136="","",INDEX($Q$3:$Z$12,E136,F136)+G136+H136) -> 39 | Q136: =IF(C136="","",LOOKUP(J136,Area!$A$2:$B$71)+LOOKUP(K136,ByM!$A$2:$B$462)+LOOKUP(L136,ByM!$A$2:$B$462)+LOOKUP(M136,ByM!$A$2:$B$462)+LOOKUP(N136,ByM!$A$2:$B$462)+LOOKUP(O136,ByM!$A$2:$B$462)) -> 3
B137: Arma | C137: Carabina bólter instigador | E137: 5 | F137: 4 | G137: 20 | H137: 3 | I137: 34 | J137: - | K137: Fuego automático | L137: Niega (guardaespaldas) | M137: - | N137: - | O137: - | P137: =IF(C137="","",INDEX($Q$3:$Z$12,E137,F137)+G137+H137) -> 24 | Q137: =IF(C137="","",LOOKUP(J137,Area!$A$2:$B$71)+LOOKUP(K137,ByM!$A$2:$B$462)+LOOKUP(L137,ByM!$A$2:$B$462)+LOOKUP(M137,ByM!$A$2:$B$462)+LOOKUP(N137,ByM!$A$2:$B$462)+LOOKUP(O137,ByM!$A$2:$B$462)) -> 10
B138: Arma | C138: Carabina bólter instigador artesanal | E138: 5 | F138: 4 | G138: 20 | H138: 3 | I138: 49 | J138: - | K138: Fuego automático | L138: Niega (guardaespaldas) | M138: De precisión | N138: - | O138: - | P138: =IF(C138="","",INDEX($Q$3:$Z$12,E138,F138)+G138+H138) -> 24 | Q138: =IF(C138="","",LOOKUP(J138,Area!$A$2:$B$71)+LOOKUP(K138,ByM!$A$2:$B$462)+LOOKUP(L138,ByM!$A$2:$B$462)+LOOKUP(M138,ByM!$A$2:$B$462)+LOOKUP(N138,ByM!$A$2:$B$462)+LOOKUP(O138,ByM!$A$2:$B$462)) -> 25
B139: Arma | C139: Carabina bólter occulus | E139: 5 | F139: 4 | G139: 20 | H139: 3 | I139: 34 | J139: - | K139: Fuego automático | L139: Munición buscadora | M139: - | N139: - | O139: - | P139: =IF(C139="","",INDEX($Q$3:$Z$12,E139,F139)+G139+H139) -> 24 | Q139: =IF(C139="","",LOOKUP(J139,Area!$A$2:$B$71)+LOOKUP(K139,ByM!$A$2:$B$462)+LOOKUP(L139,ByM!$A$2:$B$462)+LOOKUP(M139,ByM!$A$2:$B$462)+LOOKUP(N139,ByM!$A$2:$B$462)+LOOKUP(O139,ByM!$A$2:$B$462)) -> 10
B140: Arma | C140: Carabina bólter occulus artesanal | E140: 5 | F140: 4 | G140: 20 | H140: 3 | I140: 49 | J140: - | K140: Fuego automático | L140: Munición buscadora | M140: De precisión | N140: - | O140: - | P140: =IF(C140="","",INDEX($Q$3:$Z$12,E140,F140)+G140+H140) -> 24 | Q140: =IF(C140="","",LOOKUP(J140,Area!$A$2:$B$71)+LOOKUP(K140,ByM!$A$2:$B$462)+LOOKUP(L140,ByM!$A$2:$B$462)+LOOKUP(M140,ByM!$A$2:$B$462)+LOOKUP(N140,ByM!$A$2:$B$462)+LOOKUP(O140,ByM!$A$2:$B$462)) -> 25
B141: Arma | C141: Cargador Volkite | E141: 7 | F141: 5 | G141: 17 | H141: 3 | I141: 1 | J141: - | K141: Daño extra | L141: - | M141: - | N141: - | O141: - | P141: =IF(C141="","",INDEX($Q$3:$Z$12,E141,F141)+G141+H141) -> -18 | Q141: =IF(C141="","",LOOKUP(J141,Area!$A$2:$B$71)+LOOKUP(K141,ByM!$A$2:$B$462)+LOOKUP(L141,ByM!$A$2:$B$462)+LOOKUP(M141,ByM!$A$2:$B$462)+LOOKUP(N141,ByM!$A$2:$B$462)+LOOKUP(O141,ByM!$A$2:$B$462)) -> 3
B142: Arma | C142: Cerbatana | E142: 2 | F142: 1 | G142: 3 | H142: 2 | I142: 5 | J142: - | K142: Veneno | L142: - | M142: - | N142: - | O142: - | P142: =IF(C142="","",INDEX($Q$3:$Z$12,E142,F142)+G142+H142) -> 0 | Q142: =IF(C142="","",LOOKUP(J142,Area!$A$2:$B$71)+LOOKUP(K142,ByM!$A$2:$B$462)+LOOKUP(L142,ByM!$A$2:$B$462)+LOOKUP(M142,ByM!$A$2:$B$462)+LOOKUP(N142,ByM!$A$2:$B$462)+LOOKUP(O142,ByM!$A$2:$B$462)) -> 5
B143: Arma | C143: Cetro | E143: 3 | F143: 2 | G143: 0 | H143: 2 | I143: 10 | J143: - | K143: aplasta | L143: Munición aturdidora | M143: - | N143: - | O143: - | P143: =IF(C143="","",INDEX($Q$3:$Z$12,E143,F143)+G143+H143) -> 3 | Q143: =IF(C143="","",LOOKUP(J143,Area!$A$2:$B$71)+LOOKUP(K143,ByM!$A$2:$B$462)+LOOKUP(L143,ByM!$A$2:$B$462)+LOOKUP(M143,ByM!$A$2:$B$462)+LOOKUP(N143,ByM!$A$2:$B$462)+LOOKUP(O143,ByM!$A$2:$B$462)) -> 7
B144: Arma | C144: Chakram | E144: 4 | F144: 2 | G144: 0 | H144: 2 | I144: 1 | J144: S3 | K144: Arma arrojadiza | L144: - | M144: - | N144: - | O144: - | P144: =IF(C144="","",INDEX($Q$3:$Z$12,E144,F144)+G144+H144) -> -18 | Q144: =IF(C144="","",LOOKUP(J144,Area!$A$2:$B$71)+LOOKUP(K144,ByM!$A$2:$B$462)+LOOKUP(L144,ByM!$A$2:$B$462)+LOOKUP(M144,ByM!$A$2:$B$462)+LOOKUP(N144,ByM!$A$2:$B$462)+LOOKUP(O144,ByM!$A$2:$B$462)) -> 19
B145: Arma | C145: Chasqueador | E145: 3 | F145: 3 | G145: 0 | H145: 3 | I145: 33 | J145: - | K145: Munición excepcional | L145: Requiere (Traje voltáico) | M145: - | N145: - | O145: - | P145: =IF(C145="","",INDEX($Q$3:$Z$12,E145,F145)+G145+H145) -> 16 | Q145: =IF(C145="","",LOOKUP(J145,Area!$A$2:$B$71)+LOOKUP(K145,ByM!$A$2:$B$462)+LOOKUP(L145,ByM!$A$2:$B$462)+LOOKUP(M145,ByM!$A$2:$B$462)+LOOKUP(N145,ByM!$A$2:$B$462)+LOOKUP(O145,ByM!$A$2:$B$462)) -> 17
B146: Arma | C146: Chorrazo | E146: 3 | F146: 2 | G146: 0 | H146: 3 | I146: 9 | J146: - | K146: Fuego pesado | L146: - | M146: - | N146: - | O146: - | P146: =IF(C146="","",INDEX($Q$3:$Z$12,E146,F146)+G146+H146) -> 4 | Q146: =IF(C146="","",LOOKUP(J146,Area!$A$2:$B$71)+LOOKUP(K146,ByM!$A$2:$B$462)+LOOKUP(L146,ByM!$A$2:$B$462)+LOOKUP(M146,ByM!$A$2:$B$462)+LOOKUP(N146,ByM!$A$2:$B$462)+LOOKUP(O146,ByM!$A$2:$B$462)) -> 5
B147: Arma | C147: Cimitarra | E147: 3 | F147: 2 | G147: 0 | H147: 4 | I147: 18 | J147: - | K147: Absorción de impacto | L147: Daño extra | M147: - | N147: - | O147: - | P147: =IF(C147="","",INDEX($Q$3:$Z$12,E147,F147)+G147+H147) -> 5 | Q147: =IF(C147="","",LOOKUP(J147,Area!$A$2:$B$71)+LOOKUP(K147,ByM!$A$2:$B$462)+LOOKUP(L147,ByM!$A$2:$B$462)+LOOKUP(M147,ByM!$A$2:$B$462)+LOOKUP(N147,ByM!$A$2:$B$462)+LOOKUP(O147,ByM!$A$2:$B$462)) -> 13
B148: Arma | C148: Clava | E148: 3 | F148: 2 | G148: 0 | H148: 3 | I148: 14 | J148: - | K148: Munición aturdidora | L148: Munición de parada | M148: - | N148: - | O148: - | P148: =IF(C148="","",INDEX($Q$3:$Z$12,E148,F148)+G148+H148) -> 4 | Q148: =IF(C148="","",LOOKUP(J148,Area!$A$2:$B$71)+LOOKUP(K148,ByM!$A$2:$B$462)+LOOKUP(L148,ByM!$A$2:$B$462)+LOOKUP(M148,ByM!$A$2:$B$462)+LOOKUP(N148,ByM!$A$2:$B$462)+LOOKUP(O148,ByM!$A$2:$B$462)) -> 10
B149: Arma | C149: Cóctel Molotov | E149: 3 | F149: 3 | G149: 0 | H149: 2 | I149: 13 | J149: R2 | K149: Munición incendiaria | L149: un uso por aventura | M149: - | N149: - | O149: - | P149: =IF(C149="","",INDEX($Q$3:$Z$12,E149,F149)+G149+H149) -> 15 | Q149: =IF(C149="","",LOOKUP(J149,Area!$A$2:$B$71)+LOOKUP(K149,ByM!$A$2:$B$462)+LOOKUP(L149,ByM!$A$2:$B$462)+LOOKUP(M149,ByM!$A$2:$B$462)+LOOKUP(N149,ByM!$A$2:$B$462)+LOOKUP(O149,ByM!$A$2:$B$462)) -> -2
B150: Arma | C150: Cola alien | E150: 3 | F150: 3 | G150: 0 | H150: 6 | I150: 34 | J150: - | K150: Munición perforante | L150: - | M150: - | N150: - | O150: - | P150: =IF(C150="","",INDEX($Q$3:$Z$12,E150,F150)+G150+H150) -> 19 | Q150: =IF(C150="","",LOOKUP(J150,Area!$A$2:$B$71)+LOOKUP(K150,ByM!$A$2:$B$462)+LOOKUP(L150,ByM!$A$2:$B$462)+LOOKUP(M150,ByM!$A$2:$B$462)+LOOKUP(N150,ByM!$A$2:$B$462)+LOOKUP(O150,ByM!$A$2:$B$462)) -> 15
B151: Arma | C151: Combi-arma - bólter | E151: 5 | F151: 4 | G151: 20 | H151: 3 | I151: 24 | J151: - | K151: - | L151: - | M151: - | N151: - | O151: - | P151: =IF(C151="","",INDEX($Q$3:$Z$12,E151,F151)+G151+H151) -> 24 | Q151: =IF(C151="","",LOOKUP(J151,Area!$A$2:$B$71)+LOOKUP(K151,ByM!$A$2:$B$462)+LOOKUP(L151,ByM!$A$2:$B$462)+LOOKUP(M151,ByM!$A$2:$B$462)+LOOKUP(N151,ByM!$A$2:$B$462)+LOOKUP(O151,ByM!$A$2:$B$462)) -> 0
B152: Arma | C152: Combi-arma - lanzallamas | E152: 3 | F152: 4 | G152: 0 | H152: 3 | I152: 58 | J152: G7/2 | K152: Munición incendiaria | L152: Un uso por actuación | M152: - | N152: - | O152: - | P152: =IF(C152="","",INDEX($Q$3:$Z$12,E152,F152)+G152+H152) -> 34 | Q152: =IF(C152="","",LOOKUP(J152,Area!$A$2:$B$71)+LOOKUP(K152,ByM!$A$2:$B$462)+LOOKUP(L152,ByM!$A$2:$B$462)+LOOKUP(M152,ByM!$A$2:$B$462)+LOOKUP(N152,ByM!$A$2:$B$462)+LOOKUP(O152,ByM!$A$2:$B$462)) -> 24
B153: Arma | C153: Combi-arma - plasma | E153: 6 | F153: 6 | G153: 20 | H153: 4 | I153: 50 | J153: - | K153: Daño extra | L153: Munición ígnea | M153: Fuego pesado | N153: Peligro | O153: Un uso por actuación | P153: =IF(C153="","",INDEX($Q$3:$Z$12,E153,F153)+G153+H153) -> 47 | Q153: =IF(C153="","",LOOKUP(J153,Area!$A$2:$B$71)+LOOKUP(K153,ByM!$A$2:$B$462)+LOOKUP(L153,ByM!$A$2:$B$462)+LOOKUP(M153,ByM!$A$2:$B$462)+LOOKUP(N153,ByM!$A$2:$B$462)+LOOKUP(O153,ByM!$A$2:$B$462)) -> 3
B154: Arma | C154: Combi-arma - rifle de fusión | E154: 7 | F154: 7 | G154: 10 | H154: 5 | I154: 63 | J154: - | K154: Munición experimental | L154: Fuego a ráfagas | M154: Un uso por actuación | N154: - | O154: - | P154: =IF(C154="","",INDEX($Q$3:$Z$12,E154,F154)+G154+H154) -> 43 | Q154: =IF(C154="","",LOOKUP(J154,Area!$A$2:$B$71)+LOOKUP(K154,ByM!$A$2:$B$462)+LOOKUP(L154,ByM!$A$2:$B$462)+LOOKUP(M154,ByM!$A$2:$B$462)+LOOKUP(N154,ByM!$A$2:$B$462)+LOOKUP(O154,ByM!$A$2:$B$462)) -> 20
B155: Arma | C155: Combi-arma - rifle grav | E155: 5 | F155: 5 | G155: 15 | H155: 3 | I155: 50 | J155: - | K155: Fuego a ráfagas | L155: Daño extra | M155: Munición reforzada | N155: Un uso por actuación | O155: - | P155: =IF(C155="","",INDEX($Q$3:$Z$12,E155,F155)+G155+H155) -> 37 | Q155: =IF(C155="","",LOOKUP(J155,Area!$A$2:$B$71)+LOOKUP(K155,ByM!$A$2:$B$462)+LOOKUP(L155,ByM!$A$2:$B$462)+LOOKUP(M155,ByM!$A$2:$B$462)+LOOKUP(N155,ByM!$A$2:$B$462)+LOOKUP(O155,ByM!$A$2:$B$462)) -> 13
B156: Arma | C156: Combi-bólter | E156: 4 | F156: 4 | G156: 20 | H156: 3 | I156: 39 | J156: - | K156: - | L156: - | M156: - | N156: - | O156: - | P156: =IF(C156="","",INDEX($Q$3:$Z$12,E156,F156)+G156+H156) -> 39 | Q156: =IF(C156="","",LOOKUP(J156,Area!$A$2:$B$71)+LOOKUP(K156,ByM!$A$2:$B$462)+LOOKUP(L156,ByM!$A$2:$B$462)+LOOKUP(M156,ByM!$A$2:$B$462)+LOOKUP(N156,ByM!$A$2:$B$462)+LOOKUP(O156,ByM!$A$2:$B$462)) -> 0
B157: Arma | C157: Comunicador orbital | E157: 9 | F157: 8 | G157: 80 | H157: 5 | I157: 79 | J157: R4 | K157: Un uso por aventura | L157: Dispersión | M157: Enorme | N157: - | O157: - | P157: =IF(C157="","",INDEX($Q$3:$Z$12,E157,F157)+G157+H157) -> 86 | Q157: =IF(C157="","",LOOKUP(J157,Area!$A$2:$B$71)+LOOKUP(K157,ByM!$A$2:$B$462)+LOOKUP(L157,ByM!$A$2:$B$462)+LOOKUP(M157,ByM!$A$2:$B$462)+LOOKUP(N157,ByM!$A$2:$B$462)+LOOKUP(O157,ByM!$A$2:$B$462)) -> -7
B158: Arma | C158: Convocar el horror | E158: 5 | F158: 4 | G158: 10 | H158: 1 | I158: 31 | J158: - | K158: Invocación | L158: Acobardamiento | M158: Horror | N158: Veneno | O158: - | P158: =IF(C158="","",INDEX($Q$3:$Z$12,E158,F158)+G158+H158) -> 12 | Q158: =IF(C158="","",LOOKUP(J158,Area!$A$2:$B$71)+LOOKUP(K158,ByM!$A$2:$B$462)+LOOKUP(L158,ByM!$A$2:$B$462)+LOOKUP(M158,ByM!$A$2:$B$462)+LOOKUP(N158,ByM!$A$2:$B$462)+LOOKUP(O158,ByM!$A$2:$B$462)) -> 19
B159: Arma | C159: Crozius arcanum | E159: 4 | F159: 3 | G159: 0 | H159: 3 | I159: 21 | J159: - | K159: Aplasta | L159: munición perforante | M159: - | N159: - | O159: - | P159: =IF(C159="","",INDEX($Q$3:$Z$12,E159,F159)+G159+H159) -> 4 | Q159: =IF(C159="","",LOOKUP(J159,Area!$A$2:$B$71)+LOOKUP(K159,ByM!$A$2:$B$462)+LOOKUP(L159,ByM!$A$2:$B$462)+LOOKUP(M159,ByM!$A$2:$B$462)+LOOKUP(N159,ByM!$A$2:$B$462)+LOOKUP(O159,ByM!$A$2:$B$462)) -> 17
B160: Arma | C160: Cuchillo | E160: 2 | F160: 2 | G160: 0 | H160: 3 | I160: 14 | J160: - | K160: - | L160: - | M160: - | N160: - | O160: - | P160: =IF(C160="","",INDEX($Q$3:$Z$12,E160,F160)+G160+H160) -> 14 | Q160: =IF(C160="","",LOOKUP(J160,Area!$A$2:$B$71)+LOOKUP(K160,ByM!$A$2:$B$462)+LOOKUP(L160,ByM!$A$2:$B$462)+LOOKUP(M160,ByM!$A$2:$B$462)+LOOKUP(N160,ByM!$A$2:$B$462)+LOOKUP(O160,ByM!$A$2:$B$462)) -> 0
B161: Arma | C161: Cuchillo arrojadizo | E161: 2 | F161: 2 | G161: 0 | H161: 2 | I161: 23 | J161: - | K161: Arma arrojadiza | L161: - | M161: - | N161: - | O161: - | P161: =IF(C161="","",INDEX($Q$3:$Z$12,E161,F161)+G161+H161) -> 13 | Q161: =IF(C161="","",LOOKUP(J161,Area!$A$2:$B$71)+LOOKUP(K161,ByM!$A$2:$B$462)+LOOKUP(L161,ByM!$A$2:$B$462)+LOOKUP(M161,ByM!$A$2:$B$462)+LOOKUP(N161,ByM!$A$2:$B$462)+LOOKUP(O161,ByM!$A$2:$B$462)) -> 10
B162: Arma | C162: Cuchillo ghanata | E162: 3 | F162: 2 | G162: 0 | H162: 5 | I162: 9 | J162: - | K162: Daño extra | L162: - | M162: - | N162: - | O162: - | P162: =IF(C162="","",INDEX($Q$3:$Z$12,E162,F162)+G162+H162) -> 6 | Q162: =IF(C162="","",LOOKUP(J162,Area!$A$2:$B$71)+LOOKUP(K162,ByM!$A$2:$B$462)+LOOKUP(L162,ByM!$A$2:$B$462)+LOOKUP(M162,ByM!$A$2:$B$462)+LOOKUP(N162,ByM!$A$2:$B$462)+LOOKUP(O162,ByM!$A$2:$B$462)) -> 3
B163: Arma | C163: Cuchillo yuetshi | E163: 3 | F163: 2 | G163: 0 | H163: 4 | I163: 8 | J163: - | K163: Daño extra | L163: - | M163: - | N163: - | O163: - | P163: =IF(C163="","",INDEX($Q$3:$Z$12,E163,F163)+G163+H163) -> 5 | Q163: =IF(C163="","",LOOKUP(J163,Area!$A$2:$B$71)+LOOKUP(K163,ByM!$A$2:$B$462)+LOOKUP(L163,ByM!$A$2:$B$462)+LOOKUP(M163,ByM!$A$2:$B$462)+LOOKUP(N163,ByM!$A$2:$B$462)+LOOKUP(O163,ByM!$A$2:$B$462)) -> 3
B164: Arma | C164: Cuchillo zhaibar | E164: 3 | F164: 3 | G164: 0 | H164: 3 | I164: 26 | J164: - | K164: Munición reforzada | L164: - | M164: - | N164: - | O164: - | P164: =IF(C164="","",INDEX($Q$3:$Z$12,E164,F164)+G164+H164) -> 16 | Q164: =IF(C164="","",LOOKUP(J164,Area!$A$2:$B$71)+LOOKUP(K164,ByM!$A$2:$B$462)+LOOKUP(L164,ByM!$A$2:$B$462)+LOOKUP(M164,ByM!$A$2:$B$462)+LOOKUP(N164,ByM!$A$2:$B$462)+LOOKUP(O164,ByM!$A$2:$B$462)) -> 10
B165: Arma | C165: Cuchillos arrojadizos | E165: 2 | F165: 2 | G165: 0 | H165: 3 | I165: 9 | J165: - | K165: Cargas (3) | L165: - | M165: - | N165: - | O165: - | P165: =IF(C165="","",INDEX($Q$3:$Z$12,E165,F165)+G165+H165) -> 14 | Q165: =IF(C165="","",LOOKUP(J165,Area!$A$2:$B$71)+LOOKUP(K165,ByM!$A$2:$B$462)+LOOKUP(L165,ByM!$A$2:$B$462)+LOOKUP(M165,ByM!$A$2:$B$462)+LOOKUP(N165,ByM!$A$2:$B$462)+LOOKUP(O165,ByM!$A$2:$B$462)) -> -5
B166: Arma | C166: Daga | E166: 1 | F166: 1 | G166: 0 | H166: 2 | I166: 10 | J166: - | K166: - | L166: - | M166: - | N166: - | O166: - | P166: =IF(C166="","",INDEX($Q$3:$Z$12,E166,F166)+G166+H166) -> 10 | Q166: =IF(C166="","",LOOKUP(J166,Area!$A$2:$B$71)+LOOKUP(K166,ByM!$A$2:$B$462)+LOOKUP(L166,ByM!$A$2:$B$462)+LOOKUP(M166,ByM!$A$2:$B$462)+LOOKUP(N166,ByM!$A$2:$B$462)+LOOKUP(O166,ByM!$A$2:$B$462)) -> 0
B167: Arma | C167: Daga de parada | E167: 1 | F167: 1 | G167: 0 | H167: 5 | I167: 21 | J167: - | K167: Difícil de matar (CaC) | L167: - | M167: - | N167: - | O167: - | P167: =IF(C167="","",INDEX($Q$3:$Z$12,E167,F167)+G167+H167) -> 13 | Q167: =IF(C167="","",LOOKUP(J167,Area!$A$2:$B$71)+LOOKUP(K167,ByM!$A$2:$B$462)+LOOKUP(L167,ByM!$A$2:$B$462)+LOOKUP(M167,ByM!$A$2:$B$462)+LOOKUP(N167,ByM!$A$2:$B$462)+LOOKUP(O167,ByM!$A$2:$B$462)) -> 8
B168: Arma | C168: Daga sagrada de Xapur | E168: 2 | F168: 2 | G168: 0 | H168: 3 | I168: 39 | J168: - | K168: Munición paralizante | L168: munición perforante | M168: - | N168: - | O168: - | P168: =IF(C168="","",INDEX($Q$3:$Z$12,E168,F168)+G168+H168) -> 14 | Q168: =IF(C168="","",LOOKUP(J168,Area!$A$2:$B$71)+LOOKUP(K168,ByM!$A$2:$B$462)+LOOKUP(L168,ByM!$A$2:$B$462)+LOOKUP(M168,ByM!$A$2:$B$462)+LOOKUP(N168,ByM!$A$2:$B$462)+LOOKUP(O168,ByM!$A$2:$B$462)) -> 25
B169: Arma | C169: Dardo | E169: 1 | F169: 1 | G169: 3 | H169: 2 | I169: 13 | J169: - | K169: - | L169: - | M169: - | N169: - | O169: - | P169: =IF(C169="","",INDEX($Q$3:$Z$12,E169,F169)+G169+H169) -> 13 | Q169: =IF(C169="","",LOOKUP(J169,Area!$A$2:$B$71)+LOOKUP(K169,ByM!$A$2:$B$462)+LOOKUP(L169,ByM!$A$2:$B$462)+LOOKUP(M169,ByM!$A$2:$B$462)+LOOKUP(N169,ByM!$A$2:$B$462)+LOOKUP(O169,ByM!$A$2:$B$462)) -> 0
B170: Arma | C170: Desmembrar | E170: 3 | F170: 4 | G170: 5 | H170: 3 | I170: 64 | J170: - | K170: Invocación | L170: Daño extra | M170: Munición perforante | N170: - | O170: - | P170: =IF(C170="","",INDEX($Q$3:$Z$12,E170,F170)+G170+H170) -> 39 | Q170: =IF(C170="","",LOOKUP(J170,Area!$A$2:$B$71)+LOOKUP(K170,ByM!$A$2:$B$462)+LOOKUP(L170,ByM!$A$2:$B$462)+LOOKUP(M170,ByM!$A$2:$B$462)+LOOKUP(N170,ByM!$A$2:$B$462)+LOOKUP(O170,ByM!$A$2:$B$462)) -> 25
B171: Arma | C171: Destructor de fusión | E171: 7 | F171: 7 | G171: 20 | H171: 5 | I171: 68 | J171: - | K171: Munición experimental | L171: Enorme | M171: - | N171: - | O171: - | P171: =IF(C171="","",INDEX($Q$3:$Z$12,E171,F171)+G171+H171) -> 53 | Q171: =IF(C171="","",LOOKUP(J171,Area!$A$2:$B$71)+LOOKUP(K171,ByM!$A$2:$B$462)+LOOKUP(L171,ByM!$A$2:$B$462)+LOOKUP(M171,ByM!$A$2:$B$462)+LOOKUP(N171,ByM!$A$2:$B$462)+LOOKUP(O171,ByM!$A$2:$B$462)) -> 15
B172: Arma | C172: Destructor láser | E172: 9 | F172: 9 | G172: 30 | H172: 8 | I172: 81 | J172: - | K172: Daño extra | L172: - | M172: - | N172: - | O172: - | P172: =IF(C172="","",INDEX($Q$3:$Z$12,E172,F172)+G172+H172) -> 78 | Q172: =IF(C172="","",LOOKUP(J172,Area!$A$2:$B$71)+LOOKUP(K172,ByM!$A$2:$B$462)+LOOKUP(L172,ByM!$A$2:$B$462)+LOOKUP(M172,ByM!$A$2:$B$462)+LOOKUP(N172,ByM!$A$2:$B$462)+LOOKUP(O172,ByM!$A$2:$B$462)) -> 3
B173: Arma | C173: Destructor láser Lancero | E173: 9 | F173: 9 | G173: 50 | H173: 8 | I173: 96 | J173: - | K173: Daño extra | L173: Enorme | M173: - | N173: - | O173: - | P173: =IF(C173="","",INDEX($Q$3:$Z$12,E173,F173)+G173+H173) -> 98 | Q173: =IF(C173="","",LOOKUP(J173,Area!$A$2:$B$71)+LOOKUP(K173,ByM!$A$2:$B$462)+LOOKUP(L173,ByM!$A$2:$B$462)+LOOKUP(M173,ByM!$A$2:$B$462)+LOOKUP(N173,ByM!$A$2:$B$462)+LOOKUP(O173,ByM!$A$2:$B$462)) -> -2
B174: Arma | C174: Destructor láser pesado | E174: 9 | F174: 10 | G174: 50 | H174: 8 | I174: 158 | J174: - | K174: Daño extra | L174: - | M174: - | N174: - | O174: - | P174: =IF(C174="","",INDEX($Q$3:$Z$12,E174,F174)+G174+H174) -> 155 | Q174: =IF(C174="","",LOOKUP(J174,Area!$A$2:$B$71)+LOOKUP(K174,ByM!$A$2:$B$462)+LOOKUP(L174,ByM!$A$2:$B$462)+LOOKUP(M174,ByM!$A$2:$B$462)+LOOKUP(N174,ByM!$A$2:$B$462)+LOOKUP(O174,ByM!$A$2:$B$462)) -> 3
B175: Arma | C175: Die glocke, la campana | E175: 2 | F175: 1 | G175: 0 | H175: 6 | I175: 16 | J175: R3 | K175: Cuerpo de luz | L175: Munición corrosiva | M175: Peligro | N175: - | O175: - | P175: =IF(C175="","",INDEX($Q$3:$Z$12,E175,F175)+G175+H175) -> 1 | Q175: =IF(C175="","",LOOKUP(J175,Area!$A$2:$B$71)+LOOKUP(K175,ByM!$A$2:$B$462)+LOOKUP(L175,ByM!$A$2:$B$462)+LOOKUP(M175,ByM!$A$2:$B$462)+LOOKUP(N175,ByM!$A$2:$B$462)+LOOKUP(O175,ByM!$A$2:$B$462)) -> 15
B176: Arma | C176: Dientes de Terra | E176: 3 | F176: 4 | G176: 0 | H176: 3 | I176: 17 | J176: - | K176: Daño extra | L176: Reliquia | M176: - | N176: - | O176: - | P176: =IF(C176="","",INDEX($Q$3:$Z$12,E176,F176)+G176+H176) -> 34 | Q176: =IF(C176="","",LOOKUP(J176,Area!$A$2:$B$71)+LOOKUP(K176,ByM!$A$2:$B$462)+LOOKUP(L176,ByM!$A$2:$B$462)+LOOKUP(M176,ByM!$A$2:$B$462)+LOOKUP(N176,ByM!$A$2:$B$462)+LOOKUP(O176,ByM!$A$2:$B$462)) -> -17
B177: Arma | C177: Escopeta | E177: 3 | F177: 4 | G177: 10 | H177: 2 | I177: 35 | J177: - | K177: A 2 manos | L177: Cargadores (X) | M177: - | N177: - | O177: - | P177: =IF(C177="","",INDEX($Q$3:$Z$12,E177,F177)+G177+H177) -> 43 | Q177: =IF(C177="","",LOOKUP(J177,Area!$A$2:$B$71)+LOOKUP(K177,ByM!$A$2:$B$462)+LOOKUP(L177,ByM!$A$2:$B$462)+LOOKUP(M177,ByM!$A$2:$B$462)+LOOKUP(N177,ByM!$A$2:$B$462)+LOOKUP(O177,ByM!$A$2:$B$462)) -> -8
B178: Arma | C178: Escopeta astartes | E178: 4 | F178: 4 | G178: 15 | H178: 3 | I178: 34 | J178: - | K178: - | L178: - | M178: - | N178: - | O178: - | P178: =IF(C178="","",INDEX($Q$3:$Z$12,E178,F178)+G178+H178) -> 34 | Q178: =IF(C178="","",LOOKUP(J178,Area!$A$2:$B$71)+LOOKUP(K178,ByM!$A$2:$B$462)+LOOKUP(L178,ByM!$A$2:$B$462)+LOOKUP(M178,ByM!$A$2:$B$462)+LOOKUP(N178,ByM!$A$2:$B$462)+LOOKUP(O178,ByM!$A$2:$B$462)) -> 0
B179: Arma | C179: Escopeta corredera | E179: 3 | F179: 4 | G179: 8 | H179: 2 | I179: 46 | J179: - | K179: Munición de parada | L179: - | M179: - | N179: - | O179: - | P179: =IF(C179="","",INDEX($Q$3:$Z$12,E179,F179)+G179+H179) -> 41 | Q179: =IF(C179="","",LOOKUP(J179,Area!$A$2:$B$71)+LOOKUP(K179,ByM!$A$2:$B$462)+LOOKUP(L179,ByM!$A$2:$B$462)+LOOKUP(M179,ByM!$A$2:$B$462)+LOOKUP(N179,ByM!$A$2:$B$462)+LOOKUP(O179,ByM!$A$2:$B$462)) -> 5
B180: Arma | C180: Escopeta corredera Armat 37A2 12 | E180: 5 | F180: 4 | G180: 10 | H180: 5 | I180: 16 | J180: - | K180: Cargadores (8) | L180: Munición de parada | M180: - | N180: - | O180: - | P180: =IF(C180="","",INDEX($Q$3:$Z$12,E180,F180)+G180+H180) -> 16 | Q180: =IF(C180="","",LOOKUP(J180,Area!$A$2:$B$71)+LOOKUP(K180,ByM!$A$2:$B$462)+LOOKUP(L180,ByM!$A$2:$B$462)+LOOKUP(M180,ByM!$A$2:$B$462)+LOOKUP(N180,ByM!$A$2:$B$462)+LOOKUP(O180,ByM!$A$2:$B$462)) -> 0
B181: Arma | C181: Escopeta de Mel | E181: 4 | F181: 4 | G181: 7 | H181: 2 | I181: 10 | J181: - | K181: Cargadores (X) (2) | L181: De Padrón | M181: - | N181: - | O181: - | P181: =IF(C181="","",INDEX($Q$3:$Z$12,E181,F181)+G181+H181) -> 25 | Q181: =IF(C181="","",LOOKUP(J181,Area!$A$2:$B$71)+LOOKUP(K181,ByM!$A$2:$B$462)+LOOKUP(L181,ByM!$A$2:$B$462)+LOOKUP(M181,ByM!$A$2:$B$462)+LOOKUP(N181,ByM!$A$2:$B$462)+LOOKUP(O181,ByM!$A$2:$B$462)) -> -15
B182: Arma | C182: Espada | E182: 3 | F182: 3 | G182: 0 | H182: 3 | I182: 24 | J182: - | K182: Difícil de matar (CaC) | L182: - | M182: - | N182: - | O182: - | P182: =IF(C182="","",INDEX($Q$3:$Z$12,E182,F182)+G182+H182) -> 16 | Q182: =IF(C182="","",LOOKUP(J182,Area!$A$2:$B$71)+LOOKUP(K182,ByM!$A$2:$B$462)+LOOKUP(L182,ByM!$A$2:$B$462)+LOOKUP(M182,ByM!$A$2:$B$462)+LOOKUP(N182,ByM!$A$2:$B$462)+LOOKUP(O182,ByM!$A$2:$B$462)) -> 8
B183: Arma | C183: Espada a 2 manos | E183: 3 | F183: 4 | G183: 0 | H183: 3 | I183: 34 | J183: - | K183: A 2 manos | L183: Daño extra | M183: - | N183: - | O183: - | P183: =IF(C183="","",INDEX($Q$3:$Z$12,E183,F183)+G183+H183) -> 34 | Q183: =IF(C183="","",LOOKUP(J183,Area!$A$2:$B$71)+LOOKUP(K183,ByM!$A$2:$B$462)+LOOKUP(L183,ByM!$A$2:$B$462)+LOOKUP(M183,ByM!$A$2:$B$462)+LOOKUP(N183,ByM!$A$2:$B$462)+LOOKUP(O183,ByM!$A$2:$B$462)) -> 0
B184: Arma | C184: Espada ancha | E184: 3 | F184: 3 | G184: 0 | H184: 3 | I184: 26 | J184: - | K184: Absorción de impacto | L184: - | M184: - | N184: - | O184: - | P184: =IF(C184="","",INDEX($Q$3:$Z$12,E184,F184)+G184+H184) -> 16 | Q184: =IF(C184="","",LOOKUP(J184,Area!$A$2:$B$71)+LOOKUP(K184,ByM!$A$2:$B$462)+LOOKUP(L184,ByM!$A$2:$B$462)+LOOKUP(M184,ByM!$A$2:$B$462)+LOOKUP(N184,ByM!$A$2:$B$462)+LOOKUP(O184,ByM!$A$2:$B$462)) -> 10
B185: Arma | C185: Espada ardiente | E185: 3 | F185: 3 | G185: 0 | H185: 3 | I185: 11 | J185: - | K185: Munición perforante | L185: Reliquia | M185: - | N185: - | O185: - | P185: =IF(C185="","",INDEX($Q$3:$Z$12,E185,F185)+G185+H185) -> 16 | Q185: =IF(C185="","",LOOKUP(J185,Area!$A$2:$B$71)+LOOKUP(K185,ByM!$A$2:$B$462)+LOOKUP(L185,ByM!$A$2:$B$462)+LOOKUP(M185,ByM!$A$2:$B$462)+LOOKUP(N185,ByM!$A$2:$B$462)+LOOKUP(O185,ByM!$A$2:$B$462)) -> -5
B186: Arma | C186: Espada corta | E186: 2 | F186: 2 | G186: 0 | H186: 3 | I186: 22 | J186: - | K186: Difícil de matar (CaC) | L186: - | M186: - | N186: - | O186: - | P186: =IF(C186="","",INDEX($Q$3:$Z$12,E186,F186)+G186+H186) -> 14 | Q186: =IF(C186="","",LOOKUP(J186,Area!$A$2:$B$71)+LOOKUP(K186,ByM!$A$2:$B$462)+LOOKUP(L186,ByM!$A$2:$B$462)+LOOKUP(M186,ByM!$A$2:$B$462)+LOOKUP(N186,ByM!$A$2:$B$462)+LOOKUP(O186,ByM!$A$2:$B$462)) -> 8
B187: Arma | C187: Espada de Conan | E187: 3 | F187: 4 | G187: 0 | H187: 5 | I187: 41 | J187: - | K187: Afilada | L187: - | M187: - | N187: - | O187: - | P187: =IF(C187="","",INDEX($Q$3:$Z$12,E187,F187)+G187+H187) -> 36 | Q187: =IF(C187="","",LOOKUP(J187,Area!$A$2:$B$71)+LOOKUP(K187,ByM!$A$2:$B$462)+LOOKUP(L187,ByM!$A$2:$B$462)+LOOKUP(M187,ByM!$A$2:$B$462)+LOOKUP(N187,ByM!$A$2:$B$462)+LOOKUP(O187,ByM!$A$2:$B$462)) -> 5
B188: Arma | C188: Espada de energía | E188: 3 | F188: 3 | G188: 0 | H188: 3 | I188: 39 | J188: - | K188: Difícil de matar (CaC) | L188: Munición perforante | M188: - | N188: - | O188: - | P188: =IF(C188="","",INDEX($Q$3:$Z$12,E188,F188)+G188+H188) -> 16 | Q188: =IF(C188="","",LOOKUP(J188,Area!$A$2:$B$71)+LOOKUP(K188,ByM!$A$2:$B$462)+LOOKUP(L188,ByM!$A$2:$B$462)+LOOKUP(M188,ByM!$A$2:$B$462)+LOOKUP(N188,ByM!$A$2:$B$462)+LOOKUP(O188,ByM!$A$2:$B$462)) -> 23
B189: Arma | C189: Espada de energía artesanal | E189: 3 | F189: 3 | G189: 0 | H189: 3 | I189: 54 | J189: - | K189: Difícil de matar (CaC) | L189: De precisión | M189: Munición perforante | N189: - | O189: - | P189: =IF(C189="","",INDEX($Q$3:$Z$12,E189,F189)+G189+H189) -> 16 | Q189: =IF(C189="","",LOOKUP(J189,Area!$A$2:$B$71)+LOOKUP(K189,ByM!$A$2:$B$462)+LOOKUP(L189,ByM!$A$2:$B$462)+LOOKUP(M189,ByM!$A$2:$B$462)+LOOKUP(N189,ByM!$A$2:$B$462)+LOOKUP(O189,ByM!$A$2:$B$462)) -> 38
B190: Arma | C190: Espada larga | E190: 3 | F190: 3 | G190: 0 | H190: 3 | I190: 21 | J190: - | K190: Afilada | L190: - | M190: - | N190: - | O190: - | P190: =IF(C190="","",INDEX($Q$3:$Z$12,E190,F190)+G190+H190) -> 16 | Q190: =IF(C190="","",LOOKUP(J190,Area!$A$2:$B$71)+LOOKUP(K190,ByM!$A$2:$B$462)+LOOKUP(L190,ByM!$A$2:$B$462)+LOOKUP(M190,ByM!$A$2:$B$462)+LOOKUP(N190,ByM!$A$2:$B$462)+LOOKUP(O190,ByM!$A$2:$B$462)) -> 5
B191: Arma | C191: Espada psíquica | E191: 3 | F191: 3 | G191: 0 | H191: 3 | I191: 34 | J191: - | K191: Difícil de matar (CaC) | L191: Munición bendecida | M191: - | N191: - | O191: - | P191: =IF(C191="","",INDEX($Q$3:$Z$12,E191,F191)+G191+H191) -> 16 | Q191: =IF(C191="","",LOOKUP(J191,Area!$A$2:$B$71)+LOOKUP(K191,ByM!$A$2:$B$462)+LOOKUP(L191,ByM!$A$2:$B$462)+LOOKUP(M191,ByM!$A$2:$B$462)+LOOKUP(N191,ByM!$A$2:$B$462)+LOOKUP(O191,ByM!$A$2:$B$462)) -> 18
B192: Arma | C192: Espada sierra astartes | E192: 3 | F192: 3 | G192: 0 | H192: 3 | I192: 24 | J192: - | K192: Difícil de matar (CaC) | L192: - | M192: - | N192: - | O192: - | P192: =IF(C192="","",INDEX($Q$3:$Z$12,E192,F192)+G192+H192) -> 16 | Q192: =IF(C192="","",LOOKUP(J192,Area!$A$2:$B$71)+LOOKUP(K192,ByM!$A$2:$B$462)+LOOKUP(L192,ByM!$A$2:$B$462)+LOOKUP(M192,ByM!$A$2:$B$462)+LOOKUP(N192,ByM!$A$2:$B$462)+LOOKUP(O192,ByM!$A$2:$B$462)) -> 8
B193: Arma | C193: Espada Xenofase | E193: 3 | F193: 3 | G193: 0 | H193: 3 | I193: 27 | J193: - | K193: Daño extra | L193: Munición vida o muerte | M193: - | N193: - | O193: - | P193: =IF(C193="","",INDEX($Q$3:$Z$12,E193,F193)+G193+H193) -> 16 | Q193: =IF(C193="","",LOOKUP(J193,Area!$A$2:$B$71)+LOOKUP(K193,ByM!$A$2:$B$462)+LOOKUP(L193,ByM!$A$2:$B$462)+LOOKUP(M193,ByM!$A$2:$B$462)+LOOKUP(N193,ByM!$A$2:$B$462)+LOOKUP(O193,ByM!$A$2:$B$462)) -> 11
B194: Arma | C194: Espadón o montante | E194: 3 | F194: 4 | G194: 0 | H194: 4 | I194: 32 | J194: - | K194: A 2 manos | L194: - | M194: - | N194: - | O194: - | P194: =IF(C194="","",INDEX($Q$3:$Z$12,E194,F194)+G194+H194) -> 35 | Q194: =IF(C194="","",LOOKUP(J194,Area!$A$2:$B$71)+LOOKUP(K194,ByM!$A$2:$B$462)+LOOKUP(L194,ByM!$A$2:$B$462)+LOOKUP(M194,ByM!$A$2:$B$462)+LOOKUP(N194,ByM!$A$2:$B$462)+LOOKUP(O194,ByM!$A$2:$B$462)) -> -3
B195: Arma | C195: Espíritu del mordedor | E195: 7 | F195: 5 | G195: 10 | H195: 3 | I195: 1 | J195: - | K195: Invocación | L195: - | M195: - | N195: - | O195: - | P195: =IF(C195="","",INDEX($Q$3:$Z$12,E195,F195)+G195+H195) -> -25 | Q195: =IF(C195="","",LOOKUP(J195,Area!$A$2:$B$71)+LOOKUP(K195,ByM!$A$2:$B$462)+LOOKUP(L195,ByM!$A$2:$B$462)+LOOKUP(M195,ByM!$A$2:$B$462)+LOOKUP(N195,ByM!$A$2:$B$462)+LOOKUP(O195,ByM!$A$2:$B$462)) -> 7
B196: Arma | C196: Espolón láser | E196: 9 | F196: 9 | G196: 20 | H196: 6 | I196: 69 | J196: - | K196: Daño extra | L196: - | M196: - | N196: - | O196: - | P196: =IF(C196="","",INDEX($Q$3:$Z$12,E196,F196)+G196+H196) -> 66 | Q196: =IF(C196="","",LOOKUP(J196,Area!$A$2:$B$71)+LOOKUP(K196,ByM!$A$2:$B$462)+LOOKUP(L196,ByM!$A$2:$B$462)+LOOKUP(M196,ByM!$A$2:$B$462)+LOOKUP(N196,ByM!$A$2:$B$462)+LOOKUP(O196,ByM!$A$2:$B$462)) -> 3
B197: Arma | C197: Espolón láser acoplado | E197: 7 | F197: 9 | G197: 20 | H197: 6 | I197: 189 | J197: - | K197: Daño extra | L197: - | M197: - | N197: - | O197: - | P197: =IF(C197="","",INDEX($Q$3:$Z$12,E197,F197)+G197+H197) -> 186 | Q197: =IF(C197="","",LOOKUP(J197,Area!$A$2:$B$71)+LOOKUP(K197,ByM!$A$2:$B$462)+LOOKUP(L197,ByM!$A$2:$B$462)+LOOKUP(M197,ByM!$A$2:$B$462)+LOOKUP(N197,ByM!$A$2:$B$462)+LOOKUP(O197,ByM!$A$2:$B$462)) -> 3
B198: Arma | C198: Espolón láser atronador | E198: 9 | F198: 9 | G198: 30 | H198: 6 | I198: 79 | J198: - | K198: Daño extra | L198: - | M198: - | N198: - | O198: - | P198: =IF(C198="","",INDEX($Q$3:$Z$12,E198,F198)+G198+H198) -> 76 | Q198: =IF(C198="","",LOOKUP(J198,Area!$A$2:$B$71)+LOOKUP(K198,ByM!$A$2:$B$462)+LOOKUP(L198,ByM!$A$2:$B$462)+LOOKUP(M198,ByM!$A$2:$B$462)+LOOKUP(N198,ByM!$A$2:$B$462)+LOOKUP(O198,ByM!$A$2:$B$462)) -> 3
B199: Arma | C199: Estoque | E199: 3 | F199: 3 | G199: 0 | H199: 3 | I199: 16 | J199: - | K199: - | L199: - | M199: - | N199: - | O199: - | P199: =IF(C199="","",INDEX($Q$3:$Z$12,E199,F199)+G199+H199) -> 16 | Q199: =IF(C199="","",LOOKUP(J199,Area!$A$2:$B$71)+LOOKUP(K199,ByM!$A$2:$B$462)+LOOKUP(L199,ByM!$A$2:$B$462)+LOOKUP(M199,ByM!$A$2:$B$462)+LOOKUP(N199,ByM!$A$2:$B$462)+LOOKUP(O199,ByM!$A$2:$B$462)) -> 0
B200: Arma | C200: Estrella ninja o Shuriken | E200: 1 | F200: 1 | G200: 5 | H200: 5 | I200: 13 | J200: - | K200: Cargas (5) | L200: - | M200: - | N200: - | O200: - | P200: =IF(C200="","",INDEX($Q$3:$Z$12,E200,F200)+G200+H200) -> 18 | Q200: =IF(C200="","",LOOKUP(J200,Area!$A$2:$B$71)+LOOKUP(K200,ByM!$A$2:$B$462)+LOOKUP(L200,ByM!$A$2:$B$462)+LOOKUP(M200,ByM!$A$2:$B$462)+LOOKUP(N200,ByM!$A$2:$B$462)+LOOKUP(O200,ByM!$A$2:$B$462)) -> -5
B201: Arma | C201: Eviscerador | E201: 3 | F201: 4 | G201: 0 | H201: 4 | I201: 25 | J201: - | K201: A 2 manos | L201: Arma complicada | M201: Daño extra | N201: - | O201: - | P201: =IF(C201="","",INDEX($Q$3:$Z$12,E201,F201)+G201+H201) -> 35 | Q201: =IF(C201="","",LOOKUP(J201,Area!$A$2:$B$71)+LOOKUP(K201,ByM!$A$2:$B$462)+LOOKUP(L201,ByM!$A$2:$B$462)+LOOKUP(M201,ByM!$A$2:$B$462)+LOOKUP(N201,ByM!$A$2:$B$462)+LOOKUP(O201,ByM!$A$2:$B$462)) -> -10
B202: Arma | C202: Explosivos | E202: 4 | F202: 4 | G202: 0 | H202: 3 | I202: 32 | J202: R2 | K202: Munición incendiaria | L202: Temporizador | M202: - | N202: - | O202: - | P202: =IF(C202="","",INDEX($Q$3:$Z$12,E202,F202)+G202+H202) -> 19 | Q202: =IF(C202="","",LOOKUP(J202,Area!$A$2:$B$71)+LOOKUP(K202,ByM!$A$2:$B$462)+LOOKUP(L202,ByM!$A$2:$B$462)+LOOKUP(M202,ByM!$A$2:$B$462)+LOOKUP(N202,ByM!$A$2:$B$462)+LOOKUP(O202,ByM!$A$2:$B$462)) -> 13
... 279 more rows

Sheet Proteccion
B2: Nombre: | C2: Nombre | E2: Atributos: | K2: Coste del arquetipo:
B3: Bonus 1: | C3: - | D3: =LOOKUP(C3,ByM!$A$2:$B$462) -> 0 | E3: ENE | F3: DEF | G3: TAL | H3: CAL | K3: =IF(SUM(D3:D7,(F5+G5+H5-E5))<1,1,SUM(D3:D7,(F5+G5+H5-E5))) -> 4 | L3: =LOOKUP(C3,ByM!$A$2:$C$462) -> -
B4: Bonus 2: | C4: - | D4: =LOOKUP(C4,ByM!$A$2:$B$462) -> 0 | E4: 1 | F4: 1 | G4: 1 | H4: 1 | L4: =LOOKUP(C4,ByM!$A$2:$C$462) -> -
B5: Bonus 3: | C5: - | D5: =LOOKUP(C5,ByM!$A$2:$B$462) -> 0 | E5: =E4 -> 1 | F5: =F4*3 -> 3 | G5: =G4 -> 1 | H5: =H4 -> 1 | L5: =LOOKUP(C5,ByM!$A$2:$C$462) -> -
B6: Bonus 4: | C6: - | D6: =LOOKUP(C6,ByM!$A$2:$B$462) -> 0 | L6: =LOOKUP(C6,ByM!$A$2:$C$462) -> -
B7: Bonus 5: | C7: - | D7: =LOOKUP(C7,ByM!$A$2:$B$462) -> 0 | L7: =LOOKUP(C7,ByM!$A$2:$C$462) -> -
B8: Descripción:
B14: Tipo | C14: Nombre | D14: Desc | E14: ENE | F14: DEF | G14: TAL | H14: CAL | I14: PTS | J14: . | K14: Bonus 1 | L14: Bonus 2 | M14: Bonus 3 | N14: Bonus 4 | O14: Bonus 5 | P14: Pts Atr. | Q14: Pts ByM
B15: Protección | C15: Armadura Astartes | E15: 20 | F15: 6 | G15: 6 | H15: 8 | I15: 13 | K15: Comunicador | L15: - | M15: - | N15: - | O15: - | P15: =IF(C15="","",(F15*3)+G15+H15-E15) -> 12 | Q15: =IF(C15="","",LOOKUP(K15,ByM!$A$2:$B$462)+LOOKUP(L15,ByM!$A$2:$B$462)+LOOKUP(M15,ByM!$A$2:$B$462)+LOOKUP(N15,ByM!$A$2:$B$462)+LOOKUP(O15,ByM!$A$2:$B$462)) -> 1
B16: Protección | C16: Armadura Centurión | E16: 30 | F16: 7 | G16: 6 | H16: 9 | I16: 49 | K16: Ajustable | L16: Munición buscadora | M16: Salvaguarda | N16: Servus | O16: Vulnerable | P16: =IF(C16="","",(F16*3)+G16+H16-E16) -> 6 | Q16: =IF(C16="","",LOOKUP(K16,ByM!$A$2:$B$462)+LOOKUP(L16,ByM!$A$2:$B$462)+LOOKUP(M16,ByM!$A$2:$B$462)+LOOKUP(N16,ByM!$A$2:$B$462)+LOOKUP(O16,ByM!$A$2:$B$462)) -> 43
B17: Protección | C17: Armadura de cuero | E17: 6 | F17: 2 | G17: 4 | H17: 3 | I17: 7 | K17: - | L17: - | M17: - | N17: - | O17: - | P17: =IF(C17="","",(F17*3)+G17+H17-E17) -> 7 | Q17: =IF(C17="","",LOOKUP(K17,ByM!$A$2:$B$462)+LOOKUP(L17,ByM!$A$2:$B$462)+LOOKUP(M17,ByM!$A$2:$B$462)+LOOKUP(N17,ByM!$A$2:$B$462)+LOOKUP(O17,ByM!$A$2:$B$462)) -> 0
B18: Protección | C18: Armadura de escamas | E18: 20 | F18: 6 | G18: 4 | H18: 6 | I18: 8 | K18: - | L18: - | M18: - | N18: - | O18: - | P18: =IF(C18="","",(F18*3)+G18+H18-E18) -> 8 | Q18: =IF(C18="","",LOOKUP(K18,ByM!$A$2:$B$462)+LOOKUP(L18,ByM!$A$2:$B$462)+LOOKUP(M18,ByM!$A$2:$B$462)+LOOKUP(N18,ByM!$A$2:$B$462)+LOOKUP(O18,ByM!$A$2:$B$462)) -> 0
B19: Protección | C19: Armadura de explorador | E19: 10 | F19: 5 | G19: 6 | H19: 7 | I19: 19 | K19: Comunicador | L19: - | M19: - | N19: - | O19: - | P19: =IF(C19="","",(F19*3)+G19+H19-E19) -> 18 | Q19: =IF(C19="","",LOOKUP(K19,ByM!$A$2:$B$462)+LOOKUP(L19,ByM!$A$2:$B$462)+LOOKUP(M19,ByM!$A$2:$B$462)+LOOKUP(N19,ByM!$A$2:$B$462)+LOOKUP(O19,ByM!$A$2:$B$462)) -> 1
B20: Protección | C20: Armadura de guardia | E20: 9 | F20: 5 | G20: 5 | H20: 5 | I20: 16 | K20: - | L20: - | M20: - | N20: - | O20: - | P20: =IF(C20="","",(F20*3)+G20+H20-E20) -> 16 | Q20: =IF(C20="","",LOOKUP(K20,ByM!$A$2:$B$462)+LOOKUP(L20,ByM!$A$2:$B$462)+LOOKUP(M20,ByM!$A$2:$B$462)+LOOKUP(N20,ByM!$A$2:$B$462)+LOOKUP(O20,ByM!$A$2:$B$462)) -> 0
B21: Protección | C21: Armadura de malla | E21: 10 | F21: 4 | G21: 4 | H21: 4 | I21: 10 | K21: - | L21: - | M21: - | N21: - | O21: - | P21: =IF(C21="","",(F21*3)+G21+H21-E21) -> 10 | Q21: =IF(C21="","",LOOKUP(K21,ByM!$A$2:$B$462)+LOOKUP(L21,ByM!$A$2:$B$462)+LOOKUP(M21,ByM!$A$2:$B$462)+LOOKUP(N21,ByM!$A$2:$B$462)+LOOKUP(O21,ByM!$A$2:$B$462)) -> 0
B22: Protección | C22: Armadura de parches metálicos | E22: 10 | F22: 4 | G22: 4 | H22: 4 | I22: 13 | K22: Ajustable | L22: - | M22: - | N22: - | O22: - | P22: =IF(C22="","",(F22*3)+G22+H22-E22) -> 10 | Q22: =IF(C22="","",LOOKUP(K22,ByM!$A$2:$B$462)+LOOKUP(L22,ByM!$A$2:$B$462)+LOOKUP(M22,ByM!$A$2:$B$462)+LOOKUP(N22,ByM!$A$2:$B$462)+LOOKUP(O22,ByM!$A$2:$B$462)) -> 3
B23: Protección | C23: Armadura Exterminador | E23: 20 | F23: 7 | G23: 6 | H23: 9 | I23: 10 | K23: Comunicador | L23: Lastrado | M23: Mega armadura | N23: Vulnerable | O23: - | P23: =IF(C23="","",(F23*3)+G23+H23-E23) -> 16 | Q23: =IF(C23="","",LOOKUP(K23,ByM!$A$2:$B$462)+LOOKUP(L23,ByM!$A$2:$B$462)+LOOKUP(M23,ByM!$A$2:$B$462)+LOOKUP(N23,ByM!$A$2:$B$462)+LOOKUP(O23,ByM!$A$2:$B$462)) -> -6
B24: Protección | C24: Armadura Indómitus | E24: 30 | F24: 7 | G24: 7 | H24: 9 | I24: 22 | K24: Reliquia | L24: Salvaguarda | M24: Fortuna | N24: - | O24: - | P24: =IF(C24="","",(F24*3)+G24+H24-E24) -> 7 | Q24: =IF(C24="","",LOOKUP(K24,ByM!$A$2:$B$462)+LOOKUP(L24,ByM!$A$2:$B$462)+LOOKUP(M24,ByM!$A$2:$B$462)+LOOKUP(N24,ByM!$A$2:$B$462)+LOOKUP(O24,ByM!$A$2:$B$462)) -> 15
B25: Protección | C25: Armadura ligera | E25: 15 | F25: 3 | G25: 4 | H25: 4 | I25: 5 | K25: Ajustable | L25: - | M25: - | N25: - | O25: - | P25: =IF(C25="","",(F25*3)+G25+H25-E25) -> 2 | Q25: =IF(C25="","",LOOKUP(K25,ByM!$A$2:$B$462)+LOOKUP(L25,ByM!$A$2:$B$462)+LOOKUP(M25,ByM!$A$2:$B$462)+LOOKUP(N25,ByM!$A$2:$B$462)+LOOKUP(O25,ByM!$A$2:$B$462)) -> 3
B26: Protección | C26: Armadura ligera M3 | E26: 10 | F26: 3 | G26: 4 | H26: 3 | I26: 10 | K26: Ajustable | L26: Comunicador | M26: - | N26: - | O26: - | P26: =IF(C26="","",(F26*3)+G26+H26-E26) -> 6 | Q26: =IF(C26="","",LOOKUP(K26,ByM!$A$2:$B$462)+LOOKUP(L26,ByM!$A$2:$B$462)+LOOKUP(M26,ByM!$A$2:$B$462)+LOOKUP(N26,ByM!$A$2:$B$462)+LOOKUP(O26,ByM!$A$2:$B$462)) -> 4
B27: Protección | C27: Armadura marciana | E27: 10 | F27: 4 | G27: 4 | H27: 6 | I27: 22 | K27: Absorción de impacto | L27: - | M27: - | N27: - | O27: - | P27: =IF(C27="","",(F27*3)+G27+H27-E27) -> 12 | Q27: =IF(C27="","",LOOKUP(K27,ByM!$A$2:$B$462)+LOOKUP(L27,ByM!$A$2:$B$462)+LOOKUP(M27,ByM!$A$2:$B$462)+LOOKUP(N27,ByM!$A$2:$B$462)+LOOKUP(O27,ByM!$A$2:$B$462)) -> 10
B28: Protección | C28: Armadura marciana pesada | E28: 10 | F28: 4 | G28: 4 | H28: 8 | I28: 24 | K28: Escudo de energía avanzado N01 | L28: - | M28: - | N28: - | O28: - | P28: =IF(C28="","",(F28*3)+G28+H28-E28) -> 14 | Q28: =IF(C28="","",LOOKUP(K28,ByM!$A$2:$B$462)+LOOKUP(L28,ByM!$A$2:$B$462)+LOOKUP(M28,ByM!$A$2:$B$462)+LOOKUP(N28,ByM!$A$2:$B$462)+LOOKUP(O28,ByM!$A$2:$B$462)) -> 10
B29: Protección | C29: Armadura MK X Gravis | E29: 20 | F29: 6 | G29: 6 | H29: 8 | I29: 38 | K29: Comunicador | L29: Lastrado | M29: Fortuna | N29: Refuerzo | O29: - | P29: =IF(C29="","",(F29*3)+G29+H29-E29) -> 12 | Q29: =IF(C29="","",LOOKUP(K29,ByM!$A$2:$B$462)+LOOKUP(L29,ByM!$A$2:$B$462)+LOOKUP(M29,ByM!$A$2:$B$462)+LOOKUP(N29,ByM!$A$2:$B$462)+LOOKUP(O29,ByM!$A$2:$B$462)) -> 26
B30: Protección | C30: Armadura muy pesada | E30: 25 | F30: 5 | G30: 4 | H30: 8 | I30: 2 | K30: - | L30: - | M30: - | N30: - | O30: - | P30: =IF(C30="","",(F30*3)+G30+H30-E30) -> 2 | Q30: =IF(C30="","",LOOKUP(K30,ByM!$A$2:$B$462)+LOOKUP(L30,ByM!$A$2:$B$462)+LOOKUP(M30,ByM!$A$2:$B$462)+LOOKUP(N30,ByM!$A$2:$B$462)+LOOKUP(O30,ByM!$A$2:$B$462)) -> 0
B31: Protección | C31: Armadura muy pesada grande | E31: 25 | F31: 5 | G31: 5 | H31: 8 | I31: 3 | K31: - | L31: - | M31: - | N31: - | O31: - | P31: =IF(C31="","",(F31*3)+G31+H31-E31) -> 3 | Q31: =IF(C31="","",LOOKUP(K31,ByM!$A$2:$B$462)+LOOKUP(L31,ByM!$A$2:$B$462)+LOOKUP(M31,ByM!$A$2:$B$462)+LOOKUP(N31,ByM!$A$2:$B$462)+LOOKUP(O31,ByM!$A$2:$B$462)) -> 0
B32: Protección | C32: Armadura personal M3 | E32: 10 | F32: 5 | G32: 4 | H32: 3 | I32: 16 | K32: Ajustable | L32: Comunicador | M32: - | N32: - | O32: - | P32: =IF(C32="","",(F32*3)+G32+H32-E32) -> 12 | Q32: =IF(C32="","",LOOKUP(K32,ByM!$A$2:$B$462)+LOOKUP(L32,ByM!$A$2:$B$462)+LOOKUP(M32,ByM!$A$2:$B$462)+LOOKUP(N32,ByM!$A$2:$B$462)+LOOKUP(O32,ByM!$A$2:$B$462)) -> 4
B33: Protección | C33: Armadura pesada | E33: 20 | F33: 4 | G33: 4 | H33: 6 | I33: 2 | K33: - | L33: - | M33: - | N33: - | O33: - | P33: =IF(C33="","",(F33*3)+G33+H33-E33) -> 2 | Q33: =IF(C33="","",LOOKUP(K33,ByM!$A$2:$B$462)+LOOKUP(L33,ByM!$A$2:$B$462)+LOOKUP(M33,ByM!$A$2:$B$462)+LOOKUP(N33,ByM!$A$2:$B$462)+LOOKUP(O33,ByM!$A$2:$B$462)) -> 0
B34: Protección | C34: Armadura pesada grande | E34: 20 | F34: 4 | G34: 5 | H34: 6 | I34: 3 | K34: - | L34: - | M34: - | N34: - | O34: - | P34: =IF(C34="","",(F34*3)+G34+H34-E34) -> 3 | Q34: =IF(C34="","",LOOKUP(K34,ByM!$A$2:$B$462)+LOOKUP(L34,ByM!$A$2:$B$462)+LOOKUP(M34,ByM!$A$2:$B$462)+LOOKUP(N34,ByM!$A$2:$B$462)+LOOKUP(O34,ByM!$A$2:$B$462)) -> 0
B35: Protección | C35: Armadura Phobos | E35: 20 | F35: 6 | G35: 6 | H35: 8 | I35: 36 | K35: Camuflaje | L35: Comunicador | M35: Radar | N35: Visor N03 | O35: - | P35: =IF(C35="","",(F35*3)+G35+H35-E35) -> 12 | Q35: =IF(C35="","",LOOKUP(K35,ByM!$A$2:$B$462)+LOOKUP(L35,ByM!$A$2:$B$462)+LOOKUP(M35,ByM!$A$2:$B$462)+LOOKUP(N35,ByM!$A$2:$B$462)+LOOKUP(O35,ByM!$A$2:$B$462)) -> 24
B36: Protección | C36: Armadura Primaris | E36: 20 | F36: 6 | G36: 7 | H36: 9 | I36: 15 | K36: Comunicador | L36: - | M36: - | N36: - | O36: - | P36: =IF(C36="","",(F36*3)+G36+H36-E36) -> 14 | Q36: =IF(C36="","",LOOKUP(K36,ByM!$A$2:$B$462)+LOOKUP(L36,ByM!$A$2:$B$462)+LOOKUP(M36,ByM!$A$2:$B$462)+LOOKUP(N36,ByM!$A$2:$B$462)+LOOKUP(O36,ByM!$A$2:$B$462)) -> 1
B37: Protección | C37: Armadura táctica marine | E37: 5 | F37: 4 | G37: 4 | H37: 4 | I37: 16 | K37: Comunicador | L37: - | M37: - | N37: - | O37: - | P37: =IF(C37="","",(F37*3)+G37+H37-E37) -> 15 | Q37: =IF(C37="","",LOOKUP(K37,ByM!$A$2:$B$462)+LOOKUP(L37,ByM!$A$2:$B$462)+LOOKUP(M37,ByM!$A$2:$B$462)+LOOKUP(N37,ByM!$A$2:$B$462)+LOOKUP(O37,ByM!$A$2:$B$462)) -> 1
B38: Protección | C38: Armadura Tecnomarine | E38: 30 | F38: 7 | G38: 7 | H38: 9 | I38: 23 | K38: Ultraligero | L38: Vulnerable | M38: Comunicador | N38: - | O38: - | P38: =IF(C38="","",(F38*3)+G38+H38-E38) -> 7 | Q38: =IF(C38="","",LOOKUP(K38,ByM!$A$2:$B$462)+LOOKUP(L38,ByM!$A$2:$B$462)+LOOKUP(M38,ByM!$A$2:$B$462)+LOOKUP(N38,ByM!$A$2:$B$462)+LOOKUP(O38,ByM!$A$2:$B$462)) -> 16
B39: Protección | C39: Armazón subdérmico | E39: 0 | F39: 6 | G39: 6 | H39: 6 | I39: 30 | K39: - | L39: - | M39: - | N39: - | O39: - | P39: =IF(C39="","",(F39*3)+G39+H39-E39) -> 30 | Q39: =IF(C39="","",LOOKUP(K39,ByM!$A$2:$B$462)+LOOKUP(L39,ByM!$A$2:$B$462)+LOOKUP(M39,ByM!$A$2:$B$462)+LOOKUP(N39,ByM!$A$2:$B$462)+LOOKUP(O39,ByM!$A$2:$B$462)) -> 0
B40: Protección | C40: Armazón T-800 | E40: 0 | F40: 8 | G40: 7 | H40: 10 | I40: 41 | K40: - | L40: - | M40: - | N40: - | O40: - | P40: =IF(C40="","",(F40*3)+G40+H40-E40) -> 41 | Q40: =IF(C40="","",LOOKUP(K40,ByM!$A$2:$B$462)+LOOKUP(L40,ByM!$A$2:$B$462)+LOOKUP(M40,ByM!$A$2:$B$462)+LOOKUP(N40,ByM!$A$2:$B$462)+LOOKUP(O40,ByM!$A$2:$B$462)) -> 0
B41: Protección | C41: Barda ligera | E41: 5 | F41: 1 | G41: 7 | H41: 5 | I41: 13 | K41: Ajustable | L41: - | M41: - | N41: - | O41: - | P41: =IF(C41="","",(F41*3)+G41+H41-E41) -> 10 | Q41: =IF(C41="","",LOOKUP(K41,ByM!$A$2:$B$462)+LOOKUP(L41,ByM!$A$2:$B$462)+LOOKUP(M41,ByM!$A$2:$B$462)+LOOKUP(N41,ByM!$A$2:$B$462)+LOOKUP(O41,ByM!$A$2:$B$462)) -> 3
B42: Protección | C42: Barda muy pesada | E42: 20 | F42: 4 | G42: 7 | H42: 7 | I42: 9 | K42: Ajustable | L42: - | M42: - | N42: - | O42: - | P42: =IF(C42="","",(F42*3)+G42+H42-E42) -> 6 | Q42: =IF(C42="","",LOOKUP(K42,ByM!$A$2:$B$462)+LOOKUP(L42,ByM!$A$2:$B$462)+LOOKUP(M42,ByM!$A$2:$B$462)+LOOKUP(N42,ByM!$A$2:$B$462)+LOOKUP(O42,ByM!$A$2:$B$462)) -> 3
B43: Protección | C43: Barda pesada | E43: 10 | F43: 2 | G43: 7 | H43: 6 | I43: 12 | K43: Ajustable | L43: - | M43: - | N43: - | O43: - | P43: =IF(C43="","",(F43*3)+G43+H43-E43) -> 9 | Q43: =IF(C43="","",LOOKUP(K43,ByM!$A$2:$B$462)+LOOKUP(L43,ByM!$A$2:$B$462)+LOOKUP(M43,ByM!$A$2:$B$462)+LOOKUP(N43,ByM!$A$2:$B$462)+LOOKUP(O43,ByM!$A$2:$B$462)) -> 3
B44: Protección | C44: Botas de seguridad | E44: 3 | F44: 1 | G44: 5 | H44: 2 | I44: 7 | K44: - | L44: - | M44: - | N44: - | O44: - | P44: =IF(C44="","",(F44*3)+G44+H44-E44) -> 7 | Q44: =IF(C44="","",LOOKUP(K44,ByM!$A$2:$B$462)+LOOKUP(L44,ByM!$A$2:$B$462)+LOOKUP(M44,ByM!$A$2:$B$462)+LOOKUP(N44,ByM!$A$2:$B$462)+LOOKUP(O44,ByM!$A$2:$B$462)) -> 0
B45: Protección | C45: Botas de seguridad pequeñas | E45: 3 | F45: 1 | G45: 3 | H45: 2 | I45: 5 | K45: - | L45: - | M45: - | N45: - | O45: - | P45: =IF(C45="","",(F45*3)+G45+H45-E45) -> 5 | Q45: =IF(C45="","",LOOKUP(K45,ByM!$A$2:$B$462)+LOOKUP(L45,ByM!$A$2:$B$462)+LOOKUP(M45,ByM!$A$2:$B$462)+LOOKUP(N45,ByM!$A$2:$B$462)+LOOKUP(O45,ByM!$A$2:$B$462)) -> 0
B46: Protección | C46: Brazo mecánico | E46: 0 | F46: 2 | G46: 4 | H46: 2 | I46: 12 | K46: - | L46: - | M46: - | N46: - | O46: - | P46: =IF(C46="","",(F46*3)+G46+H46-E46) -> 12 | Q46: =IF(C46="","",LOOKUP(K46,ByM!$A$2:$B$462)+LOOKUP(L46,ByM!$A$2:$B$462)+LOOKUP(M46,ByM!$A$2:$B$462)+LOOKUP(N46,ByM!$A$2:$B$462)+LOOKUP(O46,ByM!$A$2:$B$462)) -> 0
B47: Protección | C47: Capa de ratas | E47: 5 | F47: 3 | G47: 4 | H47: 3 | I47: 11 | K47: - | L47: - | M47: - | N47: - | O47: - | P47: =IF(C47="","",(F47*3)+G47+H47-E47) -> 11 | Q47: =IF(C47="","",LOOKUP(K47,ByM!$A$2:$B$462)+LOOKUP(L47,ByM!$A$2:$B$462)+LOOKUP(M47,ByM!$A$2:$B$462)+LOOKUP(N47,ByM!$A$2:$B$462)+LOOKUP(O47,ByM!$A$2:$B$462)) -> 0
B48: Protección | C48: Carcasa | E48: 15 | F48: 3 | G48: 4 | H48: 3 | I48: 14 | K48: Invulnerable (fuego) | L48: Retirada ordenada | M48: - | N48: - | O48: - | P48: =IF(C48="","",(F48*3)+G48+H48-E48) -> 1 | Q48: =IF(C48="","",LOOKUP(K48,ByM!$A$2:$B$462)+LOOKUP(L48,ByM!$A$2:$B$462)+LOOKUP(M48,ByM!$A$2:$B$462)+LOOKUP(N48,ByM!$A$2:$B$462)+LOOKUP(O48,ByM!$A$2:$B$462)) -> 13
B49: Protección | C49: Casco | E49: 1 | F49: 1 | G49: 4 | H49: 1 | I49: 10 | K49: Ajustable | L49: - | M49: - | N49: - | O49: - | P49: =IF(C49="","",(F49*3)+G49+H49-E49) -> 7 | Q49: =IF(C49="","",LOOKUP(K49,ByM!$A$2:$B$462)+LOOKUP(L49,ByM!$A$2:$B$462)+LOOKUP(M49,ByM!$A$2:$B$462)+LOOKUP(N49,ByM!$A$2:$B$462)+LOOKUP(O49,ByM!$A$2:$B$462)) -> 3
B50: Protección | C50: Casco de guardia | E50: 1 | F50: 1 | G50: 5 | H50: 5 | I50: 12 | K50: - | L50: - | M50: - | N50: - | O50: - | P50: =IF(C50="","",(F50*3)+G50+H50-E50) -> 12 | Q50: =IF(C50="","",LOOKUP(K50,ByM!$A$2:$B$462)+LOOKUP(L50,ByM!$A$2:$B$462)+LOOKUP(M50,ByM!$A$2:$B$462)+LOOKUP(N50,ByM!$A$2:$B$462)+LOOKUP(O50,ByM!$A$2:$B$462)) -> 0
B51: Protección | C51: Casco de moto | E51: 2 | F51: 2 | G51: 4 | H51: 3 | I51: 11 | K51: - | L51: - | M51: - | N51: - | O51: - | P51: =IF(C51="","",(F51*3)+G51+H51-E51) -> 11 | Q51: =IF(C51="","",LOOKUP(K51,ByM!$A$2:$B$462)+LOOKUP(L51,ByM!$A$2:$B$462)+LOOKUP(M51,ByM!$A$2:$B$462)+LOOKUP(N51,ByM!$A$2:$B$462)+LOOKUP(O51,ByM!$A$2:$B$462)) -> 0
B52: Protección | C52: Casco de moto BIG | E52: 2 | F52: 2 | G52: 5 | H52: 3 | I52: 12 | K52: - | L52: - | M52: - | N52: - | O52: - | P52: =IF(C52="","",(F52*3)+G52+H52-E52) -> 12 | Q52: =IF(C52="","",LOOKUP(K52,ByM!$A$2:$B$462)+LOOKUP(L52,ByM!$A$2:$B$462)+LOOKUP(M52,ByM!$A$2:$B$462)+LOOKUP(N52,ByM!$A$2:$B$462)+LOOKUP(O52,ByM!$A$2:$B$462)) -> 0
B53: Protección | C53: Casco de obra pequeño | E53: 1 | F53: 1 | G53: 3 | H53: 2 | I53: 7 | K53: - | L53: - | M53: - | N53: - | O53: - | P53: =IF(C53="","",(F53*3)+G53+H53-E53) -> 7 | Q53: =IF(C53="","",LOOKUP(K53,ByM!$A$2:$B$462)+LOOKUP(L53,ByM!$A$2:$B$462)+LOOKUP(M53,ByM!$A$2:$B$462)+LOOKUP(N53,ByM!$A$2:$B$462)+LOOKUP(O53,ByM!$A$2:$B$462)) -> 0
B54: Protección | C54: Casco grande | E54: 1 | F54: 1 | G54: 7 | H54: 1 | I54: 10 | K54: - | L54: - | M54: - | N54: - | O54: - | P54: =IF(C54="","",(F54*3)+G54+H54-E54) -> 10 | Q54: =IF(C54="","",LOOKUP(K54,ByM!$A$2:$B$462)+LOOKUP(L54,ByM!$A$2:$B$462)+LOOKUP(M54,ByM!$A$2:$B$462)+LOOKUP(N54,ByM!$A$2:$B$462)+LOOKUP(O54,ByM!$A$2:$B$462)) -> 0
B55: Protección | C55: Chaleco antibalas | E55: 5 | F55: 2 | G55: 4 | H55: 4 | I55: 19 | K55: Resistencia a (armas de proyectiles) | L55: - | M55: - | N55: - | O55: - | P55: =IF(C55="","",(F55*3)+G55+H55-E55) -> 9 | Q55: =IF(C55="","",LOOKUP(K55,ByM!$A$2:$B$462)+LOOKUP(L55,ByM!$A$2:$B$462)+LOOKUP(M55,ByM!$A$2:$B$462)+LOOKUP(N55,ByM!$A$2:$B$462)+LOOKUP(O55,ByM!$A$2:$B$462)) -> 10
B56: Protección | C56: Chapa metálica | E56: 15 | F56: 4 | G56: 4 | H56: 5 | I56: 1 | K56: Mala hechura | L56: - | M56: - | N56: - | O56: - | P56: =IF(C56="","",(F56*3)+G56+H56-E56) -> 6 | Q56: =IF(C56="","",LOOKUP(K56,ByM!$A$2:$B$462)+LOOKUP(L56,ByM!$A$2:$B$462)+LOOKUP(M56,ByM!$A$2:$B$462)+LOOKUP(N56,ByM!$A$2:$B$462)+LOOKUP(O56,ByM!$A$2:$B$462)) -> -10
B57: Protección | C57: Chupa de moto BIG | E57: 2 | F57: 2 | G57: 5 | H57: 2 | I57: 11 | K57: - | L57: - | M57: - | N57: - | O57: - | P57: =IF(C57="","",(F57*3)+G57+H57-E57) -> 11 | Q57: =IF(C57="","",LOOKUP(K57,ByM!$A$2:$B$462)+LOOKUP(L57,ByM!$A$2:$B$462)+LOOKUP(M57,ByM!$A$2:$B$462)+LOOKUP(N57,ByM!$A$2:$B$462)+LOOKUP(O57,ByM!$A$2:$B$462)) -> 0
B58: Protección | C58: Chupa de placas | E58: 8 | F58: 3 | G58: 4 | H58: 2 | I58: 7 | K58: - | L58: - | M58: - | N58: - | O58: - | P58: =IF(C58="","",(F58*3)+G58+H58-E58) -> 7 | Q58: =IF(C58="","",LOOKUP(K58,ByM!$A$2:$B$462)+LOOKUP(L58,ByM!$A$2:$B$462)+LOOKUP(M58,ByM!$A$2:$B$462)+LOOKUP(N58,ByM!$A$2:$B$462)+LOOKUP(O58,ByM!$A$2:$B$462)) -> 0
B59: Protección | C59: Chupa de tachuelas | E59: 2 | F59: 2 | G59: 4 | H59: 2 | I59: 10 | K59: - | L59: - | M59: - | N59: - | O59: - | P59: =IF(C59="","",(F59*3)+G59+H59-E59) -> 10 | Q59: =IF(C59="","",LOOKUP(K59,ByM!$A$2:$B$462)+LOOKUP(L59,ByM!$A$2:$B$462)+LOOKUP(M59,ByM!$A$2:$B$462)+LOOKUP(N59,ByM!$A$2:$B$462)+LOOKUP(O59,ByM!$A$2:$B$462)) -> 0
B60: Protección | C60: Colgante mágico dientes del destino | E60: 1 | F60: 4 | G60: 0 | H60: 2 | I60: 13 | K60: - | L60: - | M60: - | N60: - | O60: - | P60: =IF(C60="","",(F60*3)+G60+H60-E60) -> 13 | Q60: =IF(C60="","",LOOKUP(K60,ByM!$A$2:$B$462)+LOOKUP(L60,ByM!$A$2:$B$462)+LOOKUP(M60,ByM!$A$2:$B$462)+LOOKUP(N60,ByM!$A$2:$B$462)+LOOKUP(O60,ByM!$A$2:$B$462)) -> 0
B61: Protección | C61: Coraza adamantina | E61: 1 | F61: 1 | G61: 6 | H61: 4 | I61: 22 | K61: Fortuna | L61: Refuerzo | M61: Reliquia | N61: - | O61: - | P61: =IF(C61="","",(F61*3)+G61+H61-E61) -> 12 | Q61: =IF(C61="","",LOOKUP(K61,ByM!$A$2:$B$462)+LOOKUP(L61,ByM!$A$2:$B$462)+LOOKUP(M61,ByM!$A$2:$B$462)+LOOKUP(N61,ByM!$A$2:$B$462)+LOOKUP(O61,ByM!$A$2:$B$462)) -> 10
B62: Protección | C62: Cuero endurecido | E62: 10 | F62: 3 | G62: 4 | H62: 3 | I62: 6 | K62: - | L62: - | M62: - | N62: - | O62: - | P62: =IF(C62="","",(F62*3)+G62+H62-E62) -> 6 | Q62: =IF(C62="","",LOOKUP(K62,ByM!$A$2:$B$462)+LOOKUP(L62,ByM!$A$2:$B$462)+LOOKUP(M62,ByM!$A$2:$B$462)+LOOKUP(N62,ByM!$A$2:$B$462)+LOOKUP(O62,ByM!$A$2:$B$462)) -> 0
B63: Protección | C63: Cuero humano | E63: 10 | F63: 3 | G63: 4 | H63: 3 | I63: 16 | K63: Absorción de impacto | L63: - | M63: - | N63: - | O63: - | P63: =IF(C63="","",(F63*3)+G63+H63-E63) -> 6 | Q63: =IF(C63="","",LOOKUP(K63,ByM!$A$2:$B$462)+LOOKUP(L63,ByM!$A$2:$B$462)+LOOKUP(M63,ByM!$A$2:$B$462)+LOOKUP(N63,ByM!$A$2:$B$462)+LOOKUP(O63,ByM!$A$2:$B$462)) -> 10
B64: Protección | C64: Dermoesqueleto | E64: 0 | F64: 3 | G64: 3 | H64: 3 | I64: 18 | K64: Ajustable | L64: - | M64: - | N64: - | O64: - | P64: =IF(C64="","",(F64*3)+G64+H64-E64) -> 15 | Q64: =IF(C64="","",LOOKUP(K64,ByM!$A$2:$B$462)+LOOKUP(L64,ByM!$A$2:$B$462)+LOOKUP(M64,ByM!$A$2:$B$462)+LOOKUP(N64,ByM!$A$2:$B$462)+LOOKUP(O64,ByM!$A$2:$B$462)) -> 3
B65: Protección | C65: Domoescudo de repulsión | E65: 1 | F65: 1 | G65: 0 | H65: 4 | I65: 21 | K65: Salvaguarda | L65: Enorme | M65: - | N65: - | O65: - | P65: =IF(C65="","",(F65*3)+G65+H65-E65) -> 6 | Q65: =IF(C65="","",LOOKUP(K65,ByM!$A$2:$B$462)+LOOKUP(L65,ByM!$A$2:$B$462)+LOOKUP(M65,ByM!$A$2:$B$462)+LOOKUP(N65,ByM!$A$2:$B$462)+LOOKUP(O65,ByM!$A$2:$B$462)) -> 15
B66: Protección | C66: Elevador monta cargas personal P-5000 | E66: 10 | F66: 2 | G66: 4 | H66: 7 | I66: 1 | K66: Frenesí | L66: Lastrado | M66: Prueba de inteligencia | N66: - | O66: - | P66: =IF(C66="","",(F66*3)+G66+H66-E66) -> 7 | Q66: =IF(C66="","",LOOKUP(K66,ByM!$A$2:$B$462)+LOOKUP(L66,ByM!$A$2:$B$462)+LOOKUP(M66,ByM!$A$2:$B$462)+LOOKUP(N66,ByM!$A$2:$B$462)+LOOKUP(O66,ByM!$A$2:$B$462)) -> -10
B67: Protección | C67: Equipación soldado americano | E67: 8 | F67: 4 | G67: 4 | H67: 3 | I67: 14 | K67: Ajustable | L67: - | M67: - | N67: - | O67: - | P67: =IF(C67="","",(F67*3)+G67+H67-E67) -> 11 | Q67: =IF(C67="","",LOOKUP(K67,ByM!$A$2:$B$462)+LOOKUP(L67,ByM!$A$2:$B$462)+LOOKUP(M67,ByM!$A$2:$B$462)+LOOKUP(N67,ByM!$A$2:$B$462)+LOOKUP(O67,ByM!$A$2:$B$462)) -> 3
B68: Protección | C68: Equipo de seguridad | E68: 3 | F68: 4 | G68: 4 | H68: 2 | I68: 15 | K68: - | L68: - | M68: - | N68: - | O68: - | P68: =IF(C68="","",(F68*3)+G68+H68-E68) -> 15 | Q68: =IF(C68="","",LOOKUP(K68,ByM!$A$2:$B$462)+LOOKUP(L68,ByM!$A$2:$B$462)+LOOKUP(M68,ByM!$A$2:$B$462)+LOOKUP(N68,ByM!$A$2:$B$462)+LOOKUP(O68,ByM!$A$2:$B$462)) -> 0
B69: Protección | C69: Escudo | E69: 1 | F69: 1 | G69: 0 | H69: 1 | I69: 3 | K69: - | L69: - | M69: - | N69: - | O69: - | P69: =IF(C69="","",(F69*3)+G69+H69-E69) -> 3 | Q69: =IF(C69="","",LOOKUP(K69,ByM!$A$2:$B$462)+LOOKUP(L69,ByM!$A$2:$B$462)+LOOKUP(M69,ByM!$A$2:$B$462)+LOOKUP(N69,ByM!$A$2:$B$462)+LOOKUP(O69,ByM!$A$2:$B$462)) -> 0
B70: Protección | C70: Escudo automático | E70: 1 | F70: 1 | G70: 0 | H70: 4 | I70: 26 | K70: Salvaguarda | L70: - | M70: - | N70: - | O70: - | P70: =IF(C70="","",(F70*3)+G70+H70-E70) -> 6 | Q70: =IF(C70="","",LOOKUP(K70,ByM!$A$2:$B$462)+LOOKUP(L70,ByM!$A$2:$B$462)+LOOKUP(M70,ByM!$A$2:$B$462)+LOOKUP(N70,ByM!$A$2:$B$462)+LOOKUP(O70,ByM!$A$2:$B$462)) -> 20
B71: Protección | C71: Escudo de asedio Vindicator | E71: 1 | F71: 1 | G71: 0 | H71: 4 | I71: 16 | K71: Refuerzo | L71: Enorme | M71: - | N71: - | O71: - | P71: =IF(C71="","",(F71*3)+G71+H71-E71) -> 6 | Q71: =IF(C71="","",LOOKUP(K71,ByM!$A$2:$B$462)+LOOKUP(L71,ByM!$A$2:$B$462)+LOOKUP(M71,ByM!$A$2:$B$462)+LOOKUP(N71,ByM!$A$2:$B$462)+LOOKUP(O71,ByM!$A$2:$B$462)) -> 10
B72: Protección | C72: Escudo de chapa | E72: 2 | F72: 2 | G72: 0 | H72: 2 | I72: 6 | K72: - | L72: - | M72: - | N72: - | O72: - | P72: =IF(C72="","",(F72*3)+G72+H72-E72) -> 6 | Q72: =IF(C72="","",LOOKUP(K72,ByM!$A$2:$B$462)+LOOKUP(L72,ByM!$A$2:$B$462)+LOOKUP(M72,ByM!$A$2:$B$462)+LOOKUP(N72,ByM!$A$2:$B$462)+LOOKUP(O72,ByM!$A$2:$B$462)) -> 0
B73: Protección | C73: Escudo de combate | E73: 1 | F73: 1 | G73: 0 | H73: 4 | I73: 26 | K73: Salvaguarda | L73: - | M73: - | N73: - | O73: - | P73: =IF(C73="","",(F73*3)+G73+H73-E73) -> 6 | Q73: =IF(C73="","",LOOKUP(K73,ByM!$A$2:$B$462)+LOOKUP(L73,ByM!$A$2:$B$462)+LOOKUP(M73,ByM!$A$2:$B$462)+LOOKUP(N73,ByM!$A$2:$B$462)+LOOKUP(O73,ByM!$A$2:$B$462)) -> 20
B74: Protección | C74: Escudo de cristal de upas | E74: 1 | F74: 2 | G74: 0 | H74: 7 | I74: 22 | K74: Absorción de impacto | L74: - | M74: - | N74: - | O74: - | P74: =IF(C74="","",(F74*3)+G74+H74-E74) -> 12 | Q74: =IF(C74="","",LOOKUP(K74,ByM!$A$2:$B$462)+LOOKUP(L74,ByM!$A$2:$B$462)+LOOKUP(M74,ByM!$A$2:$B$462)+LOOKUP(N74,ByM!$A$2:$B$462)+LOOKUP(O74,ByM!$A$2:$B$462)) -> 10
B75: Protección | C75: Escudo de madera | E75: 1 | F75: 1 | G75: 0 | H75: 2 | I75: 4 | K75: - | L75: - | M75: - | N75: - | O75: - | P75: =IF(C75="","",(F75*3)+G75+H75-E75) -> 4 | Q75: =IF(C75="","",LOOKUP(K75,ByM!$A$2:$B$462)+LOOKUP(L75,ByM!$A$2:$B$462)+LOOKUP(M75,ByM!$A$2:$B$462)+LOOKUP(N75,ByM!$A$2:$B$462)+LOOKUP(O75,ByM!$A$2:$B$462)) -> 0
B76: Protección | C76: Escudo de policía | E76: 2 | F76: 2 | G76: 0 | H76: 4 | I76: 8 | K76: - | L76: - | M76: - | N76: - | O76: - | P76: =IF(C76="","",(F76*3)+G76+H76-E76) -> 8 | Q76: =IF(C76="","",LOOKUP(K76,ByM!$A$2:$B$462)+LOOKUP(L76,ByM!$A$2:$B$462)+LOOKUP(M76,ByM!$A$2:$B$462)+LOOKUP(N76,ByM!$A$2:$B$462)+LOOKUP(O76,ByM!$A$2:$B$462)) -> 0
B77: Protección | C77: Escudo de rinoceronte negro | E77: 1 | F77: 1 | G77: 0 | H77: 2 | I77: 19 | K77: Escudo Coriáceo N02 | L77: Munición de parada | M77: - | N77: - | O77: - | P77: =IF(C77="","",(F77*3)+G77+H77-E77) -> 4 | Q77: =IF(C77="","",LOOKUP(K77,ByM!$A$2:$B$462)+LOOKUP(L77,ByM!$A$2:$B$462)+LOOKUP(M77,ByM!$A$2:$B$462)+LOOKUP(N77,ByM!$A$2:$B$462)+LOOKUP(O77,ByM!$A$2:$B$462)) -> 15
B78: Protección | C78: Escudo de roble | E78: 1 | F78: 1 | G78: 0 | H78: 3 | I78: 5 | K78: - | L78: - | M78: - | N78: - | O78: - | P78: =IF(C78="","",(F78*3)+G78+H78-E78) -> 5 | Q78: =IF(C78="","",LOOKUP(K78,ByM!$A$2:$B$462)+LOOKUP(L78,ByM!$A$2:$B$462)+LOOKUP(M78,ByM!$A$2:$B$462)+LOOKUP(N78,ByM!$A$2:$B$462)+LOOKUP(O78,ByM!$A$2:$B$462)) -> 0
B79: Protección | C79: Escudo de tormenta | E79: 1 | F79: 1 | G79: 0 | H79: 4 | I79: 23 | K79: Absorción de impacto | L79: Afortunado | M79: - | N79: - | O79: - | P79: =IF(C79="","",(F79*3)+G79+H79-E79) -> 6 | Q79: =IF(C79="","",LOOKUP(K79,ByM!$A$2:$B$462)+LOOKUP(L79,ByM!$A$2:$B$462)+LOOKUP(M79,ByM!$A$2:$B$462)+LOOKUP(N79,ByM!$A$2:$B$462)+LOOKUP(O79,ByM!$A$2:$B$462)) -> 17
B80: Protección | C80: Escudo de ventisca | E80: 1 | F80: 1 | G80: 0 | H80: 4 | I80: 26 | K80: Salvaguarda | L80: - | M80: - | N80: - | O80: - | P80: =IF(C80="","",(F80*3)+G80+H80-E80) -> 6 | Q80: =IF(C80="","",LOOKUP(K80,ByM!$A$2:$B$462)+LOOKUP(L80,ByM!$A$2:$B$462)+LOOKUP(M80,ByM!$A$2:$B$462)+LOOKUP(N80,ByM!$A$2:$B$462)+LOOKUP(O80,ByM!$A$2:$B$462)) -> 20
B81: Protección | C81: Escudo eterno | E81: 1 | F81: 1 | G81: 0 | H81: 4 | I81: 28 | K81: Reliquia | L81: Salvaguarda | M81: Refuerzo | N81: Afortunado | O81: - | P81: =IF(C81="","",(F81*3)+G81+H81-E81) -> 6 | Q81: =IF(C81="","",LOOKUP(K81,ByM!$A$2:$B$462)+LOOKUP(L81,ByM!$A$2:$B$462)+LOOKUP(M81,ByM!$A$2:$B$462)+LOOKUP(N81,ByM!$A$2:$B$462)+LOOKUP(O81,ByM!$A$2:$B$462)) -> 22
B82: Protección | C82: Escudo pavés de rinoceronte negro | E82: 2 | F82: 2 | G82: 0 | H82: 3 | I82: 32 | K82: Escudo Coriáceo N04 | L82: Munición de parada | M82: - | N82: - | O82: - | P82: =IF(C82="","",(F82*3)+G82+H82-E82) -> 7 | Q82: =IF(C82="","",LOOKUP(K82,ByM!$A$2:$B$462)+LOOKUP(L82,ByM!$A$2:$B$462)+LOOKUP(M82,ByM!$A$2:$B$462)+LOOKUP(N82,ByM!$A$2:$B$462)+LOOKUP(O82,ByM!$A$2:$B$462)) -> 25
B83: Protección | C83: Escudo reforzado | E83: 1 | F83: 2 | G83: 0 | H83: 3 | I83: 8 | K83: - | L83: - | M83: - | N83: - | O83: - | P83: =IF(C83="","",(F83*3)+G83+H83-E83) -> 8 | Q83: =IF(C83="","",LOOKUP(K83,ByM!$A$2:$B$462)+LOOKUP(L83,ByM!$A$2:$B$462)+LOOKUP(M83,ByM!$A$2:$B$462)+LOOKUP(N83,ByM!$A$2:$B$462)+LOOKUP(O83,ByM!$A$2:$B$462)) -> 0
B84: Protección | C84: Escudo reliquia | E84: 1 | F84: 1 | G84: 0 | H84: 4 | I84: 26 | K84: Salvaguarda | L84: - | M84: - | N84: - | O84: - | P84: =IF(C84="","",(F84*3)+G84+H84-E84) -> 6 | Q84: =IF(C84="","",LOOKUP(K84,ByM!$A$2:$B$462)+LOOKUP(L84,ByM!$A$2:$B$462)+LOOKUP(M84,ByM!$A$2:$B$462)+LOOKUP(N84,ByM!$A$2:$B$462)+LOOKUP(O84,ByM!$A$2:$B$462)) -> 20
B85: Protección | C85: Escudo térmico | E85: 2 | F85: 3 | G85: 0 | H85: 5 | I85: 20 | K85: Invulnerable (fuego) | L85: - | M85: - | N85: - | O85: - | P85: =IF(C85="","",(F85*3)+G85+H85-E85) -> 12 | Q85: =IF(C85="","",LOOKUP(K85,ByM!$A$2:$B$462)+LOOKUP(L85,ByM!$A$2:$B$462)+LOOKUP(M85,ByM!$A$2:$B$462)+LOOKUP(N85,ByM!$A$2:$B$462)+LOOKUP(O85,ByM!$A$2:$B$462)) -> 8
B86: Protección | C86: Escudo tribal | E86: 1 | F86: 2 | G86: 0 | H86: 4 | I86: 9 | K86: - | L86: - | M86: - | N86: - | O86: - | P86: =IF(C86="","",(F86*3)+G86+H86-E86) -> 9 | Q86: =IF(C86="","",LOOKUP(K86,ByM!$A$2:$B$462)+LOOKUP(L86,ByM!$A$2:$B$462)+LOOKUP(M86,ByM!$A$2:$B$462)+LOOKUP(N86,ByM!$A$2:$B$462)+LOOKUP(O86,ByM!$A$2:$B$462)) -> 0
B87: Protección | C87: Exoesqueleto adulto | E87: 0 | F87: 6 | G87: 6 | H87: 9 | I87: 36 | K87: Ajustable | L87: - | M87: - | N87: - | O87: - | P87: =IF(C87="","",(F87*3)+G87+H87-E87) -> 33 | Q87: =IF(C87="","",LOOKUP(K87,ByM!$A$2:$B$462)+LOOKUP(L87,ByM!$A$2:$B$462)+LOOKUP(M87,ByM!$A$2:$B$462)+LOOKUP(N87,ByM!$A$2:$B$462)+LOOKUP(O87,ByM!$A$2:$B$462)) -> 3
B88: Protección | C88: Exoesqueleto joven | E88: 0 | F88: 4 | G88: 5 | H88: 9 | I88: 29 | K88: Ajustable | L88: - | M88: - | N88: - | O88: - | P88: =IF(C88="","",(F88*3)+G88+H88-E88) -> 26 | Q88: =IF(C88="","",LOOKUP(K88,ByM!$A$2:$B$462)+LOOKUP(L88,ByM!$A$2:$B$462)+LOOKUP(M88,ByM!$A$2:$B$462)+LOOKUP(N88,ByM!$A$2:$B$462)+LOOKUP(O88,ByM!$A$2:$B$462)) -> 3
B89: Protección | C89: Exoesqueleto pesado | E89: 0 | F89: 7 | G89: 8 | H89: 9 | I89: 41 | K89: Ajustable | L89: - | M89: - | N89: - | O89: - | P89: =IF(C89="","",(F89*3)+G89+H89-E89) -> 38 | Q89: =IF(C89="","",LOOKUP(K89,ByM!$A$2:$B$462)+LOOKUP(L89,ByM!$A$2:$B$462)+LOOKUP(M89,ByM!$A$2:$B$462)+LOOKUP(N89,ByM!$A$2:$B$462)+LOOKUP(O89,ByM!$A$2:$B$462)) -> 3
B90: Protección | C90: Gorro de cuero | E90: 1 | F90: 1 | G90: 4 | H90: 1 | I90: 7 | K90: - | L90: - | M90: - | N90: - | O90: - | P90: =IF(C90="","",(F90*3)+G90+H90-E90) -> 7 | Q90: =IF(C90="","",LOOKUP(K90,ByM!$A$2:$B$462)+LOOKUP(L90,ByM!$A$2:$B$462)+LOOKUP(M90,ByM!$A$2:$B$462)+LOOKUP(N90,ByM!$A$2:$B$462)+LOOKUP(O90,ByM!$A$2:$B$462)) -> 0
B91: Protección | C91: Gran yelmo | E91: 3 | F91: 1 | G91: 4 | H91: 3 | I91: 7 | K91: - | L91: - | M91: - | N91: - | O91: - | P91: =IF(C91="","",(F91*3)+G91+H91-E91) -> 7 | Q91: =IF(C91="","",LOOKUP(K91,ByM!$A$2:$B$462)+LOOKUP(L91,ByM!$A$2:$B$462)+LOOKUP(M91,ByM!$A$2:$B$462)+LOOKUP(N91,ByM!$A$2:$B$462)+LOOKUP(O91,ByM!$A$2:$B$462)) -> 0
B92: Protección | C92: Guantes de seguridad | E92: 2 | F92: 1 | G92: 4 | H92: 2 | I92: 7 | K92: - | L92: - | M92: - | N92: - | O92: - | P92: =IF(C92="","",(F92*3)+G92+H92-E92) -> 7 | Q92: =IF(C92="","",LOOKUP(K92,ByM!$A$2:$B$462)+LOOKUP(L92,ByM!$A$2:$B$462)+LOOKUP(M92,ByM!$A$2:$B$462)+LOOKUP(N92,ByM!$A$2:$B$462)+LOOKUP(O92,ByM!$A$2:$B$462)) -> 0
B93: Protección | C93: Hombreras articuladas | E93: 6 | F93: 2 | G93: 0 | H93: 2 | I93: 2 | K93: - | L93: - | M93: - | N93: - | O93: - | P93: =IF(C93="","",(F93*3)+G93+H93-E93) -> 2 | Q93: =IF(C93="","",LOOKUP(K93,ByM!$A$2:$B$462)+LOOKUP(L93,ByM!$A$2:$B$462)+LOOKUP(M93,ByM!$A$2:$B$462)+LOOKUP(N93,ByM!$A$2:$B$462)+LOOKUP(O93,ByM!$A$2:$B$462)) -> 0
B94: Protección | C94: Implantes de Servidor | E94: 10 | F94: 5 | G94: 4 | H94: 7 | I94: 16 | K94: - | L94: - | M94: - | N94: - | O94: - | P94: =IF(C94="","",(F94*3)+G94+H94-E94) -> 16 | Q94: =IF(C94="","",LOOKUP(K94,ByM!$A$2:$B$462)+LOOKUP(L94,ByM!$A$2:$B$462)+LOOKUP(M94,ByM!$A$2:$B$462)+LOOKUP(N94,ByM!$A$2:$B$462)+LOOKUP(O94,ByM!$A$2:$B$462)) -> 0
B95: Protección | C95: Jubón de anillas roto | E95: 7 | F95: 3 | G95: 4 | H95: 1 | I95: 7 | K95: - | L95: - | M95: - | N95: - | O95: - | P95: =IF(C95="","",(F95*3)+G95+H95-E95) -> 7 | Q95: =IF(C95="","",LOOKUP(K95,ByM!$A$2:$B$462)+LOOKUP(L95,ByM!$A$2:$B$462)+LOOKUP(M95,ByM!$A$2:$B$462)+LOOKUP(N95,ByM!$A$2:$B$462)+LOOKUP(O95,ByM!$A$2:$B$462)) -> 0
B96: Protección | C96: Kimono | E96: 3 | F96: 3 | G96: 5 | H96: 3 | I96: 14 | K96: - | L96: - | M96: - | N96: - | O96: - | P96: =IF(C96="","",(F96*3)+G96+H96-E96) -> 14 | Q96: =IF(C96="","",LOOKUP(K96,ByM!$A$2:$B$462)+LOOKUP(L96,ByM!$A$2:$B$462)+LOOKUP(M96,ByM!$A$2:$B$462)+LOOKUP(N96,ByM!$A$2:$B$462)+LOOKUP(O96,ByM!$A$2:$B$462)) -> 0
B97: Protección | C97: Mono de obra pequeño | E97: 6 | F97: 1 | G97: 3 | H97: 2 | I97: 2 | K97: - | L97: - | M97: - | N97: - | O97: - | P97: =IF(C97="","",(F97*3)+G97+H97-E97) -> 2 | Q97: =IF(C97="","",LOOKUP(K97,ByM!$A$2:$B$462)+LOOKUP(L97,ByM!$A$2:$B$462)+LOOKUP(M97,ByM!$A$2:$B$462)+LOOKUP(N97,ByM!$A$2:$B$462)+LOOKUP(O97,ByM!$A$2:$B$462)) -> 0
B98: Protección | C98: Mono de piloto humano | E98: 5 | F98: 3 | G98: 4 | H98: 3 | I98: 11 | K98: - | L98: - | M98: - | N98: - | O98: - | P98: =IF(C98="","",(F98*3)+G98+H98-E98) -> 11 | Q98: =IF(C98="","",LOOKUP(K98,ByM!$A$2:$B$462)+LOOKUP(L98,ByM!$A$2:$B$462)+LOOKUP(M98,ByM!$A$2:$B$462)+LOOKUP(N98,ByM!$A$2:$B$462)+LOOKUP(O98,ByM!$A$2:$B$462)) -> 0
B99: Protección | C99: Mono de piloto manga | E99: 5 | F99: 3 | G99: 5 | H99: 3 | I99: 12 | K99: - | L99: - | M99: - | N99: - | O99: - | P99: =IF(C99="","",(F99*3)+G99+H99-E99) -> 12 | Q99: =IF(C99="","",LOOKUP(K99,ByM!$A$2:$B$462)+LOOKUP(L99,ByM!$A$2:$B$462)+LOOKUP(M99,ByM!$A$2:$B$462)+LOOKUP(N99,ByM!$A$2:$B$462)+LOOKUP(O99,ByM!$A$2:$B$462)) -> 0
B100: Protección | C100: Mono de piloto mondo | E100: 5 | F100: 3 | G100: 6 | H100: 3 | I100: 13 | K100: - | L100: - | M100: - | N100: - | O100: - | P100: =IF(C100="","",(F100*3)+G100+H100-E100) -> 13 | Q100: =IF(C100="","",LOOKUP(K100,ByM!$A$2:$B$462)+LOOKUP(L100,ByM!$A$2:$B$462)+LOOKUP(M100,ByM!$A$2:$B$462)+LOOKUP(N100,ByM!$A$2:$B$462)+LOOKUP(O100,ByM!$A$2:$B$462)) -> 0
B101: Protección | C101: Muñequeras de pinchos | E101: 2 | F101: 1 | G101: 0 | H101: 2 | I101: 8 | K101: Pinchos | L101: - | M101: - | N101: - | O101: - | P101: =IF(C101="","",(F101*3)+G101+H101-E101) -> 3 | Q101: =IF(C101="","",LOOKUP(K101,ByM!$A$2:$B$462)+LOOKUP(L101,ByM!$A$2:$B$462)+LOOKUP(M101,ByM!$A$2:$B$462)+LOOKUP(N101,ByM!$A$2:$B$462)+LOOKUP(O101,ByM!$A$2:$B$462)) -> 5
B102: Protección | C102: Mutación piel correosa | E102: 0 | F102: 1 | G102: 0 | H102: 1 | I102: 1 | K102: Requiere (raza mutante) | L102: - | M102: - | N102: - | O102: - | P102: =IF(C102="","",(F102*3)+G102+H102-E102) -> 4 | Q102: =IF(C102="","",LOOKUP(K102,ByM!$A$2:$B$462)+LOOKUP(L102,ByM!$A$2:$B$462)+LOOKUP(M102,ByM!$A$2:$B$462)+LOOKUP(N102,ByM!$A$2:$B$462)+LOOKUP(O102,ByM!$A$2:$B$462)) -> -3
B103: Protección | C103: Mutación piel dura | E103: 0 | F103: 3 | G103: 0 | H103: 3 | I103: 9 | K103: Requiere (raza mutante) | L103: - | M103: - | N103: - | O103: - | P103: =IF(C103="","",(F103*3)+G103+H103-E103) -> 12 | Q103: =IF(C103="","",LOOKUP(K103,ByM!$A$2:$B$462)+LOOKUP(L103,ByM!$A$2:$B$462)+LOOKUP(M103,ByM!$A$2:$B$462)+LOOKUP(N103,ByM!$A$2:$B$462)+LOOKUP(O103,ByM!$A$2:$B$462)) -> -3
B104: Protección | C104: Mutación piel muy dura | E104: 0 | F104: 5 | G104: 0 | H104: 5 | I104: 17 | K104: Requiere (raza mutante) | L104: - | M104: - | N104: - | O104: - | P104: =IF(C104="","",(F104*3)+G104+H104-E104) -> 20 | Q104: =IF(C104="","",LOOKUP(K104,ByM!$A$2:$B$462)+LOOKUP(L104,ByM!$A$2:$B$462)+LOOKUP(M104,ByM!$A$2:$B$462)+LOOKUP(N104,ByM!$A$2:$B$462)+LOOKUP(O104,ByM!$A$2:$B$462)) -> -3
B105: Protección | C105: Ojo del dragón (amuleto) | E105: 1 | F105: 2 | G105: 0 | H105: 5 | I105: 10 | K105: - | L105: - | M105: - | N105: - | O105: - | P105: =IF(C105="","",(F105*3)+G105+H105-E105) -> 10 | Q105: =IF(C105="","",LOOKUP(K105,ByM!$A$2:$B$462)+LOOKUP(L105,ByM!$A$2:$B$462)+LOOKUP(M105,ByM!$A$2:$B$462)+LOOKUP(N105,ByM!$A$2:$B$462)+LOOKUP(O105,ByM!$A$2:$B$462)) -> 0
B106: Protección | C106: Pechón de anillas roto | E106: 7 | F106: 3 | G106: 7 | H106: 1 | I106: 10 | K106: - | L106: - | M106: - | N106: - | O106: - | P106: =IF(C106="","",(F106*3)+G106+H106-E106) -> 10 | Q106: =IF(C106="","",LOOKUP(K106,ByM!$A$2:$B$462)+LOOKUP(L106,ByM!$A$2:$B$462)+LOOKUP(M106,ByM!$A$2:$B$462)+LOOKUP(N106,ByM!$A$2:$B$462)+LOOKUP(O106,ByM!$A$2:$B$462)) -> 0
B107: Protección | C107: Pequepechera de metal | E107: 7 | F107: 2 | G107: 3 | H107: 3 | I107: 5 | K107: - | L107: - | M107: - | N107: - | O107: - | P107: =IF(C107="","",(F107*3)+G107+H107-E107) -> 5 | Q107: =IF(C107="","",LOOKUP(K107,ByM!$A$2:$B$462)+LOOKUP(L107,ByM!$A$2:$B$462)+LOOKUP(M107,ByM!$A$2:$B$462)+LOOKUP(N107,ByM!$A$2:$B$462)+LOOKUP(O107,ByM!$A$2:$B$462)) -> 0
B108: Protección | C108: Peto de anillas roto | E108: 7 | F108: 3 | G108: 4 | H108: 1 | I108: 7 | K108: - | L108: - | M108: - | N108: - | O108: - | P108: =IF(C108="","",(F108*3)+G108+H108-E108) -> 7 | Q108: =IF(C108="","",LOOKUP(K108,ByM!$A$2:$B$462)+LOOKUP(L108,ByM!$A$2:$B$462)+LOOKUP(M108,ByM!$A$2:$B$462)+LOOKUP(N108,ByM!$A$2:$B$462)+LOOKUP(O108,ByM!$A$2:$B$462)) -> 0
B109: Protección | C109: Piel de dragón | E109: 0 | F109: 5 | G109: 0 | H109: 5 | I109: 45 | K109: Escudo coriáceo N05 | L109: - | M109: - | N109: - | O109: - | P109: =IF(C109="","",(F109*3)+G109+H109-E109) -> 20 | Q109: =IF(C109="","",LOOKUP(K109,ByM!$A$2:$B$462)+LOOKUP(L109,ByM!$A$2:$B$462)+LOOKUP(M109,ByM!$A$2:$B$462)+LOOKUP(N109,ByM!$A$2:$B$462)+LOOKUP(O109,ByM!$A$2:$B$462)) -> 25
B110: Protección | C110: Piel de hierro | E110: 0 | F110: 6 | G110: 0 | H110: 5 | I110: 23 | K110: - | L110: - | M110: - | N110: - | O110: - | P110: =IF(C110="","",(F110*3)+G110+H110-E110) -> 23 | Q110: =IF(C110="","",LOOKUP(K110,ByM!$A$2:$B$462)+LOOKUP(L110,ByM!$A$2:$B$462)+LOOKUP(M110,ByM!$A$2:$B$462)+LOOKUP(N110,ByM!$A$2:$B$462)+LOOKUP(O110,ByM!$A$2:$B$462)) -> 0
B111: Protección | C111: Piel endurecida | E111: 0 | F111: 3 | G111: 0 | H111: 5 | I111: 14 | K111: - | L111: - | M111: - | N111: - | O111: - | P111: =IF(C111="","",(F111*3)+G111+H111-E111) -> 14 | Q111: =IF(C111="","",LOOKUP(K111,ByM!$A$2:$B$462)+LOOKUP(L111,ByM!$A$2:$B$462)+LOOKUP(M111,ByM!$A$2:$B$462)+LOOKUP(N111,ByM!$A$2:$B$462)+LOOKUP(O111,ByM!$A$2:$B$462)) -> 0
B112: Protección | C112: Pieles pesadas | E112: 3 | F112: 2 | G112: 5 | H112: 1 | I112: 9 | K112: - | L112: - | M112: - | N112: - | O112: - | P112: =IF(C112="","",(F112*3)+G112+H112-E112) -> 9 | Q112: =IF(C112="","",LOOKUP(K112,ByM!$A$2:$B$462)+LOOKUP(L112,ByM!$A$2:$B$462)+LOOKUP(M112,ByM!$A$2:$B$462)+LOOKUP(N112,ByM!$A$2:$B$462)+LOOKUP(O112,ByM!$A$2:$B$462)) -> 0
B113: Protección | C113: Placa de acero pectoral | E113: 8 | F113: 5 | G113: 4 | H113: 1 | I113: 2 | K113: Mala hechura | L113: - | M113: - | N113: - | O113: - | P113: =IF(C113="","",(F113*3)+G113+H113-E113) -> 12 | Q113: =IF(C113="","",LOOKUP(K113,ByM!$A$2:$B$462)+LOOKUP(L113,ByM!$A$2:$B$462)+LOOKUP(M113,ByM!$A$2:$B$462)+LOOKUP(N113,ByM!$A$2:$B$462)+LOOKUP(O113,ByM!$A$2:$B$462)) -> -10
B114: Protección | C114: Protecciones metálicas | E114: 2 | F114: 2 | G114: 0 | H114: 2 | I114: 6 | K114: - | L114: - | M114: - | N114: - | O114: - | P114: =IF(C114="","",(F114*3)+G114+H114-E114) -> 6 | Q114: =IF(C114="","",LOOKUP(K114,ByM!$A$2:$B$462)+LOOKUP(L114,ByM!$A$2:$B$462)+LOOKUP(M114,ByM!$A$2:$B$462)+LOOKUP(N114,ByM!$A$2:$B$462)+LOOKUP(O114,ByM!$A$2:$B$462)) -> 0
B115: Protección | C115: Refuerzo metálico | E115: 5 | F115: 1 | G115: 4 | H115: 3 | I115: 8 | K115: Ajustable | L115: - | M115: - | N115: - | O115: - | P115: =IF(C115="","",(F115*3)+G115+H115-E115) -> 5 | Q115: =IF(C115="","",LOOKUP(K115,ByM!$A$2:$B$462)+LOOKUP(L115,ByM!$A$2:$B$462)+LOOKUP(M115,ByM!$A$2:$B$462)+LOOKUP(N115,ByM!$A$2:$B$462)+LOOKUP(O115,ByM!$A$2:$B$462)) -> 3
B116: Protección | C116: Rodela | E116: 1 | F116: 1 | G116: 0 | H116: 1 | I116: 18 | K116: Absorción de impacto | L116: Munición aturdidora | M116: - | N116: - | O116: - | P116: =IF(C116="","",(F116*3)+G116+H116-E116) -> 3 | Q116: =IF(C116="","",LOOKUP(K116,ByM!$A$2:$B$462)+LOOKUP(L116,ByM!$A$2:$B$462)+LOOKUP(M116,ByM!$A$2:$B$462)+LOOKUP(N116,ByM!$A$2:$B$462)+LOOKUP(O116,ByM!$A$2:$B$462)) -> 15
B117: Protección | C117: Ropa industrial | E117: 8 | F117: 3 | G117: 4 | H117: 3 | I117: 8 | K117: - | L117: - | M117: - | N117: - | O117: - | P117: =IF(C117="","",(F117*3)+G117+H117-E117) -> 8 | Q117: =IF(C117="","",LOOKUP(K117,ByM!$A$2:$B$462)+LOOKUP(L117,ByM!$A$2:$B$462)+LOOKUP(M117,ByM!$A$2:$B$462)+LOOKUP(N117,ByM!$A$2:$B$462)+LOOKUP(O117,ByM!$A$2:$B$462)) -> 0
B118: Protección | C118: Ropa industrial BIG | E118: 8 | F118: 3 | G118: 5 | H118: 3 | I118: 9 | K118: - | L118: - | M118: - | N118: - | O118: - | P118: =IF(C118="","",(F118*3)+G118+H118-E118) -> 9 | Q118: =IF(C118="","",LOOKUP(K118,ByM!$A$2:$B$462)+LOOKUP(L118,ByM!$A$2:$B$462)+LOOKUP(M118,ByM!$A$2:$B$462)+LOOKUP(N118,ByM!$A$2:$B$462)+LOOKUP(O118,ByM!$A$2:$B$462)) -> 0
B119: Protección | C119: Ropa pesada | E119: 10 | F119: 2 | G119: 4 | H119: 2 | I119: 5 | K119: Ajustable | L119: - | M119: - | N119: - | O119: - | P119: =IF(C119="","",(F119*3)+G119+H119-E119) -> 2 | Q119: =IF(C119="","",LOOKUP(K119,ByM!$A$2:$B$462)+LOOKUP(L119,ByM!$A$2:$B$462)+LOOKUP(M119,ByM!$A$2:$B$462)+LOOKUP(N119,ByM!$A$2:$B$462)+LOOKUP(O119,ByM!$A$2:$B$462)) -> 3
B120: Protección | C120: Ropajes gruesos | E120: 5 | F120: 1 | G120: 5 | H120: 4 | I120: 10 | K120: Ajustable | L120: - | M120: - | N120: - | O120: - | P120: =IF(C120="","",(F120*3)+G120+H120-E120) -> 7 | Q120: =IF(C120="","",LOOKUP(K120,ByM!$A$2:$B$462)+LOOKUP(L120,ByM!$A$2:$B$462)+LOOKUP(M120,ByM!$A$2:$B$462)+LOOKUP(N120,ByM!$A$2:$B$462)+LOOKUP(O120,ByM!$A$2:$B$462)) -> 3
B121: Protección | C121: Ropajes ligeros | E121: 5 | F121: 1 | G121: 4 | H121: 1 | I121: 6 | K121: Ajustable | L121: - | M121: - | N121: - | O121: - | P121: =IF(C121="","",(F121*3)+G121+H121-E121) -> 3 | Q121: =IF(C121="","",LOOKUP(K121,ByM!$A$2:$B$462)+LOOKUP(L121,ByM!$A$2:$B$462)+LOOKUP(M121,ByM!$A$2:$B$462)+LOOKUP(N121,ByM!$A$2:$B$462)+LOOKUP(O121,ByM!$A$2:$B$462)) -> 3
B122: Protección | C122: Ropajes ninja | E122: 15 | F122: 3 | G122: 5 | H122: 3 | I122: 12 | K122: Camuflaje | L122: - | M122: - | N122: - | O122: - | P122: =IF(C122="","",(F122*3)+G122+H122-E122) -> 2 | Q122: =IF(C122="","",LOOKUP(K122,ByM!$A$2:$B$462)+LOOKUP(L122,ByM!$A$2:$B$462)+LOOKUP(M122,ByM!$A$2:$B$462)+LOOKUP(N122,ByM!$A$2:$B$462)+LOOKUP(O122,ByM!$A$2:$B$462)) -> 10
B123: Protección | C123: Ropas resistentes | E123: 5 | F123: 1 | G123: 4 | H123: 1 | I123: 3 | K123: - | L123: - | M123: - | N123: - | O123: - | P123: =IF(C123="","",(F123*3)+G123+H123-E123) -> 3 | Q123: =IF(C123="","",LOOKUP(K123,ByM!$A$2:$B$462)+LOOKUP(L123,ByM!$A$2:$B$462)+LOOKUP(M123,ByM!$A$2:$B$462)+LOOKUP(N123,ByM!$A$2:$B$462)+LOOKUP(O123,ByM!$A$2:$B$462)) -> 0
B124: Protección | C124: Saco de placas pequeño | E124: 8 | F124: 3 | G124: 3 | H124: 2 | I124: 6 | K124: - | L124: - | M124: - | N124: - | O124: - | P124: =IF(C124="","",(F124*3)+G124+H124-E124) -> 6 | Q124: =IF(C124="","",LOOKUP(K124,ByM!$A$2:$B$462)+LOOKUP(L124,ByM!$A$2:$B$462)+LOOKUP(M124,ByM!$A$2:$B$462)+LOOKUP(N124,ByM!$A$2:$B$462)+LOOKUP(O124,ByM!$A$2:$B$462)) -> 0
B125: Protección | C125: Tejido reforzado | E125: 0 | F125: 1 | G125: 0 | H125: 7 | I125: 7 | K125: Requiere (armadura) | L125: - | M125: - | N125: - | O125: - | P125: =IF(C125="","",(F125*3)+G125+H125-E125) -> 10 | Q125: =IF(C125="","",LOOKUP(K125,ByM!$A$2:$B$462)+LOOKUP(L125,ByM!$A$2:$B$462)+LOOKUP(M125,ByM!$A$2:$B$462)+LOOKUP(N125,ByM!$A$2:$B$462)+LOOKUP(O125,ByM!$A$2:$B$462)) -> -3
B126: Protección | C126: Traje espacial APE Weyland-Yutani | E126: 14 | F126: 2 | G126: 4 | H126: 5 | I126: 21 | K126: Salvaguarda | L126: - | M126: - | N126: - | O126: - | P126: =IF(C126="","",(F126*3)+G126+H126-E126) -> 1 | Q126: =IF(C126="","",LOOKUP(K126,ByM!$A$2:$B$462)+LOOKUP(L126,ByM!$A$2:$B$462)+LOOKUP(M126,ByM!$A$2:$B$462)+LOOKUP(N126,ByM!$A$2:$B$462)+LOOKUP(O126,ByM!$A$2:$B$462)) -> 20
B127: Protección | C127: Traje espacial de supervivencia ECO All-world | E127: 26 | F127: 3 | G127: 5 | H127: 7 | I127: 1 | K127: Comunicador | L127: Vulnerable | M127: Lastrado | N127: - | O127: - | P127: =IF(C127="","",(F127*3)+G127+H127-E127) -> -5 | Q127: =IF(C127="","",LOOKUP(K127,ByM!$A$2:$B$462)+LOOKUP(L127,ByM!$A$2:$B$462)+LOOKUP(M127,ByM!$A$2:$B$462)+LOOKUP(N127,ByM!$A$2:$B$462)+LOOKUP(O127,ByM!$A$2:$B$462)) -> -9
B128: Protección | C128: Traje espacial IRC MK 50 | E128: 15 | F128: 1 | G128: 4 | H128: 7 | I128: 1 | K128: Comunicador | L128: Mala hechura | M128: - | N128: - | O128: - | P128: =IF(C128="","",(F128*3)+G128+H128-E128) -> -1 | Q128: =IF(C128="","",LOOKUP(K128,ByM!$A$2:$B$462)+LOOKUP(L128,ByM!$A$2:$B$462)+LOOKUP(M128,ByM!$A$2:$B$462)+LOOKUP(N128,ByM!$A$2:$B$462)+LOOKUP(O128,ByM!$A$2:$B$462)) -> -9
C129: *
P130: =IF(C130="","",(F130*3)+G130+H130-E130) ->  | Q130: =IF(C130="","",LOOKUP(K130,ByM!$A$2:$B$462)+LOOKUP(L130,ByM!$A$2:$B$462)+LOOKUP(M130,ByM!$A$2:$B$462)+LOOKUP(N130,ByM!$A$2:$B$462)+LOOKUP(O130,ByM!$A$2:$B$462)) -> 
P131: =IF(C131="","",(F131*3)+G131+H131-E131) ->  | Q131: =IF(C131="","",LOOKUP(K131,ByM!$A$2:$B$462)+LOOKUP(L131,ByM!$A$2:$B$462)+LOOKUP(M131,ByM!$A$2:$B$462)+LOOKUP(N131,ByM!$A$2:$B$462)+LOOKUP(O131,ByM!$A$2:$B$462)) -> 
P132: =IF(C132="","",(F132*3)+G132+H132-E132) ->  | Q132: =IF(C132="","",LOOKUP(K132,ByM!$A$2:$B$462)+LOOKUP(L132,ByM!$A$2:$B$462)+LOOKUP(M132,ByM!$A$2:$B$462)+LOOKUP(N132,ByM!$A$2:$B$462)+LOOKUP(O132,ByM!$A$2:$B$462)) -> 
P133: =IF(C133="","",(F133*3)+G133+H133-E133) ->  | Q133: =IF(C133="","",LOOKUP(K133,ByM!$A$2:$B$462)+LOOKUP(L133,ByM!$A$2:$B$462)+LOOKUP(M133,ByM!$A$2:$B$462)+LOOKUP(N133,ByM!$A$2:$B$462)+LOOKUP(O133,ByM!$A$2:$B$462)) -> 
P134: =IF(C134="","",(F134*3)+G134+H134-E134) ->  | Q134: =IF(C134="","",LOOKUP(K134,ByM!$A$2:$B$462)+LOOKUP(L134,ByM!$A$2:$B$462)+LOOKUP(M134,ByM!$A$2:$B$462)+LOOKUP(N134,ByM!$A$2:$B$462)+LOOKUP(O134,ByM!$A$2:$B$462)) -> 
P135: =IF(C135="","",(F135*3)+G135+H135-E135) ->  | Q135: =IF(C135="","",LOOKUP(K135,ByM!$A$2:$B$462)+LOOKUP(L135,ByM!$A$2:$B$462)+LOOKUP(M135,ByM!$A$2:$B$462)+LOOKUP(N135,ByM!$A$2:$B$462)+LOOKUP(O135,ByM!$A$2:$B$462)) -> 
P136: =IF(C136="","",(F136*3)+G136+H136-E136) ->  | Q136: =IF(C136="","",LOOKUP(K136,ByM!$A$2:$B$462)+LOOKUP(L136,ByM!$A$2:$B$462)+LOOKUP(M136,ByM!$A$2:$B$462)+LOOKUP(N136,ByM!$A$2:$B$462)+LOOKUP(O136,ByM!$A$2:$B$462)) -> 
P137: =IF(C137="","",(F137*3)+G137+H137-E137) ->  | Q137: =IF(C137="","",LOOKUP(K137,ByM!$A$2:$B$462)+LOOKUP(L137,ByM!$A$2:$B$462)+LOOKUP(M137,ByM!$A$2:$B$462)+LOOKUP(N137,ByM!$A$2:$B$462)+LOOKUP(O137,ByM!$A$2:$B$462)) -> 
P138: =IF(C138="","",(F138*3)+G138+H138-E138) ->  | Q138: =IF(C138="","",LOOKUP(K138,ByM!$A$2:$B$462)+LOOKUP(L138,ByM!$A$2:$B$462)+LOOKUP(M138,ByM!$A$2:$B$462)+LOOKUP(N138,ByM!$A$2:$B$462)+LOOKUP(O138,ByM!$A$2:$B$462)) -> 
P139: =IF(C139="","",(F139*3)+G139+H139-E139) ->  | Q139: =IF(C139="","",LOOKUP(K139,ByM!$A$2:$B$462)+LOOKUP(L139,ByM!$A$2:$B$462)+LOOKUP(M139,ByM!$A$2:$B$462)+LOOKUP(N139,ByM!$A$2:$B$462)+LOOKUP(O139,ByM!$A$2:$B$462)) -> 
P140: =IF(C140="","",(F140*3)+G140+H140-E140) ->  | Q140: =IF(C140="","",LOOKUP(K140,ByM!$A$2:$B$462)+LOOKUP(L140,ByM!$A$2:$B$462)+LOOKUP(M140,ByM!$A$2:$B$462)+LOOKUP(N140,ByM!$A$2:$B$462)+LOOKUP(O140,ByM!$A$2:$B$462)) -> 
P141: =IF(C141="","",(F141*3)+G141+H141-E141) ->  | Q141: =IF(C141="","",LOOKUP(K141,ByM!$A$2:$B$462)+LOOKUP(L141,ByM!$A$2:$B$462)+LOOKUP(M141,ByM!$A$2:$B$462)+LOOKUP(N141,ByM!$A$2:$B$462)+LOOKUP(O141,ByM!$A$2:$B$462)) -> 
P142: =IF(C142="","",(F142*3)+G142+H142-E142) ->  | Q142: =IF(C142="","",LOOKUP(K142,ByM!$A$2:$B$462)+LOOKUP(L142,ByM!$A$2:$B$462)+LOOKUP(M142,ByM!$A$2:$B$462)+LOOKUP(N142,ByM!$A$2:$B$462)+LOOKUP(O142,ByM!$A$2:$B$462)) -> 
P143: =IF(C143="","",(F143*3)+G143+H143-E143) ->  | Q143: =IF(C143="","",LOOKUP(K143,ByM!$A$2:$B$462)+LOOKUP(L143,ByM!$A$2:$B$462)+LOOKUP(M143,ByM!$A$2:$B$462)+LOOKUP(N143,ByM!$A$2:$B$462)+LOOKUP(O143,ByM!$A$2:$B$462)) -> 
P144: =IF(C144="","",(F144*3)+G144+H144-E144) ->  | Q144: =IF(C144="","",LOOKUP(K144,ByM!$A$2:$B$462)+LOOKUP(L144,ByM!$A$2:$B$462)+LOOKUP(M144,ByM!$A$2:$B$462)+LOOKUP(N144,ByM!$A$2:$B$462)+LOOKUP(O144,ByM!$A$2:$B$462)) -> 
P145: =IF(C145="","",(F145*3)+G145+H145-E145) ->  | Q145: =IF(C145="","",LOOKUP(K145,ByM!$A$2:$B$462)+LOOKUP(L145,ByM!$A$2:$B$462)+LOOKUP(M145,ByM!$A$2:$B$462)+LOOKUP(N145,ByM!$A$2:$B$462)+LOOKUP(O145,ByM!$A$2:$B$462)) -> 
P146: =IF(C146="","",(F146*3)+G146+H146-E146) ->  | Q146: =IF(C146="","",LOOKUP(K146,ByM!$A$2:$B$462)+LOOKUP(L146,ByM!$A$2:$B$462)+LOOKUP(M146,ByM!$A$2:$B$462)+LOOKUP(N146,ByM!$A$2:$B$462)+LOOKUP(O146,ByM!$A$2:$B$462)) -> 
P147: =IF(C147="","",(F147*3)+G147+H147-E147) ->  | Q147: =IF(C147="","",LOOKUP(K147,ByM!$A$2:$B$462)+LOOKUP(L147,ByM!$A$2:$B$462)+LOOKUP(M147,ByM!$A$2:$B$462)+LOOKUP(N147,ByM!$A$2:$B$462)+LOOKUP(O147,ByM!$A$2:$B$462)) -> 
P148: =IF(C148="","",(F148*3)+G148+H148-E148) ->  | Q148: =IF(C148="","",LOOKUP(K148,ByM!$A$2:$B$462)+LOOKUP(L148,ByM!$A$2:$B$462)+LOOKUP(M148,ByM!$A$2:$B$462)+LOOKUP(N148,ByM!$A$2:$B$462)+LOOKUP(O148,ByM!$A$2:$B$462)) -> 
P149: =IF(C149="","",(F149*3)+G149+H149-E149) ->  | Q149: =IF(C149="","",LOOKUP(K149,ByM!$A$2:$B$462)+LOOKUP(L149,ByM!$A$2:$B$462)+LOOKUP(M149,ByM!$A$2:$B$462)+LOOKUP(N149,ByM!$A$2:$B$462)+LOOKUP(O149,ByM!$A$2:$B$462)) -> 
P150: =IF(C150="","",(F150*3)+G150+H150-E150) ->  | Q150: =IF(C150="","",LOOKUP(K150,ByM!$A$2:$B$462)+LOOKUP(L150,ByM!$A$2:$B$462)+LOOKUP(M150,ByM!$A$2:$B$462)+LOOKUP(N150,ByM!$A$2:$B$462)+LOOKUP(O150,ByM!$A$2:$B$462)) -> 
P151: =IF(C151="","",(F151*3)+G151+H151-E151) ->  | Q151: =IF(C151="","",LOOKUP(K151,ByM!$A$2:$B$462)+LOOKUP(L151,ByM!$A$2:$B$462)+LOOKUP(M151,ByM!$A$2:$B$462)+LOOKUP(N151,ByM!$A$2:$B$462)+LOOKUP(O151,ByM!$A$2:$B$462)) -> 
P152: =IF(C152="","",(F152*3)+G152+H152-E152) ->  | Q152: =IF(C152="","",LOOKUP(K152,ByM!$A$2:$B$462)+LOOKUP(L152,ByM!$A$2:$B$462)+LOOKUP(M152,ByM!$A$2:$B$462)+LOOKUP(N152,ByM!$A$2:$B$462)+LOOKUP(O152,ByM!$A$2:$B$462)) -> 
P153: =IF(C153="","",(F153*3)+G153+H153-E153) ->  | Q153: =IF(C153="","",LOOKUP(K153,ByM!$A$2:$B$462)+LOOKUP(L153,ByM!$A$2:$B$462)+LOOKUP(M153,ByM!$A$2:$B$462)+LOOKUP(N153,ByM!$A$2:$B$462)+LOOKUP(O153,ByM!$A$2:$B$462)) -> 
P154: =IF(C154="","",(F154*3)+G154+H154-E154) ->  | Q154: =IF(C154="","",LOOKUP(K154,ByM!$A$2:$B$462)+LOOKUP(L154,ByM!$A$2:$B$462)+LOOKUP(M154,ByM!$A$2:$B$462)+LOOKUP(N154,ByM!$A$2:$B$462)+LOOKUP(O154,ByM!$A$2:$B$462)) -> 
P155: =IF(C155="","",(F155*3)+G155+H155-E155) ->  | Q155: =IF(C155="","",LOOKUP(K155,ByM!$A$2:$B$462)+LOOKUP(L155,ByM!$A$2:$B$462)+LOOKUP(M155,ByM!$A$2:$B$462)+LOOKUP(N155,ByM!$A$2:$B$462)+LOOKUP(O155,ByM!$A$2:$B$462)) -> 
P156: =IF(C156="","",(F156*3)+G156+H156-E156) ->  | Q156: =IF(C156="","",LOOKUP(K156,ByM!$A$2:$B$462)+LOOKUP(L156,ByM!$A$2:$B$462)+LOOKUP(M156,ByM!$A$2:$B$462)+LOOKUP(N156,ByM!$A$2:$B$462)+LOOKUP(O156,ByM!$A$2:$B$462)) -> 
P157: =IF(C157="","",(F157*3)+G157+H157-E157) ->  | Q157: =IF(C157="","",LOOKUP(K157,ByM!$A$2:$B$462)+LOOKUP(L157,ByM!$A$2:$B$462)+LOOKUP(M157,ByM!$A$2:$B$462)+LOOKUP(N157,ByM!$A$2:$B$462)+LOOKUP(O157,ByM!$A$2:$B$462)) -> 
P158: =IF(C158="","",(F158*3)+G158+H158-E158) ->  | Q158: =IF(C158="","",LOOKUP(K158,ByM!$A$2:$B$462)+LOOKUP(L158,ByM!$A$2:$B$462)+LOOKUP(M158,ByM!$A$2:$B$462)+LOOKUP(N158,ByM!$A$2:$B$462)+LOOKUP(O158,ByM!$A$2:$B$462)) -> 
P159: =IF(C159="","",(F159*3)+G159+H159-E159) ->  | Q159: =IF(C159="","",LOOKUP(K159,ByM!$A$2:$B$462)+LOOKUP(L159,ByM!$A$2:$B$462)+LOOKUP(M159,ByM!$A$2:$B$462)+LOOKUP(N159,ByM!$A$2:$B$462)+LOOKUP(O159,ByM!$A$2:$B$462)) -> 
P160: =IF(C160="","",(F160*3)+G160+H160-E160) ->  | Q160: =IF(C160="","",LOOKUP(K160,ByM!$A$2:$B$462)+LOOKUP(L160,ByM!$A$2:$B$462)+LOOKUP(M160,ByM!$A$2:$B$462)+LOOKUP(N160,ByM!$A$2:$B$462)+LOOKUP(O160,ByM!$A$2:$B$462)) -> 
P161: =IF(C161="","",(F161*3)+G161+H161-E161) ->  | Q161: =IF(C161="","",LOOKUP(K161,ByM!$A$2:$B$462)+LOOKUP(L161,ByM!$A$2:$B$462)+LOOKUP(M161,ByM!$A$2:$B$462)+LOOKUP(N161,ByM!$A$2:$B$462)+LOOKUP(O161,ByM!$A$2:$B$462)) -> 
P162: =IF(C162="","",(F162*3)+G162+H162-E162) ->  | Q162: =IF(C162="","",LOOKUP(K162,ByM!$A$2:$B$462)+LOOKUP(L162,ByM!$A$2:$B$462)+LOOKUP(M162,ByM!$A$2:$B$462)+LOOKUP(N162,ByM!$A$2:$B$462)+LOOKUP(O162,ByM!$A$2:$B$462)) -> 
P163: =IF(C163="","",(F163*3)+G163+H163-E163) ->  | Q163: =IF(C163="","",LOOKUP(K163,ByM!$A$2:$B$462)+LOOKUP(L163,ByM!$A$2:$B$462)+LOOKUP(M163,ByM!$A$2:$B$462)+LOOKUP(N163,ByM!$A$2:$B$462)+LOOKUP(O163,ByM!$A$2:$B$462)) -> 
P164: =IF(C164="","",(F164*3)+G164+H164-E164) ->  | Q164: =IF(C164="","",LOOKUP(K164,ByM!$A$2:$B$462)+LOOKUP(L164,ByM!$A$2:$B$462)+LOOKUP(M164,ByM!$A$2:$B$462)+LOOKUP(N164,ByM!$A$2:$B$462)+LOOKUP(O164,ByM!$A$2:$B$462)) -> 
P165: =IF(C165="","",(F165*3)+G165+H165-E165) ->  | Q165: =IF(C165="","",LOOKUP(K165,ByM!$A$2:$B$462)+LOOKUP(L165,ByM!$A$2:$B$462)+LOOKUP(M165,ByM!$A$2:$B$462)+LOOKUP(N165,ByM!$A$2:$B$462)+LOOKUP(O165,ByM!$A$2:$B$462)) -> 
P166: =IF(C166="","",(F166*3)+G166+H166-E166) ->  | Q166: =IF(C166="","",LOOKUP(K166,ByM!$A$2:$B$462)+LOOKUP(L166,ByM!$A$2:$B$462)+LOOKUP(M166,ByM!$A$2:$B$462)+LOOKUP(N166,ByM!$A$2:$B$462)+LOOKUP(O166,ByM!$A$2:$B$462)) -> 
P167: =IF(C167="","",(F167*3)+G167+H167-E167) ->  | Q167: =IF(C167="","",LOOKUP(K167,ByM!$A$2:$B$462)+LOOKUP(L167,ByM!$A$2:$B$462)+LOOKUP(M167,ByM!$A$2:$B$462)+LOOKUP(N167,ByM!$A$2:$B$462)+LOOKUP(O167,ByM!$A$2:$B$462)) -> 
P168: =IF(C168="","",(F168*3)+G168+H168-E168) ->  | Q168: =IF(C168="","",LOOKUP(K168,ByM!$A$2:$B$462)+LOOKUP(L168,ByM!$A$2:$B$462)+LOOKUP(M168,ByM!$A$2:$B$462)+LOOKUP(N168,ByM!$A$2:$B$462)+LOOKUP(O168,ByM!$A$2:$B$462)) -> 
P169: =IF(C169="","",(F169*3)+G169+H169-E169) ->  | Q169: =IF(C169="","",LOOKUP(K169,ByM!$A$2:$B$462)+LOOKUP(L169,ByM!$A$2:$B$462)+LOOKUP(M169,ByM!$A$2:$B$462)+LOOKUP(N169,ByM!$A$2:$B$462)+LOOKUP(O169,ByM!$A$2:$B$462)) -> 
P170: =IF(C170="","",(F170*3)+G170+H170-E170) ->  | Q170: =IF(C170="","",LOOKUP(K170,ByM!$A$2:$B$462)+LOOKUP(L170,ByM!$A$2:$B$462)+LOOKUP(M170,ByM!$A$2:$B$462)+LOOKUP(N170,ByM!$A$2:$B$462)+LOOKUP(O170,ByM!$A$2:$B$462)) -> 
P171: =IF(C171="","",(F171*3)+G171+H171-E171) ->  | Q171: =IF(C171="","",LOOKUP(K171,ByM!$A$2:$B$462)+LOOKUP(L171,ByM!$A$2:$B$462)+LOOKUP(M171,ByM!$A$2:$B$462)+LOOKUP(N171,ByM!$A$2:$B$462)+LOOKUP(O171,ByM!$A$2:$B$462)) -> 
P172: =IF(C172="","",(F172*3)+G172+H172-E172) ->  | Q172: =IF(C172="","",LOOKUP(K172,ByM!$A$2:$B$462)+LOOKUP(L172,ByM!$A$2:$B$462)+LOOKUP(M172,ByM!$A$2:$B$462)+LOOKUP(N172,ByM!$A$2:$B$462)+LOOKUP(O172,ByM!$A$2:$B$462)) -> 
P173: =IF(C173="","",(F173*3)+G173+H173-E173) ->  | Q173: =IF(C173="","",LOOKUP(K173,ByM!$A$2:$B$462)+LOOKUP(L173,ByM!$A$2:$B$462)+LOOKUP(M173,ByM!$A$2:$B$462)+LOOKUP(N173,ByM!$A$2:$B$462)+LOOKUP(O173,ByM!$A$2:$B$462)) -> 
P174: =IF(C174="","",(F174*3)+G174+H174-E174) ->  | Q174: =IF(C174="","",LOOKUP(K174,ByM!$A$2:$B$462)+LOOKUP(L174,ByM!$A$2:$B$462)+LOOKUP(M174,ByM!$A$2:$B$462)+LOOKUP(N174,ByM!$A$2:$B$462)+LOOKUP(O174,ByM!$A$2:$B$462)) -> 
P175: =IF(C175="","",(F175*3)+G175+H175-E175) ->  | Q175: =IF(C175="","",LOOKUP(K175,ByM!$A$2:$B$462)+LOOKUP(L175,ByM!$A$2:$B$462)+LOOKUP(M175,ByM!$A$2:$B$462)+LOOKUP(N175,ByM!$A$2:$B$462)+LOOKUP(O175,ByM!$A$2:$B$462)) -> 
P176: =IF(C176="","",(F176*3)+G176+H176-E176) ->  | Q176: =IF(C176="","",LOOKUP(K176,ByM!$A$2:$B$462)+LOOKUP(L176,ByM!$A$2:$B$462)+LOOKUP(M176,ByM!$A$2:$B$462)+LOOKUP(N176,ByM!$A$2:$B$462)+LOOKUP(O176,ByM!$A$2:$B$462)) -> 
P177: =IF(C177="","",(F177*3)+G177+H177-E177) ->  | Q177: =IF(C177="","",LOOKUP(K177,ByM!$A$2:$B$462)+LOOKUP(L177,ByM!$A$2:$B$462)+LOOKUP(M177,ByM!$A$2:$B$462)+LOOKUP(N177,ByM!$A$2:$B$462)+LOOKUP(O177,ByM!$A$2:$B$462)) -> 
P178: =IF(C178="","",(F178*3)+G178+H178-E178) ->  | Q178: =IF(C178="","",LOOKUP(K178,ByM!$A$2:$B$462)+LOOKUP(L178,ByM!$A$2:$B$462)+LOOKUP(M178,ByM!$A$2:$B$462)+LOOKUP(N178,ByM!$A$2:$B$462)+LOOKUP(O178,ByM!$A$2:$B$462)) -> 
P179: =IF(C179="","",(F179*3)+G179+H179-E179) ->  | Q179: =IF(C179="","",LOOKUP(K179,ByM!$A$2:$B$462)+LOOKUP(L179,ByM!$A$2:$B$462)+LOOKUP(M179,ByM!$A$2:$B$462)+LOOKUP(N179,ByM!$A$2:$B$462)+LOOKUP(O179,ByM!$A$2:$B$462)) -> 
P180: =IF(C180="","",(F180*3)+G180+H180-E180) ->  | Q180: =IF(C180="","",LOOKUP(K180,ByM!$A$2:$B$462)+LOOKUP(L180,ByM!$A$2:$B$462)+LOOKUP(M180,ByM!$A$2:$B$462)+LOOKUP(N180,ByM!$A$2:$B$462)+LOOKUP(O180,ByM!$A$2:$B$462)) -> 
P181: =IF(C181="","",(F181*3)+G181+H181-E181) ->  | Q181: =IF(C181="","",LOOKUP(K181,ByM!$A$2:$B$462)+LOOKUP(L181,ByM!$A$2:$B$462)+LOOKUP(M181,ByM!$A$2:$B$462)+LOOKUP(N181,ByM!$A$2:$B$462)+LOOKUP(O181,ByM!$A$2:$B$462)) -> 
P182: =IF(C182="","",(F182*3)+G182+H182-E182) ->  | Q182: =IF(C182="","",LOOKUP(K182,ByM!$A$2:$B$462)+LOOKUP(L182,ByM!$A$2:$B$462)+LOOKUP(M182,ByM!$A$2:$B$462)+LOOKUP(N182,ByM!$A$2:$B$462)+LOOKUP(O182,ByM!$A$2:$B$462)) -> 
P183: =IF(C183="","",(F183*3)+G183+H183-E183) ->  | Q183: =IF(C183="","",LOOKUP(K183,ByM!$A$2:$B$462)+LOOKUP(L183,ByM!$A$2:$B$462)+LOOKUP(M183,ByM!$A$2:$B$462)+LOOKUP(N183,ByM!$A$2:$B$462)+LOOKUP(O183,ByM!$A$2:$B$462)) -> 
P184: =IF(C184="","",(F184*3)+G184+H184-E184) ->  | Q184: =IF(C184="","",LOOKUP(K184,ByM!$A$2:$B$462)+LOOKUP(L184,ByM!$A$2:$B$462)+LOOKUP(M184,ByM!$A$2:$B$462)+LOOKUP(N184,ByM!$A$2:$B$462)+LOOKUP(O184,ByM!$A$2:$B$462)) -> 
P185: =IF(C185="","",(F185*3)+G185+H185-E185) ->  | Q185: =IF(C185="","",LOOKUP(K185,ByM!$A$2:$B$462)+LOOKUP(L185,ByM!$A$2:$B$462)+LOOKUP(M185,ByM!$A$2:$B$462)+LOOKUP(N185,ByM!$A$2:$B$462)+LOOKUP(O185,ByM!$A$2:$B$462)) -> 
P186: =IF(C186="","",(F186*3)+G186+H186-E186) ->  | Q186: =IF(C186="","",LOOKUP(K186,ByM!$A$2:$B$462)+LOOKUP(L186,ByM!$A$2:$B$462)+LOOKUP(M186,ByM!$A$2:$B$462)+LOOKUP(N186,ByM!$A$2:$B$462)+LOOKUP(O186,ByM!$A$2:$B$462)) -> 
P187: =IF(C187="","",(F187*3)+G187+H187-E187) ->  | Q187: =IF(C187="","",LOOKUP(K187,ByM!$A$2:$B$462)+LOOKUP(L187,ByM!$A$2:$B$462)+LOOKUP(M187,ByM!$A$2:$B$462)+LOOKUP(N187,ByM!$A$2:$B$462)+LOOKUP(O187,ByM!$A$2:$B$462)) -> 
P188: =IF(C188="","",(F188*3)+G188+H188-E188) ->  | Q188: =IF(C188="","",LOOKUP(K188,ByM!$A$2:$B$462)+LOOKUP(L188,ByM!$A$2:$B$462)+LOOKUP(M188,ByM!$A$2:$B$462)+LOOKUP(N188,ByM!$A$2:$B$462)+LOOKUP(O188,ByM!$A$2:$B$462)) -> 
P189: =IF(C189="","",(F189*3)+G189+H189-E189) ->  | Q189: =IF(C189="","",LOOKUP(K189,ByM!$A$2:$B$462)+LOOKUP(L189,ByM!$A$2:$B$462)+LOOKUP(M189,ByM!$A$2:$B$462)+LOOKUP(N189,ByM!$A$2:$B$462)+LOOKUP(O189,ByM!$A$2:$B$462)) -> 
P190: =IF(C190="","",(F190*3)+G190+H190-E190) ->  | Q190: =IF(C190="","",LOOKUP(K190,ByM!$A$2:$B$462)+LOOKUP(L190,ByM!$A$2:$B$462)+LOOKUP(M190,ByM!$A$2:$B$462)+LOOKUP(N190,ByM!$A$2:$B$462)+LOOKUP(O190,ByM!$A$2:$B$462)) -> 
P191: =IF(C191="","",(F191*3)+G191+H191-E191) ->  | Q191: =IF(C191="","",LOOKUP(K191,ByM!$A$2:$B$462)+LOOKUP(L191,ByM!$A$2:$B$462)+LOOKUP(M191,ByM!$A$2:$B$462)+LOOKUP(N191,ByM!$A$2:$B$462)+LOOKUP(O191,ByM!$A$2:$B$462)) -> 
P192: =IF(C192="","",(F192*3)+G192+H192-E192) ->  | Q192: =IF(C192="","",LOOKUP(K192,ByM!$A$2:$B$462)+LOOKUP(L192,ByM!$A$2:$B$462)+LOOKUP(M192,ByM!$A$2:$B$462)+LOOKUP(N192,ByM!$A$2:$B$462)+LOOKUP(O192,ByM!$A$2:$B$462)) -> 
P193: =IF(C193="","",(F193*3)+G193+H193-E193) ->  | Q193: =IF(C193="","",LOOKUP(K193,ByM!$A$2:$B$462)+LOOKUP(L193,ByM!$A$2:$B$462)+LOOKUP(M193,ByM!$A$2:$B$462)+LOOKUP(N193,ByM!$A$2:$B$462)+LOOKUP(O193,ByM!$A$2:$B$462)) -> 
P194: =IF(C194="","",(F194*3)+G194+H194-E194) ->  | Q194: =IF(C194="","",LOOKUP(K194,ByM!$A$2:$B$462)+LOOKUP(L194,ByM!$A$2:$B$462)+LOOKUP(M194,ByM!$A$2:$B$462)+LOOKUP(N194,ByM!$A$2:$B$462)+LOOKUP(O194,ByM!$A$2:$B$462)) -> 
P195: =IF(C195="","",(F195*3)+G195+H195-E195) ->  | Q195: =IF(C195="","",LOOKUP(K195,ByM!$A$2:$B$462)+LOOKUP(L195,ByM!$A$2:$B$462)+LOOKUP(M195,ByM!$A$2:$B$462)+LOOKUP(N195,ByM!$A$2:$B$462)+LOOKUP(O195,ByM!$A$2:$B$462)) -> 
P196: =IF(C196="","",(F196*3)+G196+H196-E196) ->  | Q196: =IF(C196="","",LOOKUP(K196,ByM!$A$2:$B$462)+LOOKUP(L196,ByM!$A$2:$B$462)+LOOKUP(M196,ByM!$A$2:$B$462)+LOOKUP(N196,ByM!$A$2:$B$462)+LOOKUP(O196,ByM!$A$2:$B$462)) -> 
P197: =IF(C197="","",(F197*3)+G197+H197-E197) ->  | Q197: =IF(C197="","",LOOKUP(K197,ByM!$A$2:$B$462)+LOOKUP(L197,ByM!$A$2:$B$462)+LOOKUP(M197,ByM!$A$2:$B$462)+LOOKUP(N197,ByM!$A$2:$B$462)+LOOKUP(O197,ByM!$A$2:$B$462)) -> 
P198: =IF(C198="","",(F198*3)+G198+H198-E198) ->  | Q198: =IF(C198="","",LOOKUP(K198,ByM!$A$2:$B$462)+LOOKUP(L198,ByM!$A$2:$B$462)+LOOKUP(M198,ByM!$A$2:$B$462)+LOOKUP(N198,ByM!$A$2:$B$462)+LOOKUP(O198,ByM!$A$2:$B$462)) -> 
P199: =IF(C199="","",(F199*3)+G199+H199-E199) ->  | Q199: =IF(C199="","",LOOKUP(K199,ByM!$A$2:$B$462)+LOOKUP(L199,ByM!$A$2:$B$462)+LOOKUP(M199,ByM!$A$2:$B$462)+LOOKUP(N199,ByM!$A$2:$B$462)+LOOKUP(O199,ByM!$A$2:$B$462)) -> 
P200: =IF(C200="","",(F200*3)+G200+H200-E200) ->  | Q200: =IF(C200="","",LOOKUP(K200,ByM!$A$2:$B$462)+LOOKUP(L200,ByM!$A$2:$B$462)+LOOKUP(M200,ByM!$A$2:$B$462)+LOOKUP(N200,ByM!$A$2:$B$462)+LOOKUP(O200,ByM!$A$2:$B$462)) -> 
P201: =IF(C201="","",(F201*3)+G201+H201-E201) ->  | Q201: =IF(C201="","",LOOKUP(K201,ByM!$A$2:$B$462)+LOOKUP(L201,ByM!$A$2:$B$462)+LOOKUP(M201,ByM!$A$2:$B$462)+LOOKUP(N201,ByM!$A$2:$B$462)+LOOKUP(O201,ByM!$A$2:$B$462)) -> 
P202: =IF(C202="","",(F202*3)+G202+H202-E202) ->  | Q202: =IF(C202="","",LOOKUP(K202,ByM!$A$2:$B$462)+LOOKUP(L202,ByM!$A$2:$B$462)+LOOKUP(M202,ByM!$A$2:$B$462)+LOOKUP(N202,ByM!$A$2:$B$462)+LOOKUP(O202,ByM!$A$2:$B$462)) -> 
P203: =IF(C203="","",(F203*3)+G203+H203-E203) ->  | Q203: =IF(C203="","",LOOKUP(K203,ByM!$A$2:$B$462)+LOOKUP(L203,ByM!$A$2:$B$462)+LOOKUP(M203,ByM!$A$2:$B$462)+LOOKUP(N203,ByM!$A$2:$B$462)+LOOKUP(O203,ByM!$A$2:$B$462)) -> 
P204: =IF(C204="","",(F204*3)+G204+H204-E204) ->  | Q204: =IF(C204="","",LOOKUP(K204,ByM!$A$2:$B$462)+LOOKUP(L204,ByM!$A$2:$B$462)+LOOKUP(M204,ByM!$A$2:$B$462)+LOOKUP(N204,ByM!$A$2:$B$462)+LOOKUP(O204,ByM!$A$2:$B$462)) -> 
P205: =IF(C205="","",(F205*3)+G205+H205-E205) ->  | Q205: =IF(C205="","",LOOKUP(K205,ByM!$A$2:$B$462)+LOOKUP(L205,ByM!$A$2:$B$462)+LOOKUP(M205,ByM!$A$2:$B$462)+LOOKUP(N205,ByM!$A$2:$B$462)+LOOKUP(O205,ByM!$A$2:$B$462)) -> 
P206: =IF(C206="","",(F206*3)+G206+H206-E206) ->  | Q206: =IF(C206="","",LOOKUP(K206,ByM!$A$2:$B$462)+LOOKUP(L206,ByM!$A$2:$B$462)+LOOKUP(M206,ByM!$A$2:$B$462)+LOOKUP(N206,ByM!$A$2:$B$462)+LOOKUP(O206,ByM!$A$2:$B$462)) -> 
... 95 more rows

Sheet Metahabilidad
B2: Nombre: | C2: Nombre | E2: Atributos: | K2: Coste del arquetipo:
B3: Bonus 1: | C3: - | D3: =LOOKUP(C3,ByM!$A$2:$B$462) -> 0 | E3: ENE | F3: ALC | G3: CAL | I3: ARE | K3: =IF(SUM(D3:D7,F5+G5+I5-E5)<1,1,SUM(D3:D7,F5+G5+I5-E5)) -> 1 | L3: =LOOKUP(C3,ByM!$A$2:$C$462) -> -
B4: Bonus 2: | C4: - | D4: =LOOKUP(C4,ByM!$A$2:$B$462) -> 0 | E4: 1 | F4: 0 | G4: 1 | I4: - | L4: =LOOKUP(C4,ByM!$A$2:$C$462) -> -
B5: Bonus 3: | C5: - | D5: =LOOKUP(C5,ByM!$A$2:$B$462) -> 0 | E5: =E4*3 -> 3 | F5: =F4 -> 0 | G5: =G4 -> 1 | I5: =LOOKUP(I4,Area!$A$2:$B$71) -> 0 | L5: =LOOKUP(C5,ByM!$A$2:$C$462) -> -
B6: Bonus 4: | C6: - | D6: =LOOKUP(C6,ByM!$A$2:$B$462) -> 0 | L6: =LOOKUP(C6,ByM!$A$2:$C$462) -> -
B7: Bonus 5: | C7: - | D7: =LOOKUP(C7,ByM!$A$2:$B$462) -> 0 | L7: =LOOKUP(C7,ByM!$A$2:$C$462) -> -
B8: Descripción:
B14: Tipo | C14: Nombre | D14: Desc | E14: ENE | F14: ALC | G14: . | H14: CAL | I14: PTS | J14: ARE | K14: Bonus 1 | L14: Bonus 2 | M14: Bonus 3 | N14: Bonus 4 | O14: Bonus 5 | P14: Pts Atr. | Q14: Pts ByM
B15: Invocación | C15: ¡Plaf! | E15: 3 | F15: 0 | H15: 3 | I15: 12 | J15: - | K15: Invocación | L15: Escuchimizado | M15: Maleficio (escuchimizado) | N15: - | O15: - | P15: =IF(C15="","",H15+F15-(E15*3)) -> -6 | Q15: =IF(C15="","",LOOKUP(J15,Area!$A$2:$B$71)+LOOKUP(K15,ByM!$A$2:$B$462)+LOOKUP(L15,ByM!$A$2:$B$462)+LOOKUP(M15,ByM!$A$2:$B$462)+LOOKUP(N15,ByM!$A$2:$B$462)+LOOKUP(O15,ByM!$A$2:$B$462)) -> -2
B16: Invocación | C16: Absorción vital | E16: 2 | F16: 0 | H16: 3 | I16: 9 | J16: - | K16: Invocación | L16: La mano de la muerte | M16: - | N16: - | O16: - | P16: =IF(C16="","",H16+F16-(E16*3)) -> -3 | Q16: =IF(C16="","",LOOKUP(J16,Area!$A$2:$B$71)+LOOKUP(K16,ByM!$A$2:$B$462)+LOOKUP(L16,ByM!$A$2:$B$462)+LOOKUP(M16,ByM!$A$2:$B$462)+LOOKUP(N16,ByM!$A$2:$B$462)+LOOKUP(O16,ByM!$A$2:$B$462)) -> 12
B17: Invocación | C17: Alucinación | E17: 6 | F17: 0 | H17: 3 | I17: 21 | J17: R3 | K17: Invocación | L17: Maleficio (Muy miedoso) | M17: Maleficio (Tuerto) | N17: Muy miedoso | O17: Tuerto | P17: =IF(C17="","",H17+F17-(E17*3)) -> -15 | Q17: =IF(C17="","",LOOKUP(J17,Area!$A$2:$B$71)+LOOKUP(K17,ByM!$A$2:$B$462)+LOOKUP(L17,ByM!$A$2:$B$462)+LOOKUP(M17,ByM!$A$2:$B$462)+LOOKUP(N17,ByM!$A$2:$B$462)+LOOKUP(O17,ByM!$A$2:$B$462)) -> -4
B18: Invocación | C18: Apaciguar los muertos | E18: 3 | F18: 0 | H18: 3 | I18: 8 | J18: - | K18: Invocación | L18: Magia: dormir (no vivo) | M18: Magia: tranquilizar (no vivo) | N18: - | O18: - | P18: =IF(C18="","",H18+F18-(E18*3)) -> -6 | Q18: =IF(C18="","",LOOKUP(J18,Area!$A$2:$B$71)+LOOKUP(K18,ByM!$A$2:$B$462)+LOOKUP(L18,ByM!$A$2:$B$462)+LOOKUP(M18,ByM!$A$2:$B$462)+LOOKUP(N18,ByM!$A$2:$B$462)+LOOKUP(O18,ByM!$A$2:$B$462)) -> 14
B19: Invocación | C19: Azote psíquico | E19: 4 | F19: 0 | H19: 3 | I19: 13 | J19: - | K19: Invocación | L19: Runas de combate | M19: Shin | N19: - | O19: - | P19: =IF(C19="","",H19+F19-(E19*3)) -> -9 | Q19: =IF(C19="","",LOOKUP(J19,Area!$A$2:$B$71)+LOOKUP(K19,ByM!$A$2:$B$462)+LOOKUP(L19,ByM!$A$2:$B$462)+LOOKUP(M19,ByM!$A$2:$B$462)+LOOKUP(N19,ByM!$A$2:$B$462)+LOOKUP(O19,ByM!$A$2:$B$462)) -> 22
B20: Invocación | C20: Barrera psíquica | E20: 3 | F20: 0 | H20: 3 | I20: 6 | J20: - | K20: Invocación | L20: Escudo de energía N01 | M20: - | N20: - | O20: - | P20: =IF(C20="","",H20+F20-(E20*3)) -> -6 | Q20: =IF(C20="","",LOOKUP(J20,Area!$A$2:$B$71)+LOOKUP(K20,ByM!$A$2:$B$462)+LOOKUP(L20,ByM!$A$2:$B$462)+LOOKUP(M20,ByM!$A$2:$B$462)+LOOKUP(N20,ByM!$A$2:$B$462)+LOOKUP(O20,ByM!$A$2:$B$462)) -> 12
B21: Invocación | C21: Cántico de odio | E21: 5 | F21: 0 | H21: 3 | I21: 15 | J21: - | K21: Invocación | L21: Grito berserker | M21: - | N21: - | O21: - | P21: =IF(C21="","",H21+F21-(E21*3)) -> -12 | Q21: =IF(C21="","",LOOKUP(J21,Area!$A$2:$B$71)+LOOKUP(K21,ByM!$A$2:$B$462)+LOOKUP(L21,ByM!$A$2:$B$462)+LOOKUP(M21,ByM!$A$2:$B$462)+LOOKUP(N21,ByM!$A$2:$B$462)+LOOKUP(O21,ByM!$A$2:$B$462)) -> 27
B22: Invocación | C22: Catecismo de fuego | E22: 5 | F22: 0 | H22: 3 | I22: 12 | J22: R3 | K22: Invocación | L22: Munición reforzada | M22: - | N22: - | O22: - | P22: =IF(C22="","",H22+F22-(E22*3)) -> -12 | Q22: =IF(C22="","",LOOKUP(J22,Area!$A$2:$B$71)+LOOKUP(K22,ByM!$A$2:$B$462)+LOOKUP(L22,ByM!$A$2:$B$462)+LOOKUP(M22,ByM!$A$2:$B$462)+LOOKUP(N22,ByM!$A$2:$B$462)+LOOKUP(O22,ByM!$A$2:$B$462)) -> 24
B23: Invocación | C23: Cicatrización de Mitra | E23: 2 | F23: 0 | H23: 3 | I23: 14 | J23: - | K23: Invocación | L23: Elixir N3 | M23: Un uso por actuación | N23: - | O23: - | P23: =IF(C23="","",H23+F23-(E23*3)) -> -3 | Q23: =IF(C23="","",LOOKUP(J23,Area!$A$2:$B$71)+LOOKUP(K23,ByM!$A$2:$B$462)+LOOKUP(L23,ByM!$A$2:$B$462)+LOOKUP(M23,ByM!$A$2:$B$462)+LOOKUP(N23,ByM!$A$2:$B$462)+LOOKUP(O23,ByM!$A$2:$B$462)) -> 17
B24: Invocación | C24: Comunión con lo salvaje | E24: 2 | F24: 0 | H24: 3 | I24: 14 | J24: - | K24: Invocación | L24: Berserker | M24: Sed de sangre | N24: - | O24: - | P24: =IF(C24="","",H24+F24-(E24*3)) -> -3 | Q24: =IF(C24="","",LOOKUP(J24,Area!$A$2:$B$71)+LOOKUP(K24,ByM!$A$2:$B$462)+LOOKUP(L24,ByM!$A$2:$B$462)+LOOKUP(M24,ByM!$A$2:$B$462)+LOOKUP(N24,ByM!$A$2:$B$462)+LOOKUP(O24,ByM!$A$2:$B$462)) -> 17
B25: Invocación | C25: Confusión | E25: 3 | F25: 0 | H25: 3 | I25: 6 | J25: - | K25: Invocación | L25: Magia: despistar | M25: - | N25: - | O25: - | P25: =IF(C25="","",H25+F25-(E25*3)) -> -6 | Q25: =IF(C25="","",LOOKUP(J25,Area!$A$2:$B$71)+LOOKUP(K25,ByM!$A$2:$B$462)+LOOKUP(L25,ByM!$A$2:$B$462)+LOOKUP(M25,ByM!$A$2:$B$462)+LOOKUP(N25,ByM!$A$2:$B$462)+LOOKUP(O25,ByM!$A$2:$B$462)) -> 12
B26: Invocación | C26: Copiar al mimo | E26: 3 | F26: 0 | H26: 3 | I26: 11 | J26: - | K26: Invocación | L26: Maestría en combate (poseer) | M26: - | N26: - | O26: - | P26: =IF(C26="","",H26+F26-(E26*3)) -> -6 | Q26: =IF(C26="","",LOOKUP(J26,Area!$A$2:$B$71)+LOOKUP(K26,ByM!$A$2:$B$462)+LOOKUP(L26,ByM!$A$2:$B$462)+LOOKUP(M26,ByM!$A$2:$B$462)+LOOKUP(N26,ByM!$A$2:$B$462)+LOOKUP(O26,ByM!$A$2:$B$462)) -> 17
B27: Invocación | C27: Corredor temporal | E27: 5 | F27: 0 | H27: 3 | I27: 7 | J27: R3 | K27: Invocación | L27: Teleport | M27: - | N27: - | O27: - | P27: =IF(C27="","",H27+F27-(E27*3)) -> -12 | Q27: =IF(C27="","",LOOKUP(J27,Area!$A$2:$B$71)+LOOKUP(K27,ByM!$A$2:$B$462)+LOOKUP(L27,ByM!$A$2:$B$462)+LOOKUP(M27,ByM!$A$2:$B$462)+LOOKUP(N27,ByM!$A$2:$B$462)+LOOKUP(O27,ByM!$A$2:$B$462)) -> 19
B28: Invocación | C28: Deambulación astral | E28: 1 | F28: 0 | H28: 3 | I28: 12 | J28: - | K28: Invocación | L28: Incorpóreo | M28: - | N28: - | O28: - | P28: =IF(C28="","",H28+F28-(E28*3)) -> 0 | Q28: =IF(C28="","",LOOKUP(J28,Area!$A$2:$B$71)+LOOKUP(K28,ByM!$A$2:$B$462)+LOOKUP(L28,ByM!$A$2:$B$462)+LOOKUP(M28,ByM!$A$2:$B$462)+LOOKUP(N28,ByM!$A$2:$B$462)+LOOKUP(O28,ByM!$A$2:$B$462)) -> 12
B29: Invocación | C29: Desarme | E29: 3 | F29: 0 | H29: 3 | I29: 6 | J29: - | K29: Invocación | L29: Magia: telekinesis | M29: - | N29: - | O29: - | P29: =IF(C29="","",H29+F29-(E29*3)) -> -6 | Q29: =IF(C29="","",LOOKUP(J29,Area!$A$2:$B$71)+LOOKUP(K29,ByM!$A$2:$B$462)+LOOKUP(L29,ByM!$A$2:$B$462)+LOOKUP(M29,ByM!$A$2:$B$462)+LOOKUP(N29,ByM!$A$2:$B$462)+LOOKUP(O29,ByM!$A$2:$B$462)) -> 12
B30: Invocación | C30: Disputa | E30: 3 | F30: 0 | H30: 3 | I30: 6 | J30: - | K30: Invocación | L30: Magia: despistar | M30: - | N30: - | O30: - | P30: =IF(C30="","",H30+F30-(E30*3)) -> -6 | Q30: =IF(C30="","",LOOKUP(J30,Area!$A$2:$B$71)+LOOKUP(K30,ByM!$A$2:$B$462)+LOOKUP(L30,ByM!$A$2:$B$462)+LOOKUP(M30,ByM!$A$2:$B$462)+LOOKUP(N30,ByM!$A$2:$B$462)+LOOKUP(O30,ByM!$A$2:$B$462)) -> 12
B31: Invocación | C31: Doble de Majachsuwi | E31: 3 | F31: 0 | H31: 3 | I31: 11 | J31: - | K31: Invocación | L31: Señuelo | M31: Un uso por aventura | N31: - | O31: - | P31: =IF(C31="","",H31+F31-(E31*3)) -> -6 | Q31: =IF(C31="","",LOOKUP(J31,Area!$A$2:$B$71)+LOOKUP(K31,ByM!$A$2:$B$462)+LOOKUP(L31,ByM!$A$2:$B$462)+LOOKUP(M31,ByM!$A$2:$B$462)+LOOKUP(N31,ByM!$A$2:$B$462)+LOOKUP(O31,ByM!$A$2:$B$462)) -> 17
B32: Invocación | C32: Esclavizar | E32: 2 | F32: 0 | H32: 3 | I32: 9 | J32: - | K32: Invocación | L32: Maestría (poseer) | M32: - | N32: - | O32: - | P32: =IF(C32="","",H32+F32-(E32*3)) -> -3 | Q32: =IF(C32="","",LOOKUP(J32,Area!$A$2:$B$71)+LOOKUP(K32,ByM!$A$2:$B$462)+LOOKUP(L32,ByM!$A$2:$B$462)+LOOKUP(M32,ByM!$A$2:$B$462)+LOOKUP(N32,ByM!$A$2:$B$462)+LOOKUP(O32,ByM!$A$2:$B$462)) -> 12
B33: Invocación | C33: Espíritu de la raptura | E33: 3 | F33: 0 | H33: 3 | I33: 1 | J33: - | K33: Invocación | L33: Saltador | M33: Un uso por aventura | N33: - | O33: - | P33: =IF(C33="","",H33+F33-(E33*3)) -> -6 | Q33: =IF(C33="","",LOOKUP(J33,Area!$A$2:$B$71)+LOOKUP(K33,ByM!$A$2:$B$462)+LOOKUP(L33,ByM!$A$2:$B$462)+LOOKUP(M33,ByM!$A$2:$B$462)+LOOKUP(N33,ByM!$A$2:$B$462)+LOOKUP(O33,ByM!$A$2:$B$462)) -> 2
B34: Invocación | C34: Espíritu del bufamello | E34: 3 | F34: 0 | H34: 3 | I34: 1 | J34: - | K34: Invocación | L34: Magia: despistar | M34: Un uso por aventura | N34: - | O34: - | P34: =IF(C34="","",H34+F34-(E34*3)) -> -6 | Q34: =IF(C34="","",LOOKUP(J34,Area!$A$2:$B$71)+LOOKUP(K34,ByM!$A$2:$B$462)+LOOKUP(L34,ByM!$A$2:$B$462)+LOOKUP(M34,ByM!$A$2:$B$462)+LOOKUP(N34,ByM!$A$2:$B$462)+LOOKUP(O34,ByM!$A$2:$B$462)) -> 2
B35: Invocación | C35: Espíritu del mongolongo | E35: 3 | F35: 0 | H35: 3 | I35: 1 | J35: - | K35: Invocación | L35: Cojitranco | M35: Maleficio (cojitranco) | N35: Un uso por aventura | O35: - | P35: =IF(C35="","",H35+F35-(E35*3)) -> -6 | Q35: =IF(C35="","",LOOKUP(J35,Area!$A$2:$B$71)+LOOKUP(K35,ByM!$A$2:$B$462)+LOOKUP(L35,ByM!$A$2:$B$462)+LOOKUP(M35,ByM!$A$2:$B$462)+LOOKUP(N35,ByM!$A$2:$B$462)+LOOKUP(O35,ByM!$A$2:$B$462)) -> -7
B36: Invocación | C36: Espíritu del ojaldrón | E36: 3 | F36: 0 | H36: 3 | I36: 22 | J36: - | K36: Invocación | L36: Maleficio (tembleque) | M36: Tembleque | N36: Un uso por aventura | O36: - | P36: =IF(C36="","",H36+F36-(E36*3)) -> -6 | Q36: =IF(C36="","",LOOKUP(J36,Area!$A$2:$B$71)+LOOKUP(K36,ByM!$A$2:$B$462)+LOOKUP(L36,ByM!$A$2:$B$462)+LOOKUP(M36,ByM!$A$2:$B$462)+LOOKUP(N36,ByM!$A$2:$B$462)+LOOKUP(O36,ByM!$A$2:$B$462)) -> -32
B37: Invocación | C37: Exhortación de ira | E37: 5 | F37: 0 | H37: 3 | I37: 20 | J37: - | K37: Invocación | L37: Grito de muerte | M37: - | N37: - | O37: - | P37: =IF(C37="","",H37+F37-(E37*3)) -> -12 | Q37: =IF(C37="","",LOOKUP(J37,Area!$A$2:$B$71)+LOOKUP(K37,ByM!$A$2:$B$462)+LOOKUP(L37,ByM!$A$2:$B$462)+LOOKUP(M37,ByM!$A$2:$B$462)+LOOKUP(N37,ByM!$A$2:$B$462)+LOOKUP(O37,ByM!$A$2:$B$462)) -> 32
B38: Invocación | C38: Fortaleza psíquica | E38: 6 | F38: 0 | H38: 3 | I38: 19 | J38: R3 | K38: Invocación | L38: Salvaguarda | M38: - | N38: - | O38: - | P38: =IF(C38="","",H38+F38-(E38*3)) -> -15 | Q38: =IF(C38="","",LOOKUP(J38,Area!$A$2:$B$71)+LOOKUP(K38,ByM!$A$2:$B$462)+LOOKUP(L38,ByM!$A$2:$B$462)+LOOKUP(M38,ByM!$A$2:$B$462)+LOOKUP(N38,ByM!$A$2:$B$462)+LOOKUP(O38,ByM!$A$2:$B$462)) -> 34
B39: Invocación | C39: Fulgor de Majachsuwi | E39: 3 | F39: 0 | H39: 3 | I39: 1 | J39: - | K39: Invocación | L39: Humo denso | M39: Un uso por aventura | N39: - | O39: - | P39: =IF(C39="","",H39+F39-(E39*3)) -> -6 | Q39: =IF(C39="","",LOOKUP(J39,Area!$A$2:$B$71)+LOOKUP(K39,ByM!$A$2:$B$462)+LOOKUP(L39,ByM!$A$2:$B$462)+LOOKUP(M39,ByM!$A$2:$B$462)+LOOKUP(N39,ByM!$A$2:$B$462)+LOOKUP(O39,ByM!$A$2:$B$462)) -> 3
B40: Invocación | C40: Halo de Mitra | E40: 3 | F40: 0 | H40: 4 | I40: 7 | J40: - | K40: Invocación | L40: Escudo de energía N01 | M40: - | N40: - | O40: - | P40: =IF(C40="","",H40+F40-(E40*3)) -> -5 | Q40: =IF(C40="","",LOOKUP(J40,Area!$A$2:$B$71)+LOOKUP(K40,ByM!$A$2:$B$462)+LOOKUP(L40,ByM!$A$2:$B$462)+LOOKUP(M40,ByM!$A$2:$B$462)+LOOKUP(N40,ByM!$A$2:$B$462)+LOOKUP(O40,ByM!$A$2:$B$462)) -> 12
B41: Invocación | C41: Halo de Set | E41: 2 | F41: 0 | H41: 3 | I41: 19 | J41: - | K41: Invocación | L41: Baño de acero | M41: - | N41: - | O41: - | P41: =IF(C41="","",H41+F41-(E41*3)) -> -3 | Q41: =IF(C41="","",LOOKUP(J41,Area!$A$2:$B$71)+LOOKUP(K41,ByM!$A$2:$B$462)+LOOKUP(L41,ByM!$A$2:$B$462)+LOOKUP(M41,ByM!$A$2:$B$462)+LOOKUP(N41,ByM!$A$2:$B$462)+LOOKUP(O41,ByM!$A$2:$B$462)) -> 22
B42: Invocación | C42: Letanía de fe | E42: 5 | F42: 0 | H42: 3 | I42: 9 | J42: R3 | K42: Invocación | L42: Afortunado | M42: - | N42: - | O42: - | P42: =IF(C42="","",H42+F42-(E42*3)) -> -12 | Q42: =IF(C42="","",LOOKUP(J42,Area!$A$2:$B$71)+LOOKUP(K42,ByM!$A$2:$B$462)+LOOKUP(L42,ByM!$A$2:$B$462)+LOOKUP(M42,ByM!$A$2:$B$462)+LOOKUP(N42,ByM!$A$2:$B$462)+LOOKUP(O42,ByM!$A$2:$B$462)) -> 21
B43: Invocación | C43: Letanía de odio | E43: 5 | F43: 0 | H43: 3 | I43: 17 | J43: R3 | K43: Invocación | L43: De precisión | M43: - | N43: - | O43: - | P43: =IF(C43="","",H43+F43-(E43*3)) -> -12 | Q43: =IF(C43="","",LOOKUP(J43,Area!$A$2:$B$71)+LOOKUP(K43,ByM!$A$2:$B$462)+LOOKUP(L43,ByM!$A$2:$B$462)+LOOKUP(M43,ByM!$A$2:$B$462)+LOOKUP(N43,ByM!$A$2:$B$462)+LOOKUP(O43,ByM!$A$2:$B$462)) -> 29
B44: Invocación | C44: Levantar a los muertos | E44: 3 | F44: 0 | H44: 3 | I44: 6 | J44: - | K44: Invocación | L44: Magia: resucitar | M44: - | N44: - | O44: - | P44: =IF(C44="","",H44+F44-(E44*3)) -> -6 | Q44: =IF(C44="","",LOOKUP(J44,Area!$A$2:$B$71)+LOOKUP(K44,ByM!$A$2:$B$462)+LOOKUP(L44,ByM!$A$2:$B$462)+LOOKUP(M44,ByM!$A$2:$B$462)+LOOKUP(N44,ByM!$A$2:$B$462)+LOOKUP(O44,ByM!$A$2:$B$462)) -> 12
B45: Invocación | C45: Llevado por el viento | E45: 1 | F45: 0 | H45: 4 | I45: 9 | J45: - | K45: Invocación | L45: Vuelo | M45: - | N45: - | O45: - | P45: =IF(C45="","",H45+F45-(E45*3)) -> 1 | Q45: =IF(C45="","",LOOKUP(J45,Area!$A$2:$B$71)+LOOKUP(K45,ByM!$A$2:$B$462)+LOOKUP(L45,ByM!$A$2:$B$462)+LOOKUP(M45,ByM!$A$2:$B$462)+LOOKUP(N45,ByM!$A$2:$B$462)+LOOKUP(O45,ByM!$A$2:$B$462)) -> 8
B46: Invocación | C46: Mantra de fuerza | E46: 5 | F46: 0 | H46: 3 | I46: 20 | J46: - | K46: Invocación | L46: Afilada | M46: Maestro carnicero | N46: Profesión bárbaro | O46: - | P46: =IF(C46="","",H46+F46-(E46*3)) -> -12 | Q46: =IF(C46="","",LOOKUP(J46,Area!$A$2:$B$71)+LOOKUP(K46,ByM!$A$2:$B$462)+LOOKUP(L46,ByM!$A$2:$B$462)+LOOKUP(M46,ByM!$A$2:$B$462)+LOOKUP(N46,ByM!$A$2:$B$462)+LOOKUP(O46,ByM!$A$2:$B$462)) -> 32
B47: Invocación | C47: Mareo mágico | E47: 2 | F47: 0 | H47: 3 | I47: 15 | J47: - | K47: Invocación | L47: Maleficio (Muy torpe) | M47: Muy torpe | N47: - | O47: - | P47: =IF(C47="","",H47+F47-(E47*3)) -> -3 | Q47: =IF(C47="","",LOOKUP(J47,Area!$A$2:$B$71)+LOOKUP(K47,ByM!$A$2:$B$462)+LOOKUP(L47,ByM!$A$2:$B$462)+LOOKUP(M47,ByM!$A$2:$B$462)+LOOKUP(N47,ByM!$A$2:$B$462)+LOOKUP(O47,ByM!$A$2:$B$462)) -> -2
B48: Invocación | C48: Mirada del escrutador (Phobos) | E48: 6 | F48: 0 | H48: 3 | I48: 19 | J48: R3 | K48: Invocación | L48: De precisión | M48: Munición buscadora | N48: - | O48: - | P48: =IF(C48="","",H48+F48-(E48*3)) -> -15 | Q48: =IF(C48="","",LOOKUP(J48,Area!$A$2:$B$71)+LOOKUP(K48,ByM!$A$2:$B$462)+LOOKUP(L48,ByM!$A$2:$B$462)+LOOKUP(M48,ByM!$A$2:$B$462)+LOOKUP(N48,ByM!$A$2:$B$462)+LOOKUP(O48,ByM!$A$2:$B$462)) -> 34
B49: Invocación | C49: Muro imaginario | E49: 3 | F49: 0 | H49: 3 | I49: 16 | J49: - | K49: Invocación | L49: Escudo de energía N03 | M49: - | N49: - | O49: - | P49: =IF(C49="","",H49+F49-(E49*3)) -> -6 | Q49: =IF(C49="","",LOOKUP(J49,Area!$A$2:$B$71)+LOOKUP(K49,ByM!$A$2:$B$462)+LOOKUP(L49,ByM!$A$2:$B$462)+LOOKUP(M49,ByM!$A$2:$B$462)+LOOKUP(N49,ByM!$A$2:$B$462)+LOOKUP(O49,ByM!$A$2:$B$462)) -> 22
B50: Invocación | C50: Ocultación (Phobos) | E50: 4 | F50: 0 | H50: 3 | I50: 10 | J50: R3 | K50: Invocación | L50: Mimético | M50: - | N50: - | O50: - | P50: =IF(C50="","",H50+F50-(E50*3)) -> -9 | Q50: =IF(C50="","",LOOKUP(J50,Area!$A$2:$B$71)+LOOKUP(K50,ByM!$A$2:$B$462)+LOOKUP(L50,ByM!$A$2:$B$462)+LOOKUP(M50,ByM!$A$2:$B$462)+LOOKUP(N50,ByM!$A$2:$B$462)+LOOKUP(O50,ByM!$A$2:$B$462)) -> 19
B51: Invocación | C51: Poder de los héroes | E51: 6 | F51: 0 | H51: 3 | I51: 12 | J51: - | K51: Invocación | L51: Profesión acróbata | M51: Profesión bárbaro | N51: - | O51: - | P51: =IF(C51="","",H51+F51-(E51*3)) -> -15 | Q51: =IF(C51="","",LOOKUP(J51,Area!$A$2:$B$71)+LOOKUP(K51,ByM!$A$2:$B$462)+LOOKUP(L51,ByM!$A$2:$B$462)+LOOKUP(M51,ByM!$A$2:$B$462)+LOOKUP(N51,ByM!$A$2:$B$462)+LOOKUP(O51,ByM!$A$2:$B$462)) -> 27
B52: Invocación | C52: Posesión de Set | E52: 2 | F52: 0 | H52: 4 | I52: 11 | J52: - | K52: Invocación | L52: Cojitranco | M52: Maleficio (cojitranco) | N52: - | O52: - | P52: =IF(C52="","",H52+F52-(E52*3)) -> -2 | Q52: =IF(C52="","",LOOKUP(J52,Area!$A$2:$B$71)+LOOKUP(K52,ByM!$A$2:$B$462)+LOOKUP(L52,ByM!$A$2:$B$462)+LOOKUP(M52,ByM!$A$2:$B$462)+LOOKUP(N52,ByM!$A$2:$B$462)+LOOKUP(O52,ByM!$A$2:$B$462)) -> 3
B53: Invocación | C53: Potenciación | E53: 3 | F53: 0 | H53: 3 | I53: 11 | J53: - | K53: Invocación | L53: Maestro de esgrima | M53: - | N53: - | O53: - | P53: =IF(C53="","",H53+F53-(E53*3)) -> -6 | Q53: =IF(C53="","",LOOKUP(J53,Area!$A$2:$B$71)+LOOKUP(K53,ByM!$A$2:$B$462)+LOOKUP(L53,ByM!$A$2:$B$462)+LOOKUP(M53,ByM!$A$2:$B$462)+LOOKUP(N53,ByM!$A$2:$B$462)+LOOKUP(O53,ByM!$A$2:$B$462)) -> 17
B54: Invocación | C54: Recital de concentración | E54: 5 | F54: 0 | H54: 3 | I54: 20 | J54: - | K54: Invocación | L54: Grito de fuego | M54: - | N54: - | O54: - | P54: =IF(C54="","",H54+F54-(E54*3)) -> -12 | Q54: =IF(C54="","",LOOKUP(J54,Area!$A$2:$B$71)+LOOKUP(K54,ByM!$A$2:$B$462)+LOOKUP(L54,ByM!$A$2:$B$462)+LOOKUP(M54,ByM!$A$2:$B$462)+LOOKUP(N54,ByM!$A$2:$B$462)+LOOKUP(O54,ByM!$A$2:$B$462)) -> 32
B55: Invocación | C55: Regalo de vida | E55: 2 | F55: 0 | H55: 3 | I55: 9 | J55: - | K55: Invocación | L55: Elixir N2 | M55: Un uso por actuación | N55: - | O55: - | P55: =IF(C55="","",H55+F55-(E55*3)) -> -3 | Q55: =IF(C55="","",LOOKUP(J55,Area!$A$2:$B$71)+LOOKUP(K55,ByM!$A$2:$B$462)+LOOKUP(L55,ByM!$A$2:$B$462)+LOOKUP(M55,ByM!$A$2:$B$462)+LOOKUP(N55,ByM!$A$2:$B$462)+LOOKUP(O55,ByM!$A$2:$B$462)) -> 12
B56: Invocación | C56: Resistencia de Majachsuwi | E56: 2 | F56: 0 | H56: 3 | I56: 14 | J56: - | K56: Invocación | L56: Baño de acero | M56: Un uso por actuación | N56: - | O56: - | P56: =IF(C56="","",H56+F56-(E56*3)) -> -3 | Q56: =IF(C56="","",LOOKUP(J56,Area!$A$2:$B$71)+LOOKUP(K56,ByM!$A$2:$B$462)+LOOKUP(L56,ByM!$A$2:$B$462)+LOOKUP(M56,ByM!$A$2:$B$462)+LOOKUP(N56,ByM!$A$2:$B$462)+LOOKUP(O56,ByM!$A$2:$B$462)) -> 17
B57: Invocación | C57: Robo de energía | E57: 1 | F57: 0 | H57: 2 | I57: 11 | J57: - | K57: Invocación | L57: Sed de energía | M57: - | N57: - | O57: - | P57: =IF(C57="","",H57+F57-(E57*3)) -> -1 | Q57: =IF(C57="","",LOOKUP(J57,Area!$A$2:$B$71)+LOOKUP(K57,ByM!$A$2:$B$462)+LOOKUP(L57,ByM!$A$2:$B$462)+LOOKUP(M57,ByM!$A$2:$B$462)+LOOKUP(N57,ByM!$A$2:$B$462)+LOOKUP(O57,ByM!$A$2:$B$462)) -> 12
B58: Invocación | C58: Someter al rebaño | E58: 3 | F58: 0 | H58: 3 | I58: 16 | J58: R4 | K58: Invocación | L58: Acobardamiento | M58: - | N58: - | O58: - | P58: =IF(C58="","",H58+F58-(E58*3)) -> -6 | Q58: =IF(C58="","",LOOKUP(J58,Area!$A$2:$B$71)+LOOKUP(K58,ByM!$A$2:$B$462)+LOOKUP(L58,ByM!$A$2:$B$462)+LOOKUP(M58,ByM!$A$2:$B$462)+LOOKUP(N58,ByM!$A$2:$B$462)+LOOKUP(O58,ByM!$A$2:$B$462)) -> 22
B59: Invocación | C59: Telekinesis | E59: 1 | F59: 0 | H59: 3 | I59: 12 | J59: - | K59: Invocación | L59: Magia: telekinesis | M59: - | N59: - | O59: - | P59: =IF(C59="","",H59+F59-(E59*3)) -> 0 | Q59: =IF(C59="","",LOOKUP(J59,Area!$A$2:$B$71)+LOOKUP(K59,ByM!$A$2:$B$462)+LOOKUP(L59,ByM!$A$2:$B$462)+LOOKUP(M59,ByM!$A$2:$B$462)+LOOKUP(N59,ByM!$A$2:$B$462)+LOOKUP(O59,ByM!$A$2:$B$462)) -> 12
B60: Invocación | C60: Teleportación | E60: 3 | F60: 0 | H60: 2 | I60: 1 | J60: - | K60: Invocación | L60: Teleport | M60: Un uso por actuación | N60: - | O60: - | P60: =IF(C60="","",H60+F60-(E60*3)) -> -7 | Q60: =IF(C60="","",LOOKUP(J60,Area!$A$2:$B$71)+LOOKUP(K60,ByM!$A$2:$B$462)+LOOKUP(L60,ByM!$A$2:$B$462)+LOOKUP(M60,ByM!$A$2:$B$462)+LOOKUP(N60,ByM!$A$2:$B$462)+LOOKUP(O60,ByM!$A$2:$B$462)) -> 7
B61: Invocación | C61: Velo termporal | E61: 6 | F61: 0 | H61: 3 | I61: 25 | J61: R4 | K61: Invocación | L61: Grito berserker | M61: - | N61: - | O61: - | P61: =IF(C61="","",H61+F61-(E61*3)) -> -15 | Q61: =IF(C61="","",LOOKUP(J61,Area!$A$2:$B$71)+LOOKUP(K61,ByM!$A$2:$B$462)+LOOKUP(L61,ByM!$A$2:$B$462)+LOOKUP(M61,ByM!$A$2:$B$462)+LOOKUP(N61,ByM!$A$2:$B$462)+LOOKUP(O61,ByM!$A$2:$B$462)) -> 40
B62: Invocación | C62: Zona de anulación | E62: 7 | F62: 0 | H62: 3 | I62: 39 | J62: R3 | K62: Invocación | L62: Distorsión psíquica | M62: Hálito de imbecilidad | N62: Munición vida o muerte | O62: - | P62: =IF(C62="","",H62+F62-(E62*3)) -> -18 | Q62: =IF(C62="","",LOOKUP(J62,Area!$A$2:$B$71)+LOOKUP(K62,ByM!$A$2:$B$462)+LOOKUP(L62,ByM!$A$2:$B$462)+LOOKUP(M62,ByM!$A$2:$B$462)+LOOKUP(N62,ByM!$A$2:$B$462)+LOOKUP(O62,ByM!$A$2:$B$462)) -> 57
C63: zzzz*
P64: =IF(C64="","",#REF!+(LOOKUP(F64,Area!$A$2:$B$71))+G64-(E64*3)) ->  | Q64: =IF(C64="","",LOOKUP(K64,ByM!$A$2:$B$462)+LOOKUP(L64,ByM!$A$2:$B$462)+LOOKUP(M64,ByM!$A$2:$B$462)+LOOKUP(N64,ByM!$A$2:$B$462)+LOOKUP(O64,ByM!$A$2:$B$462)) -> 
P65: =IF(C65="","",#REF!+(LOOKUP(F65,Area!$A$2:$B$71))+G65-(E65*3)) ->  | Q65: =IF(C65="","",LOOKUP(K65,ByM!$A$2:$B$462)+LOOKUP(L65,ByM!$A$2:$B$462)+LOOKUP(M65,ByM!$A$2:$B$462)+LOOKUP(N65,ByM!$A$2:$B$462)+LOOKUP(O65,ByM!$A$2:$B$462)) -> 
P66: =IF(C66="","",#REF!+(LOOKUP(F66,Area!$A$2:$B$71))+G66-(E66*3)) ->  | Q66: =IF(C66="","",LOOKUP(K66,ByM!$A$2:$B$462)+LOOKUP(L66,ByM!$A$2:$B$462)+LOOKUP(M66,ByM!$A$2:$B$462)+LOOKUP(N66,ByM!$A$2:$B$462)+LOOKUP(O66,ByM!$A$2:$B$462)) -> 
P67: =IF(C67="","",#REF!+(LOOKUP(F67,Area!$A$2:$B$71))+G67-(E67*3)) ->  | Q67: =IF(C67="","",LOOKUP(K67,ByM!$A$2:$B$462)+LOOKUP(L67,ByM!$A$2:$B$462)+LOOKUP(M67,ByM!$A$2:$B$462)+LOOKUP(N67,ByM!$A$2:$B$462)+LOOKUP(O67,ByM!$A$2:$B$462)) -> 
P68: =IF(C68="","",#REF!+(LOOKUP(F68,Area!$A$2:$B$71))+G68-(E68*3)) ->  | Q68: =IF(C68="","",LOOKUP(K68,ByM!$A$2:$B$462)+LOOKUP(L68,ByM!$A$2:$B$462)+LOOKUP(M68,ByM!$A$2:$B$462)+LOOKUP(N68,ByM!$A$2:$B$462)+LOOKUP(O68,ByM!$A$2:$B$462)) -> 
P69: =IF(C69="","",#REF!+(LOOKUP(F69,Area!$A$2:$B$71))+G69-(E69*3)) ->  | Q69: =IF(C69="","",LOOKUP(K69,ByM!$A$2:$B$462)+LOOKUP(L69,ByM!$A$2:$B$462)+LOOKUP(M69,ByM!$A$2:$B$462)+LOOKUP(N69,ByM!$A$2:$B$462)+LOOKUP(O69,ByM!$A$2:$B$462)) -> 
P70: =IF(C70="","",#REF!+(LOOKUP(F70,Area!$A$2:$B$71))+G70-(E70*3)) ->  | Q70: =IF(C70="","",LOOKUP(K70,ByM!$A$2:$B$462)+LOOKUP(L70,ByM!$A$2:$B$462)+LOOKUP(M70,ByM!$A$2:$B$462)+LOOKUP(N70,ByM!$A$2:$B$462)+LOOKUP(O70,ByM!$A$2:$B$462)) -> 
P71: =IF(C71="","",#REF!+(LOOKUP(F71,Area!$A$2:$B$71))+G71-(E71*3)) ->  | Q71: =IF(C71="","",LOOKUP(K71,ByM!$A$2:$B$462)+LOOKUP(L71,ByM!$A$2:$B$462)+LOOKUP(M71,ByM!$A$2:$B$462)+LOOKUP(N71,ByM!$A$2:$B$462)+LOOKUP(O71,ByM!$A$2:$B$462)) -> 
P72: =IF(C72="","",#REF!+(LOOKUP(F72,Area!$A$2:$B$71))+G72-(E72*3)) ->  | Q72: =IF(C72="","",LOOKUP(K72,ByM!$A$2:$B$462)+LOOKUP(L72,ByM!$A$2:$B$462)+LOOKUP(M72,ByM!$A$2:$B$462)+LOOKUP(N72,ByM!$A$2:$B$462)+LOOKUP(O72,ByM!$A$2:$B$462)) -> 
P73: =IF(C73="","",#REF!+(LOOKUP(F73,Area!$A$2:$B$71))+G73-(E73*3)) ->  | Q73: =IF(C73="","",LOOKUP(K73,ByM!$A$2:$B$462)+LOOKUP(L73,ByM!$A$2:$B$462)+LOOKUP(M73,ByM!$A$2:$B$462)+LOOKUP(N73,ByM!$A$2:$B$462)+LOOKUP(O73,ByM!$A$2:$B$462)) -> 
P74: =IF(C74="","",#REF!+(LOOKUP(F74,Area!$A$2:$B$71))+G74-(E74*3)) ->  | Q74: =IF(C74="","",LOOKUP(K74,ByM!$A$2:$B$462)+LOOKUP(L74,ByM!$A$2:$B$462)+LOOKUP(M74,ByM!$A$2:$B$462)+LOOKUP(N74,ByM!$A$2:$B$462)+LOOKUP(O74,ByM!$A$2:$B$462)) -> 
P75: =IF(C75="","",#REF!+(LOOKUP(F75,Area!$A$2:$B$71))+G75-(E75*3)) ->  | Q75: =IF(C75="","",LOOKUP(K75,ByM!$A$2:$B$462)+LOOKUP(L75,ByM!$A$2:$B$462)+LOOKUP(M75,ByM!$A$2:$B$462)+LOOKUP(N75,ByM!$A$2:$B$462)+LOOKUP(O75,ByM!$A$2:$B$462)) -> 
P76: =IF(C76="","",#REF!+(LOOKUP(F76,Area!$A$2:$B$71))+G76-(E76*3)) ->  | Q76: =IF(C76="","",LOOKUP(K76,ByM!$A$2:$B$462)+LOOKUP(L76,ByM!$A$2:$B$462)+LOOKUP(M76,ByM!$A$2:$B$462)+LOOKUP(N76,ByM!$A$2:$B$462)+LOOKUP(O76,ByM!$A$2:$B$462)) -> 
P77: =IF(C77="","",#REF!+(LOOKUP(F77,Area!$A$2:$B$71))+G77-(E77*3)) ->  | Q77: =IF(C77="","",LOOKUP(K77,ByM!$A$2:$B$462)+LOOKUP(L77,ByM!$A$2:$B$462)+LOOKUP(M77,ByM!$A$2:$B$462)+LOOKUP(N77,ByM!$A$2:$B$462)+LOOKUP(O77,ByM!$A$2:$B$462)) -> 
P78: =IF(C78="","",#REF!+(LOOKUP(F78,Area!$A$2:$B$71))+G78-(E78*3)) ->  | Q78: =IF(C78="","",LOOKUP(K78,ByM!$A$2:$B$462)+LOOKUP(L78,ByM!$A$2:$B$462)+LOOKUP(M78,ByM!$A$2:$B$462)+LOOKUP(N78,ByM!$A$2:$B$462)+LOOKUP(O78,ByM!$A$2:$B$462)) -> 
P79: =IF(C79="","",#REF!+(LOOKUP(F79,Area!$A$2:$B$71))+G79-(E79*3)) ->  | Q79: =IF(C79="","",LOOKUP(K79,ByM!$A$2:$B$462)+LOOKUP(L79,ByM!$A$2:$B$462)+LOOKUP(M79,ByM!$A$2:$B$462)+LOOKUP(N79,ByM!$A$2:$B$462)+LOOKUP(O79,ByM!$A$2:$B$462)) -> 
P80: =IF(C80="","",#REF!+(LOOKUP(F80,Area!$A$2:$B$71))+G80-(E80*3)) ->  | Q80: =IF(C80="","",LOOKUP(K80,ByM!$A$2:$B$462)+LOOKUP(L80,ByM!$A$2:$B$462)+LOOKUP(M80,ByM!$A$2:$B$462)+LOOKUP(N80,ByM!$A$2:$B$462)+LOOKUP(O80,ByM!$A$2:$B$462)) -> 
P81: =IF(C81="","",#REF!+(LOOKUP(F81,Area!$A$2:$B$71))+G81-(E81*3)) ->  | Q81: =IF(C81="","",LOOKUP(K81,ByM!$A$2:$B$462)+LOOKUP(L81,ByM!$A$2:$B$462)+LOOKUP(M81,ByM!$A$2:$B$462)+LOOKUP(N81,ByM!$A$2:$B$462)+LOOKUP(O81,ByM!$A$2:$B$462)) -> 
P82: =IF(C82="","",#REF!+(LOOKUP(F82,Area!$A$2:$B$71))+G82-(E82*3)) ->  | Q82: =IF(C82="","",LOOKUP(K82,ByM!$A$2:$B$462)+LOOKUP(L82,ByM!$A$2:$B$462)+LOOKUP(M82,ByM!$A$2:$B$462)+LOOKUP(N82,ByM!$A$2:$B$462)+LOOKUP(O82,ByM!$A$2:$B$462)) -> 
P83: =IF(C83="","",#REF!+(LOOKUP(F83,Area!$A$2:$B$71))+G83-(E83*3)) ->  | Q83: =IF(C83="","",LOOKUP(K83,ByM!$A$2:$B$462)+LOOKUP(L83,ByM!$A$2:$B$462)+LOOKUP(M83,ByM!$A$2:$B$462)+LOOKUP(N83,ByM!$A$2:$B$462)+LOOKUP(O83,ByM!$A$2:$B$462)) -> 
P84: =IF(C84="","",#REF!+(LOOKUP(F84,Area!$A$2:$B$71))+G84-(E84*3)) ->  | Q84: =IF(C84="","",LOOKUP(K84,ByM!$A$2:$B$462)+LOOKUP(L84,ByM!$A$2:$B$462)+LOOKUP(M84,ByM!$A$2:$B$462)+LOOKUP(N84,ByM!$A$2:$B$462)+LOOKUP(O84,ByM!$A$2:$B$462)) -> 
P85: =IF(C85="","",#REF!+(LOOKUP(F85,Area!$A$2:$B$71))+G85-(E85*3)) ->  | Q85: =IF(C85="","",LOOKUP(K85,ByM!$A$2:$B$462)+LOOKUP(L85,ByM!$A$2:$B$462)+LOOKUP(M85,ByM!$A$2:$B$462)+LOOKUP(N85,ByM!$A$2:$B$462)+LOOKUP(O85,ByM!$A$2:$B$462)) -> 
P86: =IF(C86="","",#REF!+(LOOKUP(F86,Area!$A$2:$B$71))+G86-(E86*3)) ->  | Q86: =IF(C86="","",LOOKUP(K86,ByM!$A$2:$B$462)+LOOKUP(L86,ByM!$A$2:$B$462)+LOOKUP(M86,ByM!$A$2:$B$462)+LOOKUP(N86,ByM!$A$2:$B$462)+LOOKUP(O86,ByM!$A$2:$B$462)) -> 
P87: =IF(C87="","",#REF!+(LOOKUP(F87,Area!$A$2:$B$71))+G87-(E87*3)) ->  | Q87: =IF(C87="","",LOOKUP(K87,ByM!$A$2:$B$462)+LOOKUP(L87,ByM!$A$2:$B$462)+LOOKUP(M87,ByM!$A$2:$B$462)+LOOKUP(N87,ByM!$A$2:$B$462)+LOOKUP(O87,ByM!$A$2:$B$462)) -> 
P88: =IF(C88="","",#REF!+(LOOKUP(F88,Area!$A$2:$B$71))+G88-(E88*3)) ->  | Q88: =IF(C88="","",LOOKUP(K88,ByM!$A$2:$B$462)+LOOKUP(L88,ByM!$A$2:$B$462)+LOOKUP(M88,ByM!$A$2:$B$462)+LOOKUP(N88,ByM!$A$2:$B$462)+LOOKUP(O88,ByM!$A$2:$B$462)) -> 
P89: =IF(C89="","",#REF!+(LOOKUP(F89,Area!$A$2:$B$71))+G89-(E89*3)) ->  | Q89: =IF(C89="","",LOOKUP(K89,ByM!$A$2:$B$462)+LOOKUP(L89,ByM!$A$2:$B$462)+LOOKUP(M89,ByM!$A$2:$B$462)+LOOKUP(N89,ByM!$A$2:$B$462)+LOOKUP(O89,ByM!$A$2:$B$462)) -> 
P90: =IF(C90="","",#REF!+(LOOKUP(F90,Area!$A$2:$B$71))+G90-(E90*3)) ->  | Q90: =IF(C90="","",LOOKUP(K90,ByM!$A$2:$B$462)+LOOKUP(L90,ByM!$A$2:$B$462)+LOOKUP(M90,ByM!$A$2:$B$462)+LOOKUP(N90,ByM!$A$2:$B$462)+LOOKUP(O90,ByM!$A$2:$B$462)) -> 
P91: =IF(C91="","",#REF!+(LOOKUP(F91,Area!$A$2:$B$71))+G91-(E91*3)) ->  | Q91: =IF(C91="","",LOOKUP(K91,ByM!$A$2:$B$462)+LOOKUP(L91,ByM!$A$2:$B$462)+LOOKUP(M91,ByM!$A$2:$B$462)+LOOKUP(N91,ByM!$A$2:$B$462)+LOOKUP(O91,ByM!$A$2:$B$462)) -> 
P92: =IF(C92="","",#REF!+(LOOKUP(F92,Area!$A$2:$B$71))+G92-(E92*3)) ->  | Q92: =IF(C92="","",LOOKUP(K92,ByM!$A$2:$B$462)+LOOKUP(L92,ByM!$A$2:$B$462)+LOOKUP(M92,ByM!$A$2:$B$462)+LOOKUP(N92,ByM!$A$2:$B$462)+LOOKUP(O92,ByM!$A$2:$B$462)) -> 
P93: =IF(C93="","",#REF!+(LOOKUP(F93,Area!$A$2:$B$71))+G93-(E93*3)) ->  | Q93: =IF(C93="","",LOOKUP(K93,ByM!$A$2:$B$462)+LOOKUP(L93,ByM!$A$2:$B$462)+LOOKUP(M93,ByM!$A$2:$B$462)+LOOKUP(N93,ByM!$A$2:$B$462)+LOOKUP(O93,ByM!$A$2:$B$462)) -> 
P94: =IF(C94="","",#REF!+(LOOKUP(F94,Area!$A$2:$B$71))+G94-(E94*3)) ->  | Q94: =IF(C94="","",LOOKUP(K94,ByM!$A$2:$B$462)+LOOKUP(L94,ByM!$A$2:$B$462)+LOOKUP(M94,ByM!$A$2:$B$462)+LOOKUP(N94,ByM!$A$2:$B$462)+LOOKUP(O94,ByM!$A$2:$B$462)) -> 
P95: =IF(C95="","",#REF!+(LOOKUP(F95,Area!$A$2:$B$71))+G95-(E95*3)) ->  | Q95: =IF(C95="","",LOOKUP(K95,ByM!$A$2:$B$462)+LOOKUP(L95,ByM!$A$2:$B$462)+LOOKUP(M95,ByM!$A$2:$B$462)+LOOKUP(N95,ByM!$A$2:$B$462)+LOOKUP(O95,ByM!$A$2:$B$462)) -> 
P96: =IF(C96="","",#REF!+(LOOKUP(F96,Area!$A$2:$B$71))+G96-(E96*3)) ->  | Q96: =IF(C96="","",LOOKUP(K96,ByM!$A$2:$B$462)+LOOKUP(L96,ByM!$A$2:$B$462)+LOOKUP(M96,ByM!$A$2:$B$462)+LOOKUP(N96,ByM!$A$2:$B$462)+LOOKUP(O96,ByM!$A$2:$B$462)) -> 
P97: =IF(C97="","",#REF!+(LOOKUP(F97,Area!$A$2:$B$71))+G97-(E97*3)) ->  | Q97: =IF(C97="","",LOOKUP(K97,ByM!$A$2:$B$462)+LOOKUP(L97,ByM!$A$2:$B$462)+LOOKUP(M97,ByM!$A$2:$B$462)+LOOKUP(N97,ByM!$A$2:$B$462)+LOOKUP(O97,ByM!$A$2:$B$462)) -> 
P98: =IF(C98="","",#REF!+(LOOKUP(F98,Area!$A$2:$B$71))+G98-(E98*3)) ->  | Q98: =IF(C98="","",LOOKUP(K98,ByM!$A$2:$B$462)+LOOKUP(L98,ByM!$A$2:$B$462)+LOOKUP(M98,ByM!$A$2:$B$462)+LOOKUP(N98,ByM!$A$2:$B$462)+LOOKUP(O98,ByM!$A$2:$B$462)) -> 
P99: =IF(C99="","",#REF!+(LOOKUP(F99,Area!$A$2:$B$71))+G99-(E99*3)) ->  | Q99: =IF(C99="","",LOOKUP(K99,ByM!$A$2:$B$462)+LOOKUP(L99,ByM!$A$2:$B$462)+LOOKUP(M99,ByM!$A$2:$B$462)+LOOKUP(N99,ByM!$A$2:$B$462)+LOOKUP(O99,ByM!$A$2:$B$462)) -> 
P100: =IF(C100="","",#REF!+(LOOKUP(F100,Area!$A$2:$B$71))+G100-(E100*3)) ->  | Q100: =IF(C100="","",LOOKUP(K100,ByM!$A$2:$B$462)+LOOKUP(L100,ByM!$A$2:$B$462)+LOOKUP(M100,ByM!$A$2:$B$462)+LOOKUP(N100,ByM!$A$2:$B$462)+LOOKUP(O100,ByM!$A$2:$B$462)) -> 
P101: =IF(C101="","",#REF!+(LOOKUP(F101,Area!$A$2:$B$71))+G101-(E101*3)) ->  | Q101: =IF(C101="","",LOOKUP(K101,ByM!$A$2:$B$462)+LOOKUP(L101,ByM!$A$2:$B$462)+LOOKUP(M101,ByM!$A$2:$B$462)+LOOKUP(N101,ByM!$A$2:$B$462)+LOOKUP(O101,ByM!$A$2:$B$462)) -> 
P102: =IF(C102="","",#REF!+(LOOKUP(F102,Area!$A$2:$B$71))+G102-(E102*3)) ->  | Q102: =IF(C102="","",LOOKUP(K102,ByM!$A$2:$B$462)+LOOKUP(L102,ByM!$A$2:$B$462)+LOOKUP(M102,ByM!$A$2:$B$462)+LOOKUP(N102,ByM!$A$2:$B$462)+LOOKUP(O102,ByM!$A$2:$B$462)) -> 
P103: =IF(C103="","",#REF!+(LOOKUP(F103,Area!$A$2:$B$71))+G103-(E103*3)) ->  | Q103: =IF(C103="","",LOOKUP(K103,ByM!$A$2:$B$462)+LOOKUP(L103,ByM!$A$2:$B$462)+LOOKUP(M103,ByM!$A$2:$B$462)+LOOKUP(N103,ByM!$A$2:$B$462)+LOOKUP(O103,ByM!$A$2:$B$462)) -> 
P104: =IF(C104="","",#REF!+(LOOKUP(F104,Area!$A$2:$B$71))+G104-(E104*3)) ->  | Q104: =IF(C104="","",LOOKUP(K104,ByM!$A$2:$B$462)+LOOKUP(L104,ByM!$A$2:$B$462)+LOOKUP(M104,ByM!$A$2:$B$462)+LOOKUP(N104,ByM!$A$2:$B$462)+LOOKUP(O104,ByM!$A$2:$B$462)) -> 
P105: =IF(C105="","",#REF!+(LOOKUP(F105,Area!$A$2:$B$71))+G105-(E105*3)) ->  | Q105: =IF(C105="","",LOOKUP(K105,ByM!$A$2:$B$462)+LOOKUP(L105,ByM!$A$2:$B$462)+LOOKUP(M105,ByM!$A$2:$B$462)+LOOKUP(N105,ByM!$A$2:$B$462)+LOOKUP(O105,ByM!$A$2:$B$462)) -> 
P106: =IF(C106="","",#REF!+(LOOKUP(F106,Area!$A$2:$B$71))+G106-(E106*3)) ->  | Q106: =IF(C106="","",LOOKUP(K106,ByM!$A$2:$B$462)+LOOKUP(L106,ByM!$A$2:$B$462)+LOOKUP(M106,ByM!$A$2:$B$462)+LOOKUP(N106,ByM!$A$2:$B$462)+LOOKUP(O106,ByM!$A$2:$B$462)) -> 
P107: =IF(C107="","",#REF!+(LOOKUP(F107,Area!$A$2:$B$71))+G107-(E107*3)) ->  | Q107: =IF(C107="","",LOOKUP(K107,ByM!$A$2:$B$462)+LOOKUP(L107,ByM!$A$2:$B$462)+LOOKUP(M107,ByM!$A$2:$B$462)+LOOKUP(N107,ByM!$A$2:$B$462)+LOOKUP(O107,ByM!$A$2:$B$462)) -> 
P108: =IF(C108="","",#REF!+(LOOKUP(F108,Area!$A$2:$B$71))+G108-(E108*3)) ->  | Q108: =IF(C108="","",LOOKUP(K108,ByM!$A$2:$B$462)+LOOKUP(L108,ByM!$A$2:$B$462)+LOOKUP(M108,ByM!$A$2:$B$462)+LOOKUP(N108,ByM!$A$2:$B$462)+LOOKUP(O108,ByM!$A$2:$B$462)) -> 
P109: =IF(C109="","",#REF!+(LOOKUP(F109,Area!$A$2:$B$71))+G109-(E109*3)) ->  | Q109: =IF(C109="","",LOOKUP(K109,ByM!$A$2:$B$462)+LOOKUP(L109,ByM!$A$2:$B$462)+LOOKUP(M109,ByM!$A$2:$B$462)+LOOKUP(N109,ByM!$A$2:$B$462)+LOOKUP(O109,ByM!$A$2:$B$462)) -> 
P110: =IF(C110="","",#REF!+(LOOKUP(F110,Area!$A$2:$B$71))+G110-(E110*3)) ->  | Q110: =IF(C110="","",LOOKUP(K110,ByM!$A$2:$B$462)+LOOKUP(L110,ByM!$A$2:$B$462)+LOOKUP(M110,ByM!$A$2:$B$462)+LOOKUP(N110,ByM!$A$2:$B$462)+LOOKUP(O110,ByM!$A$2:$B$462)) -> 
P111: =IF(C111="","",#REF!+(LOOKUP(F111,Area!$A$2:$B$71))+G111-(E111*3)) ->  | Q111: =IF(C111="","",LOOKUP(K111,ByM!$A$2:$B$462)+LOOKUP(L111,ByM!$A$2:$B$462)+LOOKUP(M111,ByM!$A$2:$B$462)+LOOKUP(N111,ByM!$A$2:$B$462)+LOOKUP(O111,ByM!$A$2:$B$462)) -> 
P112: =IF(C112="","",#REF!+(LOOKUP(F112,Area!$A$2:$B$71))+G112-(E112*3)) ->  | Q112: =IF(C112="","",LOOKUP(K112,ByM!$A$2:$B$462)+LOOKUP(L112,ByM!$A$2:$B$462)+LOOKUP(M112,ByM!$A$2:$B$462)+LOOKUP(N112,ByM!$A$2:$B$462)+LOOKUP(O112,ByM!$A$2:$B$462)) -> 
P113: =IF(C113="","",#REF!+(LOOKUP(F113,Area!$A$2:$B$71))+G113-(E113*3)) ->  | Q113: =IF(C113="","",LOOKUP(K113,ByM!$A$2:$B$462)+LOOKUP(L113,ByM!$A$2:$B$462)+LOOKUP(M113,ByM!$A$2:$B$462)+LOOKUP(N113,ByM!$A$2:$B$462)+LOOKUP(O113,ByM!$A$2:$B$462)) -> 
P114: =IF(C114="","",#REF!+(LOOKUP(F114,Area!$A$2:$B$71))+G114-(E114*3)) ->  | Q114: =IF(C114="","",LOOKUP(K114,ByM!$A$2:$B$462)+LOOKUP(L114,ByM!$A$2:$B$462)+LOOKUP(M114,ByM!$A$2:$B$462)+LOOKUP(N114,ByM!$A$2:$B$462)+LOOKUP(O114,ByM!$A$2:$B$462)) -> 
P115: =IF(C115="","",#REF!+(LOOKUP(F115,Area!$A$2:$B$71))+G115-(E115*3)) ->  | Q115: =IF(C115="","",LOOKUP(K115,ByM!$A$2:$B$462)+LOOKUP(L115,ByM!$A$2:$B$462)+LOOKUP(M115,ByM!$A$2:$B$462)+LOOKUP(N115,ByM!$A$2:$B$462)+LOOKUP(O115,ByM!$A$2:$B$462)) -> 
P116: =IF(C116="","",#REF!+(LOOKUP(F116,Area!$A$2:$B$71))+G116-(E116*3)) ->  | Q116: =IF(C116="","",LOOKUP(K116,ByM!$A$2:$B$462)+LOOKUP(L116,ByM!$A$2:$B$462)+LOOKUP(M116,ByM!$A$2:$B$462)+LOOKUP(N116,ByM!$A$2:$B$462)+LOOKUP(O116,ByM!$A$2:$B$462)) -> 
P117: =IF(C117="","",#REF!+(LOOKUP(F117,Area!$A$2:$B$71))+G117-(E117*3)) ->  | Q117: =IF(C117="","",LOOKUP(K117,ByM!$A$2:$B$462)+LOOKUP(L117,ByM!$A$2:$B$462)+LOOKUP(M117,ByM!$A$2:$B$462)+LOOKUP(N117,ByM!$A$2:$B$462)+LOOKUP(O117,ByM!$A$2:$B$462)) -> 
P118: =IF(C118="","",#REF!+(LOOKUP(F118,Area!$A$2:$B$71))+G118-(E118*3)) ->  | Q118: =IF(C118="","",LOOKUP(K118,ByM!$A$2:$B$462)+LOOKUP(L118,ByM!$A$2:$B$462)+LOOKUP(M118,ByM!$A$2:$B$462)+LOOKUP(N118,ByM!$A$2:$B$462)+LOOKUP(O118,ByM!$A$2:$B$462)) -> 
P119: =IF(C119="","",#REF!+(LOOKUP(F119,Area!$A$2:$B$71))+G119-(E119*3)) ->  | Q119: =IF(C119="","",LOOKUP(K119,ByM!$A$2:$B$462)+LOOKUP(L119,ByM!$A$2:$B$462)+LOOKUP(M119,ByM!$A$2:$B$462)+LOOKUP(N119,ByM!$A$2:$B$462)+LOOKUP(O119,ByM!$A$2:$B$462)) -> 
P120: =IF(C120="","",#REF!+(LOOKUP(F120,Area!$A$2:$B$71))+G120-(E120*3)) ->  | Q120: =IF(C120="","",LOOKUP(K120,ByM!$A$2:$B$462)+LOOKUP(L120,ByM!$A$2:$B$462)+LOOKUP(M120,ByM!$A$2:$B$462)+LOOKUP(N120,ByM!$A$2:$B$462)+LOOKUP(O120,ByM!$A$2:$B$462)) -> 
P121: =IF(C121="","",#REF!+(LOOKUP(F121,Area!$A$2:$B$71))+G121-(E121*3)) ->  | Q121: =IF(C121="","",LOOKUP(K121,ByM!$A$2:$B$462)+LOOKUP(L121,ByM!$A$2:$B$462)+LOOKUP(M121,ByM!$A$2:$B$462)+LOOKUP(N121,ByM!$A$2:$B$462)+LOOKUP(O121,ByM!$A$2:$B$462)) -> 
P122: =IF(C122="","",#REF!+(LOOKUP(F122,Area!$A$2:$B$71))+G122-(E122*3)) ->  | Q122: =IF(C122="","",LOOKUP(K122,ByM!$A$2:$B$462)+LOOKUP(L122,ByM!$A$2:$B$462)+LOOKUP(M122,ByM!$A$2:$B$462)+LOOKUP(N122,ByM!$A$2:$B$462)+LOOKUP(O122,ByM!$A$2:$B$462)) -> 
P123: =IF(C123="","",#REF!+(LOOKUP(F123,Area!$A$2:$B$71))+G123-(E123*3)) ->  | Q123: =IF(C123="","",LOOKUP(K123,ByM!$A$2:$B$462)+LOOKUP(L123,ByM!$A$2:$B$462)+LOOKUP(M123,ByM!$A$2:$B$462)+LOOKUP(N123,ByM!$A$2:$B$462)+LOOKUP(O123,ByM!$A$2:$B$462)) -> 
P124: =IF(C124="","",#REF!+(LOOKUP(F124,Area!$A$2:$B$71))+G124-(E124*3)) ->  | Q124: =IF(C124="","",LOOKUP(K124,ByM!$A$2:$B$462)+LOOKUP(L124,ByM!$A$2:$B$462)+LOOKUP(M124,ByM!$A$2:$B$462)+LOOKUP(N124,ByM!$A$2:$B$462)+LOOKUP(O124,ByM!$A$2:$B$462)) -> 
P125: =IF(C125="","",#REF!+(LOOKUP(F125,Area!$A$2:$B$71))+G125-(E125*3)) ->  | Q125: =IF(C125="","",LOOKUP(K125,ByM!$A$2:$B$462)+LOOKUP(L125,ByM!$A$2:$B$462)+LOOKUP(M125,ByM!$A$2:$B$462)+LOOKUP(N125,ByM!$A$2:$B$462)+LOOKUP(O125,ByM!$A$2:$B$462)) -> 
P126: =IF(C126="","",#REF!+(LOOKUP(F126,Area!$A$2:$B$71))+G126-(E126*3)) ->  | Q126: =IF(C126="","",LOOKUP(K126,ByM!$A$2:$B$462)+LOOKUP(L126,ByM!$A$2:$B$462)+LOOKUP(M126,ByM!$A$2:$B$462)+LOOKUP(N126,ByM!$A$2:$B$462)+LOOKUP(O126,ByM!$A$2:$B$462)) -> 
P127: =IF(C127="","",#REF!+(LOOKUP(F127,Area!$A$2:$B$71))+G127-(E127*3)) ->  | Q127: =IF(C127="","",LOOKUP(K127,ByM!$A$2:$B$462)+LOOKUP(L127,ByM!$A$2:$B$462)+LOOKUP(M127,ByM!$A$2:$B$462)+LOOKUP(N127,ByM!$A$2:$B$462)+LOOKUP(O127,ByM!$A$2:$B$462)) -> 
P128: =IF(C128="","",#REF!+(LOOKUP(F128,Area!$A$2:$B$71))+G128-(E128*3)) ->  | Q128: =IF(C128="","",LOOKUP(K128,ByM!$A$2:$B$462)+LOOKUP(L128,ByM!$A$2:$B$462)+LOOKUP(M128,ByM!$A$2:$B$462)+LOOKUP(N128,ByM!$A$2:$B$462)+LOOKUP(O128,ByM!$A$2:$B$462)) -> 
P129: =IF(C129="","",#REF!+(LOOKUP(F129,Area!$A$2:$B$71))+G129-(E129*3)) ->  | Q129: =IF(C129="","",LOOKUP(K129,ByM!$A$2:$B$462)+LOOKUP(L129,ByM!$A$2:$B$462)+LOOKUP(M129,ByM!$A$2:$B$462)+LOOKUP(N129,ByM!$A$2:$B$462)+LOOKUP(O129,ByM!$A$2:$B$462)) -> 
P130: =IF(C130="","",#REF!+(LOOKUP(F130,Area!$A$2:$B$71))+G130-(E130*3)) ->  | Q130: =IF(C130="","",LOOKUP(K130,ByM!$A$2:$B$462)+LOOKUP(L130,ByM!$A$2:$B$462)+LOOKUP(M130,ByM!$A$2:$B$462)+LOOKUP(N130,ByM!$A$2:$B$462)+LOOKUP(O130,ByM!$A$2:$B$462)) -> 
P131: =IF(C131="","",#REF!+(LOOKUP(F131,Area!$A$2:$B$71))+G131-(E131*3)) ->  | Q131: =IF(C131="","",LOOKUP(K131,ByM!$A$2:$B$462)+LOOKUP(L131,ByM!$A$2:$B$462)+LOOKUP(M131,ByM!$A$2:$B$462)+LOOKUP(N131,ByM!$A$2:$B$462)+LOOKUP(O131,ByM!$A$2:$B$462)) -> 
P132: =IF(C132="","",#REF!+(LOOKUP(F132,Area!$A$2:$B$71))+G132-(E132*3)) ->  | Q132: =IF(C132="","",LOOKUP(K132,ByM!$A$2:$B$462)+LOOKUP(L132,ByM!$A$2:$B$462)+LOOKUP(M132,ByM!$A$2:$B$462)+LOOKUP(N132,ByM!$A$2:$B$462)+LOOKUP(O132,ByM!$A$2:$B$462)) -> 
P133: =IF(C133="","",#REF!+(LOOKUP(F133,Area!$A$2:$B$71))+G133-(E133*3)) ->  | Q133: =IF(C133="","",LOOKUP(K133,ByM!$A$2:$B$462)+LOOKUP(L133,ByM!$A$2:$B$462)+LOOKUP(M133,ByM!$A$2:$B$462)+LOOKUP(N133,ByM!$A$2:$B$462)+LOOKUP(O133,ByM!$A$2:$B$462)) -> 
P134: =IF(C134="","",#REF!+(LOOKUP(F134,Area!$A$2:$B$71))+G134-(E134*3)) ->  | Q134: =IF(C134="","",LOOKUP(K134,ByM!$A$2:$B$462)+LOOKUP(L134,ByM!$A$2:$B$462)+LOOKUP(M134,ByM!$A$2:$B$462)+LOOKUP(N134,ByM!$A$2:$B$462)+LOOKUP(O134,ByM!$A$2:$B$462)) -> 
P135: =IF(C135="","",#REF!+(LOOKUP(F135,Area!$A$2:$B$71))+G135-(E135*3)) ->  | Q135: =IF(C135="","",LOOKUP(K135,ByM!$A$2:$B$462)+LOOKUP(L135,ByM!$A$2:$B$462)+LOOKUP(M135,ByM!$A$2:$B$462)+LOOKUP(N135,ByM!$A$2:$B$462)+LOOKUP(O135,ByM!$A$2:$B$462)) -> 
P136: =IF(C136="","",#REF!+(LOOKUP(F136,Area!$A$2:$B$71))+G136-(E136*3)) ->  | Q136: =IF(C136="","",LOOKUP(K136,ByM!$A$2:$B$462)+LOOKUP(L136,ByM!$A$2:$B$462)+LOOKUP(M136,ByM!$A$2:$B$462)+LOOKUP(N136,ByM!$A$2:$B$462)+LOOKUP(O136,ByM!$A$2:$B$462)) -> 
P137: =IF(C137="","",#REF!+(LOOKUP(F137,Area!$A$2:$B$71))+G137-(E137*3)) ->  | Q137: =IF(C137="","",LOOKUP(K137,ByM!$A$2:$B$462)+LOOKUP(L137,ByM!$A$2:$B$462)+LOOKUP(M137,ByM!$A$2:$B$462)+LOOKUP(N137,ByM!$A$2:$B$462)+LOOKUP(O137,ByM!$A$2:$B$462)) -> 
P138: =IF(C138="","",#REF!+(LOOKUP(F138,Area!$A$2:$B$71))+G138-(E138*3)) ->  | Q138: =IF(C138="","",LOOKUP(K138,ByM!$A$2:$B$462)+LOOKUP(L138,ByM!$A$2:$B$462)+LOOKUP(M138,ByM!$A$2:$B$462)+LOOKUP(N138,ByM!$A$2:$B$462)+LOOKUP(O138,ByM!$A$2:$B$462)) -> 
P139: =IF(C139="","",#REF!+(LOOKUP(F139,Area!$A$2:$B$71))+G139-(E139*3)) ->  | Q139: =IF(C139="","",LOOKUP(K139,ByM!$A$2:$B$462)+LOOKUP(L139,ByM!$A$2:$B$462)+LOOKUP(M139,ByM!$A$2:$B$462)+LOOKUP(N139,ByM!$A$2:$B$462)+LOOKUP(O139,ByM!$A$2:$B$462)) -> 
P140: =IF(C140="","",#REF!+(LOOKUP(F140,Area!$A$2:$B$71))+G140-(E140*3)) ->  | Q140: =IF(C140="","",LOOKUP(K140,ByM!$A$2:$B$462)+LOOKUP(L140,ByM!$A$2:$B$462)+LOOKUP(M140,ByM!$A$2:$B$462)+LOOKUP(N140,ByM!$A$2:$B$462)+LOOKUP(O140,ByM!$A$2:$B$462)) -> 
P141: =IF(C141="","",#REF!+(LOOKUP(F141,Area!$A$2:$B$71))+G141-(E141*3)) ->  | Q141: =IF(C141="","",LOOKUP(K141,ByM!$A$2:$B$462)+LOOKUP(L141,ByM!$A$2:$B$462)+LOOKUP(M141,ByM!$A$2:$B$462)+LOOKUP(N141,ByM!$A$2:$B$462)+LOOKUP(O141,ByM!$A$2:$B$462)) -> 
P142: =IF(C142="","",#REF!+(LOOKUP(F142,Area!$A$2:$B$71))+G142-(E142*3)) ->  | Q142: =IF(C142="","",LOOKUP(K142,ByM!$A$2:$B$462)+LOOKUP(L142,ByM!$A$2:$B$462)+LOOKUP(M142,ByM!$A$2:$B$462)+LOOKUP(N142,ByM!$A$2:$B$462)+LOOKUP(O142,ByM!$A$2:$B$462)) -> 
P143: =IF(C143="","",#REF!+(LOOKUP(F143,Area!$A$2:$B$71))+G143-(E143*3)) ->  | Q143: =IF(C143="","",LOOKUP(K143,ByM!$A$2:$B$462)+LOOKUP(L143,ByM!$A$2:$B$462)+LOOKUP(M143,ByM!$A$2:$B$462)+LOOKUP(N143,ByM!$A$2:$B$462)+LOOKUP(O143,ByM!$A$2:$B$462)) -> 
P144: =IF(C144="","",#REF!+(LOOKUP(F144,Area!$A$2:$B$71))+G144-(E144*3)) ->  | Q144: =IF(C144="","",LOOKUP(K144,ByM!$A$2:$B$462)+LOOKUP(L144,ByM!$A$2:$B$462)+LOOKUP(M144,ByM!$A$2:$B$462)+LOOKUP(N144,ByM!$A$2:$B$462)+LOOKUP(O144,ByM!$A$2:$B$462)) -> 
P145: =IF(C145="","",#REF!+(LOOKUP(F145,Area!$A$2:$B$71))+G145-(E145*3)) ->  | Q145: =IF(C145="","",LOOKUP(K145,ByM!$A$2:$B$462)+LOOKUP(L145,ByM!$A$2:$B$462)+LOOKUP(M145,ByM!$A$2:$B$462)+LOOKUP(N145,ByM!$A$2:$B$462)+LOOKUP(O145,ByM!$A$2:$B$462)) -> 
P146: =IF(C146="","",#REF!+(LOOKUP(F146,Area!$A$2:$B$71))+G146-(E146*3)) ->  | Q146: =IF(C146="","",LOOKUP(K146,ByM!$A$2:$B$462)+LOOKUP(L146,ByM!$A$2:$B$462)+LOOKUP(M146,ByM!$A$2:$B$462)+LOOKUP(N146,ByM!$A$2:$B$462)+LOOKUP(O146,ByM!$A$2:$B$462)) -> 
P147: =IF(C147="","",#REF!+(LOOKUP(F147,Area!$A$2:$B$71))+G147-(E147*3)) ->  | Q147: =IF(C147="","",LOOKUP(K147,ByM!$A$2:$B$462)+LOOKUP(L147,ByM!$A$2:$B$462)+LOOKUP(M147,ByM!$A$2:$B$462)+LOOKUP(N147,ByM!$A$2:$B$462)+LOOKUP(O147,ByM!$A$2:$B$462)) -> 
P148: =IF(C148="","",#REF!+(LOOKUP(F148,Area!$A$2:$B$71))+G148-(E148*3)) ->  | Q148: =IF(C148="","",LOOKUP(K148,ByM!$A$2:$B$462)+LOOKUP(L148,ByM!$A$2:$B$462)+LOOKUP(M148,ByM!$A$2:$B$462)+LOOKUP(N148,ByM!$A$2:$B$462)+LOOKUP(O148,ByM!$A$2:$B$462)) -> 
P149: =IF(C149="","",#REF!+(LOOKUP(F149,Area!$A$2:$B$71))+G149-(E149*3)) ->  | Q149: =IF(C149="","",LOOKUP(K149,ByM!$A$2:$B$462)+LOOKUP(L149,ByM!$A$2:$B$462)+LOOKUP(M149,ByM!$A$2:$B$462)+LOOKUP(N149,ByM!$A$2:$B$462)+LOOKUP(O149,ByM!$A$2:$B$462)) -> 
P150: =IF(C150="","",#REF!+(LOOKUP(F150,Area!$A$2:$B$71))+G150-(E150*3)) ->  | Q150: =IF(C150="","",LOOKUP(K150,ByM!$A$2:$B$462)+LOOKUP(L150,ByM!$A$2:$B$462)+LOOKUP(M150,ByM!$A$2:$B$462)+LOOKUP(N150,ByM!$A$2:$B$462)+LOOKUP(O150,ByM!$A$2:$B$462)) -> 
P151: =IF(C151="","",#REF!+(LOOKUP(F151,Area!$A$2:$B$71))+G151-(E151*3)) ->  | Q151: =IF(C151="","",LOOKUP(K151,ByM!$A$2:$B$462)+LOOKUP(L151,ByM!$A$2:$B$462)+LOOKUP(M151,ByM!$A$2:$B$462)+LOOKUP(N151,ByM!$A$2:$B$462)+LOOKUP(O151,ByM!$A$2:$B$462)) -> 
P152: =IF(C152="","",#REF!+(LOOKUP(F152,Area!$A$2:$B$71))+G152-(E152*3)) ->  | Q152: =IF(C152="","",LOOKUP(K152,ByM!$A$2:$B$462)+LOOKUP(L152,ByM!$A$2:$B$462)+LOOKUP(M152,ByM!$A$2:$B$462)+LOOKUP(N152,ByM!$A$2:$B$462)+LOOKUP(O152,ByM!$A$2:$B$462)) -> 
P153: =IF(C153="","",#REF!+(LOOKUP(F153,Area!$A$2:$B$71))+G153-(E153*3)) ->  | Q153: =IF(C153="","",LOOKUP(K153,ByM!$A$2:$B$462)+LOOKUP(L153,ByM!$A$2:$B$462)+LOOKUP(M153,ByM!$A$2:$B$462)+LOOKUP(N153,ByM!$A$2:$B$462)+LOOKUP(O153,ByM!$A$2:$B$462)) -> 
P154: =IF(C154="","",#REF!+(LOOKUP(F154,Area!$A$2:$B$71))+G154-(E154*3)) ->  | Q154: =IF(C154="","",LOOKUP(K154,ByM!$A$2:$B$462)+LOOKUP(L154,ByM!$A$2:$B$462)+LOOKUP(M154,ByM!$A$2:$B$462)+LOOKUP(N154,ByM!$A$2:$B$462)+LOOKUP(O154,ByM!$A$2:$B$462)) -> 
P155: =IF(C155="","",#REF!+(LOOKUP(F155,Area!$A$2:$B$71))+G155-(E155*3)) ->  | Q155: =IF(C155="","",LOOKUP(K155,ByM!$A$2:$B$462)+LOOKUP(L155,ByM!$A$2:$B$462)+LOOKUP(M155,ByM!$A$2:$B$462)+LOOKUP(N155,ByM!$A$2:$B$462)+LOOKUP(O155,ByM!$A$2:$B$462)) -> 
P156: =IF(C156="","",#REF!+(LOOKUP(F156,Area!$A$2:$B$71))+G156-(E156*3)) ->  | Q156: =IF(C156="","",LOOKUP(K156,ByM!$A$2:$B$462)+LOOKUP(L156,ByM!$A$2:$B$462)+LOOKUP(M156,ByM!$A$2:$B$462)+LOOKUP(N156,ByM!$A$2:$B$462)+LOOKUP(O156,ByM!$A$2:$B$462)) -> 
P157: =IF(C157="","",#REF!+(LOOKUP(F157,Area!$A$2:$B$71))+G157-(E157*3)) ->  | Q157: =IF(C157="","",LOOKUP(K157,ByM!$A$2:$B$462)+LOOKUP(L157,ByM!$A$2:$B$462)+LOOKUP(M157,ByM!$A$2:$B$462)+LOOKUP(N157,ByM!$A$2:$B$462)+LOOKUP(O157,ByM!$A$2:$B$462)) -> 
P158: =IF(C158="","",#REF!+(LOOKUP(F158,Area!$A$2:$B$71))+G158-(E158*3)) ->  | Q158: =IF(C158="","",LOOKUP(K158,ByM!$A$2:$B$462)+LOOKUP(L158,ByM!$A$2:$B$462)+LOOKUP(M158,ByM!$A$2:$B$462)+LOOKUP(N158,ByM!$A$2:$B$462)+LOOKUP(O158,ByM!$A$2:$B$462)) -> 
P159: =IF(C159="","",#REF!+(LOOKUP(F159,Area!$A$2:$B$71))+G159-(E159*3)) ->  | Q159: =IF(C159="","",LOOKUP(K159,ByM!$A$2:$B$462)+LOOKUP(L159,ByM!$A$2:$B$462)+LOOKUP(M159,ByM!$A$2:$B$462)+LOOKUP(N159,ByM!$A$2:$B$462)+LOOKUP(O159,ByM!$A$2:$B$462)) -> 
P160: =IF(C160="","",#REF!+(LOOKUP(F160,Area!$A$2:$B$71))+G160-(E160*3)) ->  | Q160: =IF(C160="","",LOOKUP(K160,ByM!$A$2:$B$462)+LOOKUP(L160,ByM!$A$2:$B$462)+LOOKUP(M160,ByM!$A$2:$B$462)+LOOKUP(N160,ByM!$A$2:$B$462)+LOOKUP(O160,ByM!$A$2:$B$462)) -> 
P161: =IF(C161="","",#REF!+(LOOKUP(F161,Area!$A$2:$B$71))+G161-(E161*3)) ->  | Q161: =IF(C161="","",LOOKUP(K161,ByM!$A$2:$B$462)+LOOKUP(L161,ByM!$A$2:$B$462)+LOOKUP(M161,ByM!$A$2:$B$462)+LOOKUP(N161,ByM!$A$2:$B$462)+LOOKUP(O161,ByM!$A$2:$B$462)) -> 
P162: =IF(C162="","",#REF!+(LOOKUP(F162,Area!$A$2:$B$71))+G162-(E162*3)) ->  | Q162: =IF(C162="","",LOOKUP(K162,ByM!$A$2:$B$462)+LOOKUP(L162,ByM!$A$2:$B$462)+LOOKUP(M162,ByM!$A$2:$B$462)+LOOKUP(N162,ByM!$A$2:$B$462)+LOOKUP(O162,ByM!$A$2:$B$462)) -> 
P163: =IF(C163="","",#REF!+(LOOKUP(F163,Area!$A$2:$B$71))+G163-(E163*3)) ->  | Q163: =IF(C163="","",LOOKUP(K163,ByM!$A$2:$B$462)+LOOKUP(L163,ByM!$A$2:$B$462)+LOOKUP(M163,ByM!$A$2:$B$462)+LOOKUP(N163,ByM!$A$2:$B$462)+LOOKUP(O163,ByM!$A$2:$B$462)) -> 
P164: =IF(C164="","",#REF!+(LOOKUP(F164,Area!$A$2:$B$71))+G164-(E164*3)) ->  | Q164: =IF(C164="","",LOOKUP(K164,ByM!$A$2:$B$462)+LOOKUP(L164,ByM!$A$2:$B$462)+LOOKUP(M164,ByM!$A$2:$B$462)+LOOKUP(N164,ByM!$A$2:$B$462)+LOOKUP(O164,ByM!$A$2:$B$462)) -> 
P165: =IF(C165="","",#REF!+(LOOKUP(F165,Area!$A$2:$B$71))+G165-(E165*3)) ->  | Q165: =IF(C165="","",LOOKUP(K165,ByM!$A$2:$B$462)+LOOKUP(L165,ByM!$A$2:$B$462)+LOOKUP(M165,ByM!$A$2:$B$462)+LOOKUP(N165,ByM!$A$2:$B$462)+LOOKUP(O165,ByM!$A$2:$B$462)) -> 
P166: =IF(C166="","",#REF!+(LOOKUP(F166,Area!$A$2:$B$71))+G166-(E166*3)) ->  | Q166: =IF(C166="","",LOOKUP(K166,ByM!$A$2:$B$462)+LOOKUP(L166,ByM!$A$2:$B$462)+LOOKUP(M166,ByM!$A$2:$B$462)+LOOKUP(N166,ByM!$A$2:$B$462)+LOOKUP(O166,ByM!$A$2:$B$462)) -> 
P167: =IF(C167="","",#REF!+(LOOKUP(F167,Area!$A$2:$B$71))+G167-(E167*3)) ->  | Q167: =IF(C167="","",LOOKUP(K167,ByM!$A$2:$B$462)+LOOKUP(L167,ByM!$A$2:$B$462)+LOOKUP(M167,ByM!$A$2:$B$462)+LOOKUP(N167,ByM!$A$2:$B$462)+LOOKUP(O167,ByM!$A$2:$B$462)) -> 
P168: =IF(C168="","",#REF!+(LOOKUP(F168,Area!$A$2:$B$71))+G168-(E168*3)) ->  | Q168: =IF(C168="","",LOOKUP(K168,ByM!$A$2:$B$462)+LOOKUP(L168,ByM!$A$2:$B$462)+LOOKUP(M168,ByM!$A$2:$B$462)+LOOKUP(N168,ByM!$A$2:$B$462)+LOOKUP(O168,ByM!$A$2:$B$462)) -> 
P169: =IF(C169="","",#REF!+(LOOKUP(F169,Area!$A$2:$B$71))+G169-(E169*3)) ->  | Q169: =IF(C169="","",LOOKUP(K169,ByM!$A$2:$B$462)+LOOKUP(L169,ByM!$A$2:$B$462)+LOOKUP(M169,ByM!$A$2:$B$462)+LOOKUP(N169,ByM!$A$2:$B$462)+LOOKUP(O169,ByM!$A$2:$B$462)) -> 
P170: =IF(C170="","",#REF!+(LOOKUP(F170,Area!$A$2:$B$71))+G170-(E170*3)) ->  | Q170: =IF(C170="","",LOOKUP(K170,ByM!$A$2:$B$462)+LOOKUP(L170,ByM!$A$2:$B$462)+LOOKUP(M170,ByM!$A$2:$B$462)+LOOKUP(N170,ByM!$A$2:$B$462)+LOOKUP(O170,ByM!$A$2:$B$462)) -> 
P171: =IF(C171="","",#REF!+(LOOKUP(F171,Area!$A$2:$B$71))+G171-(E171*3)) ->  | Q171: =IF(C171="","",LOOKUP(K171,ByM!$A$2:$B$462)+LOOKUP(L171,ByM!$A$2:$B$462)+LOOKUP(M171,ByM!$A$2:$B$462)+LOOKUP(N171,ByM!$A$2:$B$462)+LOOKUP(O171,ByM!$A$2:$B$462)) -> 
P172: =IF(C172="","",#REF!+(LOOKUP(F172,Area!$A$2:$B$71))+G172-(E172*3)) ->  | Q172: =IF(C172="","",LOOKUP(K172,ByM!$A$2:$B$462)+LOOKUP(L172,ByM!$A$2:$B$462)+LOOKUP(M172,ByM!$A$2:$B$462)+LOOKUP(N172,ByM!$A$2:$B$462)+LOOKUP(O172,ByM!$A$2:$B$462)) -> 
P173: =IF(C173="","",#REF!+(LOOKUP(F173,Area!$A$2:$B$71))+G173-(E173*3)) ->  | Q173: =IF(C173="","",LOOKUP(K173,ByM!$A$2:$B$462)+LOOKUP(L173,ByM!$A$2:$B$462)+LOOKUP(M173,ByM!$A$2:$B$462)+LOOKUP(N173,ByM!$A$2:$B$462)+LOOKUP(O173,ByM!$A$2:$B$462)) -> 
P174: =IF(C174="","",#REF!+(LOOKUP(F174,Area!$A$2:$B$71))+G174-(E174*3)) ->  | Q174: =IF(C174="","",LOOKUP(K174,ByM!$A$2:$B$462)+LOOKUP(L174,ByM!$A$2:$B$462)+LOOKUP(M174,ByM!$A$2:$B$462)+LOOKUP(N174,ByM!$A$2:$B$462)+LOOKUP(O174,ByM!$A$2:$B$462)) -> 
P175: =IF(C175="","",#REF!+(LOOKUP(F175,Area!$A$2:$B$71))+G175-(E175*3)) ->  | Q175: =IF(C175="","",LOOKUP(K175,ByM!$A$2:$B$462)+LOOKUP(L175,ByM!$A$2:$B$462)+LOOKUP(M175,ByM!$A$2:$B$462)+LOOKUP(N175,ByM!$A$2:$B$462)+LOOKUP(O175,ByM!$A$2:$B$462)) -> 
P176: =IF(C176="","",#REF!+(LOOKUP(F176,Area!$A$2:$B$71))+G176-(E176*3)) ->  | Q176: =IF(C176="","",LOOKUP(K176,ByM!$A$2:$B$462)+LOOKUP(L176,ByM!$A$2:$B$462)+LOOKUP(M176,ByM!$A$2:$B$462)+LOOKUP(N176,ByM!$A$2:$B$462)+LOOKUP(O176,ByM!$A$2:$B$462)) -> 
P177: =IF(C177="","",#REF!+(LOOKUP(F177,Area!$A$2:$B$71))+G177-(E177*3)) ->  | Q177: =IF(C177="","",LOOKUP(K177,ByM!$A$2:$B$462)+LOOKUP(L177,ByM!$A$2:$B$462)+LOOKUP(M177,ByM!$A$2:$B$462)+LOOKUP(N177,ByM!$A$2:$B$462)+LOOKUP(O177,ByM!$A$2:$B$462)) -> 
P178: =IF(C178="","",#REF!+(LOOKUP(F178,Area!$A$2:$B$71))+G178-(E178*3)) ->  | Q178: =IF(C178="","",LOOKUP(K178,ByM!$A$2:$B$462)+LOOKUP(L178,ByM!$A$2:$B$462)+LOOKUP(M178,ByM!$A$2:$B$462)+LOOKUP(N178,ByM!$A$2:$B$462)+LOOKUP(O178,ByM!$A$2:$B$462)) -> 
P179: =IF(C179="","",#REF!+(LOOKUP(F179,Area!$A$2:$B$71))+G179-(E179*3)) ->  | Q179: =IF(C179="","",LOOKUP(K179,ByM!$A$2:$B$462)+LOOKUP(L179,ByM!$A$2:$B$462)+LOOKUP(M179,ByM!$A$2:$B$462)+LOOKUP(N179,ByM!$A$2:$B$462)+LOOKUP(O179,ByM!$A$2:$B$462)) -> 
P180: =IF(C180="","",#REF!+(LOOKUP(F180,Area!$A$2:$B$71))+G180-(E180*3)) ->  | Q180: =IF(C180="","",LOOKUP(K180,ByM!$A$2:$B$462)+LOOKUP(L180,ByM!$A$2:$B$462)+LOOKUP(M180,ByM!$A$2:$B$462)+LOOKUP(N180,ByM!$A$2:$B$462)+LOOKUP(O180,ByM!$A$2:$B$462)) -> 
P181: =IF(C181="","",#REF!+(LOOKUP(F181,Area!$A$2:$B$71))+G181-(E181*3)) ->  | Q181: =IF(C181="","",LOOKUP(K181,ByM!$A$2:$B$462)+LOOKUP(L181,ByM!$A$2:$B$462)+LOOKUP(M181,ByM!$A$2:$B$462)+LOOKUP(N181,ByM!$A$2:$B$462)+LOOKUP(O181,ByM!$A$2:$B$462)) -> 
P182: =IF(C182="","",#REF!+(LOOKUP(F182,Area!$A$2:$B$71))+G182-(E182*3)) ->  | Q182: =IF(C182="","",LOOKUP(K182,ByM!$A$2:$B$462)+LOOKUP(L182,ByM!$A$2:$B$462)+LOOKUP(M182,ByM!$A$2:$B$462)+LOOKUP(N182,ByM!$A$2:$B$462)+LOOKUP(O182,ByM!$A$2:$B$462)) -> 
P183: =IF(C183="","",#REF!+(LOOKUP(F183,Area!$A$2:$B$71))+G183-(E183*3)) ->  | Q183: =IF(C183="","",LOOKUP(K183,ByM!$A$2:$B$462)+LOOKUP(L183,ByM!$A$2:$B$462)+LOOKUP(M183,ByM!$A$2:$B$462)+LOOKUP(N183,ByM!$A$2:$B$462)+LOOKUP(O183,ByM!$A$2:$B$462)) -> 
P184: =IF(C184="","",#REF!+(LOOKUP(F184,Area!$A$2:$B$71))+G184-(E184*3)) ->  | Q184: =IF(C184="","",LOOKUP(K184,ByM!$A$2:$B$462)+LOOKUP(L184,ByM!$A$2:$B$462)+LOOKUP(M184,ByM!$A$2:$B$462)+LOOKUP(N184,ByM!$A$2:$B$462)+LOOKUP(O184,ByM!$A$2:$B$462)) -> 
P185: =IF(C185="","",#REF!+(LOOKUP(F185,Area!$A$2:$B$71))+G185-(E185*3)) ->  | Q185: =IF(C185="","",LOOKUP(K185,ByM!$A$2:$B$462)+LOOKUP(L185,ByM!$A$2:$B$462)+LOOKUP(M185,ByM!$A$2:$B$462)+LOOKUP(N185,ByM!$A$2:$B$462)+LOOKUP(O185,ByM!$A$2:$B$462)) -> 
P186: =IF(C186="","",#REF!+(LOOKUP(F186,Area!$A$2:$B$71))+G186-(E186*3)) ->  | Q186: =IF(C186="","",LOOKUP(K186,ByM!$A$2:$B$462)+LOOKUP(L186,ByM!$A$2:$B$462)+LOOKUP(M186,ByM!$A$2:$B$462)+LOOKUP(N186,ByM!$A$2:$B$462)+LOOKUP(O186,ByM!$A$2:$B$462)) -> 
P187: =IF(C187="","",#REF!+(LOOKUP(F187,Area!$A$2:$B$71))+G187-(E187*3)) ->  | Q187: =IF(C187="","",LOOKUP(K187,ByM!$A$2:$B$462)+LOOKUP(L187,ByM!$A$2:$B$462)+LOOKUP(M187,ByM!$A$2:$B$462)+LOOKUP(N187,ByM!$A$2:$B$462)+LOOKUP(O187,ByM!$A$2:$B$462)) -> 
P188: =IF(C188="","",#REF!+(LOOKUP(F188,Area!$A$2:$B$71))+G188-(E188*3)) ->  | Q188: =IF(C188="","",LOOKUP(K188,ByM!$A$2:$B$462)+LOOKUP(L188,ByM!$A$2:$B$462)+LOOKUP(M188,ByM!$A$2:$B$462)+LOOKUP(N188,ByM!$A$2:$B$462)+LOOKUP(O188,ByM!$A$2:$B$462)) -> 
P189: =IF(C189="","",#REF!+(LOOKUP(F189,Area!$A$2:$B$71))+G189-(E189*3)) ->  | Q189: =IF(C189="","",LOOKUP(K189,ByM!$A$2:$B$462)+LOOKUP(L189,ByM!$A$2:$B$462)+LOOKUP(M189,ByM!$A$2:$B$462)+LOOKUP(N189,ByM!$A$2:$B$462)+LOOKUP(O189,ByM!$A$2:$B$462)) -> 
P190: =IF(C190="","",#REF!+(LOOKUP(F190,Area!$A$2:$B$71))+G190-(E190*3)) ->  | Q190: =IF(C190="","",LOOKUP(K190,ByM!$A$2:$B$462)+LOOKUP(L190,ByM!$A$2:$B$462)+LOOKUP(M190,ByM!$A$2:$B$462)+LOOKUP(N190,ByM!$A$2:$B$462)+LOOKUP(O190,ByM!$A$2:$B$462)) -> 
P191: =IF(C191="","",#REF!+(LOOKUP(F191,Area!$A$2:$B$71))+G191-(E191*3)) ->  | Q191: =IF(C191="","",LOOKUP(K191,ByM!$A$2:$B$462)+LOOKUP(L191,ByM!$A$2:$B$462)+LOOKUP(M191,ByM!$A$2:$B$462)+LOOKUP(N191,ByM!$A$2:$B$462)+LOOKUP(O191,ByM!$A$2:$B$462)) -> 
P192: =IF(C192="","",#REF!+(LOOKUP(F192,Area!$A$2:$B$71))+G192-(E192*3)) ->  | Q192: =IF(C192="","",LOOKUP(K192,ByM!$A$2:$B$462)+LOOKUP(L192,ByM!$A$2:$B$462)+LOOKUP(M192,ByM!$A$2:$B$462)+LOOKUP(N192,ByM!$A$2:$B$462)+LOOKUP(O192,ByM!$A$2:$B$462)) -> 
P193: =IF(C193="","",#REF!+(LOOKUP(F193,Area!$A$2:$B$71))+G193-(E193*3)) ->  | Q193: =IF(C193="","",LOOKUP(K193,ByM!$A$2:$B$462)+LOOKUP(L193,ByM!$A$2:$B$462)+LOOKUP(M193,ByM!$A$2:$B$462)+LOOKUP(N193,ByM!$A$2:$B$462)+LOOKUP(O193,ByM!$A$2:$B$462)) -> 
P194: =IF(C194="","",#REF!+(LOOKUP(F194,Area!$A$2:$B$71))+G194-(E194*3)) ->  | Q194: =IF(C194="","",LOOKUP(K194,ByM!$A$2:$B$462)+LOOKUP(L194,ByM!$A$2:$B$462)+LOOKUP(M194,ByM!$A$2:$B$462)+LOOKUP(N194,ByM!$A$2:$B$462)+LOOKUP(O194,ByM!$A$2:$B$462)) -> 
P195: =IF(C195="","",#REF!+(LOOKUP(F195,Area!$A$2:$B$71))+G195-(E195*3)) ->  | Q195: =IF(C195="","",LOOKUP(K195,ByM!$A$2:$B$462)+LOOKUP(L195,ByM!$A$2:$B$462)+LOOKUP(M195,ByM!$A$2:$B$462)+LOOKUP(N195,ByM!$A$2:$B$462)+LOOKUP(O195,ByM!$A$2:$B$462)) -> 
P196: =IF(C196="","",#REF!+(LOOKUP(F196,Area!$A$2:$B$71))+G196-(E196*3)) ->  | Q196: =IF(C196="","",LOOKUP(K196,ByM!$A$2:$B$462)+LOOKUP(L196,ByM!$A$2:$B$462)+LOOKUP(M196,ByM!$A$2:$B$462)+LOOKUP(N196,ByM!$A$2:$B$462)+LOOKUP(O196,ByM!$A$2:$B$462)) -> 
P197: =IF(C197="","",#REF!+(LOOKUP(F197,Area!$A$2:$B$71))+G197-(E197*3)) ->  | Q197: =IF(C197="","",LOOKUP(K197,ByM!$A$2:$B$462)+LOOKUP(L197,ByM!$A$2:$B$462)+LOOKUP(M197,ByM!$A$2:$B$462)+LOOKUP(N197,ByM!$A$2:$B$462)+LOOKUP(O197,ByM!$A$2:$B$462)) -> 
P198: =IF(C198="","",#REF!+(LOOKUP(F198,Area!$A$2:$B$71))+G198-(E198*3)) ->  | Q198: =IF(C198="","",LOOKUP(K198,ByM!$A$2:$B$462)+LOOKUP(L198,ByM!$A$2:$B$462)+LOOKUP(M198,ByM!$A$2:$B$462)+LOOKUP(N198,ByM!$A$2:$B$462)+LOOKUP(O198,ByM!$A$2:$B$462)) -> 
P199: =IF(C199="","",#REF!+(LOOKUP(F199,Area!$A$2:$B$71))+G199-(E199*3)) ->  | Q199: =IF(C199="","",LOOKUP(K199,ByM!$A$2:$B$462)+LOOKUP(L199,ByM!$A$2:$B$462)+LOOKUP(M199,ByM!$A$2:$B$462)+LOOKUP(N199,ByM!$A$2:$B$462)+LOOKUP(O199,ByM!$A$2:$B$462)) -> 
P200: =IF(C200="","",#REF!+(LOOKUP(F200,Area!$A$2:$B$71))+G200-(E200*3)) ->  | Q200: =IF(C200="","",LOOKUP(K200,ByM!$A$2:$B$462)+LOOKUP(L200,ByM!$A$2:$B$462)+LOOKUP(M200,ByM!$A$2:$B$462)+LOOKUP(N200,ByM!$A$2:$B$462)+LOOKUP(O200,ByM!$A$2:$B$462)) -> 
P201: =IF(C201="","",#REF!+(LOOKUP(F201,Area!$A$2:$B$71))+G201-(E201*3)) ->  | Q201: =IF(C201="","",LOOKUP(K201,ByM!$A$2:$B$462)+LOOKUP(L201,ByM!$A$2:$B$462)+LOOKUP(M201,ByM!$A$2:$B$462)+LOOKUP(N201,ByM!$A$2:$B$462)+LOOKUP(O201,ByM!$A$2:$B$462)) -> 
P202: =IF(C202="","",#REF!+(LOOKUP(F202,Area!$A$2:$B$71))+G202-(E202*3)) ->  | Q202: =IF(C202="","",LOOKUP(K202,ByM!$A$2:$B$462)+LOOKUP(L202,ByM!$A$2:$B$462)+LOOKUP(M202,ByM!$A$2:$B$462)+LOOKUP(N202,ByM!$A$2:$B$462)+LOOKUP(O202,ByM!$A$2:$B$462)) -> 
P203: =IF(C203="","",#REF!+(LOOKUP(F203,Area!$A$2:$B$71))+G203-(E203*3)) ->  | Q203: =IF(C203="","",LOOKUP(K203,ByM!$A$2:$B$462)+LOOKUP(L203,ByM!$A$2:$B$462)+LOOKUP(M203,ByM!$A$2:$B$462)+LOOKUP(N203,ByM!$A$2:$B$462)+LOOKUP(O203,ByM!$A$2:$B$462)) -> 
P204: =IF(C204="","",#REF!+(LOOKUP(F204,Area!$A$2:$B$71))+G204-(E204*3)) ->  | Q204: =IF(C204="","",LOOKUP(K204,ByM!$A$2:$B$462)+LOOKUP(L204,ByM!$A$2:$B$462)+LOOKUP(M204,ByM!$A$2:$B$462)+LOOKUP(N204,ByM!$A$2:$B$462)+LOOKUP(O204,ByM!$A$2:$B$462)) -> 
P205: =IF(C205="","",#REF!+(LOOKUP(F205,Area!$A$2:$B$71))+G205-(E205*3)) ->  | Q205: =IF(C205="","",LOOKUP(K205,ByM!$A$2:$B$462)+LOOKUP(L205,ByM!$A$2:$B$462)+LOOKUP(M205,ByM!$A$2:$B$462)+LOOKUP(N205,ByM!$A$2:$B$462)+LOOKUP(O205,ByM!$A$2:$B$462)) -> 
P206: =IF(C206="","",#REF!+(LOOKUP(F206,Area!$A$2:$B$71))+G206-(E206*3)) ->  | Q206: =IF(C206="","",LOOKUP(K206,ByM!$A$2:$B$462)+LOOKUP(L206,ByM!$A$2:$B$462)+LOOKUP(M206,ByM!$A$2:$B$462)+LOOKUP(N206,ByM!$A$2:$B$462)+LOOKUP(O206,ByM!$A$2:$B$462)) -> 
... 126 more rows

Sheet Objeto
B2: Nombre: | C2: Nombre | E2: Atributos: | K2: Coste del arquetipo
B3: Bonus 1: | C3: - | D3: =LOOKUP(C3,ByM!$A$2:$B$462) -> 0 | E3: ENE | F3: ALC | G3: CAL | I3: ARE | K3: =IF(SUM(D3:D7,F5+G5+I5-E5)<1,1,SUM(D3:D7,F5+G5+I5-E5)) -> 1 | L3: =LOOKUP(C3,ByM!$A$2:$C$462) -> -
B4: Bonus 2: | C4: - | D4: =LOOKUP(C4,ByM!$A$2:$B$462) -> 0 | E4: 1 | F4: 0 | G4: 1 | I4: - | L4: =LOOKUP(C4,ByM!$A$2:$C$462) -> -
B5: Bonus 3: | C5: - | D5: =LOOKUP(C5,ByM!$A$2:$B$462) -> 0 | E5: =E4 -> 1 | F5: =F4 -> 0 | G5: =G4 -> 1 | I5: =LOOKUP(I4,Area!$A$2:$B$71) -> 0 | L5: =LOOKUP(C5,ByM!$A$2:$C$462) -> -
B6: Bonus 4: | C6: - | D6: =LOOKUP(C6,ByM!$A$2:$B$462) -> 0 | L6: =LOOKUP(C6,ByM!$A$2:$C$462) -> -
B7: Bonus 5: | C7: - | D7: =LOOKUP(C7,ByM!$A$2:$B$462) -> 0 | L7: =LOOKUP(C7,ByM!$A$2:$C$462) -> -
B8: Descripción:
B14: Tipo | C14: Nombre | D14: Desc | E14: ENE | F14: ALC | G14: . | H14: CAL | I14: PTS | J14: ARE | K14: Bonus 1 | L14: Bonus 2 | M14: Bonus 3 | N14: Bonus 4 | O14: Bonus 5 | P14: Pts Atr. | Q14: Pts ByM
B15: Objeto | C15: ¡Cuerpo a tierra! | E15: 2 | F15: 0 | H15: 5 | I15: 1 | J15: - | K15: Escudo de energía N01 | L15: Un uso por aventura | M15: - | N15: - | O15: - | P15: =IF(C15="","",F15+H15-(E15)) -> 3 | Q15: =IF(C15="","",LOOKUP(J15,Area!$A$2:$B$71)+LOOKUP(K15,ByM!$A$2:$B$462)+LOOKUP(L15,ByM!$A$2:$B$462)+LOOKUP(M15,ByM!$A$2:$B$462)+LOOKUP(N15,ByM!$A$2:$B$462)+LOOKUP(O15,ByM!$A$2:$B$462)) -> -5
B16: Objeto | C16: ¡Llegan los refuerzos! | E16: 1 | F16: 0 | H16: 3 | I16: 10 | J16: - | K16: Tropas ocultas | L16: - | M16: - | N16: - | O16: - | P16: =IF(C16="","",F16+H16-(E16)) -> 2 | Q16: =IF(C16="","",LOOKUP(J16,Area!$A$2:$B$71)+LOOKUP(K16,ByM!$A$2:$B$462)+LOOKUP(L16,ByM!$A$2:$B$462)+LOOKUP(M16,ByM!$A$2:$B$462)+LOOKUP(N16,ByM!$A$2:$B$462)+LOOKUP(O16,ByM!$A$2:$B$462)) -> 8
B17: Objeto | C17: Ahora me ves | E17: 1 | F17: 0 | H17: 3 | I17: 1 | J17: - | K17: Teletrans | L17: Un uso por aventura | M17: - | N17: - | O17: - | P17: =IF(C17="","",F17+H17-(E17)) -> 2 | Q17: =IF(C17="","",LOOKUP(J17,Area!$A$2:$B$71)+LOOKUP(K17,ByM!$A$2:$B$462)+LOOKUP(L17,ByM!$A$2:$B$462)+LOOKUP(M17,ByM!$A$2:$B$462)+LOOKUP(N17,ByM!$A$2:$B$462)+LOOKUP(O17,ByM!$A$2:$B$462)) -> -5
B18: Objeto | C18: Albóndiga | E18: 1 | F18: 0 | H18: 5 | I18: 14 | J18: - | K18: Mascota mágica (berserker, meta visión y súper sentidos) | L18: - | M18: - | N18: - | O18: - | P18: =IF(C18="","",F18+H18-(E18)) -> 4 | Q18: =IF(C18="","",LOOKUP(J18,Area!$A$2:$B$71)+LOOKUP(K18,ByM!$A$2:$B$462)+LOOKUP(L18,ByM!$A$2:$B$462)+LOOKUP(M18,ByM!$A$2:$B$462)+LOOKUP(N18,ByM!$A$2:$B$462)+LOOKUP(O18,ByM!$A$2:$B$462)) -> 10
B19: Objeto | C19: Ambrosía de la contención | E19: 2 | F19: 0 | H19: 2 | I19: 1 | J19: - | K19: Droga | L19: Niega (Ansia de sangre) | M19: Tempus: actuación | N19: - | O19: - | P19: =IF(C19="","",F19+H19-(E19)) -> 0 | Q19: =IF(C19="","",LOOKUP(J19,Area!$A$2:$B$71)+LOOKUP(K19,ByM!$A$2:$B$462)+LOOKUP(L19,ByM!$A$2:$B$462)+LOOKUP(M19,ByM!$A$2:$B$462)+LOOKUP(N19,ByM!$A$2:$B$462)+LOOKUP(O19,ByM!$A$2:$B$462)) -> -5
B20: Objeto | C20: Ambrosía de la genialidad | E20: 2 | F20: 0 | H20: 2 | I20: 1 | J20: - | K20: Droga | L20: Maestría (mecanismos) | M20: Tempus: actuación | N20: - | O20: - | P20: =IF(C20="","",F20+H20-(E20)) -> 0 | Q20: =IF(C20="","",LOOKUP(J20,Area!$A$2:$B$71)+LOOKUP(K20,ByM!$A$2:$B$462)+LOOKUP(L20,ByM!$A$2:$B$462)+LOOKUP(M20,ByM!$A$2:$B$462)+LOOKUP(N20,ByM!$A$2:$B$462)+LOOKUP(O20,ByM!$A$2:$B$462)) -> -5
B21: Objeto | C21: Ambrosía de la velocidad | E21: 2 | F21: 0 | H21: 2 | I21: 1 | J21: - | K21: Droga | L21: Rápido | M21: Tempus: actuación | N21: - | O21: - | P21: =IF(C21="","",F21+H21-(E21)) -> 0 | Q21: =IF(C21="","",LOOKUP(J21,Area!$A$2:$B$71)+LOOKUP(K21,ByM!$A$2:$B$462)+LOOKUP(L21,ByM!$A$2:$B$462)+LOOKUP(M21,ByM!$A$2:$B$462)+LOOKUP(N21,ByM!$A$2:$B$462)+LOOKUP(O21,ByM!$A$2:$B$462)) -> -5
B22: Objeto | C22: Ambrosía del acero | E22: 2 | F22: 0 | H22: 2 | I22: 5 | J22: - | K22: Droga | L22: Duro | M22: Tempus: actuación | N22: - | O22: - | P22: =IF(C22="","",F22+H22-(E22)) -> 0 | Q22: =IF(C22="","",LOOKUP(J22,Area!$A$2:$B$71)+LOOKUP(K22,ByM!$A$2:$B$462)+LOOKUP(L22,ByM!$A$2:$B$462)+LOOKUP(M22,ByM!$A$2:$B$462)+LOOKUP(N22,ByM!$A$2:$B$462)+LOOKUP(O22,ByM!$A$2:$B$462)) -> 5
B23: Objeto | C23: Ambrosía del guerrero | E23: 2 | F23: 0 | H23: 2 | I23: 1 | J23: - | K23: Droga | L23: Profesión bárbaro | M23: Tempus: actuación | N23: - | O23: - | P23: =IF(C23="","",F23+H23-(E23)) -> 0 | Q23: =IF(C23="","",LOOKUP(J23,Area!$A$2:$B$71)+LOOKUP(K23,ByM!$A$2:$B$462)+LOOKUP(L23,ByM!$A$2:$B$462)+LOOKUP(M23,ByM!$A$2:$B$462)+LOOKUP(N23,ByM!$A$2:$B$462)+LOOKUP(O23,ByM!$A$2:$B$462)) -> 0
B24: Objeto | C24: Ambrosía del viaje | E24: 2 | F24: 0 | H24: 2 | I24: 1 | J24: - | K24: Droga | L24: Tempus: actuación | M24: Tropas de infiltración | N24: - | O24: - | P24: =IF(C24="","",F24+H24-(E24)) -> 0 | Q24: =IF(C24="","",LOOKUP(J24,Area!$A$2:$B$71)+LOOKUP(K24,ByM!$A$2:$B$462)+LOOKUP(L24,ByM!$A$2:$B$462)+LOOKUP(M24,ByM!$A$2:$B$462)+LOOKUP(N24,ByM!$A$2:$B$462)+LOOKUP(O24,ByM!$A$2:$B$462)) -> -5
B25: Objeto | C25: Angel Artifice | E25: 1 | F25: 0 | H25: 9 | I25: 13 | J25: - | K25: Reliquia | L25: Refuerzo | M25: Profesión bárbaro | N25: - | O25: - | P25: =IF(C25="","",F25+H25-(E25)) -> 8 | Q25: =IF(C25="","",LOOKUP(J25,Area!$A$2:$B$71)+LOOKUP(K25,ByM!$A$2:$B$462)+LOOKUP(L25,ByM!$A$2:$B$462)+LOOKUP(M25,ByM!$A$2:$B$462)+LOOKUP(N25,ByM!$A$2:$B$462)+LOOKUP(O25,ByM!$A$2:$B$462)) -> 5
B26: Objeto | C26: Apoyo - descaro | E26: 3 | F26: 0 | H26: 3 | I26: 20 | J26: - | K26: Hálito de entumecimiento | L26: Un uso por actuación | M26: - | N26: - | O26: - | P26: =IF(C26="","",F26+H26-(E26)) -> 0 | Q26: =IF(C26="","",LOOKUP(J26,Area!$A$2:$B$71)+LOOKUP(K26,ByM!$A$2:$B$462)+LOOKUP(L26,ByM!$A$2:$B$462)+LOOKUP(M26,ByM!$A$2:$B$462)+LOOKUP(N26,ByM!$A$2:$B$462)+LOOKUP(O26,ByM!$A$2:$B$462)) -> 20
B27: Objeto | C27: Astucia alienígena | E27: 1 | F27: 0 | H27: 4 | I27: 8 | J27: - | K27: Órdenes | L27: - | M27: - | N27: - | O27: - | P27: =IF(C27="","",F27+H27-(E27)) -> 3 | Q27: =IF(C27="","",LOOKUP(J27,Area!$A$2:$B$71)+LOOKUP(K27,ByM!$A$2:$B$462)+LOOKUP(L27,ByM!$A$2:$B$462)+LOOKUP(M27,ByM!$A$2:$B$462)+LOOKUP(N27,ByM!$A$2:$B$462)+LOOKUP(O27,ByM!$A$2:$B$462)) -> 5
B28: Objeto | C28: Ataque teleportado | E28: 1 | F28: 0 | H28: 7 | I28: 14 | J28: - | K28: Tropas ocultas | L28: - | M28: - | N28: - | O28: - | P28: =IF(C28="","",F28+H28-(E28)) -> 6 | Q28: =IF(C28="","",LOOKUP(J28,Area!$A$2:$B$71)+LOOKUP(K28,ByM!$A$2:$B$462)+LOOKUP(L28,ByM!$A$2:$B$462)+LOOKUP(M28,ByM!$A$2:$B$462)+LOOKUP(N28,ByM!$A$2:$B$462)+LOOKUP(O28,ByM!$A$2:$B$462)) -> 8
B29: Objeto | C29: Aura de hierro | E29: 1 | F29: 0 | H29: 8 | I29: 27 | J29: - | K29: Salvaguarda | L29: - | M29: - | N29: - | O29: - | P29: =IF(C29="","",F29+H29-(E29)) -> 7 | Q29: =IF(C29="","",LOOKUP(J29,Area!$A$2:$B$71)+LOOKUP(K29,ByM!$A$2:$B$462)+LOOKUP(L29,ByM!$A$2:$B$462)+LOOKUP(M29,ByM!$A$2:$B$462)+LOOKUP(N29,ByM!$A$2:$B$462)+LOOKUP(O29,ByM!$A$2:$B$462)) -> 20
B30: Objeto | C30: Baliza de teleportación | E30: 1 | F30: 0 | H30: 7 | I30: 16 | J30: - | K30: Faro | L30: - | M30: - | N30: - | O30: - | P30: =IF(C30="","",F30+H30-(E30)) -> 6 | Q30: =IF(C30="","",LOOKUP(J30,Area!$A$2:$B$71)+LOOKUP(K30,ByM!$A$2:$B$462)+LOOKUP(L30,ByM!$A$2:$B$462)+LOOKUP(M30,ByM!$A$2:$B$462)+LOOKUP(N30,ByM!$A$2:$B$462)+LOOKUP(O30,ByM!$A$2:$B$462)) -> 10
B31: Objeto | C31: Bocina | E31: 1 | F31: 0 | H31: 1 | I31: 1 | J31: - | K31: Contracarga | L31: Un uso por aventura | M31: - | N31: - | O31: - | P31: =IF(C31="","",F31+H31-(E31)) -> 0 | Q31: =IF(C31="","",LOOKUP(J31,Area!$A$2:$B$71)+LOOKUP(K31,ByM!$A$2:$B$462)+LOOKUP(L31,ByM!$A$2:$B$462)+LOOKUP(M31,ByM!$A$2:$B$462)+LOOKUP(N31,ByM!$A$2:$B$462)+LOOKUP(O31,ByM!$A$2:$B$462)) -> -5
B32: Objeto | C32: Bomba fétida | E32: 2 | F32: 10 | H32: 2 | I32: 25 | J32: - | K32: Hálito de imbecilidad | L32: Un uso por aventura | M32: - | N32: - | O32: - | P32: =IF(C32="","",F32+H32-(E32)) -> 10 | Q32: =IF(C32="","",LOOKUP(J32,Area!$A$2:$B$71)+LOOKUP(K32,ByM!$A$2:$B$462)+LOOKUP(L32,ByM!$A$2:$B$462)+LOOKUP(M32,ByM!$A$2:$B$462)+LOOKUP(N32,ByM!$A$2:$B$462)+LOOKUP(O32,ByM!$A$2:$B$462)) -> 15
B33: Objeto | C33: Bombona de butano | E33: 2 | F33: 0 | H33: 2 | I33: 5 | J33: - | K33: Bomba viviente | L33: - | M33: - | N33: - | O33: - | P33: =IF(C33="","",F33+H33-(E33)) -> 0 | Q33: =IF(C33="","",LOOKUP(J33,Area!$A$2:$B$71)+LOOKUP(K33,ByM!$A$2:$B$462)+LOOKUP(L33,ByM!$A$2:$B$462)+LOOKUP(M33,ByM!$A$2:$B$462)+LOOKUP(N33,ByM!$A$2:$B$462)+LOOKUP(O33,ByM!$A$2:$B$462)) -> 5
B34: Objeto | C34: Botiquín | E34: 3 | F34: 0 | H34: 3 | I34: 5 | J34: - | K34: Maestría (curar) | L34: - | M34: - | N34: - | O34: - | P34: =IF(C34="","",F34+H34-(E34)) -> 0 | Q34: =IF(C34="","",LOOKUP(J34,Area!$A$2:$B$71)+LOOKUP(K34,ByM!$A$2:$B$462)+LOOKUP(L34,ByM!$A$2:$B$462)+LOOKUP(M34,ByM!$A$2:$B$462)+LOOKUP(N34,ByM!$A$2:$B$462)+LOOKUP(O34,ByM!$A$2:$B$462)) -> 5
B35: Objeto | C35: Buho mecánico de hierro | E35: 3 | F35: 20 | H35: 7 | I35: 27 | J35: Área (R20) | K35: Área despreciable | L35: Sensor: Detecta tropas sin Línea de visión | M35: - | N35: - | O35: - | P35: =IF(C35="","",F35+H35-(E35)) -> 24 | Q35: =IF(C35="","",LOOKUP(J35,Area!$A$2:$B$71)+LOOKUP(K35,ByM!$A$2:$B$462)+LOOKUP(L35,ByM!$A$2:$B$462)+LOOKUP(M35,ByM!$A$2:$B$462)+LOOKUP(N35,ByM!$A$2:$B$462)+LOOKUP(O35,ByM!$A$2:$B$462)) -> 8
B36: Objeto | C36: Cacharras del oficio | E36: 2 | F36: 0 | H36: 2 | I36: 5 | J36: - | K36: Maestría (arreglar) | L36: - | M36: - | N36: - | O36: - | P36: =IF(C36="","",F36+H36-(E36)) -> 0 | Q36: =IF(C36="","",LOOKUP(J36,Area!$A$2:$B$71)+LOOKUP(K36,ByM!$A$2:$B$462)+LOOKUP(L36,ByM!$A$2:$B$462)+LOOKUP(M36,ByM!$A$2:$B$462)+LOOKUP(N36,ByM!$A$2:$B$462)+LOOKUP(O36,ByM!$A$2:$B$462)) -> 5
B37: Objeto | C37: Cacharros de mecánico | E37: 1 | F37: 0 | H37: 5 | I37: 9 | J37: - | K37: Maestría (arreglar) | L37: - | M37: - | N37: - | O37: - | P37: =IF(C37="","",F37+H37-(E37)) -> 4 | Q37: =IF(C37="","",LOOKUP(J37,Area!$A$2:$B$71)+LOOKUP(K37,ByM!$A$2:$B$462)+LOOKUP(L37,ByM!$A$2:$B$462)+LOOKUP(M37,ByM!$A$2:$B$462)+LOOKUP(N37,ByM!$A$2:$B$462)+LOOKUP(O37,ByM!$A$2:$B$462)) -> 5
B38: Objeto | C38: Cama de cirujía automática | E38: 1 | F38: 0 | H38: 7 | I38: 6 | J38: - | K38: Elixir N1 | L38: Un uso por actuación | M38: - | N38: - | O38: - | P38: =IF(C38="","",F38+H38-(E38)) -> 6 | Q38: =IF(C38="","",LOOKUP(J38,Area!$A$2:$B$71)+LOOKUP(K38,ByM!$A$2:$B$462)+LOOKUP(L38,ByM!$A$2:$B$462)+LOOKUP(M38,ByM!$A$2:$B$462)+LOOKUP(N38,ByM!$A$2:$B$462)+LOOKUP(O38,ByM!$A$2:$B$462)) -> 0
B39: Objeto | C39: Cama de cirujía automática Pauling | E39: 1 | F39: 0 | H39: 7 | I39: 16 | J39: - | K39: Elixir N3 | L39: Un uso por actuación | M39: - | N39: - | O39: - | P39: =IF(C39="","",F39+H39-(E39)) -> 6 | Q39: =IF(C39="","",LOOKUP(J39,Area!$A$2:$B$71)+LOOKUP(K39,ByM!$A$2:$B$462)+LOOKUP(L39,ByM!$A$2:$B$462)+LOOKUP(M39,ByM!$A$2:$B$462)+LOOKUP(N39,ByM!$A$2:$B$462)+LOOKUP(O39,ByM!$A$2:$B$462)) -> 10
B40: Objeto | C40: Cañón lanzador | E40: 4 | F40: 0 | H40: 7 | I40: 19 | J40: - | K40: Distorsión psíquica | L40: Teleport | M40: Tiro parabólico | N40: - | O40: - | P40: =IF(C40="","",F40+H40-(E40)) -> 3 | Q40: =IF(C40="","",LOOKUP(J40,Area!$A$2:$B$71)+LOOKUP(K40,ByM!$A$2:$B$462)+LOOKUP(L40,ByM!$A$2:$B$462)+LOOKUP(M40,ByM!$A$2:$B$462)+LOOKUP(N40,ByM!$A$2:$B$462)+LOOKUP(O40,ByM!$A$2:$B$462)) -> 16
B41: Objeto | C41: Capa de Camuflaje | E41: 1 | F41: 0 | H41: 3 | I41: 12 | J41: - | K41: Camuflaje | L41: - | M41: - | N41: - | O41: - | P41: =IF(C41="","",F41+H41-(E41)) -> 2 | Q41: =IF(C41="","",LOOKUP(J41,Area!$A$2:$B$71)+LOOKUP(K41,ByM!$A$2:$B$462)+LOOKUP(L41,ByM!$A$2:$B$462)+LOOKUP(M41,ByM!$A$2:$B$462)+LOOKUP(N41,ByM!$A$2:$B$462)+LOOKUP(O41,ByM!$A$2:$B$462)) -> 10
B42: Objeto | C42: Capa de hilo fantasma | E42: 1 | F42: 0 | H42: 3 | I42: 1 | J42: - | K42: Invisible | L42: Reliquia | M42: - | N42: - | O42: - | P42: =IF(C42="","",F42+H42-(E42)) -> 2 | Q42: =IF(C42="","",LOOKUP(J42,Area!$A$2:$B$71)+LOOKUP(K42,ByM!$A$2:$B$462)+LOOKUP(L42,ByM!$A$2:$B$462)+LOOKUP(M42,ByM!$A$2:$B$462)+LOOKUP(N42,ByM!$A$2:$B$462)+LOOKUP(O42,ByM!$A$2:$B$462)) -> -5
B43: Objeto | C43: Capucha psíquica | E43: 1 | F43: 0 | H43: 4 | I43: 13 | J43: - | K43: Runas de combate | L43: - | M43: - | N43: - | O43: - | P43: =IF(C43="","",F43+H43-(E43)) -> 3 | Q43: =IF(C43="","",LOOKUP(J43,Area!$A$2:$B$71)+LOOKUP(K43,ByM!$A$2:$B$462)+LOOKUP(L43,ByM!$A$2:$B$462)+LOOKUP(M43,ByM!$A$2:$B$462)+LOOKUP(N43,ByM!$A$2:$B$462)+LOOKUP(O43,ByM!$A$2:$B$462)) -> 10
B44: Objeto | C44: Catalejo | E44: 2 | F44: 0 | H44: 1 | I44: 8 | J44: - | K44: Visor N03 | L44: - | M44: - | N44: - | O44: - | P44: =IF(C44="","",F44+H44-(E44)) -> -1 | Q44: =IF(C44="","",LOOKUP(J44,Area!$A$2:$B$71)+LOOKUP(K44,ByM!$A$2:$B$462)+LOOKUP(L44,ByM!$A$2:$B$462)+LOOKUP(M44,ByM!$A$2:$B$462)+LOOKUP(N44,ByM!$A$2:$B$462)+LOOKUP(O44,ByM!$A$2:$B$462)) -> 9
B45: Objeto | C45: Chute | E45: 1 | F45: 0 | H45: 1 | I45: 1 | J45: - | K45: Droga | L45: drogas de combate | M45: un uso por actuación | N45: - | O45: - | P45: =IF(C45="","",F45+H45-(E45)) -> 0 | Q45: =IF(C45="","",LOOKUP(J45,Area!$A$2:$B$71)+LOOKUP(K45,ByM!$A$2:$B$462)+LOOKUP(L45,ByM!$A$2:$B$462)+LOOKUP(M45,ByM!$A$2:$B$462)+LOOKUP(N45,ByM!$A$2:$B$462)+LOOKUP(O45,ByM!$A$2:$B$462)) -> -2
B46: Objeto | C46: Cocaína | E46: 1 | F46: 0 | H46: 2 | I46: 1 | J46: - | K46: Droga | L46: Drogas de combate | M46: Neuropsico | N46: - | O46: - | P46: =IF(C46="","",F46+H46-(E46)) -> 1 | Q46: =IF(C46="","",LOOKUP(J46,Area!$A$2:$B$71)+LOOKUP(K46,ByM!$A$2:$B$462)+LOOKUP(L46,ByM!$A$2:$B$462)+LOOKUP(M46,ByM!$A$2:$B$462)+LOOKUP(N46,ByM!$A$2:$B$462)+LOOKUP(O46,ByM!$A$2:$B$462)) -> -17
B47: Objeto | C47: Coche de pachachos | E47: 7 | F47: 20 | H47: 7 | I47: 35 | J47: - | K47: Faro | L47: Tropas de infiltración (este objeto se despliega desde la posición de su portador, a tantos K como ALC) | M47: - | N47: - | O47: - | P47: =IF(C47="","",F47+H47-(E47)) -> 20 | Q47: =IF(C47="","",LOOKUP(J47,Area!$A$2:$B$71)+LOOKUP(K47,ByM!$A$2:$B$462)+LOOKUP(L47,ByM!$A$2:$B$462)+LOOKUP(M47,ByM!$A$2:$B$462)+LOOKUP(N47,ByM!$A$2:$B$462)+LOOKUP(O47,ByM!$A$2:$B$462)) -> 15
B48: Objeto | C48: Cojín de pedos | E48: 4 | F48: 0 | H48: 2 | I48: 8 | J48: - | K48: 7 vidas | L48: Un uso por aventura | M48: - | N48: - | O48: - | P48: =IF(C48="","",F48+H48-(E48)) -> -2 | Q48: =IF(C48="","",LOOKUP(J48,Area!$A$2:$B$71)+LOOKUP(K48,ByM!$A$2:$B$462)+LOOKUP(L48,ByM!$A$2:$B$462)+LOOKUP(M48,ByM!$A$2:$B$462)+LOOKUP(N48,ByM!$A$2:$B$462)+LOOKUP(O48,ByM!$A$2:$B$462)) -> 10
B49: Objeto | C49: Comunicador de infiltrador | E49: 1 | F49: 0 | H49: 3 | I49: 3 | J49: - | K49: Comunicador | L49: - | M49: - | N49: - | O49: - | P49: =IF(C49="","",F49+H49-(E49)) -> 2 | Q49: =IF(C49="","",LOOKUP(J49,Area!$A$2:$B$71)+LOOKUP(K49,ByM!$A$2:$B$462)+LOOKUP(L49,ByM!$A$2:$B$462)+LOOKUP(M49,ByM!$A$2:$B$462)+LOOKUP(N49,ByM!$A$2:$B$462)+LOOKUP(O49,ByM!$A$2:$B$462)) -> 1
B50: Objeto | C50: Control remoto de torretas | E50: 2 | F50: 5 | H50: 2 | I50: 5 | J50: - | K50: Vulnerable | L50: Puede utilizar una Torreta inteligente UA 571-C (sin LdV) | M50: - | N50: - | O50: - | P50: =IF(C50="","",F50+H50-(E50)) -> 5 | Q50: =IF(C50="","",LOOKUP(J50,Area!$A$2:$B$71)+LOOKUP(K50,ByM!$A$2:$B$462)+LOOKUP(L50,ByM!$A$2:$B$462)+LOOKUP(M50,ByM!$A$2:$B$462)+LOOKUP(N50,ByM!$A$2:$B$462)+LOOKUP(O50,ByM!$A$2:$B$462)) -> 0
B51: Objeto | C51: Crux terminatus | E51: 1 | F51: 0 | H51: 7 | I51: 26 | J51: - | K51: Salvaguarda | L51: - | M51: - | N51: - | O51: - | P51: =IF(C51="","",F51+H51-(E51)) -> 6 | Q51: =IF(C51="","",LOOKUP(J51,Area!$A$2:$B$71)+LOOKUP(K51,ByM!$A$2:$B$462)+LOOKUP(L51,ByM!$A$2:$B$462)+LOOKUP(M51,ByM!$A$2:$B$462)+LOOKUP(N51,ByM!$A$2:$B$462)+LOOKUP(O51,ByM!$A$2:$B$462)) -> 20
B52: Objeto | C52: Detector alien | E52: 5 | F52: 0 | H52: 3 | I52: 1 | J52: - | K52: Área despreciable (G5/5) | L52: - | M52: - | N52: - | O52: - | P52: =IF(C52="","",F52+H52-(E52)) -> -2 | Q52: =IF(C52="","",LOOKUP(J52,Area!$A$2:$B$71)+LOOKUP(K52,ByM!$A$2:$B$462)+LOOKUP(L52,ByM!$A$2:$B$462)+LOOKUP(M52,ByM!$A$2:$B$462)+LOOKUP(N52,ByM!$A$2:$B$462)+LOOKUP(O52,ByM!$A$2:$B$462)) -> 3
B53: Objeto | C53: Discurso berserker | E53: 5 | F53: 0 | H53: 3 | I53: 1 | J53: - | K53: Grito berserker | L53: Neuropsico | M53: - | N53: - | O53: - | P53: =IF(C53="","",F53+H53-(E53)) -> -2 | Q53: =IF(C53="","",LOOKUP(J53,Area!$A$2:$B$71)+LOOKUP(K53,ByM!$A$2:$B$462)+LOOKUP(L53,ByM!$A$2:$B$462)+LOOKUP(M53,ByM!$A$2:$B$462)+LOOKUP(N53,ByM!$A$2:$B$462)+LOOKUP(O53,ByM!$A$2:$B$462)) -> 0
B54: Objeto | C54: Discurso de guerra | E54: 5 | F54: 0 | H54: 3 | I54: 8 | J54: - | K54: Grito de guerra | L54: Neuropsico | M54: - | N54: - | O54: - | P54: =IF(C54="","",F54+H54-(E54)) -> -2 | Q54: =IF(C54="","",LOOKUP(J54,Area!$A$2:$B$71)+LOOKUP(K54,ByM!$A$2:$B$462)+LOOKUP(L54,ByM!$A$2:$B$462)+LOOKUP(M54,ByM!$A$2:$B$462)+LOOKUP(N54,ByM!$A$2:$B$462)+LOOKUP(O54,ByM!$A$2:$B$462)) -> 10
B55: Objeto | C55: Discurso de odio | E55: 5 | F55: 0 | H55: 3 | I55: 3 | J55: - | K55: Grito de odio | L55: Neuropsico | M55: - | N55: - | O55: - | P55: =IF(C55="","",F55+H55-(E55)) -> -2 | Q55: =IF(C55="","",LOOKUP(J55,Area!$A$2:$B$71)+LOOKUP(K55,ByM!$A$2:$B$462)+LOOKUP(L55,ByM!$A$2:$B$462)+LOOKUP(M55,ByM!$A$2:$B$462)+LOOKUP(N55,ByM!$A$2:$B$462)+LOOKUP(O55,ByM!$A$2:$B$462)) -> 5
B56: Objeto | C56: Dispositivo de control de sueño | E56: 3 | F56: 0 | H56: 7 | I56: 4 | J56: - | K56: - | L56: - | M56: - | N56: - | O56: - | P56: =IF(C56="","",F56+H56-(E56)) -> 4 | Q56: =IF(C56="","",LOOKUP(J56,Area!$A$2:$B$71)+LOOKUP(K56,ByM!$A$2:$B$462)+LOOKUP(L56,ByM!$A$2:$B$462)+LOOKUP(M56,ByM!$A$2:$B$462)+LOOKUP(N56,ByM!$A$2:$B$462)+LOOKUP(O56,ByM!$A$2:$B$462)) -> 0
B57: Objeto | C57: Dispositivo de diagnosis Seegson | E57: 3 | F57: 0 | H57: 3 | I57: 5 | J57: - | K57: Maestría (arreglar) | L57: - | M57: - | N57: - | O57: - | P57: =IF(C57="","",F57+H57-(E57)) -> 0 | Q57: =IF(C57="","",LOOKUP(J57,Area!$A$2:$B$71)+LOOKUP(K57,ByM!$A$2:$B$462)+LOOKUP(L57,ByM!$A$2:$B$462)+LOOKUP(M57,ByM!$A$2:$B$462)+LOOKUP(N57,ByM!$A$2:$B$462)+LOOKUP(O57,ByM!$A$2:$B$462)) -> 5
B58: Objeto | C58: Dispositivo holográfico | E58: 1 | F58: 5 | H58: 7 | I58: 31 | J58: - | K58: Señuelo | L58: - | M58: - | N58: - | O58: - | P58: =IF(C58="","",F58+H58-(E58)) -> 11 | Q58: =IF(C58="","",LOOKUP(J58,Area!$A$2:$B$71)+LOOKUP(K58,ByM!$A$2:$B$462)+LOOKUP(L58,ByM!$A$2:$B$462)+LOOKUP(M58,ByM!$A$2:$B$462)+LOOKUP(N58,ByM!$A$2:$B$462)+LOOKUP(O58,ByM!$A$2:$B$462)) -> 20
B59: Objeto | C59: Doblón de oro | E59: 1 | F59: 0 | H59: 1 | I59: 5 | J59: - | K59: Teleport | L59: - | M59: - | N59: - | O59: - | P59: =IF(C59="","",F59+H59-(E59)) -> 0 | Q59: =IF(C59="","",LOOKUP(J59,Area!$A$2:$B$71)+LOOKUP(K59,ByM!$A$2:$B$462)+LOOKUP(L59,ByM!$A$2:$B$462)+LOOKUP(M59,ByM!$A$2:$B$462)+LOOKUP(N59,ByM!$A$2:$B$462)+LOOKUP(O59,ByM!$A$2:$B$462)) -> 5
B60: Objeto | C60: Dron de escaneo aéreo | E60: 3 | F60: 20 | H60: 7 | I60: 32 | J60: - | K60: Área despreciable (R20) | L60: Sensor: Detecta tropas sin Línea de visión | M60: - | N60: - | O60: - | P60: =IF(C60="","",F60+H60-(E60)) -> 24 | Q60: =IF(C60="","",LOOKUP(J60,Area!$A$2:$B$71)+LOOKUP(K60,ByM!$A$2:$B$462)+LOOKUP(L60,ByM!$A$2:$B$462)+LOOKUP(M60,ByM!$A$2:$B$462)+LOOKUP(N60,ByM!$A$2:$B$462)+LOOKUP(O60,ByM!$A$2:$B$462)) -> 8
B61: Objeto | C61: El juicio del emperador | E61: 1 | F61: 0 | H61: 9 | I61: 1 | J61: - | K61: Reliquia | L61: Señor del sometimiento | M61: Radiante | N61: - | O61: - | P61: =IF(C61="","",F61+H61-(E61)) -> 8 | Q61: =IF(C61="","",LOOKUP(J61,Area!$A$2:$B$71)+LOOKUP(K61,ByM!$A$2:$B$462)+LOOKUP(L61,ByM!$A$2:$B$462)+LOOKUP(M61,ByM!$A$2:$B$462)+LOOKUP(N61,ByM!$A$2:$B$462)+LOOKUP(O61,ByM!$A$2:$B$462)) -> -10
B62: Objeto | C62: Espectáculo de acróbatas | E62: 4 | F62: 15 | H62: 3 | I62: 29 | J62: - | K62: Presencia de destreza (acróbatas) | L62: Un uso por aventura | M62: - | N62: - | O62: - | P62: =IF(C62="","",F62+H62-(E62)) -> 14 | Q62: =IF(C62="","",LOOKUP(J62,Area!$A$2:$B$71)+LOOKUP(K62,ByM!$A$2:$B$462)+LOOKUP(L62,ByM!$A$2:$B$462)+LOOKUP(M62,ByM!$A$2:$B$462)+LOOKUP(N62,ByM!$A$2:$B$462)+LOOKUP(O62,ByM!$A$2:$B$462)) -> 15
B63: Objeto | C63: Espectáculo de atención | E63: 4 | F63: 0 | H63: 3 | I63: 1 | J63: - | K63: Radiante | L63: Un uso por aventura | M63: - | N63: - | O63: - | P63: =IF(C63="","",F63+H63-(E63)) -> -1 | Q63: =IF(C63="","",LOOKUP(J63,Area!$A$2:$B$71)+LOOKUP(K63,ByM!$A$2:$B$462)+LOOKUP(L63,ByM!$A$2:$B$462)+LOOKUP(M63,ByM!$A$2:$B$462)+LOOKUP(N63,ByM!$A$2:$B$462)+LOOKUP(O63,ByM!$A$2:$B$462)) -> -20
B64: Objeto | C64: Espectáculo de domadores | E64: 4 | F64: 15 | H64: 3 | I64: 29 | J64: - | K64: Presencia de honor (domadores) | L64: Un uso por aventura | M64: - | N64: - | O64: - | P64: =IF(C64="","",F64+H64-(E64)) -> 14 | Q64: =IF(C64="","",LOOKUP(J64,Area!$A$2:$B$71)+LOOKUP(K64,ByM!$A$2:$B$462)+LOOKUP(L64,ByM!$A$2:$B$462)+LOOKUP(M64,ByM!$A$2:$B$462)+LOOKUP(N64,ByM!$A$2:$B$462)+LOOKUP(O64,ByM!$A$2:$B$462)) -> 15
B65: Objeto | C65: Espectáculo de forzudos | E65: 4 | F65: 15 | H65: 3 | I65: 29 | J65: - | K65: Presencia de fuerza (forzudos) | L65: Un uso por aventura | M65: - | N65: - | O65: - | P65: =IF(C65="","",F65+H65-(E65)) -> 14 | Q65: =IF(C65="","",LOOKUP(J65,Area!$A$2:$B$71)+LOOKUP(K65,ByM!$A$2:$B$462)+LOOKUP(L65,ByM!$A$2:$B$462)+LOOKUP(M65,ByM!$A$2:$B$462)+LOOKUP(N65,ByM!$A$2:$B$462)+LOOKUP(O65,ByM!$A$2:$B$462)) -> 15
B66: Objeto | C66: Espectáculo de pachachos | E66: 4 | F66: 15 | H66: 3 | I66: 34 | J66: - | K66: Presencia de protección (pachachos) | L66: Un uso por aventura | M66: - | N66: - | O66: - | P66: =IF(C66="","",F66+H66-(E66)) -> 14 | Q66: =IF(C66="","",LOOKUP(J66,Area!$A$2:$B$71)+LOOKUP(K66,ByM!$A$2:$B$462)+LOOKUP(L66,ByM!$A$2:$B$462)+LOOKUP(M66,ByM!$A$2:$B$462)+LOOKUP(N66,ByM!$A$2:$B$462)+LOOKUP(O66,ByM!$A$2:$B$462)) -> 20
B67: Objeto | C67: Estandarte astartes | E67: 1 | F67: 0 | H67: 3 | I67: 52 | J67: - | K67: Estandarte | L67: Grito de venganza | M67: - | N67: - | O67: - | P67: =IF(C67="","",F67+H67-(E67)) -> 2 | Q67: =IF(C67="","",LOOKUP(J67,Area!$A$2:$B$71)+LOOKUP(K67,ByM!$A$2:$B$462)+LOOKUP(L67,ByM!$A$2:$B$462)+LOOKUP(M67,ByM!$A$2:$B$462)+LOOKUP(N67,ByM!$A$2:$B$462)+LOOKUP(O67,ByM!$A$2:$B$462)) -> 50
B68: Objeto | C68: Estandarte de la venganza | E68: 1 | F68: 0 | H68: 3 | I68: 52 | J68: - | K68: Estandarte | L68: Grito de venganza | M68: - | N68: - | O68: - | P68: =IF(C68="","",F68+H68-(E68)) -> 2 | Q68: =IF(C68="","",LOOKUP(J68,Area!$A$2:$B$71)+LOOKUP(K68,ByM!$A$2:$B$462)+LOOKUP(L68,ByM!$A$2:$B$462)+LOOKUP(M68,ByM!$A$2:$B$462)+LOOKUP(N68,ByM!$A$2:$B$462)+LOOKUP(O68,ByM!$A$2:$B$462)) -> 50
B69: Objeto | C69: Estandarte del capítulo | E69: 1 | F69: 0 | H69: 3 | I69: 57 | J69: - | K69: Estandarte | L69: Grito de odio | M69: - | N69: - | O69: - | P69: =IF(C69="","",F69+H69-(E69)) -> 2 | Q69: =IF(C69="","",LOOKUP(J69,Area!$A$2:$B$71)+LOOKUP(K69,ByM!$A$2:$B$462)+LOOKUP(L69,ByM!$A$2:$B$462)+LOOKUP(M69,ByM!$A$2:$B$462)+LOOKUP(N69,ByM!$A$2:$B$462)+LOOKUP(O69,ByM!$A$2:$B$462)) -> 55
B70: Objeto | C70: Estandarte del Dios ascendente | E70: 1 | F70: 0 | H70: 9 | I70: 58 | J70: - | K70: Estandarte | L70: Aura de obstinación | M70: Reliquia | N70: - | O70: - | P70: =IF(C70="","",F70+H70-(E70)) -> 8 | Q70: =IF(C70="","",LOOKUP(J70,Area!$A$2:$B$71)+LOOKUP(K70,ByM!$A$2:$B$462)+LOOKUP(L70,ByM!$A$2:$B$462)+LOOKUP(M70,ByM!$A$2:$B$462)+LOOKUP(N70,ByM!$A$2:$B$462)+LOOKUP(O70,ByM!$A$2:$B$462)) -> 50
B71: Objeto | C71: Estandarte del emperador ascendente | E71: 1 | F71: 0 | H71: 9 | I71: 58 | J71: - | K71: Aura de obstinación | L71: Estandarte | M71: Reliquia | N71: - | O71: - | P71: =IF(C71="","",F71+H71-(E71)) -> 8 | Q71: =IF(C71="","",LOOKUP(J71,Area!$A$2:$B$71)+LOOKUP(K71,ByM!$A$2:$B$462)+LOOKUP(L71,ByM!$A$2:$B$462)+LOOKUP(M71,ByM!$A$2:$B$462)+LOOKUP(N71,ByM!$A$2:$B$462)+LOOKUP(O71,ByM!$A$2:$B$462)) -> 50
B72: Objeto | C72: Estandarte del odio | E72: 1 | F72: 0 | H72: 3 | I72: 57 | J72: - | K72: Estandarte | L72: Grito de odio | M72: - | N72: - | O72: - | P72: =IF(C72="","",F72+H72-(E72)) -> 2 | Q72: =IF(C72="","",LOOKUP(J72,Area!$A$2:$B$71)+LOOKUP(K72,ByM!$A$2:$B$462)+LOOKUP(L72,ByM!$A$2:$B$462)+LOOKUP(M72,ByM!$A$2:$B$462)+LOOKUP(N72,ByM!$A$2:$B$462)+LOOKUP(O72,ByM!$A$2:$B$462)) -> 55
B73: Objeto | C73: Estandarte del odio justiciero | E73: 1 | F73: 0 | H73: 3 | I73: 42 | J73: - | K73: Estandarte | L73: Grito de venganza | M73: Munición teledirigida | N73: Reliquia | O73: - | P73: =IF(C73="","",F73+H73-(E73)) -> 2 | Q73: =IF(C73="","",LOOKUP(J73,Area!$A$2:$B$71)+LOOKUP(K73,ByM!$A$2:$B$462)+LOOKUP(L73,ByM!$A$2:$B$462)+LOOKUP(M73,ByM!$A$2:$B$462)+LOOKUP(N73,ByM!$A$2:$B$462)+LOOKUP(O73,ByM!$A$2:$B$462)) -> 40
B74: Objeto | C74: Flor escupe agua | E74: 1 | F74: 0 | H74: 2 | I74: 1 | J74: - | K74: Trilero | L74: Un uso por aventura | M74: - | N74: - | O74: - | P74: =IF(C74="","",F74+H74-(E74)) -> 1 | Q74: =IF(C74="","",LOOKUP(J74,Area!$A$2:$B$71)+LOOKUP(K74,ByM!$A$2:$B$462)+LOOKUP(L74,ByM!$A$2:$B$462)+LOOKUP(M74,ByM!$A$2:$B$462)+LOOKUP(N74,ByM!$A$2:$B$462)+LOOKUP(O74,ByM!$A$2:$B$462)) -> -2
B75: Objeto | C75: Gato amargado | E75: 1 | F75: 0 | H75: 7 | I75: 21 | J75: - | K75: Fortuna | L75: - | M75: - | N75: - | O75: - | P75: =IF(C75="","",F75+H75-(E75)) -> 6 | Q75: =IF(C75="","",LOOKUP(J75,Area!$A$2:$B$71)+LOOKUP(K75,ByM!$A$2:$B$462)+LOOKUP(L75,ByM!$A$2:$B$462)+LOOKUP(M75,ByM!$A$2:$B$462)+LOOKUP(N75,ByM!$A$2:$B$462)+LOOKUP(O75,ByM!$A$2:$B$462)) -> 15
B76: Objeto | C76: Globo que flota | E76: 3 | F76: 0 | H76: 1 | I76: 1 | J76: - | K76: Bomba viviente | L76: Un uso por aventura | M76: - | N76: - | O76: - | P76: =IF(C76="","",F76+H76-(E76)) -> -2 | Q76: =IF(C76="","",LOOKUP(J76,Area!$A$2:$B$71)+LOOKUP(K76,ByM!$A$2:$B$462)+LOOKUP(L76,ByM!$A$2:$B$462)+LOOKUP(M76,ByM!$A$2:$B$462)+LOOKUP(N76,ByM!$A$2:$B$462)+LOOKUP(O76,ByM!$A$2:$B$462)) -> -5
B77: Objeto | C77: Grabadora de cintas Seegson C-Series | E77: 2 | F77: 0 | H77: 1 | I77: 2 | J77: R2 | K77: - | L77: - | M77: - | N77: - | O77: - | P77: =IF(C77="","",F77+H77-(E77)) -> -1 | Q77: =IF(C77="","",LOOKUP(J77,Area!$A$2:$B$71)+LOOKUP(K77,ByM!$A$2:$B$462)+LOOKUP(L77,ByM!$A$2:$B$462)+LOOKUP(M77,ByM!$A$2:$B$462)+LOOKUP(N77,ByM!$A$2:$B$462)+LOOKUP(O77,ByM!$A$2:$B$462)) -> 3
B78: Objeto | C78: Guante con descarga | E78: 1 | F78: 0 | H78: 2 | I78: 1 | J78: - | K78: Sangre de ácido | L78: Un uso por aventura | M78: - | N78: - | O78: - | P78: =IF(C78="","",F78+H78-(E78)) -> 1 | Q78: =IF(C78="","",LOOKUP(J78,Area!$A$2:$B$71)+LOOKUP(K78,ByM!$A$2:$B$462)+LOOKUP(L78,ByM!$A$2:$B$462)+LOOKUP(M78,ByM!$A$2:$B$462)+LOOKUP(N78,ByM!$A$2:$B$462)+LOOKUP(O78,ByM!$A$2:$B$462)) -> -5
B79: Objeto | C79: Guantelete hélix | E79: 1 | F79: 0 | H79: 3 | I79: 17 | J79: - | K79: Fortuna | L79: - | M79: - | N79: - | O79: - | P79: =IF(C79="","",F79+H79-(E79)) -> 2 | Q79: =IF(C79="","",LOOKUP(J79,Area!$A$2:$B$71)+LOOKUP(K79,ByM!$A$2:$B$462)+LOOKUP(L79,ByM!$A$2:$B$462)+LOOKUP(M79,ByM!$A$2:$B$462)+LOOKUP(N79,ByM!$A$2:$B$462)+LOOKUP(O79,ByM!$A$2:$B$462)) -> 15
B80: Objeto | C80: Habichuela mágica | E80: 3 | F80: 0 | H80: 1 | I80: 8 | J80: - | K80: Droga | L80: elixir N3 | M80: - | N80: - | O80: - | P80: =IF(C80="","",F80+H80-(E80)) -> -2 | Q80: =IF(C80="","",LOOKUP(J80,Area!$A$2:$B$71)+LOOKUP(K80,ByM!$A$2:$B$462)+LOOKUP(L80,ByM!$A$2:$B$462)+LOOKUP(M80,ByM!$A$2:$B$462)+LOOKUP(N80,ByM!$A$2:$B$462)+LOOKUP(O80,ByM!$A$2:$B$462)) -> 10
B81: Objeto | C81: Halo indómitus | E81: 1 | F81: 0 | H81: 5 | I81: 11 | J81: - | K81: Reliquia | L81: Salvaguarda | M81: Afortunado | N81: - | O81: - | P81: =IF(C81="","",F81+H81-(E81)) -> 4 | Q81: =IF(C81="","",LOOKUP(J81,Area!$A$2:$B$71)+LOOKUP(K81,ByM!$A$2:$B$462)+LOOKUP(L81,ByM!$A$2:$B$462)+LOOKUP(M81,ByM!$A$2:$B$462)+LOOKUP(N81,ByM!$A$2:$B$462)+LOOKUP(O81,ByM!$A$2:$B$462)) -> 7
B82: Objeto | C82: Herramientas | E82: 3 | F82: 0 | H82: 4 | I82: 6 | J82: - | K82: Maestría (arreglar) | L82: - | M82: - | N82: - | O82: - | P82: =IF(C82="","",F82+H82-(E82)) -> 1 | Q82: =IF(C82="","",LOOKUP(J82,Area!$A$2:$B$71)+LOOKUP(K82,ByM!$A$2:$B$462)+LOOKUP(L82,ByM!$A$2:$B$462)+LOOKUP(M82,ByM!$A$2:$B$462)+LOOKUP(N82,ByM!$A$2:$B$462)+LOOKUP(O82,ByM!$A$2:$B$462)) -> 5
B83: Objeto | C83: Herramientas electrónicas | E83: 2 | F83: 0 | H83: 3 | I83: 11 | J83: - | K83: Maestría (arreglar) | L83: Maestría (mecanismos) | M83: - | N83: - | O83: - | P83: =IF(C83="","",F83+H83-(E83)) -> 1 | Q83: =IF(C83="","",LOOKUP(J83,Area!$A$2:$B$71)+LOOKUP(K83,ByM!$A$2:$B$462)+LOOKUP(L83,ByM!$A$2:$B$462)+LOOKUP(M83,ByM!$A$2:$B$462)+LOOKUP(N83,ByM!$A$2:$B$462)+LOOKUP(O83,ByM!$A$2:$B$462)) -> 10
B84: Objeto | C84: Hierba de la buena | E84: 1 | F84: 0 | H84: 2 | I84: 1 | J84: - | K84: Droga | L84: Elixir N1 | M84: - | N84: - | O84: - | P84: =IF(C84="","",F84+H84-(E84)) -> 1 | Q84: =IF(C84="","",LOOKUP(J84,Area!$A$2:$B$71)+LOOKUP(K84,ByM!$A$2:$B$462)+LOOKUP(L84,ByM!$A$2:$B$462)+LOOKUP(M84,ByM!$A$2:$B$462)+LOOKUP(N84,ByM!$A$2:$B$462)+LOOKUP(O84,ByM!$A$2:$B$462)) -> 0
